Workbook

Sheet INVERSION
B1: INVERSION TIPO DE CONTRATO AÑO 2021 SE SUMO EL NUMERO DE CONTRATOS | DT1: INVERSION POR MODALIDAD DE CONTRATO 2021
A3: Año | B3: 2021 | DT3: Año | DU3: 2021
A4: Afectación | B4: Inversión | DT4: Afectación | DU4: Inversión
D6: Valores | DW6: Valores
A7: Tipo de contrato | B7: Propósito | C7: Equivalencia número de programa | D7: Suma de Valor Final | E7: Suma de Valor Final 2 | F7: Suma de Giros (Valor en pesos) | G7: Suma de Giros (Valor en pesos)2 | H7: Suma de Cuenta contratos | I7: Suma de Cuenta contratos2 | DT7: Modalidad de Selección | DU7: Propósito | DV7: Equivalencia número de programa | DW7: Suma de Valor Final | DX7: Suma de Valor Final 2 | DY7: Suma de Giros (Valor en pesos) | DZ7: Suma de Giros (Valor en pesos)2 | EA7: Suma de Cuenta contratos | EB7: Suma de Cuenta contratos2
A8: Arrendamiento de bienes inmuebles | B8: Propósito 5: Construir Bogotá - Región con gobierno abierto, transparente y ciudadanía consciente | C8: Gestión pública local | D8: 15000000 | E8: 0.0001774711097 | F8: 0 | G8: 0 | H8: 1 | I8: 0.001340482574 | DT8: Concurso de méritos | DU8: Propósito 1: Hacer un nuevo contrato social para incrementar la inclusión social, productiva y política | DV8: Creación y vida cotidiana: Apropiación ciudadana del arte, la cultura y el patrimonio, para la democracia cultural | DW8: 85246157 | DX8: 0.001008582005 | DY8: 6819693 | DZ8: 0.0001781760718 | EA8: 1 | EB8: 0.001340482574
A9: Compraventa de bienes muebles | B9: Propósito 1: Hacer un nuevo contrato social para incrementar la inclusión social, productiva y política | C9: Jóvenes con capacidades: Proyecto de vida para la ciudadanía, la innovación y el trabajo del siglo XXI | D9: 327693300 | E9: 0.003877072906 | F9: 0 | G9: 0 | H9: 1 | I9: 0.001340482574 | DV9: Prevención y atención de maternidad temprana | DW9: 186244587 | DX9: 0.002203535568 | DZ9: 0 | EA9: 1 | EB9: 0.001340482574
C10: Bogotá región emprendedora e innovadora | D10: 3131163 | E10: 3.704606481e-05 | F10: 0 | G10: 0 | H10: 1 | I10: 0.001340482574 | DU10: Propósito 2 : Cambiar Nuestros Hábitos de Vida para Reverdecer a Bogotá y Adaptarnos y Mitigar la Crisis Climática | DV10: Provisión y mejoramiento de servicios públicos | DW10: 798392995.4 | DX10: 0.009446112723 | DY10: 0 | DZ10: 0 | EA10: 2 | EB10: 0.002680965147
C11: Formación integral: más y mejor tiempo en los colegios | D11: 1014652836 | E11: 0.01200477098 | F11: 0 | G11: 0 | H11: 0 | I11: 0 | DU11: Propósito 4: Hacer de Bogotá Región un modelo de movilidad multimodal, incluyente y sostenible | DV11: Movilidad segura, sostenible y accesible | DW11: 950067275 | DX11: 0.0112406329 | DY11: 0 | DZ11: 0 | EA11: 3 | EB11: 0.004021447721
C12: Educación inicial: Bases sólidas para la vida. | D12: 181954046 | E12: 0.00215277243 | F12: 0 | G12: 0 | H12: 0 | I12: 0 | DU12: Propósito 5: Construir Bogotá - Región con gobierno abierto, transparente y ciudadanía consciente | DV12: Fortalecimiento de cultura ciudadana y su institucionalidad | DW12: 46100000 | DX12: 0.0005454278771 | DZ12: 0 | EA12: 1 | EB12: 0.001340482574
B13: Propósito 5: Construir Bogotá - Región con gobierno abierto, transparente y ciudadanía consciente | C13: Gestión pública local | D13: 1052017511 | E13: 0.01244684767 | F13: 96940082 | G13: 0.002532724422 | H13: 6 | I13: 0.008042895442 | DT13: Contratación directa | DU13: Propósito 1: Hacer un nuevo contrato social para incrementar la inclusión social, productiva y política | DV13: Bogotá región emprendedora e innovadora | DW13: 197500000 | DX13: 0.002336702944 | DY13: 74310000 | DZ13: 0.001941475063 | EA13: 9 | EB13: 0.01206434316
C14: Fortalecimiento de cultura ciudadana y su institucionalidad | D14: 372274942 | E14: 0.004404536471 | G14: 0 | H14: 1 | I14: 0.001340482574 | DV14: Creación y vida cotidiana: Apropiación ciudadana del arte, la cultura y el patrimonio, para la democracia cultural | DW14: 2546787000 | DX14: 0.03013207433 | DY14: 2546787000 | DZ14: 0.06653913944 | EA14: 1 | EB14: 0.001340482574
C15: Transformación digital y gestión de TIC para un territorio inteligente | D15: 453385650 | E15: 0.005364190294 | G15: 0 | H15: 0 | I15: 0 | DV15: Jóvenes con capacidades: Proyecto de vida para la ciudadanía, la innovación y el trabajo del siglo XXI | DW15: 9495149000 | DX15: 0.1123409753 | DY15: 9495149000 | DZ15: 0.2480769076 | EA15: 1 | EB15: 0.001340482574
B16: Propósito 2 : Cambiar Nuestros Hábitos de Vida para Reverdecer a Bogotá y Adaptarnos y Mitigar la Crisis Climática | C16: Cambio cultural para la gestión de la crisis climática | D16: 14839119 | E16: 0.000175567661 | F16: 0 | G16: 0 | H16: 0 | I16: 0 | DV16: Prevención y atención de maternidad temprana | DW16: 174718185 | DX16: 0.002067162012 | DY16: 0 | DZ16: 0 | EA16: 0 | EB16: 0
C17: Ecoeficiencia, reciclaje, manejo de residuos e inclusión de la población recicladora | D17: 3210412 | E17: 3.798369201e-05 | F17: 0 | G17: 0 | H17: 0 | I17: 0 | DV17: Sistema Distrital de Cuidado | DW17: 3909541840 | DX17: 0.04625538191 | DY17: 222263884 | DZ17: 0.005807021777 | EA17: 28 | EB17: 0.03753351206
C18: Más árboles y más y mejor espacio público | D18: 876633 | E18: 1.037180209e-05 | G18: 0 | H18: 0 | I18: 0 | DV18: Subsidios y transferencias para la equidad | DW18: 4208899553 | DX18: 0.04979720495 | DY18: 4063485460 | DZ18: 0.1061654648 | EA18: 19 | EB18: 0.0254691689
C19: Bogotá protectora de sus recursos naturales | D19: 6469317 | E19: 7.654112446e-05 | F19: 0 | G19: 0 | H19: 0 | I19: 0 | DU19: Propósito 2 : Cambiar Nuestros Hábitos de Vida para Reverdecer a Bogotá y Adaptarnos y Mitigar la Crisis Climática | DV19: Bogotá protectora de sus recursos naturales | DW19: 1113448029 | DX19: 0.01317365715 | DY19: 176440000 | DZ19: 0.004609794915 | EA19: 39 | EB19: 0.05227882038
B20: Propósito 3: Inspirar confianza y legitimidad para vivir sin miedo y ser epicentro de cultura ciudadana, paz y reconciliación | C20: Bogotá territorio de paz y atención integral a las víctimas del conflicto armado | D20: 23410035 | E20: 0.0002769736593 | F20: 0 | G20: 0 | H20: 1 | I20: 0.001340482574 | DV20: Cambio cultural para la gestión de la crisis climática | DW20: 512080000 | DX20: 0.006058627056 | DY20: 56300000 | DZ20: 0.001470933199 | EA20: 9 | EB20: 0.01206434316
A21: Contratos de prestación de servicios | B21: Propósito 1: Hacer un nuevo contrato social para incrementar la inclusión social, productiva y política | C21: Subsidios y transferencias para la equidad | D21: 43720000 | E21: 0.0005172691277 | F21: 15302000 | G21: 0.0003997907605 | H21: 1 | I21: 0.001340482574 | DV21: Ecoeficiencia, reciclaje, manejo de residuos e inclusión de la población recicladora | DW21: 1819481740 | DX21: 0.02152702956 | DY21: 140600000 | DZ21: 0.003673413994 | EA21: 22 | EB21: 0.02949061662
C22: Creación y vida cotidiana: Apropiación ciudadana del arte, la cultura y el patrimonio, para la democracia cultural | D22: 17119565 | E22: 0.0002025485465 | F22: 0 | G22: 0 | H22: 1 | I22: 0.001340482574 | DV22: Eficiencia en la atención de emergencias | DW22: 296720423 | DX22: 0.003510620182 | DZ22: 0 | EA22: 1 | EB22: 0.001340482574
C23: Sistema Distrital de Cuidado | D23: 3189675770 | E23: 0.03773835323 | F23: 0 | G23: 0 | H23: 3 | I23: 0.004021447721 | DV23: Más árboles y más y mejor espacio público | DW23: 352789917 | DX23: 0.004174001204 | DY23: 151850000 | DZ23: 0.003967339367 | EA23: 27 | EB23: 0.03619302949
C24: Bogotá región emprendedora e innovadora | D24: 187631660 | E24: 0.002219946594 | F24: 7742000 | G24: 0.00020227291 | H24: 1 | I24: 0.001340482574 | DU24: Propósito 3: Inspirar confianza y legitimidad para vivir sin miedo y ser epicentro de cultura ciudadana, paz y reconciliación | DV24: Bogotá territorio de paz y atención integral a las víctimas del conflicto armado | DW24: 1176595614 | DX24: 0.01392078195 | DY24: 110390000 | DZ24: 0.002884126392 | EA24: 15 | EB24: 0.02010723861
C25: Bogotá, referente en cultura, deporte, recreación y actividad física, con parques para el desarrollo y la salud | D25: 1679885728 | E25: 0.01987541229 | F25: 0 | G25: 0 | H25: 2 | I25: 0.002680965147 | DV25: Cultura ciudadana para la confianza, la convivencia y la participación desde la vida cotidiana | DW25: 812920000 | DX25: 0.009617987632 | DY25: 3388000 | DZ25: 8.851725897e-05 | EA25: 82 | EB25: 0.109919571
B26: Propósito 5: Construir Bogotá - Región con gobierno abierto, transparente y ciudadanía consciente | C26: Gestión pública local | D26: 180907006 | E26: 0.002140384474 | F26: 12600000 | G26: 0.0003291964176 | H26: 2 | I26: 0.002680965147 | DV26: Más mujeres viven una vida libre de violencias, se sienten seguras y acceden con confianza al sistema de justicia | DW26: 401370000 | DX26: 0.004748771953 | DY26: 232620000 | DZ26: 0.006077592911 | EA26: 27 | EB26: 0.03619302949
C27: Fortalecimiento de cultura ciudadana y su institucionalidad | D27: 21076790 | E27: 0.0002493680873 | F27: 0 | G27: 0 | H27: 1 | I27: 0.001340482574 | DU27: Propósito 4: Hacer de Bogotá Región un modelo de movilidad multimodal, incluyente y sostenible | DV27: Movilidad segura, sostenible y accesible | DW27: 406385000 | DX27: 0.00480810646 | DY27: 360655000 | DZ27: 0.009422724921 | EA27: 15 | EB27: 0.02010723861
C28: Transformación digital y gestión de TIC para un territorio inteligente | D28: 54557287 | E28: 0.0006454894843 | F28: 1847287 | G28: 4.826351292e-05 | H28: 1 | I28: 0.001340482574 | DU28: Propósito 5: Construir Bogotá - Región con gobierno abierto, transparente y ciudadanía consciente | DV28: Fortalecimiento de cultura ciudadana y su institucionalidad | DW28: 396750000 | DX28: 0.004694110851 | DY28: 154140000 | DZ28: 0.004027169509 | EA28: 16 | EB28: 0.02144772118
B29: Propósito 2 : Cambiar Nuestros Hábitos de Vida para Reverdecer a Bogotá y Adaptarnos y Mitigar la Crisis Climática | C29: Bogotá protectora de los animales | D29: 1312073042 | E29: 0.01552367058 | F29: 0 | G29: 0 | H29: 1 | I29: 0.001340482574 | DV29: Gestión pública local | DW29: 14027294278 | DX29: 0.1659626321 | DY29: 12029343452 | DZ29: 0.3142870453 | EA29: 360 | EB29: 0.4825737265
C30: Cambio cultural para la gestión de la crisis climática | D30: 27650000 | E30: 0.0003271384122 | F30: 7742000 | G30: 0.00020227291 | H30: 0 | I30: 0 | DV30: Transformación digital y gestión de TIC para un territorio inteligente | DW30: 619579306 | DX30: 0.007330495131 | DY30: 316815001 | DZ30: 0.008277330427 | EA30: 14 | EB30: 0.01876675603
C31: Más árboles y más y mejor espacio público | D31: 46750000 | E31: 0.0005531182918 | F31: 13090000 | G31: 0.0003419985006 | H31: 0 | I31: 0 | DT31: Contratación mínima cuantia | DU31: Propósito 1: Hacer un nuevo contrato social para incrementar la inclusión social, productiva y política | DV31: Creación y vida cotidiana: Apropiación ciudadana del arte, la cultura y el patrimonio, para la democracia cultural | DW31: 17119565 | DX31: 0.0002025485465 | DY31: 0 | DZ31: 0 | EA31: 1 | EB31: 0.001340482574
C32: Bogotá protectora de sus recursos naturales | D32: 93890000 | E32: 0.001110850833 | F32: 26289200 | G32: 0.0006868500367 | H32: 0 | I32: 0 | DU32: Propósito 3: Inspirar confianza y legitimidad para vivir sin miedo y ser epicentro de cultura ciudadana, paz y reconciliación | DV32: Bogotá territorio de paz y atención integral a las víctimas del conflicto armado | DW32: 23410035 | DX32: 0.0002769736593 | DY32: 0 | DZ32: 0 | EA32: 1 | EB32: 0.001340482574
B33: Propósito 4: Hacer de Bogotá Región un modelo de movilidad multimodal, incluyente y sostenible | C33: Movilidad segura, sostenible y accesible | D33: 191000000 | E33: 0.002259798797 | F33: 0 | G33: 0 | H33: 1 | I33: 0.001340482574 | DV33: Espacio público más seguro y construido colectivamente | DW33: 18000000 | DX33: 0.0002129653316 | DY33: 0 | DZ33: 0 | EA33: 1 | EB33: 0.001340482574
B34: Propósito 3: Inspirar confianza y legitimidad para vivir sin miedo y ser epicentro de cultura ciudadana, paz y reconciliación | C34: Más mujeres viven una vida libre de violencias, se sienten seguras y acceden con confianza al sistema de justicia | D34: 914683348 | E34: 0.01082199125 | F34: 25232310 | G34: 0.000659236989 | H34: 2 | I34: 0.002680965147 | DV34: Más mujeres viven una vida libre de violencias, se sienten seguras y acceden con confianza al sistema de justicia | DW34: 39960310 | DX34: 0.0004727867039 | DY34: 18960310 | DZ34: 0.0004953703277 | EA34: 2 | EB34: 0.002680965147
C35: Cultura ciudadana para la confianza, la convivencia y la participación desde la vida cotidiana | D35: 693201978 | E35: 0.008201554951 | G35: 0 | H35: 1 | I35: 0.001340482574 | DU35: Propósito 5: Construir Bogotá - Región con gobierno abierto, transparente y ciudadanía consciente | DV35: Fortalecimiento de cultura ciudadana y su institucionalidad | DW35: 21076790 | DX35: 0.0002493680873 | DY35: 0 | DZ35: 0 | EA35: 1 | EB35: 0.001340482574
C36: Espacio público más seguro y construido colectivamente | D36: 809758452 | E36: 0.00958058207 | F36: 0 | G36: 0 | H36: 1 | I36: 0.001340482574 | DV36: Gestión pública local | DW36: 36987580 | DX36: 0.0004376151245 | DY36: 0 | DZ36: 0 | EA36: 2 | EB36: 0.002680965147
C37: Plataforma institucional para la seguridad y justicia | D37: 670554500 | E37: 0.007933603414 | F37: 0 | G37: 0 | H37: 1 | I37: 0.001340482574 | DV37: Transformación digital y gestión de TIC para un territorio inteligente | DW37: 1847287 | DX37: 2.185600492e-05 | DY37: 1847287 | DZ37: 4.826351292e-05 | EA37: 0 | EB37: 0
A38: Contratos de prestación de servicios profesionales y de apoyo a la gestión | B38: Propósito 1: Hacer un nuevo contrato social para incrementar la inclusión social, productiva y política | C38: Subsidios y transferencias para la equidad | D38: 881899553 | E38: 0.01043411282 | F38: 736485460 | G38: 0.01924193453 | H38: 18 | I38: 0.02412868633 | DT38: Licitación pública | DU38: Propósito 1: Hacer un nuevo contrato social para incrementar la inclusión social, productiva y política | DV38: Bogotá, referente en cultura, deporte, recreación y actividad física, con parques para el desarrollo y la salud | DW38: 1679885728 | DX38: 0.01987541229 | DY38: 0 | DZ38: 0 | EA38: 2 | EB38: 0.002680965147
C39: Sistema Distrital de Cuidado | D39: 284843326 | E39: 0.00337009741 | F39: 17813333 | G39: 0.000465403604 | H39: 24 | I39: 0.03217158177 | DV39: Creación y vida cotidiana: Apropiación ciudadana del arte, la cultura y el patrimonio, para la democracia cultural | DW39: 709297716 | DX39: 0.008391990183 | DY39: 0 | DZ39: 0 | EA39: 1 | EB39: 0.001340482574
C40: Bogotá región emprendedora e innovadora | D40: 143500000 | E40: 0.001697806949 | F40: 74310000 | G40: 0.001941475063 | H40: 8 | I40: 0.01072386059 | DV40: Sistema Distrital de Cuidado | DW40: 2830410000 | DX40: 0.03348773357 | DY40: 0 | DZ40: 0 | EA40: 1 | EB40: 0.001340482574
B41: Propósito 5: Construir Bogotá - Región con gobierno abierto, transparente y ciudadanía consciente | C41: Gestión pública local | D41: 13972527334 | E41: 0.1653146621 | F41: 12011587659 | G41: 0.313823145 | H41: 359 | I41: 0.481233244 | DU41: Propósito 2 : Cambiar Nuestros Hábitos de Vida para Reverdecer a Bogotá y Adaptarnos y Mitigar la Crisis Climática | DV41: Bogotá protectora de los animales | DW41: 1312073042 | DX41: 0.01552367058 | DY41: 0 | DZ41: 0 | EA41: 1 | EB41: 0.001340482574
C42: Fortalecimiento de cultura ciudadana y su institucionalidad | D42: 396750000 | E42: 0.004694110851 | F42: 154140000 | G42: 0.004027169509 | H42: 16 | I42: 0.02144772118 | DU42: Propósito 3: Inspirar confianza y legitimidad para vivir sin miedo y ser epicentro de cultura ciudadana, paz y reconciliación | DV42: Cultura ciudadana para la confianza, la convivencia y la participación desde la vida cotidiana | DW42: 693201978 | DX42: 0.008201554951 | DZ42: 0 | EA42: 1 | EB42: 0.001340482574
C43: Transformación digital y gestión de TIC para un territorio inteligente | D43: 371000000 | E43: 0.004389452113 | F43: 301593333 | G43: 0.007879638477 | H43: 12 | I43: 0.01608579088 | DV43: Espacio público más seguro y construido colectivamente | DW43: 809758452 | DX43: 0.00958058207 | DY43: 0 | DZ43: 0 | EA43: 1 | EB43: 0.001340482574
B44: Propósito 2 : Cambiar Nuestros Hábitos de Vida para Reverdecer a Bogotá y Adaptarnos y Mitigar la Crisis Climática | C44: Cambio cultural para la gestión de la crisis climática | D44: 128080000 | E44: 0.001515366648 | F44: 56300000 | G44: 0.001470933199 | H44: 9 | I44: 0.01206434316 | DV44: Más mujeres viven una vida libre de violencias, se sienten seguras y acceden con confianza al sistema de justicia | DW44: 873323038 | DX44: 0.01033264058 | DY44: 0 | DZ44: 0 | EA44: 1 | EB44: 0.001340482574
C45: Ecoeficiencia, reciclaje, manejo de residuos e inclusión de la población recicladora | D45: 263380000 | E45: 0.003116156058 | F45: 140600000 | G45: 0.003673413994 | H45: 21 | I45: 0.02815013405 | DV45: Plataforma institucional para la seguridad y justicia | DW45: 670554500 | DX45: 0.007933603414 | DY45: 0 | DZ45: 0 | EA45: 1 | EB45: 0.001340482574
C46: Más árboles y más y mejor espacio público | D46: 340600000 | E46: 0.00402977733 | F46: 151850000 | G46: 0.003967339367 | H46: 27 | I46: 0.03619302949 | DU46: Propósito 4: Hacer de Bogotá Región un modelo de movilidad multimodal, incluyente y sostenible | DV46: Movilidad segura, sostenible y accesible | DW46: 9523928579 | DX46: 0.1126814782 | DY46: 0 | DZ46: 0 | EA46: 3 | EB46: 0.004021447721
C47: Bogotá protectora de sus recursos naturales | D47: 491960000 | E47: 0.005820579141 | F47: 176440000 | G47: 0.004609794915 | H47: 39 | I47: 0.05227882038 | DU47: Propósito 5: Construir Bogotá - Región con gobierno abierto, transparente y ciudadanía consciente | DV47: Fortalecimiento de cultura ciudadana y su institucionalidad | DW47: 442740035 | DX47: 0.005238237687 | DY47: 0 | DZ47: 0 | EA47: 1 | EB47: 0.001340482574
B48: Propósito 4: Hacer de Bogotá Región un modelo de movilidad multimodal, incluyente y sostenible | C48: Movilidad segura, sostenible y accesible | D48: 406385000 | E48: 0.00480810646 | F48: 360655000 | G48: 0.009422724921 | H48: 15 | I48: 0.02010723861 | DT48: Régimen especial | DU48: Propósito 1: Hacer un nuevo contrato social para incrementar la inclusión social, productiva y política | DV48: Sistema Distrital de Cuidado | DW48: 9390687731 | DX48: 0.1111050515 | DY48: 7512550185 | DZ48: 0.1962781435 | EA48: 1 | EB48: 0.001340482574
B49: Propósito 3: Inspirar confianza y legitimidad para vivir sin miedo y ser epicentro de cultura ciudadana, paz y reconciliación | C49: Bogotá territorio de paz y atención integral a las víctimas del conflicto armado | D49: 243000000 | E49: 0.002875031977 | F49: 110390000 | G49: 0.002884126392 | H49: 15 | I49: 0.02010723861 | DT49: Selección abreviada | DU49: Propósito 1: Hacer un nuevo contrato social para incrementar la inclusión social, productiva y política | DV49: Bogotá región emprendedora e innovadora | DW49: 668308634 | DX49: 0.007907031659 | DY49: 7742000 | DZ49: 0.00020227291 | EA49: 7 | EB49: 0.009383378016
C50: Más mujeres viven una vida libre de violencias, se sienten seguras y acceden con confianza al sistema de justicia | D50: 401370000 | E50: 0.004748771953 | F50: 232620000 | G50: 0.006077592911 | H50: 27 | I50: 0.03619302949 | DV50: Educación inicial: Bases sólidas para la vida. | DW50: 310031062 | DX50: 0.003668103774 | DY50: 0 | DZ50: 0 | EA50: 1 | EB50: 0.001340482574
C51: Cultura ciudadana para la confianza, la convivencia y la participación desde la vida cotidiana | D51: 812920000 | E51: 0.009617987632 | F51: 3388000 | G51: 8.851725897e-05 | H51: 82 | I51: 0.109919571 | DV51: Formación integral: más y mejor tiempo en los colegios | DW51: 1014652836 | DX51: 0.01200477098 | DY51: 0 | DZ51: 0 | EA51: 0 | EB51: 0
A52: Contratos interadministrativos | B52: Propósito 1: Hacer un nuevo contrato social para incrementar la inclusión social, productiva y política | C52: Subsidios y transferencias para la equidad | D52: 3327000000 | E52: 0.03936309213 | F52: 3327000000 | G52: 0.08692353028 | H52: 1 | I52: 0.001340482574 | DV52: Jóvenes con capacidades: Proyecto de vida para la ciudadanía, la innovación y el trabajo del siglo XXI | DW52: 327693300 | DX52: 0.003877072906 | DY52: 0 | DZ52: 0 | EA52: 1 | EB52: 0.001340482574
C53: Jóvenes con capacidades: Proyecto de vida para la ciudadanía, la innovación y el trabajo del siglo XXI | D53: 9495149000 | E53: 0.1123409753 | F53: 9495149000 | G53: 0.2480769076 | H53: 1 | I53: 0.001340482574 | DV53: Sistema Distrital de Cuidado | DW53: 359265770 | DX53: 0.004250619658 | DY53: 0 | DZ53: 0 | EA53: 2 | EB53: 0.002680965147
C54: Creación y vida cotidiana: Apropiación ciudadana del arte, la cultura y el patrimonio, para la democracia cultural | D54: 2546787000 | E54: 0.03013207433 | F54: 2546787000 | G54: 0.06653913944 | H54: 1 | I54: 0.001340482574 | DV54: Subsidios y transferencias para la equidad | DW54: 590076696 | DX54: 0.006981437736 | DY54: 88311545 | DZ54: 0.002307289226 | EA54: 6 | EB54: 0.008042895442
C55: Sistema Distrital de Cuidado | D55: 3624698514 | E55: 0.0428852845 | F55: 204450551 | G55: 0.005341618173 | H55: 4 | I55: 0.005361930295 | DU55: Propósito 2 : Cambiar Nuestros Hábitos de Vida para Reverdecer a Bogotá y Adaptarnos y Mitigar la Crisis Climática | DV55: Bogotá protectora de sus recursos naturales | DW55: 889450453 | DX55: 0.01052345059 | DY55: 26289200 | DZ55: 0.0006868500367 | EA55: 0 | EB55: 0
C56: Bogotá región emprendedora e innovadora | D56: 54000000 | E56: 0.0006388959948 | F56: 0 | G56: 0 | H56: 1 | I56: 0.001340482574 | DV56: Cambio cultural para la gestión de la crisis climática | DW56: 391353206 | DX56: 0.004630259183 | DY56: 7742000 | DZ56: 0.00020227291 | EA56: 0 | EB56: 0
C57: Prevención y atención de maternidad temprana | D57: 174718185 | E57: 0.002067162012 | F57: 0 | G57: 0 | H57: 0 | I57: 0 | DV57: Ecoeficiencia, reciclaje, manejo de residuos e inclusión de la población recicladora | DW57: 454681837 | DX57: 0.005379526011 | DY57: 0 | DZ57: 0 | EA57: 0 | EB57: 0
B58: Propósito 5: Construir Bogotá - Región con gobierno abierto, transparente y ciudadanía consciente | C58: Gestión pública local | D58: 39766944 | E58: 0.000470498912 | F58: 17755793 | G58: 0.0004639002737 | H58: 0 | I58: 0 | DV58: Más árboles y más y mejor espacio público | DW58: 169560746 | DX58: 0.00200614225 | DY58: 13090000 | DZ58: 0.0003419985006 | EA58: 0 | EB58: 0
C59: Transformación digital y gestión de TIC para un territorio inteligente | D59: 248579306 | E59: 0.002941043019 | F59: 15221668 | G59: 0.0003976919505 | H59: 2 | I59: 0.002680965147 | DU59: Propósito 3: Inspirar confianza y legitimidad para vivir sin miedo y ser epicentro de cultura ciudadana, paz y reconciliación | DV59: Bogotá territorio de paz y atención integral a las víctimas del conflicto armado | DW59: 63248299 | DX59: 0.0007483163872 | DY59: 0 | DZ59: 0 | EA59: 0 | EB59: 0
B60: Propósito 2 : Cambiar Nuestros Hábitos de Vida para Reverdecer a Bogotá y Adaptarnos y Mitigar la Crisis Climática | C60: Cambio cultural para la gestión de la crisis climática | D60: 384000000 | E60: 0.004543260408 | F60: 0 | G60: 0 | H60: 0 | I60: 0 | DV60: Más mujeres viven una vida libre de violencias, se sienten seguras y acceden con confianza al sistema de justicia | DW60: 77900172 | DX60: 0.0009216686646 | DY60: 6272000 | DZ60: 0.0001638666612 | EA60: 0 | EB60: 0
C61: Ecoeficiencia, reciclaje, manejo de residuos e inclusión de la población recicladora | D61: 1556101740 | E61: 0.0184108735 | F61: 0 | G61: 0 | H61: 1 | I61: 0.001340482574 | DU61: Propósito 4: Hacer de Bogotá Región un modelo de movilidad multimodal, incluyente y sostenible | DV61: Movilidad segura, sostenible y accesible | DW61: 1646306067 | DX61: 0.01947811764 | DY61: 341320513 | DZ61: 0.008917578583 | EA61: 3 | EB61: 0.004021447721
C62: Más árboles y más y mejor espacio público | D62: 12189917 | E62: 0.0001442238731 | F62: 0 | G62: 0 | H62: 0 | I62: 0 | DU62: Propósito 5: Construir Bogotá - Región con gobierno abierto, transparente y ciudadanía consciente | DV62: Fortalecimiento de cultura ciudadana y su institucionalidad | DW62: 2174874270 | DX62: 0.02573182334 | DY62: 0 | DZ62: 0 | EA62: 2 | EB62: 0.002680965147
C63: Bogotá protectora de sus recursos naturales | D63: 621488029 | E63: 0.00735307801 | F63: 0 | G63: 0 | H63: 0 | I63: 0 | DV63: Gestión pública local | DW63: 1213217138 | DX63: 0.01435406612 | DY63: 109540082 | DZ63: 0.00286192084 | EA63: 7 | EB63: 0.009383378016
C64: Eficiencia en la atención de emergencias | D64: 296720423 | E64: 0.003510620182 | G64: 0 | H64: 1 | I64: 0.001340482574 | DV64: Transformación digital y gestión de TIC para un territorio inteligente | DW64: 541855309 | DX64: 0.006410910864 | DY64: 0 | DZ64: 0 | EA64: 2 | EB64: 0.002680965147
B65: Propósito 3: Inspirar confianza y legitimidad para vivir sin miedo y ser epicentro de cultura ciudadana, paz y reconciliación | C65: Bogotá territorio de paz y atención integral a las víctimas del conflicto armado | D65: 933595614 | E65: 0.01104574997 | F65: 0 | G65: 0 | H65: 0 | I65: 0 | DT65: Total general | DW65: 8.452079906e+10 | DX65: 1 | DY65: 38275021612 | DZ65: 1 | EA65: 746 | EB65: 1
A66: Interventoría | B66: Propósito 1: Hacer un nuevo contrato social para incrementar la inclusión social, productiva y política | C66: Creación y vida cotidiana: Apropiación ciudadana del arte, la cultura y el patrimonio, para la democracia cultural | D66: 85246157 | E66: 0.001008582005 | F66: 6819693 | G66: 0.0001781760718 | H66: 1 | I66: 0.001340482574
C67: Prevención y atención de maternidad temprana | D67: 186244587 | E67: 0.002203535568 | G67: 0 | H67: 1 | I67: 0.001340482574
B68: Propósito 5: Construir Bogotá - Región con gobierno abierto, transparente y ciudadanía consciente | C68: Fortalecimiento de cultura ciudadana y su institucionalidad | D68: 46100000 | E68: 0.0005454278771 | G68: 0 | H68: 1 | I68: 0.001340482574
B69: Propósito 2 : Cambiar Nuestros Hábitos de Vida para Reverdecer a Bogotá y Adaptarnos y Mitigar la Crisis Climática | C69: Provisión y mejoramiento de servicios públicos | D69: 77010828 | E69: 0.0009111464735 | G69: 0 | H69: 1 | I69: 0.001340482574
B70: Propósito 4: Hacer de Bogotá Región un modelo de movilidad multimodal, incluyente y sostenible | C70: Movilidad segura, sostenible y accesible | D70: 950067275 | E70: 0.0112406329 | F70: 0 | G70: 0 | H70: 3 | I70: 0.004021447721
B71: Propósito 3: Inspirar confianza y legitimidad para vivir sin miedo y ser epicentro de cultura ciudadana, paz y reconciliación | C71: Más mujeres viven una vida libre de violencias, se sienten seguras y acceden con confianza al sistema de justicia | D71: 21000000 | E71: 0.0002484595535 | F71: 0 | G71: 0 | H71: 1 | I71: 0.001340482574
C72: Espacio público más seguro y construido colectivamente | D72: 18000000 | E72: 0.0002129653316 | F72: 0 | G72: 0 | H72: 1 | I72: 0.001340482574
A73: Obra pública | B73: Propósito 1: Hacer un nuevo contrato social para incrementar la inclusión social, productiva y política | C73: Creación y vida cotidiana: Apropiación ciudadana del arte, la cultura y el patrimonio, para la democracia cultural | D73: 709297716 | E73: 0.008391990183 | F73: 0 | G73: 0 | H73: 1 | I73: 0.001340482574
B74: Propósito 5: Construir Bogotá - Región con gobierno abierto, transparente y ciudadanía consciente | C74: Fortalecimiento de cultura ciudadana y su institucionalidad | D74: 442740035 | E74: 0.005238237687 | F74: 0 | G74: 0 | H74: 1 | I74: 0.001340482574
B75: Propósito 4: Hacer de Bogotá Región un modelo de movilidad multimodal, incluyente y sostenible | C75: Movilidad segura, sostenible y accesible | D75: 9523928579 | E75: 0.1126814782 | F75: 0 | G75: 0 | H75: 3 | I75: 0.004021447721
A76: Suministro | B76: Propósito 1: Hacer un nuevo contrato social para incrementar la inclusión social, productiva y política | C76: Subsidios y transferencias para la equidad | D76: 546356696 | E76: 0.006464168608 | F76: 73009545 | G76: 0.001907498466 | H76: 5 | I76: 0.006702412869
C77: Bogotá región emprendedora e innovadora | D77: 477545811 | E77: 0.005650039 | F77: 0 | G77: 0 | H77: 5 | I77: 0.006702412869
C78: Educación inicial: Bases sólidas para la vida. | D78: 128077016 | E78: 0.001515331344 | F78: 0 | G78: 0 | H78: 1 | I78: 0.001340482574
B79: Propósito 5: Construir Bogotá - Región con gobierno abierto, transparente y ciudadanía consciente | C79: Gestión pública local | D79: 17280201 | E79: 0.0002044490965 | F79: 0 | G79: 0 | H79: 1 | I79: 0.001340482574
C80: Fortalecimiento de cultura ciudadana y su institucionalidad | D80: 1802599328 | E80: 0.02132728687 | F80: 0 | G80: 0 | H80: 1 | I80: 0.001340482574
C81: Transformación digital y gestión de TIC para un territorio inteligente | D81: 35759658.96 | E81: 0.0004230870905 | F81: 0 | G81: 0 | H81: 1 | I81: 0.001340482574
B82: Propósito 2 : Cambiar Nuestros Hábitos de Vida para Reverdecer a Bogotá y Adaptarnos y Mitigar la Crisis Climática | C82: Cambio cultural para la gestión de la crisis climática | D82: 348864087 | E82: 0.00412755311 | F82: 0 | G82: 0 | H82: 0 | I82: 0
C83: Ecoeficiencia, reciclaje, manejo de residuos e inclusión de la población recicladora | D83: 451471425 | E83: 0.005341542319 | F83: 0 | G83: 0 | H83: 0 | I83: 0
C84: Más árboles y más y mejor espacio público | D84: 121934113 | E84: 0.001442652156 | F84: 0 | G84: 0 | H84: 0 | I84: 0
C85: Bogotá protectora de sus recursos naturales | D85: 789091136 | E85: 0.009336058636 | F85: 0 | G85: 0 | H85: 0 | I85: 0
B86: Propósito 4: Hacer de Bogotá Región un modelo de movilidad multimodal, incluyente y sostenible | C86: Movilidad segura, sostenible y accesible | D86: 1455306067 | E86: 0.01721831884 | F86: 341320513 | G86: 0.008917578583 | H86: 2 | I86: 0.002680965147
B87: Propósito 3: Inspirar confianza y legitimidad para vivir sin miedo y ser epicentro de cultura ciudadana, paz y reconciliación | C87: Bogotá territorio de paz y atención integral a las víctimas del conflicto armado | D87: 63248299 | E87: 0.0007483163872 | F87: 0 | G87: 0 | H87: 0 | I87: 0
C88: Más mujeres viven una vida libre de violencias, se sienten seguras y acceden con confianza al sistema de justicia | D88: 55500172 | E88: 0.0006566451408 | F88: 0 | G88: 0 | H88: 0 | I88: 0
A89: Convenios de cooperacion | B89: Propósito 1: Hacer un nuevo contrato social para incrementar la inclusión social, productiva y política | C89: Sistema Distrital de Cuidado | D89: 9390687731 | E89: 0.1111050515 | F89: 7512550185 | G89: 0.1962781435 | H89: 1 | I89: 0.001340482574
A90: Consultoría | B90: Propósito 2 : Cambiar Nuestros Hábitos de Vida para Reverdecer a Bogotá y Adaptarnos y Mitigar la Crisis Climática | C90: Provisión y mejoramiento de servicios públicos | D90: 721382167.4 | E90: 0.00853496625 | F90: 0 | G90: 0 | H90: 1 | I90: 0.001340482574
A91: Total general | D91: 8.452079906e+10 | E91: 1 | F91: 38275021612 | G91: 1 | H91: 746 | I91: 1
B151: INVERSION TIPO DE CONTRATO AÑO ANTERIORES SE SUMO EL NUMERO DE ADICIONES
DT152: FUNCIONAMIENTO POR MODALIDAD DE CONTRATO AÑOS ANTERIORES SE SUMO EL NUMERO DE ADICIONES
A153: Año | B153: (Varios elementos)
A154: Afectación | B154: Inversión | DT154: Año | DU154: (Varios elementos)
DT155: Afectación | DU155: Inversión
D156: Valores
A157: Tipo de contrato | B157: Propósito | C157: Equivalencia número de programa | D157: Suma de Valor Final | E157: Suma de Valor Final 2 | F157: Suma de Giros (Valor en pesos) | G157: Suma de Giros (Valor en pesos)2 | H157: Suma de Número de adiciones | I157: Suma de Número de adiciones2 | DW157: Valores
A158: Interventoría | B158: Propósito 2 : Cambiar Nuestros Hábitos de Vida para Reverdecer a Bogotá y Adaptarnos y Mitigar la Crisis Climática | C158: Más árboles y más y mejor espacio público | D158: 352188489 | E158: 0.1568812366 | F158: 0 | G158: 0 | H158: 2 | I158: 0.4 | DT158: Modalidad de Selección | DU158: Propósito | DV158: Equivalencia número de programa | DW158: Suma de Valor Final | DX158: Suma de Valor Final 2 | DY158: Suma de Giros (Valor en pesos) | DZ158: Suma de Giros (Valor en pesos)2 | EA158: Suma de Número de adiciones | EB158: Suma de Número de adiciones2
C159: Eficiencia en la atención de emergencias | D159: 160704408 | E159: 0.07158526482 | F159: 0 | G159: 0 | H159: 1 | I159: 0.2 | DT159: Concurso de méritos | DU159: Propósito 2 : Cambiar Nuestros Hábitos de Vida para Reverdecer a Bogotá y Adaptarnos y Mitigar la Crisis Climática | DV159: Eficiencia en la atención de emergencias | DW159: 160704408 | DX159: 0.07158526482 | DY159: 0 | DZ159: 0 | EA159: 1 | EB159: 0.2
A160: Obra pública | B160: Propósito 2 : Cambiar Nuestros Hábitos de Vida para Reverdecer a Bogotá y Adaptarnos y Mitigar la Crisis Climática | C160: Eficiencia en la atención de emergencias | D160: 1607044080 | E160: 0.7158526482 | F160: 254992649 | G160: 0.7972081859 | H160: 1 | I160: 0.2 | DV160: Más árboles y más y mejor espacio público | DW160: 352188489 | DX160: 0.1568812366 | DY160: 0 | DZ160: 0 | EA160: 2 | EB160: 0.4
A161: Suministro | B161: Propósito 5: Construir Bogotá - Región con gobierno abierto, transparente y ciudadanía consciente | C161: Fortalecimiento de cultura ciudadana y su institucionalidad | D161: 125000000 | E161: 0.05568085041 | F161: 64864389 | G161: 0.2027918141 | H161: 1 | I161: 0.2 | DT161: Licitación pública | DU161: Propósito 2 : Cambiar Nuestros Hábitos de Vida para Reverdecer a Bogotá y Adaptarnos y Mitigar la Crisis Climática | DV161: Eficiencia en la atención de emergencias | DW161: 1607044080 | DX161: 0.7158526482 | DY161: 254992649 | DZ161: 0.7972081859 | EA161: 1 | EB161: 0.2
A162: Total general | D162: 2244936977 | E162: 1 | F162: 319857038 | G162: 1 | H162: 5 | I162: 1 | DT162: Selección abreviada | DU162: Propósito 5: Construir Bogotá - Región con gobierno abierto, transparente y ciudadanía consciente | DV162: Fortalecimiento de cultura ciudadana y su institucionalidad | DW162: 125000000 | DX162: 0.05568085041 | DY162: 64864389 | DZ162: 0.2027918141 | EA162: 1 | EB162: 0.2
DT163: Total general | DW163: 2244936977 | DX163: 1 | DY163: 319857038 | DZ163: 1 | EA163: 5 | EB163: 1

Sheet Ctos suscrito x Trimestre
B2: Contratos Suscritos en la vigencia 2021 (Inversion) | E2: Se toman solo los contratos de la vigencia por cuanto en las adiciones años anteriores algunas Entidades registraron la fecha en que se suscribio el contrato y no la adición.
B3: Afectación | C3: Inversión
B4: Tipo de contrato | C4: (Varios elementos) | D4: No incluir "otros gastos"
B5: Año | C5: (Todas)
B7: Suma de Cuenta contratos
B8: Fecha de suscripción (DD/MM/AAAA) | C8: Total
B9: 44221 | C9: 12
B10: 44222 | C10: 1
B11: 44223 | C11: 11
B12: 44224 | C12: 4
B13: 44225 | C13: 3
B14: 44228 | C14: 3
B15: 44229 | C15: 3
B16: 44230 | C16: 4
B17: 44231 | C17: 9
B18: 44232 | C18: 12
B19: 44235 | C19: 8
B20: 44236 | C20: 11
B21: 44237 | C21: 19
B22: 44238 | C22: 14
B23: 44239 | C23: 5
B24: 44263 | C24: 14
B25: 44242 | C25: 8
B26: 44243 | C26: 5
B27: 44244 | C27: 12
B28: 44245 | C28: 11
B29: 44246 | C29: 2
B30: 44251 | C30: 1
B31: 44252 | C31: 7
B32: 44253 | C32: 4
B33: 44256 | C33: 5
B34: 44257 | C34: 20
B35: 44258 | C35: 2
B36: 44259 | C36: 3
B37: 44260 | C37: 1
B38: 44264 | C38: 10
B39: 44265 | C39: 4
B40: 44266 | C40: 8
B41: 44270 | C41: 3
B42: 44267 | C42: 6
B43: 44271 | C43: 4
B44: 44272 | C44: 1
B45: 44274 | C45: 2
B46: 44273 | C46: 4
B47: 44278 | C47: 2
B48: 44279 | C48: 7
B49: 44284 | C49: 1
B50: 44281 | C50: 7
B51: 44291 | C51: 2
B52: 44285 | C52: 6
B53: 44286 | C53: 7
B54: 44293 | C54: 9
B55: 44294 | C55: 8
B56: 44295 | C56: 11
B57: 44299 | C57: 3
B58: 44300 | C58: 8
B59: 44305 | C59: 4
B60: 44301 | C60: 2
B61: 44302 | C61: 1
B62: 44306 | C62: 4
B63: 44308 | C63: 9
B64: 44313 | C64: 3
B65: 44314 | C65: 1
B66: 44319 | C66: 1
B67: 44316 | C67: 1
B68: 44323 | C68: 2
B69: 44328 | C69: 2
B70: 44334 | C70: 1
B71: 44335 | C71: 1
B72: 44337 | C72: 3
B73: 44347 | C73: 1
B74: 44348 | C74: 2
B75: 44344 | C75: 1
B76: 44350 | C76: 1
B77: 44351 | C77: 2
B78: 44358 | C78: 1
B79: 44362 | C79: 1
B80: 44377 | C80: 1
B81: 44365 | C81: 1
B82: 44370 | C82: 1
B83: 44384 | C83: 1
B84: 44496 | C84: 0
B85: 44392 | C85: 1
B86: 44393 | C86: 1
B87: 44407 | C87: 1
B88: 44410 | C88: 3
B89: 44412 | C89: 1
B90: 44414 | C90: 3
B91: 44417 | C91: 4
B92: 44419 | C92: 3
B93: 44420 | C93: 2
B94: 44426 | C94: 5
B95: 44425 | C95: 1
B96: 44432 | C96: 1
B97: 44427 | C97: 1
B98: 44428 | C98: 2
B99: 44434 | C99: 3
B100: 44433 | C100: 2
B101: 44435 | C101: 2
B102: 44439 | C102: 6
B103: 44438 | C103: 2
B104: 44442 | C104: 22
B105: 44440 | C105: 7
B106: 44446 | C106: 7
B107: 44443 | C107: 3
B108: 44447 | C108: 3
B109: 44542 | C109: 1
B110: 44449 | C110: 1
B111: 44448 | C111: 1
B112: 44452 | C112: 3
B113: 44454 | C113: 18
B114: 44453 | C114: 3
B115: 44456 | C115: 2
B116: 44455 | C116: 1
B117: 44460 | C117: 20
B118: 44459 | C118: 2
B119: 44461 | C119: 4
B120: 44462 | C120: 2
B121: 44463 | C121: 1
B122: 44466 | C122: 1
B123: 44469 | C123: 1
B124: 44468 | C124: 3
B125: 44470 | C125: 2
B126: 44482 | C126: 1
B127: 44473 | C127: 1
B128: 44477 | C128: 27
B129: 44476 | C129: 2
B130: 44489 | C130: 2
B131: 44481 | C131: 2
B132: 44511 | C132: 5
B133: 44494 | C133: 4
B134: 44491 | C134: 2
B135: 44495 | C135: 3
B136: 44502 | C136: 5
B137: 44497 | C137: 1
B138: 44505 | C138: 1
B139: 44498 | C139: 1
B140: 44504 | C140: 1
B141: 44512 | C141: 7
B142: 44508 | C142: 1
B143: 44509 | C143: 2
B144: 44516 | C144: 23
B145: 44510 | C145: 2
B146: 44517 | C146: 1
B147: 44523 | C147: 1
B148: 44525 | C148: 1
B149: 44524 | C149: 4
B150: 44519 | C150: 1
B151: 44526 | C151: 2
B152: 44529 | C152: 1
B153: 44530 | C153: 4
B154: 44531 | C154: 1
B155: 44532 | C155: 3
B156: 44536 | C156: 4
B157: 44539 | C157: 4
B158: 44537 | C158: 1
B159: 44545 | C159: 6
B160: 44544 | C160: 4
B161: 44547 | C161: 5
B162: 44546 | C162: 5
B163: 44550 | C163: 2
B164: 44553 | C164: 7
B165: 44552 | C165: 4
B166: 44557 | C166: 5
B167: 44559 | C167: 13
B168: 44558 | C168: 5
B169: 44560 | C169: 23
B170: 44561 | C170: 22
B171: 44533 | C171: 2
B172: Total general | C172: 751

Sheet FUNCIONAMIENTO
B1: FUNCIONAMIENTO TIPO DE CONTRATO AÑO 2021 SE SUMO EL NUMERO DE CONTRATOS | O1: FUNCIONAMIENTO POR MODALIDAD DE CONTRATO 2021
A3: Año | B3: 2021 | O3: Año | P3: 2021
A4: Afectación | B4: Funcionamiento | O4: Afectación | P4: Funcionamiento
C6: Valores | P6: Valores
A7: Tipo de contrato | B7: Propósito | C7: Suma de Valor Final | D7: Suma de Valor Final 2 | E7: Suma de Giros (Valor en pesos) | F7: Suma de Giros (Valor en pesos)2 | G7: Suma de Cuenta contratos | H7: Suma de Cuenta contratos2 | O7: Modalidad de Selección | P7: Suma de Valor Final | Q7: Suma de Valor Final 2 | R7: Suma de Giros (Valor en pesos) | S7: Suma de Giros (Valor en pesos)2 | T7: Suma de Cuenta contratos | U7: Suma de Cuenta contratos2
A8: Contratos de prestación de servicios | C8: 29835771 | D8: 0.01379164194 | E8: 7633553 | F8: 0.005479704541 | G8: 3 | H8: 0.2727272727 | O8: Contratación directa | P8: 15000000 | Q8: 0.006933778552 | R8: 0 | S8: 0 | T8: 3 | U8: 0.2727272727
B9: (en blanco) | C9: 1770600214 | D9: 0.8184633192 | E9: 1189070114 | F9: 0.8535675201 | G9: 2 | H9: 0.1818181818 | O9: Contratación mínima cuantia | P9: 29835771 | Q9: 0.01379164194 | R9: 7633553 | S9: 0.005479704541 | T9: 3 | U9: 0.2727272727
A10: Contratos interadministrativos | C10: 15000000 | D10: 0.006933778552 | E10: 0 | F10: 0 | G10: 3 | H10: 0.2727272727 | O10: Selección abreviada | P10: 2118486851 | Q10: 0.9792745795 | R10: 1385425679 | S10: 0.9945202955 | T10: 5 | U10: 0.4545454545
A11: Seguros | C11: 196355569 | D11: 0.09076573552 | E11: 196355565 | F11: 0.1409527754 | G11: 2 | H11: 0.1818181818 | O11: Total general | P11: 2163322622 | Q11: 1 | R11: 1393059232 | S11: 1 | T11: 11 | U11: 1
A12: Suministro | C12: 27076068.43 | D12: 0.01251596417 | E12: 0 | F12: 0 | G12: 1 | H12: 0.09090909091
B13: (en blanco) | C13: 124455000 | D13: 0.05752956064 | E13: 0 | F13: 0 | G13: 0 | H13: 0
A14: Total general | C14: 2163322622 | D14: 1 | E14: 1393059232 | F14: 1 | G14: 11 | H14: 1
B28: FUNCIONAMIENTO TIPO DE CONTRATO AÑO ANTERIORES SE SUMO EL NUMERO DE ADICIONES
O29: FUNCIONAMIENTO POR MODALIDAD DE CONTRATO AÑOS ANTERIORES SE SUMO EL NUMERO DE ADICIONES
A30: Año | B30: (Varios elementos)
A31: Afectación | B31: Funcionamiento | O31: Año | P31: (Varios elementos)
O32: Afectación | P32: Funcionamiento
C33: Valores
A34: Tipo de contrato | B34: Propósito | C34: Suma de Valor Final | D34: Suma de Valor Final 2 | E34: Suma de Giros (Valor en pesos) | F34: Suma de Giros (Valor en pesos)2 | G34: Suma de Número de adiciones | H34: Suma de Número de adiciones2 | P34: Valores
A35: Compraventa de bienes muebles | B35: (en blanco) | C35: 7219135 | D35: 0.01162783893 | E35: 7197120 | F35: 0.01170637488 | G35: 1 | H35: 0.1666666667 | O35: Modalidad de Selección | P35: Suma de Valor Final | Q35: Suma de Valor Final 2 | R35: Suma de Giros (Valor en pesos) | S35: Suma de Giros (Valor en pesos)2 | T35: Suma de Número de adiciones | U35: Suma de Número de adiciones2
A36: Contratos de prestación de servicios | B36: (en blanco) | C36: 514469218 | D36: 0.8286540151 | E36: 514445485 | F36: 0.8367641085 | G36: 2 | H36: 0.3333333333 | O36: Contratación mínima cuantia | P36: 21219135 | Q36: 0.03417759664 | R36: 21173504 | S36: 0.03443946679 | T36: 3 | U36: 0.5
A37: Seguros | B37: (en blanco) | C37: 86160890 | D37: 0.1387790852 | E37: 86160890 | F37: 0.1401437906 | G37: 1 | H37: 0.1666666667 | O37: Selección abreviada | P37: 599630108 | Q37: 0.9658224034 | R37: 593629975 | S37: 0.9655605332 | T37: 3 | U37: 0.5
A38: Suministro | C38: 7000000 | D38: 0.01127487885 | E38: 6999984 | F38: 0.01138572607 | G38: 1 | H38: 0.1666666667 | O38: Total general | P38: 620849243 | Q38: 1 | R38: 614803479 | S38: 1 | T38: 6 | U38: 1
B39: (en blanco) | C39: 6000000 | D39: 0.009664181873 | E39: 0 | F39: 0 | G39: 1 | H39: 0.1666666667
A40: Total general | C40: 620849243 | D40: 1 | E40: 614803479 | F40: 1 | G40: 6 | H40: 1

Sheet 1. INFORMACION ACUMULADA
B2: VEEDURIA DISTRITAL - INFORMACIÓN GESTION CONTRACTUAL
B3: DEL 1 DE ENERO AL 31 DE DICIEMBRE DE 2021
B5: 1. Entidad | F5: ALCALDIA LOCAL DE CIUDAD BOLIVAR | I5: 2. Sector
B6: 3. Presupuesto Disponible Inversión Directa PREDIS (BOGDATA) | F6: 111069750184 | I6: 5. Presupuesto Disponible Funcionamiento PREDIS (BOGDATA) | J6: 4127000000 | AI6: 9. Nombre de quien diligencia el formato | AK6: Carlos Felipe Arias y Mariela Jimenez Ovalle
B7: 4. Presupuesto Comprometido de Inversión Directa según PREDIS (BOGDATA) | F7: 109394235799 | I7: 6. Presupuesto Comprometido Funcionamiento según PREDIS (BOGDATA) | J7: 4096835865 | AI7: Cargo | AK7: Profesional de contratacion y Planeacion
AI8: Dependencia | AK8: Area de Contratacion y Planeacion
B9: 7. Presupuesto Disponible Operación (Régimen Privado) | AI9: Teléfono | AK9: 7799280
B10: 8. Presupuesto Comprometido Operación mediante contratos | AI10: Correo Electrónico | AK10: felipe.arias@gobiernobogota.gov.co, mariela.jimenez@gobiernobogota.gov.co
B11: 1- INFORMACION GENERAL | W11: 2- INFORMACION FINANCIERA | AC11: 3 - PLAZOS | AI11: 4. CESION | AM11: 5. ESTADO | AQ11: 6. % Avance y/o cumplimiento
B12: 1 | C12: 2 | D12: 3 | F12: 4 | G12: 5 | H12: 6 | I12: 7 | J12: 8 | O12: 9 | P12: 10 | Q12: 11 | W12: 12 | X12: 13 | Y12: 14 | Z12: 15 | AC12: 18 | AD12: 19 | AE12: 20 | AF12: 21 | AG12: 22 | AH12: 23 | AI12: 24 | AJ12: 25 | AK12: 26 | AL12: 27 | AM12: 28 | AQ12: 29
A13: Cuenta contratos | B13: Número Contrato | C13: Año | D13: Número de proceso contractual SECOP | E13: Link proceso SECOP | F13: Tipo de contrato | G13: Modalidad de Selección | H13: Procedimiento o causal | I13: Objeto | J13: Afectación | K13: Plan de Desarrollo Distrital | L13: Número Programa | M13: Equivalencia número de programa | N13: Propósito | O13: Número Proyecto | P13: Número de proponentes | Q13: Número de Identificación del contratista (Cédula o NIT sin puntos, comas ni caracteres especiales y sin digito de verificación) | R13: Nombre del contratista (según el caso: nombres y apellidos o Razón social y Tipo societario) | S13: Naturaleza Jurídica | T13: Número de Identificación del integrante del Consorcio o U.T. (Cédula o NIT sin puntos, comas ni caracteres especiales y sin digito de verificación) | U13: Nombre del Integrante del Consorcio o U.T. y Tipo societario (Según el caso: nombres y apellidos o razón social y tipo societario) | V13: % Participación (indicar solo el numero del porcentaje, sin caracteres especiales) | W13: Valor Inicial del contrato | X13: Valor total reducciones (En valor negativo) | Y13: Número de adiciones | Z13: Valor total de adiciones | AA13: Valor Final | AB13: Giros (Valor en pesos) | AC13: Fecha de suscripción (DD/MM/AAAA) | AD13: Fecha de inicio (DD/MM/AAAA) | AE13: Fecha de terminación (DD/MM/AAAA) | AF13: Plazo en días | AG13: Número de prórrogas | AH13: Prorroga en días | AI13: Número de Identificación del cesionario (NIT sin digito de verificación) | AJ13: Nombre cesionario | AK13: Fecha cesión (DD/MM/AAAA) | AL13: Valor cesión | AM13: Celebrado o por iniciar | AN13: En Ejecución | AO13: Terminado | AP13: Liquidado | AQ13: % Avance y/o Cumplimiento
A14: 1 | B14: CPS-001-2021 | C14: 2021 | D14: FDLCB-CD-001-2021 | E14: https://community.secop.gov.co/Public/Tendering/OpportunityDetail/Index?noticeUID=CO1.NTC.1689432&isFromPublicArea=True&isModal=False | F14: Contratos de prestación de servicios profesionales y de apoyo a la gestión | G14: Contratación directa | H14: Prestación de servicios profesionales y de apoyo a la gestión, o para la ejecución de trabajos artísticos que sólo puedan encomendarse a determinadas personas naturales; | I14: PRESTAR SUS SERVICIOS COMO CONDUCTOR DEL VEHÍCULO LIVIANO DESIGNADO PARA LAS ACTIVIDADES PROPIAS DEL DESPACHO DEL FONDO DE DESARROLLO LOCAL DE CIUDAD BOLÍVAR. | J14: Inversión | K14: Un Nuevo Contrato Social y Ambiental para la Bogotá del Siglo XXI | L14: 57 | M14: =IF(ISERROR(VLOOKUP(L14,[9]Proposito_programa!$C$2:$E$59,2,FALSE))," ",VLOOKUP(L14,[9]Proposito_programa!$C$2:$E$59,2,FALSE)) -> Gestión pública local | N14: =IF(ISERROR(VLOOKUP(L14,[9]Proposito_programa!$C$2:$E$59,3,FALSE))," ",VLOOKUP(L14,[9]Proposito_programa!$C$2:$E$59,3,FALSE)) -> Propósito 5: Construir Bogotá - Región con gobierno abierto, transparente y ciudadanía consciente | O14: 1986 | P14: 1 | Q14: 80047346 | R14: CARLOS ANDRES RUIZ SANCHEZ | S14: Persona Natural | W14: 39600000 | AA14: =+W14+X14+Z14 -> 39600000 | AB14: 36720000 | AC14: 44221 | AD14: 44221 | AE14: 44554 | AF14: 330 | AO14: X | AQ14: =IF(ISERROR(AB14/AA14),"-",(AB14/AA14)) -> 0.9272727273
A15: 1 | B15: CPS-002-2021 | C15: 2021 | D15: FDLCB-CD-002-2021 | E15: https://community.secop.gov.co/Public/Tendering/OpportunityDetail/Index?noticeUID=CO1.NTC.1690376&isFromPublicArea=True&isModal=False | F15: Contratos de prestación de servicios profesionales y de apoyo a la gestión | G15: Contratación directa | H15: Prestación de servicios profesionales y de apoyo a la gestión, o para la ejecución de trabajos artísticos que sólo puedan encomendarse a determinadas personas naturales; | I15: PRESTAR LOS SERVICIOS DE APOYO ADMINISTRATIVO FORTALECIENDO LAS ACTUACIONES, TRÁMITES Y PROCESOS QUE SE ADELANTAN EN EL ÁREA DE GESTIÓN DEL DESARROLLO, ADMINISTRATIVA Y FINANZAS DE LA ALCALDÍA LOCAL DE CIUDAD BOLÍVAR, EN TEMAS CONTRACTUALES. | J15: Inversión | K15: Un Nuevo Contrato Social y Ambiental para la Bogotá del Siglo XXI | L15: 57 | M15: =IF(ISERROR(VLOOKUP(L15,[9]Proposito_programa!$C$2:$E$59,2,FALSE))," ",VLOOKUP(L15,[9]Proposito_programa!$C$2:$E$59,2,FALSE)) -> Gestión pública local | N15: =IF(ISERROR(VLOOKUP(L15,[9]Proposito_programa!$C$2:$E$59,3,FALSE))," ",VLOOKUP(L15,[9]Proposito_programa!$C$2:$E$59,3,FALSE)) -> Propósito 5: Construir Bogotá - Región con gobierno abierto, transparente y ciudadanía consciente | O15: 1986 | P15: 1 | Q15: 52433242 | R15: MARIA YOLANDA LINARES BALCERO | S15: Persona Natural | W15: 28000000 | Y15: 1 | Z15: 12833333 | AA15: 40833333 | AB15: 35700000 | AC15: 44221 | AD15: 44221 | AE15: 44575 | AF15: 240 | AG15: 1 | AH15: 110 | AN15: X | AQ15: 0.8742857214
A16: 1 | B16: CPS-003-2021 | C16: 2021 | D16: FDLCB-CD-003-2021 | E16: https://community.secop.gov.co/Public/Tendering/OpportunityDetail/Index?noticeUID=CO1.NTC.1691063&isFromPublicArea=True&isModal=False | F16: Contratos de prestación de servicios profesionales y de apoyo a la gestión | G16: Contratación directa | H16: Prestación de servicios profesionales y de apoyo a la gestión, o para la ejecución de trabajos artísticos que sólo puedan encomendarse a determinadas personas naturales; | I16: PRESTAR SERVICIOS PROFESIONALES PARA ADELANTAR LA IMPLEMENTACIÓN DE LAS ESTRATEGIAS QUE EN GESTIÓN TERRITORIAL REQUIERA LA ALCALDÍA LOCAL DE CIUDAD BOLÍVAR, ASÍ COMO APOYAR JURÍDICAMENTE LAS ACTUACIONES, TRAMITES Y PROCESOS A CARGO DEL DESPACHO DEL FONDO DE DESARROLLO LOCAL. | J16: Inversión | K16: Un Nuevo Contrato Social y Ambiental para la Bogotá del Siglo XXI | L16: 57 | M16: =IF(ISERROR(VLOOKUP(L16,[9]Proposito_programa!$C$2:$E$59,2,FALSE))," ",VLOOKUP(L16,[9]Proposito_programa!$C$2:$E$59,2,FALSE)) -> Gestión pública local | N16: =IF(ISERROR(VLOOKUP(L16,[9]Proposito_programa!$C$2:$E$59,3,FALSE))," ",VLOOKUP(L16,[9]Proposito_programa!$C$2:$E$59,3,FALSE)) -> Propósito 5: Construir Bogotá - Región con gobierno abierto, transparente y ciudadanía consciente | O16: 1986 | P16: 1 | Q16: 1032383222 | R16: JESUS MAURICIO ROA OME | S16: Persona Natural | W16: 73700000 | AA16: 73700000 | AB16: 68116667 | AC16: 44221 | AD16: 44222 | AE16: 44555 | AF16: 330 | AO16: X | AQ16: 0.9242424288
A17: 1 | B17: CPS-004-2021 | C17: 2021 | D17: FDLCB-CD-004-2021 | E17: https://community.secop.gov.co/Public/Tendering/OpportunityDetail/Index?noticeUID=CO1.NTC.1691603&isFromPublicArea=True&isModal=False | F17: Contratos de prestación de servicios profesionales y de apoyo a la gestión | G17: Contratación directa | H17: Prestación de servicios profesionales y de apoyo a la gestión, o para la ejecución de trabajos artísticos que sólo puedan encomendarse a determinadas personas naturales; | I17: PRESTAR SERVICIOS PROFESIONALES ESPECIALIZADOS EN EL DESPACHO DE LA ALCALDÍA LOCAL DE CIUDAD BOLÍVAR, PARA ADELANTAR LA IMPLEMENTACIÓN DE LOS LINEAMIENTOS ESTABLECIDOS DEL SERVICIO SOCIAL DE APOYO ECONÓMICO A CARGO DEL FONDO QUE PERMITAN GARANTIZAR EL CUMPLIMIENTO DE LAS METAS ESTABLECIDAS EN EL PLAN DE DESARROLLO LOCAL 2021-2024. | J17: Inversión | K17: Un Nuevo Contrato Social y Ambiental para la Bogotá del Siglo XXI | L17: 57 | M17: =IF(ISERROR(VLOOKUP(L17,[9]Proposito_programa!$C$2:$E$59,2,FALSE))," ",VLOOKUP(L17,[9]Proposito_programa!$C$2:$E$59,2,FALSE)) -> Gestión pública local | N17: =IF(ISERROR(VLOOKUP(L17,[9]Proposito_programa!$C$2:$E$59,3,FALSE))," ",VLOOKUP(L17,[9]Proposito_programa!$C$2:$E$59,3,FALSE)) -> Propósito 5: Construir Bogotá - Región con gobierno abierto, transparente y ciudadanía consciente | O17: 1986 | P17: 1 | Q17: 1032455158 | R17: YENIFER ANDREA CHIQUIZA NIVIA | S17: Persona Natural | W17: 85800000 | Y17: 1 | Z17: 5200000 | AA17: 91000000 | AB17: 79560000 | AC17: 44221 | AD17: 44221 | AE17: 44554 | AF17: 330 | AG17: 1 | AH17: 21 | AO17: X | AQ17: 0.8742857143
A18: 1 | B18: CPS-005-2021 | C18: 2021 | D18: FDLCB-CD-005-2021 | E18: https://community.secop.gov.co/Public/Tendering/OpportunityDetail/Index?noticeUID=CO1.NTC.1691056&isFromPublicArea=True&isModal=False | F18: Contratos de prestación de servicios profesionales y de apoyo a la gestión | G18: Contratación directa | H18: Prestación de servicios profesionales y de apoyo a la gestión, o para la ejecución de trabajos artísticos que sólo puedan encomendarse a determinadas personas naturales; | I18: PRESTAR LOS SERVICIOS PROFESIONALES EN EL DESPACHO DE LA ALCALDÍA LOCAL DE CIUDAD BOLÍVAR PARA LA RESPUESTA EFECTIVA Y OPORTUNA A LOS REQUERIMIENTOS PRESENTADOS, APOYAR EN LA REVISIÓN DE LAS ACTUACIONES, MANEJO DE RELACIONES EN SUS DISTINTOS NIVELES Y DEMÁS ASUNTOS DE COMPETENCIA DE LA ALCALDÍA LOCAL. | J18: Inversión | K18: Un Nuevo Contrato Social y Ambiental para la Bogotá del Siglo XXI | L18: 57 | M18: =IF(ISERROR(VLOOKUP(L18,[9]Proposito_programa!$C$2:$E$59,2,FALSE))," ",VLOOKUP(L18,[9]Proposito_programa!$C$2:$E$59,2,FALSE)) -> Gestión pública local | N18: =IF(ISERROR(VLOOKUP(L18,[9]Proposito_programa!$C$2:$E$59,3,FALSE))," ",VLOOKUP(L18,[9]Proposito_programa!$C$2:$E$59,3,FALSE)) -> Propósito 5: Construir Bogotá - Región con gobierno abierto, transparente y ciudadanía consciente | O18: 1986 | P18: 1 | Q18: 1019075226 | R18: EDWIN FELIPE HERNÁNDEZ ALVAREZ | S18: Persona Natural | W18: 73700000 | Y18: 1 | Z18: 4243333 | AA18: 77943333 | AB18: 68116667 | AC18: 44221 | AD18: 44222 | AE18: 44555 | AF18: 330 | AG18: 1 | AH18: 20 | AO18: X | AQ18: 0.8739255094
A19: 1 | B19: CPS-006-2021 | C19: 2021 | D19: FDLCB-CD-006-2021 | E19: https://community.secop.gov.co/Public/Tendering/OpportunityDetail/Index?noticeUID=CO1.NTC.1691661&isFromPublicArea=True&isModal=False | F19: Contratos de prestación de servicios profesionales y de apoyo a la gestión | G19: Contratación directa | H19: Prestación de servicios profesionales y de apoyo a la gestión, o para la ejecución de trabajos artísticos que sólo puedan encomendarse a determinadas personas naturales; | I19: PRESTAR SUS SERVICIOS PROFESIONALES COMO APOYO AL ÁREA DE GESTIÓN DE DESARROLLO LOCAL PLANEACIÓN, PARA LA RECOLECCIÓN, CONSOLIDACIÓN, VERIFICACIÓN Y CARGUE DE LA INFORMACIÓN DE LOS PROCESOS DE SELECCIÓN EN CUANTO A PROYECTOS DE INVERSIÓN Y GASTOS DE FUNCIONAMIENTO A CARGO DE LA ALCALDÍA LOCAL DE CIUDAD BOLÍVAR EN LOS APLICATIVOS DESIGNADOS PARA TAL FIN, TALES COMO SIPSE ENTRE OTROS QUE SE REQUIERAN. | J19: Inversión | K19: Un Nuevo Contrato Social y Ambiental para la Bogotá del Siglo XXI | L19: 57 | M19: =IF(ISERROR(VLOOKUP(L19,[9]Proposito_programa!$C$2:$E$59,2,FALSE))," ",VLOOKUP(L19,[9]Proposito_programa!$C$2:$E$59,2,FALSE)) -> Gestión pública local | N19: =IF(ISERROR(VLOOKUP(L19,[9]Proposito_programa!$C$2:$E$59,3,FALSE))," ",VLOOKUP(L19,[9]Proposito_programa!$C$2:$E$59,3,FALSE)) -> Propósito 5: Construir Bogotá - Región con gobierno abierto, transparente y ciudadanía consciente | O19: 1986 | P19: 1 | Q19: 1079411787 | R19: ALEJANDRO PERDOMO HERRERA | S19: Persona Natural | W19: 45600000 | Y19: 1 | Z19: 20900000 | AA19: 66500000 | AB19: 58140000 | AC19: 44221 | AD19: 44221 | AE19: 44575 | AF19: 240 | AG19: 1 | AH19: 110 | AN19: X | AQ19: 0.8742857143
A20: 1 | B20: CPS-007-2021 | C20: 2021 | D20: FDLCB-CD-007-2021 | E20: https://community.secop.gov.co/Public/Tendering/OpportunityDetail/Index?noticeUID=CO1.NTC.1690594&isFromPublicArea=True&isModal=False | F20: Contratos de prestación de servicios profesionales y de apoyo a la gestión | G20: Contratación directa | H20: Prestación de servicios profesionales y de apoyo a la gestión, o para la ejecución de trabajos artísticos que sólo puedan encomendarse a determinadas personas naturales; | I20: PRESTAR SUS SERVICIOS PROFESIONALES PARA APOYAR EL ÁREA DE GESTIÓN PARA EL DESARROLLO LOCAL EN TEMAS PRESUPUESTALES DE LA ALCALDÍA LOCAL DE CIUDAD BOLÍVAR. | J20: Inversión | K20: Un Nuevo Contrato Social y Ambiental para la Bogotá del Siglo XXI | L20: 57 | M20: =IF(ISERROR(VLOOKUP(L20,[9]Proposito_programa!$C$2:$E$59,2,FALSE))," ",VLOOKUP(L20,[9]Proposito_programa!$C$2:$E$59,2,FALSE)) -> Gestión pública local | N20: =IF(ISERROR(VLOOKUP(L20,[9]Proposito_programa!$C$2:$E$59,3,FALSE))," ",VLOOKUP(L20,[9]Proposito_programa!$C$2:$E$59,3,FALSE)) -> Propósito 5: Construir Bogotá - Región con gobierno abierto, transparente y ciudadanía consciente | O20: 1986 | P20: 1 | Q20: 93297980 | R20: JESUS ANDRES ARISMENDI DE LA CRUZ | S20: Persona Natural | W20: 40800000 | Y20: 1 | Z20: 18700000 | AA20: 59500000 | AB20: 52020000 | AC20: 44221 | AD20: 44221 | AE20: 44575 | AF20: 240 | AG20: 1 | AH20: 110 | AN20: X | AQ20: 0.8742857143
A21: 1 | B21: CPS-008-2021 | C21: 2021 | D21: FDLCB-CD-008-2021 | E21: https://community.secop.gov.co/Public/Tendering/OpportunityDetail/Index?noticeUID=CO1.NTC.1690365&isFromPublicArea=True&isModal=False | F21: Contratos de prestación de servicios profesionales y de apoyo a la gestión | G21: Contratación directa | H21: Prestación de servicios profesionales y de apoyo a la gestión, o para la ejecución de trabajos artísticos que sólo puedan encomendarse a determinadas personas naturales; | I21: PRESTAR LOS SERVICIOS PROFESIONALES ESPECIALIZADOS EN EL DESPACHO DE LA ALCALDÍA LOCAL DE CIUDAD BOLÍVAR PARA LA RESPUESTA EFECTIVA Y OPORTUNA A LOS REQUERIMIENTOS PRESENTADOS, MANEJO DE RELACIONES EN SUS DISTINTOS NIVELES Y DEMÁS ASUNTOS DE COMPETENCIA DE LA ALCALDÍA LOCAL | J21: Inversión | K21: Un Nuevo Contrato Social y Ambiental para la Bogotá del Siglo XXI | L21: 57 | M21: =IF(ISERROR(VLOOKUP(L21,[9]Proposito_programa!$C$2:$E$59,2,FALSE))," ",VLOOKUP(L21,[9]Proposito_programa!$C$2:$E$59,2,FALSE)) -> Gestión pública local | N21: =IF(ISERROR(VLOOKUP(L21,[9]Proposito_programa!$C$2:$E$59,3,FALSE))," ",VLOOKUP(L21,[9]Proposito_programa!$C$2:$E$59,3,FALSE)) -> Propósito 5: Construir Bogotá - Región con gobierno abierto, transparente y ciudadanía consciente | O21: 1986 | P21: 1 | Q21: 1018421450 | R21: ANGELICA ROCIO MARTINEZ TORRES | S21: Persona Natural | W21: 85800000 | X21: -27040000 | AA21: 58760000 | AB21: 58760000 | AC21: 44221 | AD21: 44221 | AE21: 44449 | AF21: 330 | AO21: X | AQ21: 1
A22: 1 | B22: CPS-009-2021 | C22: 2021 | D22: FDLCB-CD-009-2021 | E22: https://community.secop.gov.co/Public/Tendering/OpportunityDetail/Index?noticeUID=CO1.NTC.1690638&isFromPublicArea=True&isModal=False | F22: Contratos de prestación de servicios profesionales y de apoyo a la gestión | G22: Contratación directa | H22: Prestación de servicios profesionales y de apoyo a la gestión, o para la ejecución de trabajos artísticos que sólo puedan encomendarse a determinadas personas naturales; | I22: PRESTAR LOS SERVICIOS PROFESIONALES EN MATERIA DE SOPORTE, ADMINISTRACIÓN E INSTALACIÓN DE REDES, SOFTWARE Y HARDWARE EN LA OFICINA DE SISTEMAS DE LA ALCALDÍA LOCAL DE CIUDAD BOLÍVAR. | J22: Inversión | K22: Un Nuevo Contrato Social y Ambiental para la Bogotá del Siglo XXI | L22: 57 | M22: =IF(ISERROR(VLOOKUP(L22,[9]Proposito_programa!$C$2:$E$59,2,FALSE))," ",VLOOKUP(L22,[9]Proposito_programa!$C$2:$E$59,2,FALSE)) -> Gestión pública local | N22: =IF(ISERROR(VLOOKUP(L22,[9]Proposito_programa!$C$2:$E$59,3,FALSE))," ",VLOOKUP(L22,[9]Proposito_programa!$C$2:$E$59,3,FALSE)) -> Propósito 5: Construir Bogotá - Región con gobierno abierto, transparente y ciudadanía consciente | O22: 1986 | P22: 1 | Q22: 6239976 | R22: HAROLD VIDAL GARCIA | S22: Persona Natural | W22: 53600000 | Y22: 2 | Z22: 26800000 | AA22: 80400000 | AB22: 68340000 | AC22: 44221 | AD22: 44221 | AE22: 44560 | AF22: 240 | AG22: 2 | AH22: 121 | AO22: X | AQ22: 0.85
A23: 1 | B23: CPS-010-2021 | C23: 2021 | D23: FDLCB-CD-010-2021 | E23: https://community.secop.gov.co/Public/Tendering/OpportunityDetail/Index?noticeUID=CO1.NTC.1691512&isFromPublicArea=True&isModal=False | F23: Contratos de prestación de servicios profesionales y de apoyo a la gestión | G23: Contratación directa | H23: Prestación de servicios profesionales y de apoyo a la gestión, o para la ejecución de trabajos artísticos que sólo puedan encomendarse a determinadas personas naturales; | I23: PRESTAR SERVICIOS PROFESIONALES EN EL DESPACHO DE LA ALCALDÍA LOCAL DE CIUDAD BOLÍVAR PARA ADELANTAR LA IMPLEMENTACIÓN DE LOS LINEAMIENTOS DE TIPO ADMINISTRATIVO Y ORGANIZACIONAL QUE FACILITEN EL FUNCIONAMIENTO COORDINADO DEL ÁREA DE GESTIÓN DE DESARROLLO DE LA ALCALDÍA LOCAL DE CIUDAD BOLÍVAR | J23: Inversión | K23: Un Nuevo Contrato Social y Ambiental para la Bogotá del Siglo XXI | L23: 57 | M23: =IF(ISERROR(VLOOKUP(L23,[9]Proposito_programa!$C$2:$E$59,2,FALSE))," ",VLOOKUP(L23,[9]Proposito_programa!$C$2:$E$59,2,FALSE)) -> Gestión pública local | N23: =IF(ISERROR(VLOOKUP(L23,[9]Proposito_programa!$C$2:$E$59,3,FALSE))," ",VLOOKUP(L23,[9]Proposito_programa!$C$2:$E$59,3,FALSE)) -> Propósito 5: Construir Bogotá - Región con gobierno abierto, transparente y ciudadanía consciente | O23: 1986 | P23: 1 | Q23: 1010204660 | R23: LUIS GABRIEL TUPAC AMARU MUYUY AGREDA | S23: Persona Natural | W23: 47850000 | Y23: 1 | Z23: 2900000 | AA23: 50750000 | AB23: 44370000 | AC23: 44221 | AD23: 44221 | AE23: 44554 | AF23: 330 | AG23: 1 | AH23: 21 | AO23: X | AQ23: 0.8742857143
A24: 1 | B24: CPS-011-2021 | C24: 2021 | D24: FDLCB-CD-011-2021 | E24: https://community.secop.gov.co/Public/Tendering/OpportunityDetail/Index?noticeUID=CO1.NTC.1691379&isFromPublicArea=True&isModal=False | F24: Contratos de prestación de servicios profesionales y de apoyo a la gestión | G24: Contratación directa | H24: Prestación de servicios profesionales y de apoyo a la gestión, o para la ejecución de trabajos artísticos que sólo puedan encomendarse a determinadas personas naturales; | I24: PRESTAR SERVICIOS PROFESIONALES ESPECIALIZADOS EN EL DESPACHO DE LA ALCALDÍA LOCAL DE CIUDAD BOLÍVAR, CON EL FIN DE BRINDAR ACOMPAÑAMIENTO JURÍDICO DE TODAS LAS ACTUACIONES, TRAMITES Y PROCEDIMIENTOS QUE REQUIERAN RESPUESTA POR PARTE DEL ALCALDE LOCAL, ASÍ COMO APOYAR LA IMPLEMENTACIÓN DE LAS DIRECTRICES QUE EN MATERIA CONTRACTUAL REQUIERA EL FONDO DE DESARROLLO LOCAL DE CIUDAD BOLÍVAR | J24: Inversión | K24: Un Nuevo Contrato Social y Ambiental para la Bogotá del Siglo XXI | L24: 57 | M24: =IF(ISERROR(VLOOKUP(L24,[9]Proposito_programa!$C$2:$E$59,2,FALSE))," ",VLOOKUP(L24,[9]Proposito_programa!$C$2:$E$59,2,FALSE)) -> Gestión pública local | N24: =IF(ISERROR(VLOOKUP(L24,[9]Proposito_programa!$C$2:$E$59,3,FALSE))," ",VLOOKUP(L24,[9]Proposito_programa!$C$2:$E$59,3,FALSE)) -> Propósito 5: Construir Bogotá - Región con gobierno abierto, transparente y ciudadanía consciente | O24: 1986 | P24: 1 | Q24: 79731766 | R24: JAIRO EMILIO OVIEDO CERON | S24: Persona Natural | W24: 90200000 | AA24: 90200000 | AB24: 83640000 | AC24: 44221 | AD24: 44221 | AE24: 44554 | AF24: 330 | AO24: X | AQ24: 0.9272727273
A25: 1 | B25: CPS-012-2021 | C25: 2021 | D25: FDLCB-CD-012-2021 | E25: https://community.secop.gov.co/Public/Tendering/OpportunityDetail/Index?noticeUID=CO1.NTC.1693271&isFromPublicArea=True&isModal=False | F25: Contratos de prestación de servicios profesionales y de apoyo a la gestión | G25: Contratación directa | H25: Prestación de servicios profesionales y de apoyo a la gestión, o para la ejecución de trabajos artísticos que sólo puedan encomendarse a determinadas personas naturales; | I25: PRESTAR SUS SERVICIOS PROFESIONALES COMO APOYO AL ÁREA DE GESTIÓN DEL DESARROLLO LOCAL DE LA ALCALDÍA LOCAL DE CIUDAD BOLÍVAR OFICINA DE CONTABILIDAD, EN LOS TRÁMITES, PROCEDIMIENTOS Y APLICATIVOS DESIGNADOS | J25: Inversión | K25: Un Nuevo Contrato Social y Ambiental para la Bogotá del Siglo XXI | L25: 57 | M25: =IF(ISERROR(VLOOKUP(L25,[9]Proposito_programa!$C$2:$E$59,2,FALSE))," ",VLOOKUP(L25,[9]Proposito_programa!$C$2:$E$59,2,FALSE)) -> Gestión pública local | N25: =IF(ISERROR(VLOOKUP(L25,[9]Proposito_programa!$C$2:$E$59,3,FALSE))," ",VLOOKUP(L25,[9]Proposito_programa!$C$2:$E$59,3,FALSE)) -> Propósito 5: Construir Bogotá - Región con gobierno abierto, transparente y ciudadanía consciente | O25: 1986 | P25: 1 | Q25: 1075208350 | R25: JOSE LIBARDO PEÑA PARRA | S25: Persona Natural | W25: 45600000 | Y25: 1 | Z25: 20900000 | AA25: 66500000 | AB25: 58140000 | AC25: 44221 | AD25: 44221 | AE25: 44575 | AF25: 240 | AG25: 1 | AH25: 110 | AN25: X | AQ25: 0.8742857143
A26: 1 | B26: CPS-013-2021 | C26: 2021 | D26: FDLCB-CD-013-2021 | E26: https://community.secop.gov.co/Public/Tendering/OpportunityDetail/Index?noticeUID=CO1.NTC.1695466&isFromPublicArea=True&isModal=False | F26: Contratos de prestación de servicios profesionales y de apoyo a la gestión | G26: Contratación directa | H26: Prestación de servicios profesionales y de apoyo a la gestión, o para la ejecución de trabajos artísticos que sólo puedan encomendarse a determinadas personas naturales; | I26: PRESTAR APOYO TÉCNICO DE LAS ACTIVIDADES ADMINISTRATIVAS Y ASISTENCIALES QUE REQUIERA LA JUNTA ADMINISTRADORA LOCAL DE CIUDAD BOLÍVAR | J26: Inversión | K26: Un Nuevo Contrato Social y Ambiental para la Bogotá del Siglo XXI | L26: 57 | M26: =IF(ISERROR(VLOOKUP(L26,[9]Proposito_programa!$C$2:$E$59,2,FALSE))," ",VLOOKUP(L26,[9]Proposito_programa!$C$2:$E$59,2,FALSE)) -> Gestión pública local | N26: =IF(ISERROR(VLOOKUP(L26,[9]Proposito_programa!$C$2:$E$59,3,FALSE))," ",VLOOKUP(L26,[9]Proposito_programa!$C$2:$E$59,3,FALSE)) -> Propósito 5: Construir Bogotá - Región con gobierno abierto, transparente y ciudadanía consciente | O26: 1986 | P26: 1 | Q26: 80067605 | R26: DIEGO WILMAR ROMERO | S26: Persona Natural | W26: 27200000 | Y26: 1 | Z26: 10766667 | AA26: 37966667 | AB26: 34566667 | AC26: 44222 | AD26: 44222 | AE26: 44560 | AF26: 240 | AG26: 1 | AH26: 95 | AO26: X | AQ26: 0.910447762
A27: 1 | B27: CPS-014-2021 | C27: 2021 | D27: FDLCB-CD-014-2021 | E27: https://community.secop.gov.co/Public/Tendering/OpportunityDetail/Index?noticeUID=CO1.NTC.1697635&isFromPublicArea=True&isModal=False | F27: Contratos de prestación de servicios profesionales y de apoyo a la gestión | G27: Contratación directa | H27: Prestación de servicios profesionales y de apoyo a la gestión, o para la ejecución de trabajos artísticos que sólo puedan encomendarse a determinadas personas naturales; | I27: PRESTAR LOS SERVICIOS PROFESIONALES COMO ABOGADO PARA APOYAR AL DESPACHO DEL ALCALDE LOCAL EN EL ANÁLISIS, REVISIÓN, TRÁMITE Y SUSCRIPCIÓN DE LOS ACTOS ADMINISTRATIVOS, DESPACHOS COMISORIOS, TUTELAS, SOLICITUDES DE ENTES DE CONTROL Y LOS CONCEPTOS JURÍDICOS QUE SE LE SOLICITEN | J27: Inversión | K27: Un Nuevo Contrato Social y Ambiental para la Bogotá del Siglo XXI | L27: 57 | M27: =IF(ISERROR(VLOOKUP(L27,[9]Proposito_programa!$C$2:$E$59,2,FALSE))," ",VLOOKUP(L27,[9]Proposito_programa!$C$2:$E$59,2,FALSE)) -> Gestión pública local | N27: =IF(ISERROR(VLOOKUP(L27,[9]Proposito_programa!$C$2:$E$59,3,FALSE))," ",VLOOKUP(L27,[9]Proposito_programa!$C$2:$E$59,3,FALSE)) -> Propósito 5: Construir Bogotá - Región con gobierno abierto, transparente y ciudadanía consciente | O27: 1987 | P27: 1 | Q27: 63319152 | R27: CARMEN HERCILIA GARCIA | S27: Persona Natural | W27: 41600000 | Y27: 1 | Z27: 18720000 | AA27: 60320000 | AB27: 52693333 | AC27: 44223 | AD27: 44223 | AE27: 44560 | AF27: 240 | AG27: 1 | AH27: 94 | AO27: X | AQ27: 0.8735632129
A28: 1 | B28: CPS-015-2021 | C28: 2021 | D28: FDLCB-CD-015-2021 | E28: https://community.secop.gov.co/Public/Tendering/OpportunityDetail/Index?noticeUID=CO1.NTC.1697459&isFromPublicArea=True&isModal=False | F28: Contratos de prestación de servicios profesionales y de apoyo a la gestión | G28: Contratación directa | H28: Prestación de servicios profesionales y de apoyo a la gestión, o para la ejecución de trabajos artísticos que sólo puedan encomendarse a determinadas personas naturales; | I28: PRESTAR SERVICIOS PROFESIONALES PARA APOYAR TÉCNICAMENTE A LOS RESPONSABLES E INTEGRANTES DE LOS PROCESOS EN LA IMPLEMENTACIÓN DE HERRAMIENTAS DE GESTIÓN, SIGUIENDO LOS LINEAMIENTOS METODOLÓGICOS ESTABLECIDOS POR LA OFICINA ASESORA DE PLANEACIÓN DE LA SECRETARÍA DISTRITAL DE GOBIERNO | J28: Inversión | K28: Un Nuevo Contrato Social y Ambiental para la Bogotá del Siglo XXI | L28: 57 | M28: =IF(ISERROR(VLOOKUP(L28,[9]Proposito_programa!$C$2:$E$59,2,FALSE))," ",VLOOKUP(L28,[9]Proposito_programa!$C$2:$E$59,2,FALSE)) -> Gestión pública local | N28: =IF(ISERROR(VLOOKUP(L28,[9]Proposito_programa!$C$2:$E$59,3,FALSE))," ",VLOOKUP(L28,[9]Proposito_programa!$C$2:$E$59,3,FALSE)) -> Propósito 5: Construir Bogotá - Región con gobierno abierto, transparente y ciudadanía consciente | O28: 1986 | P28: 1 | Q28: 52267019 | R28: PAOLA ANDREA ANGULO ZAPATA | S28: Persona Natural | W28: 53600000 | Y28: 1 | Z28: 20993333 | AA28: 74593333 | AB28: 67893333 | AC28: 44223 | AD28: 44223 | AE28: 44560 | AF28: 240 | AG28: 1 | AH28: 94 | AO28: X | AQ28: 0.9101796403
A29: 1 | B29: CPS-016-2021 | C29: 2021 | D29: FDLCB-CD-016-2021 | E29: https://community.secop.gov.co/Public/Tendering/OpportunityDetail/Index?noticeUID=CO1.NTC.1699908&isFromPublicArea=True&isModal=False | F29: Contratos de prestación de servicios profesionales y de apoyo a la gestión | G29: Contratación directa | H29: Prestación de servicios profesionales y de apoyo a la gestión, o para la ejecución de trabajos artísticos que sólo puedan encomendarse a determinadas personas naturales; | I29: PRESTAR SUS SERVICIOS PARA REALIZAR ACTIVIDADES DE APOYO EN EL CDI DEL FONDO DE DESARROLLO LOCAL DE CIUDAD BOLÍVAR | J29: Inversión | K29: Un Nuevo Contrato Social y Ambiental para la Bogotá del Siglo XXI | L29: 57 | M29: =IF(ISERROR(VLOOKUP(L29,[9]Proposito_programa!$C$2:$E$59,2,FALSE))," ",VLOOKUP(L29,[9]Proposito_programa!$C$2:$E$59,2,FALSE)) -> Gestión pública local | N29: =IF(ISERROR(VLOOKUP(L29,[9]Proposito_programa!$C$2:$E$59,3,FALSE))," ",VLOOKUP(L29,[9]Proposito_programa!$C$2:$E$59,3,FALSE)) -> Propósito 5: Construir Bogotá - Región con gobierno abierto, transparente y ciudadanía consciente | O29: 1986 | P29: 1 | Q29: 79258117 | R29: CARLOS HUMBERTO POPAYAN CASALLAS | S29: Persona Natural | W29: 17280000 | Y29: 2 | Z29: 8928000 | AA29: 26208000 | AB29: 21888000 | AC29: 44223 | AD29: 44223 | AE29: 44560 | AF29: 240 | AG29: 1 | AH29: 94 | AO29: X | AQ29: 0.8351648352
A30: 1 | B30: CPS-017-2021 | C30: 2021 | D30: FDLCB-CD-017-2021 | E30: https://community.secop.gov.co/Public/Tendering/OpportunityDetail/Index?noticeUID=CO1.NTC.1700686&isFromPublicArea=True&isModal=False | F30: Contratos de prestación de servicios profesionales y de apoyo a la gestión | G30: Contratación directa | H30: Prestación de servicios profesionales y de apoyo a la gestión, o para la ejecución de trabajos artísticos que sólo puedan encomendarse a determinadas personas naturales; | I30: PRESTAR LOS SERVICIOS DE APOYO ADMINISTRATIVA Y ASISTENCIALMENTE LAS ACTIVIDADES QUE SE REQUIERAN EN LA JUNTA ADMINISTRADORA LOCAL DE CIUDAD BOLÍVAR. | J30: Inversión | K30: Un Nuevo Contrato Social y Ambiental para la Bogotá del Siglo XXI | L30: 57 | M30: =IF(ISERROR(VLOOKUP(L30,[9]Proposito_programa!$C$2:$E$59,2,FALSE))," ",VLOOKUP(L30,[9]Proposito_programa!$C$2:$E$59,2,FALSE)) -> Gestión pública local | N30: =IF(ISERROR(VLOOKUP(L30,[9]Proposito_programa!$C$2:$E$59,3,FALSE))," ",VLOOKUP(L30,[9]Proposito_programa!$C$2:$E$59,3,FALSE)) -> Propósito 5: Construir Bogotá - Región con gobierno abierto, transparente y ciudadanía consciente | O30: 1986 | P30: 1 | Q30: 1075289648 | R30: CRISTHIAN AHSLEY SOTO CASTILLO | S30: Persona Natural | W30: 19200000 | Y30: 1 | Z30: 7440000 | AA30: 26640000 | AB30: 24320000 | AC30: 44223 | AD30: 44223 | AE30: 44560 | AF30: 240 | AG30: 1 | AH30: 93 | AI30: 1075251297 | AJ30: CINDY VANESSA PUENTES FUENTES | AK30: 44440 | AL30: 2080000 | AO30: X | AQ30: 0.9129129129
A31: 1 | B31: CPS-018-2021 | C31: 2021 | D31: FDLCB-CD-018-2021 | E31: https://community.secop.gov.co/Public/Tendering/OpportunityDetail/Index?noticeUID=CO1.NTC.1701117&isFromPublicArea=True&isModal=False | F31: Contratos de prestación de servicios profesionales y de apoyo a la gestión | G31: Contratación directa | H31: Prestación de servicios profesionales y de apoyo a la gestión, o para la ejecución de trabajos artísticos que sólo puedan encomendarse a determinadas personas naturales; | I31: PRESTAR LOS SERVICIOS DE APOYO TÉCNICO EN LA GESTIÓN Y EJECUCIÓN DE LAS ACTIVIDADES ADMINISTRATIVAS QUE SE ADELANTAN EN EL DESPACHO DE LA ALCALDÍA LOCAL DE CIUDAD BOLÍVAR. | J31: Inversión | K31: Un Nuevo Contrato Social y Ambiental para la Bogotá del Siglo XXI | L31: 57 | M31: =IF(ISERROR(VLOOKUP(L31,[9]Proposito_programa!$C$2:$E$59,2,FALSE))," ",VLOOKUP(L31,[9]Proposito_programa!$C$2:$E$59,2,FALSE)) -> Gestión pública local | N31: =IF(ISERROR(VLOOKUP(L31,[9]Proposito_programa!$C$2:$E$59,3,FALSE))," ",VLOOKUP(L31,[9]Proposito_programa!$C$2:$E$59,3,FALSE)) -> Propósito 5: Construir Bogotá - Región con gobierno abierto, transparente y ciudadanía consciente | O31: 1986 | P31: 1 | Q31: 1022382549 | R31: JULIETH ALEXANDRA BULLA MELO | S31: Persona Natural | W31: 31200000 | X31: -15080000 | AA31: =+W31+X31+Z31 -> 16120000 | AB31: 16120000 | AC31: 44223 | AD31: 44223 | AE31: 44347 | AF31: 240 | AO31: X | AQ31: 1
A32: 1 | B32: CPS-019-2021 | C32: 2021 | D32: FDLCB-CD-019-2021 | E32: https://community.secop.gov.co/Public/Tendering/OpportunityDetail/Index?noticeUID=CO1.NTC.1701206&isFromPublicArea=True&isModal=False | F32: Contratos de prestación de servicios profesionales y de apoyo a la gestión | G32: Contratación directa | H32: Prestación de servicios profesionales y de apoyo a la gestión, o para la ejecución de trabajos artísticos que sólo puedan encomendarse a determinadas personas naturales; | I32: PRESTAR LOS SERVICIOS DE APOYO TÉCNICO EN LA GESTIÓN Y EJECUCIÓN DE LAS ACTIVIDADES ADMINISTRATIVAS QUE SE ADELANTAN EN EL DESPACHO DE LA ALCALDÍA LOCAL DE CIUDAD BOLÍVAR. | J32: Inversión | K32: Un Nuevo Contrato Social y Ambiental para la Bogotá del Siglo XXI | L32: 57 | M32: =IF(ISERROR(VLOOKUP(L32,[9]Proposito_programa!$C$2:$E$59,2,FALSE))," ",VLOOKUP(L32,[9]Proposito_programa!$C$2:$E$59,2,FALSE)) -> Gestión pública local | N32: =IF(ISERROR(VLOOKUP(L32,[9]Proposito_programa!$C$2:$E$59,3,FALSE))," ",VLOOKUP(L32,[9]Proposito_programa!$C$2:$E$59,3,FALSE)) -> Propósito 5: Construir Bogotá - Región con gobierno abierto, transparente y ciudadanía consciente | O32: 1986 | P32: 1 | Q32: 1024462155 | R32: MARTHA CAROLINA DIAZ SANTA | S32: Persona Natural | W32: 31200000 | Y32: 1 | Z32: 14040000 | AA32: 45240000 | AB32: 39520000 | AC32: 44223 | AD32: 44223 | AE32: 44575 | AF32: 240 | AG32: 1 | AH32: 108 | AN32: X | AQ32: 0.8735632184
A33: 1 | B33: CPS-020-2021 | C33: 2021 | D33: FDLCB-CD-020-2021 | E33: https://community.secop.gov.co/Public/Tendering/OpportunityDetail/Index?noticeUID=CO1.NTC.1701208&isFromPublicArea=True&isModal=False | F33: Contratos de prestación de servicios profesionales y de apoyo a la gestión | G33: Contratación directa | H33: Prestación de servicios profesionales y de apoyo a la gestión, o para la ejecución de trabajos artísticos que sólo puedan encomendarse a determinadas personas naturales; | I33: PRESTAR SUS SERVICIOS PROFESIONALES PARA DESARROLLAR TODAS LAS ACTIVIDADES CONCERNIENTES A LA CONSECUCIÓN DE BIENES Y/O SERVICIOS PARA LA LOCALIDAD DE CIUDAD BOLÍVAR DE ACUERDO CON LOS PROCEDIMIENTOS ESTABLECIDOS EN EL SIG Y A LA NORMATIVIDAD VIGENTE EN MATERIA DE CONTRATACIÓN ESTATAL EN CUMPLIMIENTO DE LAS METAS ESTABLECIDAS EN EL PLAN DE DESARROLLO LOCAL DE CIUDAD BOLÍVAR, PLAN DE GESTIÓN Y PLAN ANUAL DE ADQUISICIONES | J33: Inversión | K33: Un Nuevo Contrato Social y Ambiental para la Bogotá del Siglo XXI | L33: 57 | M33: =IF(ISERROR(VLOOKUP(L33,[9]Proposito_programa!$C$2:$E$59,2,FALSE))," ",VLOOKUP(L33,[9]Proposito_programa!$C$2:$E$59,2,FALSE)) -> Gestión pública local | N33: =IF(ISERROR(VLOOKUP(L33,[9]Proposito_programa!$C$2:$E$59,3,FALSE))," ",VLOOKUP(L33,[9]Proposito_programa!$C$2:$E$59,3,FALSE)) -> Propósito 5: Construir Bogotá - Región con gobierno abierto, transparente y ciudadanía consciente | O33: 1986 | P33: 1 | Q33: 1121898707 | R33: LAURA VANESSA CARRERO MIRANDA | S33: Persona Natural | W33: 48000000 | Y33: 2 | Z33: 24000000 | AA33: 72000000 | AB33: 60800000 | AC33: 44223 | AD33: 44223 | AE33: 44560 | AF33: 240 | AG33: 2 | AH33: 121 | AO33: X | AQ33: 0.8444444444
A34: 1 | B34: CPS-021-2021 | C34: 2021 | D34: FDLCB-CD-021-2021 | E34: https://community.secop.gov.co/Public/Tendering/OpportunityDetail/Index?noticeUID=CO1.NTC.1701047&isFromPublicArea=True&isModal=False | F34: Contratos de prestación de servicios profesionales y de apoyo a la gestión | G34: Contratación directa | H34: Prestación de servicios profesionales y de apoyo a la gestión, o para la ejecución de trabajos artísticos que sólo puedan encomendarse a determinadas personas naturales; | I34: PRESTAR SUS SERVICIOS PROFESIONALES PARA DESARROLLAR TODAS LAS ACTIVIDADES CONCERNIENTES A LA CONSECUCIÓN DE BIENES Y/O SERVICIOS PARA LA LOCALIDAD DE CIUDAD BOLÍVAR DE ACUERDO CON LOS PROCEDIMIENTOS ESTABLECIDOS EN EL SIG Y A LA NORMATIVIDAD VIGENTE EN MATERIA DE CONTRATACIÓN ESTATAL EN CUMPLIMIENTO DE LAS METAS ESTABLECIDAS EN EL PLAN DE DESARROLLO LOCAL DE CIUDAD BOLÍVAR, PLAN DE GESTIÓN Y PLAN ANUAL DE ADQUISICIONES. | J34: Inversión | K34: Un Nuevo Contrato Social y Ambiental para la Bogotá del Siglo XXI | L34: 57 | M34: =IF(ISERROR(VLOOKUP(L34,[9]Proposito_programa!$C$2:$E$59,2,FALSE))," ",VLOOKUP(L34,[9]Proposito_programa!$C$2:$E$59,2,FALSE)) -> Gestión pública local | N34: =IF(ISERROR(VLOOKUP(L34,[9]Proposito_programa!$C$2:$E$59,3,FALSE))," ",VLOOKUP(L34,[9]Proposito_programa!$C$2:$E$59,3,FALSE)) -> Propósito 5: Construir Bogotá - Región con gobierno abierto, transparente y ciudadanía consciente | O34: 1986 | P34: 1 | Q34: 52273149 | R34: ANA MILENA CRUZ BELTRAN | S34: Persona Natural | W34: 48000000 | Y34: 1 | Z34: 21600000 | AA34: 69600000 | AB34: 60800000 | AC34: 44223 | AD34: 44223 | AE34: 44575 | AF34: 240 | AG34: 1 | AH34: 108 | AN34: X | AQ34: 0.8735632184
A35: 1 | B35: CPS-022-2021 | C35: 2021 | D35: FDLCB-CD-022-2021 | E35: https://community.secop.gov.co/Public/Tendering/OpportunityDetail/Index?noticeUID=CO1.NTC.1701377&isFromPublicArea=True&isModal=False | F35: Contratos de prestación de servicios profesionales y de apoyo a la gestión | G35: Contratación directa | H35: Prestación de servicios profesionales y de apoyo a la gestión, o para la ejecución de trabajos artísticos que sólo puedan encomendarse a determinadas personas naturales; | I35: PRESTAR LOS SERVICIOS PROFESIONALES COMO APOYO AL ÁREA DE GESTIÓN DEL DESARROLLO DE LA ALCALDÍA LOCAL DE CIUDAD BOLÍVAR, PARA LA RECOLECCIÓN, CONSOLIDACIÓN, VERIFICACIÓN Y CARGUE DE LA INFORMACIÓN CONTRACTUAL DE LOS PROCESOS QUE SE ADELANTEN, EN LOS APLICATIVOS DESIGNADOS PARA TAL FIN | J35: Inversión | K35: Un Nuevo Contrato Social y Ambiental para la Bogotá del Siglo XXI | L35: 57 | M35: =IF(ISERROR(VLOOKUP(L35,[9]Proposito_programa!$C$2:$E$59,2,FALSE))," ",VLOOKUP(L35,[9]Proposito_programa!$C$2:$E$59,2,FALSE)) -> Gestión pública local | N35: =IF(ISERROR(VLOOKUP(L35,[9]Proposito_programa!$C$2:$E$59,3,FALSE))," ",VLOOKUP(L35,[9]Proposito_programa!$C$2:$E$59,3,FALSE)) -> Propósito 5: Construir Bogotá - Región con gobierno abierto, transparente y ciudadanía consciente | O35: 1986 | P35: 1 | Q35: 1018485255 | R35: NEZLY MARCELA CASTELLANOS DELGADO | S35: Persona Natural | W35: 32800000 | Y35: 1 | Z35: 14760000 | AA35: 47560000 | AB35: 41546667 | AC35: 44223 | AD35: 44223 | AE35: 44575 | AF35: 240 | AG35: 1 | AH35: 108 | AN35: X | AQ35: 0.8735632254
A36: 1 | B36: CPS-023-2021 | C36: 2021 | D36: FDLCB-CD-023-2021 | E36: https://community.secop.gov.co/Public/Tendering/OpportunityDetail/Index?noticeUID=CO1.NTC.1701503&isFromPublicArea=True&isModal=False | F36: Contratos de prestación de servicios profesionales y de apoyo a la gestión | G36: Contratación directa | H36: Prestación de servicios profesionales y de apoyo a la gestión, o para la ejecución de trabajos artísticos que sólo puedan encomendarse a determinadas personas naturales; | I36: PRESTAR SERVICIOS PROFESIONALES ESPECIALIZADOS EN EL DESPACHO DE LA ALCALDÍA LOCAL DE CIUDAD BOLÍVAR, A FIN DE REVISAR Y/O VERIFICAR DESDE LA PARTE JURÍDICA LOS PROCESOS DE CONTRATACIÓN QUE SE ADELANTEN, ASÍ COMO LOS TRÁMITES, PROCEDIMIENTOS Y LINEAMIENTOS EN MATERIA ADMINISTRATIVA QUE PERMITAN GARANTIZAR EL CUMPLIMIENTO DE LAS METAS ESTABLECIDAS EN EL PLAN DE DESARROLLO LOCAL | J36: Inversión | K36: Un Nuevo Contrato Social y Ambiental para la Bogotá del Siglo XXI | L36: 57 | M36: =IF(ISERROR(VLOOKUP(L36,[9]Proposito_programa!$C$2:$E$59,2,FALSE))," ",VLOOKUP(L36,[9]Proposito_programa!$C$2:$E$59,2,FALSE)) -> Gestión pública local | N36: =IF(ISERROR(VLOOKUP(L36,[9]Proposito_programa!$C$2:$E$59,3,FALSE))," ",VLOOKUP(L36,[9]Proposito_programa!$C$2:$E$59,3,FALSE)) -> Propósito 5: Construir Bogotá - Región con gobierno abierto, transparente y ciudadanía consciente | O36: 1986 | P36: 1 | Q36: 1075252644 | R36: DIANA LORENA MONJE ALBARRACIN | S36: Persona Natural | W36: 99000000 | AA36: 99000000 | AB36: 91200000 | AC36: 44223 | AD36: 44223 | AE36: 44556 | AF36: 330 | AO36: X | AQ36: 0.9212121212
A37: 1 | B37: CPS-024-2021 | C37: 2021 | D37: FDLCB-CD-024-2021 | E37: https://community.secop.gov.co/Public/Tendering/OpportunityDetail/Index?noticeUID=CO1.NTC.1703605&isFromPublicArea=True&isModal=False | F37: Contratos de prestación de servicios profesionales y de apoyo a la gestión | G37: Contratación directa | H37: Prestación de servicios profesionales y de apoyo a la gestión, o para la ejecución de trabajos artísticos que sólo puedan encomendarse a determinadas personas naturales; | I37: PRESTAR LOS SERVICIOS PROFESIONALES ESPECIALIZADOS EN EL DESPACHO DE LA ALCALDÍA LOCAL DE CIUDAD BOLÍVAR, CON EL FIN DE IMPLEMENTAR LINEAMIENTOS ESTRATÉGICOS Y FORMULAR LAS RECOMENDACIONES NECESARIAS CON DESTINO A ORGANISMOS DEL ORDEN DISTRITAL Y NACIONAL, QUE PERMITAN GARANTIZAR EL CUMPLIMIENTO DE LAS METAS ESTABLECIDAS EN EL PLAN DE DESARROLLO DISTRITAL Y LOCAL 2021- 2024, EN COORDINACIÓN CON LA OFICINA DE PLANEACIÓN DEL FONDO DE DESARROLLO LOCAL DE CIUDAD BOLÍVAR | J37: Inversión | K37: Un Nuevo Contrato Social y Ambiental para la Bogotá del Siglo XXI | L37: 57 | M37: =IF(ISERROR(VLOOKUP(L37,[9]Proposito_programa!$C$2:$E$59,2,FALSE))," ",VLOOKUP(L37,[9]Proposito_programa!$C$2:$E$59,2,FALSE)) -> Gestión pública local | N37: =IF(ISERROR(VLOOKUP(L37,[9]Proposito_programa!$C$2:$E$59,3,FALSE))," ",VLOOKUP(L37,[9]Proposito_programa!$C$2:$E$59,3,FALSE)) -> Propósito 5: Construir Bogotá - Región con gobierno abierto, transparente y ciudadanía consciente | O37: 1986 | P37: 1 | Q37: 1019039117 | R37: SAMUEL NOSSA AGÜERO | S37: Persona Natural | W37: 108900000 | Y37: 1 | Z37: 5940000 | AA37: 114840000 | AB37: 90420000 | AC37: 44223 | AD37: 44223 | AE37: 44556 | AF37: 330 | AG37: 1 | AH37: 19 | AO37: X | AQ37: 0.7873563218
A38: 1 | B38: CPS-025-2021 | C38: 2021 | D38: FDLCB-CD-025-2021 | E38: https://community.secop.gov.co/Public/Tendering/OpportunityDetail/Index?noticeUID=CO1.NTC.1706359&isFromPublicArea=True&isModal=False | F38: Contratos de prestación de servicios profesionales y de apoyo a la gestión | G38: Contratación directa | H38: Prestación de servicios profesionales y de apoyo a la gestión, o para la ejecución de trabajos artísticos que sólo puedan encomendarse a determinadas personas naturales; | I38: PRESTAR SERVICIOS PROFESIONALES ESPECIALIZADOS PARA ADELANTAR LA IMPLEMENTACIÓN DE LOS LINEAMIENTOS ESTABLECIDOS EN MATERIA DE PARTICIPACIÓN CIUDADANA, DERECHOS HUMANOS, SEGURIDAD Y CONVIVENCIA QUE PERMITAN GARANTIZAR EL CUMPLIMIENTO DE LAS METAS ESTABLECIDAS EN EL PLAN DE DESARROLLO LOCAL 2021-2024 | J38: Inversión | K38: Un Nuevo Contrato Social y Ambiental para la Bogotá del Siglo XXI | L38: 57 | M38: =IF(ISERROR(VLOOKUP(L38,[9]Proposito_programa!$C$2:$E$59,2,FALSE))," ",VLOOKUP(L38,[9]Proposito_programa!$C$2:$E$59,2,FALSE)) -> Gestión pública local | N38: =IF(ISERROR(VLOOKUP(L38,[9]Proposito_programa!$C$2:$E$59,3,FALSE))," ",VLOOKUP(L38,[9]Proposito_programa!$C$2:$E$59,3,FALSE)) -> Propósito 5: Construir Bogotá - Región con gobierno abierto, transparente y ciudadanía consciente | O38: 1986 | P38: 1 | Q38: 79882488 | R38: DAVID ANDRES JIMENEZ | S38: Persona Natural | W38: 85800000 | Y38: 1 | Z38: 4420000 | AA38: 90220000 | AB38: 78780000 | AC38: 44224 | AD38: 44224 | AE38: 44557 | AF38: 330 | AG38: 1 | AH38: 18 | AO38: X | AQ38: 0.8731988473
A39: 1 | B39: CPS-026-2021 | C39: 2021 | D39: FDLCB-CD-026-2021 | E39: https://community.secop.gov.co/Public/Tendering/OpportunityDetail/Index?noticeUID=CO1.NTC.1706666&isFromPublicArea=True&isModal=False | F39: Contratos de prestación de servicios profesionales y de apoyo a la gestión | G39: Contratación directa | H39: Prestación de servicios profesionales y de apoyo a la gestión, o para la ejecución de trabajos artísticos que sólo puedan encomendarse a determinadas personas naturales; | I39: PRESTAR SERVICIOS ESPECIALIZADOS PARA APOYAR, ORIENTAR Y HACER SEGUIMIENTO LOS PROYECTOS, OBRAS Y ACTIVIDADES RELACIONADOS CON EL ÁREA INFRAESTRUCTURA Y ESPACIO PÚBLICO DEL FONDO DE DESARROLLO LOCAL DE CIUDAD BOLÍVAR. | J39: Inversión | K39: Un Nuevo Contrato Social y Ambiental para la Bogotá del Siglo XXI | L39: 57 | M39: =IF(ISERROR(VLOOKUP(L39,[9]Proposito_programa!$C$2:$E$59,2,FALSE))," ",VLOOKUP(L39,[9]Proposito_programa!$C$2:$E$59,2,FALSE)) -> Gestión pública local | N39: =IF(ISERROR(VLOOKUP(L39,[9]Proposito_programa!$C$2:$E$59,3,FALSE))," ",VLOOKUP(L39,[9]Proposito_programa!$C$2:$E$59,3,FALSE)) -> Propósito 5: Construir Bogotá - Región con gobierno abierto, transparente y ciudadanía consciente | O39: 1986 | P39: 1 | Q39: 1121841904 | R39: MARIO CASTRO ESPINOSA | S39: Persona Natural | W39: 68000000 | Y39: 2 | Z39: 34000000 | AA39: 102000000 | AB39: 85850000 | AC39: 44224 | AD39: 44224 | AE39: 44560 | AF39: 240 | AG39: 2 | AH39: 121 | AO39: X | AQ39: 0.8416666667
A40: 1 | B40: CPS-027-2021 | C40: 2021 | D40: FDLCB-CD-027-2021 | E40: https://community.secop.gov.co/Public/Tendering/OpportunityDetail/Index?noticeUID=CO1.NTC.1709029&isFromPublicArea=True&isModal=False | F40: Contratos de prestación de servicios profesionales y de apoyo a la gestión | G40: Contratación directa | H40: Prestación de servicios profesionales y de apoyo a la gestión, o para la ejecución de trabajos artísticos que sólo puedan encomendarse a determinadas personas naturales; | I40: PRESTAR SERVICIOS PROFESIONALES PARA APOYAR JURÍDICAMENTE LA EJECUCIÓN DE LAS ACCIONES, TRÁMITES Y DEMÁS PROCESOS DEL ÁREA DEL GESTIÓN DEL DESARROLLO EN TEMA DE INVENTARIOS A CARGO DEL FONDO DE DESARROLLO LOCAL DE CIUDAD BOLÍVAR | J40: Inversión | K40: Un Nuevo Contrato Social y Ambiental para la Bogotá del Siglo XXI | L40: 57 | M40: =IF(ISERROR(VLOOKUP(L40,[9]Proposito_programa!$C$2:$E$59,2,FALSE))," ",VLOOKUP(L40,[9]Proposito_programa!$C$2:$E$59,2,FALSE)) -> Gestión pública local | N40: =IF(ISERROR(VLOOKUP(L40,[9]Proposito_programa!$C$2:$E$59,3,FALSE))," ",VLOOKUP(L40,[9]Proposito_programa!$C$2:$E$59,3,FALSE)) -> Propósito 5: Construir Bogotá - Región con gobierno abierto, transparente y ciudadanía consciente | O40: 1986 | P40: 1 | Q40: 12181336 | R40: DIEGO FERNANDO FACUNDO | S40: Persona Natural | W40: 73700000 | AA40: 73700000 | AB40: 67670000 | AC40: 44224 | AD40: 44224 | AE40: 44557 | AF40: 330 | AO40: X | AQ40: 0.9181818182
A41: 1 | B41: CPS-028-2021 | C41: 2021 | D41: FDLCB-CD-028-2021 | E41: https://community.secop.gov.co/Public/Tendering/OpportunityDetail/Index?noticeUID=CO1.NTC.1708537&isFromPublicArea=True&isModal=False | F41: Contratos de prestación de servicios profesionales y de apoyo a la gestión | G41: Contratación directa | H41: Prestación de servicios profesionales y de apoyo a la gestión, o para la ejecución de trabajos artísticos que sólo puedan encomendarse a determinadas personas naturales; | I41: APOYAR AL ALCALDE (SA) LOCAL EN LA PROMOCIÓN, ACOMPAÑAMIENTO, COORDINACIÓN Y ATENCIÓN DE LAS INSTANCIAS DE COORDINACIÓN INTERINSTITUCIONALES Y LAS INSTANCIAS DE PARTICIPACIÓN LOCALES, ASÍ COMO LOS PROCESOS COMUNITARIOS EN LA LOCALIDAD. | J41: Inversión | K41: Un Nuevo Contrato Social y Ambiental para la Bogotá del Siglo XXI | L41: 57 | M41: =IF(ISERROR(VLOOKUP(L41,[9]Proposito_programa!$C$2:$E$59,2,FALSE))," ",VLOOKUP(L41,[9]Proposito_programa!$C$2:$E$59,2,FALSE)) -> Gestión pública local | N41: =IF(ISERROR(VLOOKUP(L41,[9]Proposito_programa!$C$2:$E$59,3,FALSE))," ",VLOOKUP(L41,[9]Proposito_programa!$C$2:$E$59,3,FALSE)) -> Propósito 5: Construir Bogotá - Región con gobierno abierto, transparente y ciudadanía consciente | O41: 1986 | P41: 1 | Q41: 1020737186 | R41: LUIS ALEJANDRO FLOREZ | S41: Persona Natural | W41: 53600000 | Y41: 1 | Z41: 20770000 | AA41: 74370000 | AB41: 67446667 | AC41: 44224 | AD41: 44224 | AE41: 44560 | AF41: 240 | AG41: 1 | AH41: 93 | AI41: 52831370 | AJ41: NANCY CELY VARGAS | AK41: 44502 | AL41: 13176667 | AO41: X | AQ41: 0.9069069114
A42: 1 | B42: CPS-029-2021 | C42: 2021 | D42: FDLCB-CD-029-2021 | E42: https://community.secop.gov.co/Public/Tendering/OpportunityDetail/Index?noticeUID=CO1.NTC.1712515&isFromPublicArea=True&isModal=False | F42: Contratos de prestación de servicios profesionales y de apoyo a la gestión | G42: Contratación directa | H42: Prestación de servicios profesionales y de apoyo a la gestión, o para la ejecución de trabajos artísticos que sólo puedan encomendarse a determinadas personas naturales; | I42: PRESTAR SERVICIOS PROFESIONALES PARA APOYAR LA EJECUCIÓN DEL SEGUIMIENTO A LAS ACCIONES DIRECCIONADAS POR LA SECRETARÍA DISTRITAL DE GOBIERNO, EN EL MARCO DE LA IMPLEMENTACIÓN DEL MODELO INTEGRADO DE PLANEACIÓN Y GESTIÓN | J42: Inversión | K42: Un Nuevo Contrato Social y Ambiental para la Bogotá del Siglo XXI | L42: 57 | M42: =IF(ISERROR(VLOOKUP(L42,[9]Proposito_programa!$C$2:$E$59,2,FALSE))," ",VLOOKUP(L42,[9]Proposito_programa!$C$2:$E$59,2,FALSE)) -> Gestión pública local | N42: =IF(ISERROR(VLOOKUP(L42,[9]Proposito_programa!$C$2:$E$59,3,FALSE))," ",VLOOKUP(L42,[9]Proposito_programa!$C$2:$E$59,3,FALSE)) -> Propósito 5: Construir Bogotá - Región con gobierno abierto, transparente y ciudadanía consciente | O42: 1986 | P42: 1 | Q42: 1013637783 | R42: INGRID YISETH CAMARGO MORALES | S42: Persona Natural | W42: 40800000 | Y42: 1 | Z42: 18020000 | AA42: 58820000 | AB42: 51340000 | AC42: 44225 | AD42: 44225 | AE42: 44575 | AF42: 240 | AG42: 1 | AH42: 106 | AN42: X | AQ42: 0.8728323699
A43: 1 | B43: CPS-030-2021 | C43: 2021 | D43: FDLCB-CD-030-2021 | E43: https://community.secop.gov.co/Public/Tendering/OpportunityDetail/Index?noticeUID=CO1.NTC.1713015&isFromPublicArea=True&isModal=False | F43: Contratos de prestación de servicios profesionales y de apoyo a la gestión | G43: Contratación directa | H43: Prestación de servicios profesionales y de apoyo a la gestión, o para la ejecución de trabajos artísticos que sólo puedan encomendarse a determinadas personas naturales; | I43: PRESTAR SUS SERVICIOS TÉCNICOS PARA EL APOYO EN LA GESTIÓN, SEGUIMIENTO Y EJECUCIÓN DE LAS ACTIVIDADES RELACIONADAS CON TEMAS DE GESTIÓN AMBIENTAL, GESTIÓN DEL RIESGO Y CAMBIO CLIMÁTICO TERRITORIAL DE LA LOCALIDAD DE CIUDAD BOLÍVAR. | J43: Inversión | K43: Un Nuevo Contrato Social y Ambiental para la Bogotá del Siglo XXI | L43: 57 | M43: =IF(ISERROR(VLOOKUP(L43,[9]Proposito_programa!$C$2:$E$59,2,FALSE))," ",VLOOKUP(L43,[9]Proposito_programa!$C$2:$E$59,2,FALSE)) -> Gestión pública local | N43: =IF(ISERROR(VLOOKUP(L43,[9]Proposito_programa!$C$2:$E$59,3,FALSE))," ",VLOOKUP(L43,[9]Proposito_programa!$C$2:$E$59,3,FALSE)) -> Propósito 5: Construir Bogotá - Región con gobierno abierto, transparente y ciudadanía consciente | O43: 1986 | P43: 1 | Q43: 1072896219 | R43: PAOLA ANDREA GUTIERREZ RIVEROS | S43: Persona Natural | W43: 31200000 | Y43: 1 | Z43: 13780000 | AA43: 44980000 | AB43: 39260000 | AC43: 44225 | AD43: 44225 | AE43: 44575 | AF43: 240 | AG43: 1 | AH43: 106 | AN43: X | AQ43: 0.8728323699
A44: 1 | B44: CPS-031-2021 | C44: 2021 | D44: FDLCB-CD-031-2021 | E44: https://community.secop.gov.co/Public/Tendering/OpportunityDetail/Index?noticeUID=CO1.NTC.1715553&isFromPublicArea=True&isModal=False | F44: Contratos de prestación de servicios profesionales y de apoyo a la gestión | G44: Contratación directa | H44: Prestación de servicios profesionales y de apoyo a la gestión, o para la ejecución de trabajos artísticos que sólo puedan encomendarse a determinadas personas naturales; | I44: PRESTAR SUS SERVICIOS COMO CONDUCTOR DEL VEHÍCULO LIVIANO DESIGNADO PARA LAS ACTIVIDADES PROPIAS DEL DESPACHO DEL FONDO DE DESARROLLO LOCAL DE CIUDAD BOLÍVAR | J44: Inversión | K44: Un Nuevo Contrato Social y Ambiental para la Bogotá del Siglo XXI | L44: 57 | M44: =IF(ISERROR(VLOOKUP(L44,[9]Proposito_programa!$C$2:$E$59,2,FALSE))," ",VLOOKUP(L44,[9]Proposito_programa!$C$2:$E$59,2,FALSE)) -> Gestión pública local | N44: =IF(ISERROR(VLOOKUP(L44,[9]Proposito_programa!$C$2:$E$59,3,FALSE))," ",VLOOKUP(L44,[9]Proposito_programa!$C$2:$E$59,3,FALSE)) -> Propósito 5: Construir Bogotá - Región con gobierno abierto, transparente y ciudadanía consciente | O44: 1986 | P44: 1 | Q44: 79122786 | R44: ALVARO GIL TOVAR | S44: Persona Natural | W44: 28600000 | Y44: 1 | Z44: 1213333 | AA44: 29813333 | AB44: 26000000 | AC44: 44225 | AD44: 44228 | AE44: 44561 | AF44: 330 | AG44: 1 | AH44: 14 | AO44: X | AQ44: 0.872093033
A45: 1 | B45: CPS-032-2021 | C45: 2021 | D45: FDLCB-CD-032-2021 | E45: https://community.secop.gov.co/Public/Tendering/OpportunityDetail/Index?noticeUID=CO1.NTC.1720266&isFromPublicArea=True&isModal=False | F45: Contratos de prestación de servicios profesionales y de apoyo a la gestión | G45: Contratación directa | H45: Prestación de servicios profesionales y de apoyo a la gestión, o para la ejecución de trabajos artísticos que sólo puedan encomendarse a determinadas personas naturales; | I45: PRESTAR SUS SERVICIOS PARA REALIZAR ACTIVIDADES DE APOYO EN EL CDI DEL FONDO DE DESARROLLO LOCAL DE CIUDAD BOLÍVAR | J45: Inversión | K45: Un Nuevo Contrato Social y Ambiental para la Bogotá del Siglo XXI | L45: 57 | M45: =IF(ISERROR(VLOOKUP(L45,[9]Proposito_programa!$C$2:$E$59,2,FALSE))," ",VLOOKUP(L45,[9]Proposito_programa!$C$2:$E$59,2,FALSE)) -> Gestión pública local | N45: =IF(ISERROR(VLOOKUP(L45,[9]Proposito_programa!$C$2:$E$59,3,FALSE))," ",VLOOKUP(L45,[9]Proposito_programa!$C$2:$E$59,3,FALSE)) -> Propósito 5: Construir Bogotá - Región con gobierno abierto, transparente y ciudadanía consciente | O45: 1986 | P45: 1 | Q45: 1075650299 | R45: KEVIN DAVID PABON PAZ | S45: Persona Natural | W45: 17280000 | Y45: 2 | Z45: 8640000 | AA45: 25920000 | AB45: 21600000 | AC45: 44228 | AD45: 44228 | AE45: 44560 | AF45: 240 | AG45: 2 | AH45: 121 | AI45: 1000283517 | AJ45: NATALIA PINTOR QUINTERO | AK45: 44497 | AL45: 4320000 | AO45: X | AQ45: 0.8333333333
A46: 1 | B46: CPS-033-2021 | C46: 2021 | D46: FDLCB-CD-033-2021 | E46: https://community.secop.gov.co/Public/Tendering/OpportunityDetail/Index?noticeUID=CO1.NTC.1720365&isFromPublicArea=True&isModal=False | F46: Contratos de prestación de servicios profesionales y de apoyo a la gestión | G46: Contratación directa | H46: Prestación de servicios profesionales y de apoyo a la gestión, o para la ejecución de trabajos artísticos que sólo puedan encomendarse a determinadas personas naturales; | I46: PRESTAR SUS SERVICIOS PROFESIONALES PARA DESARROLLAR TODAS LAS ACTIVIDADES CONCERNIENTES A LA CONSECUCIÓN DE BIENES Y/O SERVICIOS PARA LA LOCALIDAD DE CIUDAD BOLÍVAR DE ACUERDO CON LOS PROCEDIMIENTOS ESTABLECIDOS EN EL SIG Y A LA NORMATIVIDAD VIGENTE EN MATERIA DE CONTRATACIÓN ESTATAL EN CUMPLIMIENTO DE LAS METAS ESTABLECIDAS EN EL PLAN DE DESARROLLO LOCAL DE CIUDAD BOLÍVAR, PLAN DE GESTIÓN Y PLAN ANUAL DE ADQUISICIONES | J46: Inversión | K46: Un Nuevo Contrato Social y Ambiental para la Bogotá del Siglo XXI | L46: 57 | M46: =IF(ISERROR(VLOOKUP(L46,[9]Proposito_programa!$C$2:$E$59,2,FALSE))," ",VLOOKUP(L46,[9]Proposito_programa!$C$2:$E$59,2,FALSE)) -> Gestión pública local | N46: =IF(ISERROR(VLOOKUP(L46,[9]Proposito_programa!$C$2:$E$59,3,FALSE))," ",VLOOKUP(L46,[9]Proposito_programa!$C$2:$E$59,3,FALSE)) -> Propósito 5: Construir Bogotá - Región con gobierno abierto, transparente y ciudadanía consciente | O46: 1986 | P46: 1 | Q46: 1075284342 | R46: MARIA ALEJANDRA CUELLAR SILVA | S46: Persona Natural | W46: 48000000 | Y46: 1 | Z46: 20800000 | AA46: 68800000 | AB46: 60000000 | AC46: 44228 | AD46: 44228 | AE46: 44575 | AF46: 240 | AG46: 1 | AH46: 104 | AI46: 51618093 | AJ46: MARIA JOSEFA SILVA | AK46: 44440 | AL46: 6000000 | AN46: X | AQ46: 0.8720930233
A47: 1 | B47: CPS-034-2021 | C47: 2021 | D47: FDLCB-CD-034-2021 | E47: https://community.secop.gov.co/Public/Tendering/OpportunityDetail/Index?noticeUID=CO1.NTC.1721087&isFromPublicArea=True&isModal=False | F47: Contratos de prestación de servicios profesionales y de apoyo a la gestión | G47: Contratación directa | H47: Prestación de servicios profesionales y de apoyo a la gestión, o para la ejecución de trabajos artísticos que sólo puedan encomendarse a determinadas personas naturales; | I47: PRESTAR SUS SERVICIOS PROFESIONALES PARA DESARROLLAR TODAS LAS ACTIVIDADES CONCERNIENTES A LA CONSECUCIÓN DE BIENES Y/O SERVICIOS PARA LA LOCALIDAD DE CIUDAD BOLÍVAR DE ACUERDO CON LOS PROCEDIMIENTOS ESTABLECIDOS EN EL SIG Y A LA NORMATIVIDAD VIGENTE EN MATERIA DE CONTRATACIÓN ESTATAL EN CUMPLIMIENTO DE LAS METAS ESTABLECIDAS EN EL PLAN DE DESARROLLO LOCAL DE CIUDAD BOLÍVAR, PLAN DE GESTIÓN Y PLAN ANUAL DE ADQUISICIONES | J47: Inversión | K47: Un Nuevo Contrato Social y Ambiental para la Bogotá del Siglo XXI | L47: 57 | M47: =IF(ISERROR(VLOOKUP(L47,[9]Proposito_programa!$C$2:$E$59,2,FALSE))," ",VLOOKUP(L47,[9]Proposito_programa!$C$2:$E$59,2,FALSE)) -> Gestión pública local | N47: =IF(ISERROR(VLOOKUP(L47,[9]Proposito_programa!$C$2:$E$59,3,FALSE))," ",VLOOKUP(L47,[9]Proposito_programa!$C$2:$E$59,3,FALSE)) -> Propósito 5: Construir Bogotá - Región con gobierno abierto, transparente y ciudadanía consciente | O47: 1986 | P47: 1 | Q47: 53093397 | R47: DIANA CAROLINA GONZALEZ TERREROS | S47: Persona Natural | W47: 73700000 | Y47: 1 | Z47: 3126667 | AA47: 76826667 | AB47: 67000000 | AC47: 44228 | AD47: 44228 | AE47: 44561 | AF47: 330 | AG47: 1 | AH47: 14 | AO47: X | AQ47: 0.8720930195
A48: 1 | B48: CPS-035-2021 | C48: 2021 | D48: FDLCB-CD-035-2021 | E48: https://community.secop.gov.co/Public/Tendering/OpportunityDetail/Index?noticeUID=CO1.NTC.1725463&isFromPublicArea=True&isModal=False | F48: Contratos de prestación de servicios profesionales y de apoyo a la gestión | G48: Contratación directa | H48: Prestación de servicios profesionales y de apoyo a la gestión, o para la ejecución de trabajos artísticos que sólo puedan encomendarse a determinadas personas naturales; | I48: PRESTAR LOS SERVICIOS PROFESIONALES ESPECIALIZADOS PARA REALIZAR EL CONTROL Y SEGUIMIENTO AL CUMPLIMIENTO DE LAS METAS DEL PLAN DE DESARROLLO LOCAL DE CIUDAD BOLÍVAR, REALIZANDO LA RECOLECCIÓN Y CONSOLIDACIÓN DE INFORMACIÓN EN LOS APLICATIVOS DE SECRETARÍA DE GOBIERNO Y SECRETARÍA DISTRITAL DE PLANEACIÓN. | J48: Inversión | K48: Un Nuevo Contrato Social y Ambiental para la Bogotá del Siglo XXI | L48: 57 | M48: =IF(ISERROR(VLOOKUP(L48,[9]Proposito_programa!$C$2:$E$59,2,FALSE))," ",VLOOKUP(L48,[9]Proposito_programa!$C$2:$E$59,2,FALSE)) -> Gestión pública local | N48: =IF(ISERROR(VLOOKUP(L48,[9]Proposito_programa!$C$2:$E$59,3,FALSE))," ",VLOOKUP(L48,[9]Proposito_programa!$C$2:$E$59,3,FALSE)) -> Propósito 5: Construir Bogotá - Región con gobierno abierto, transparente y ciudadanía consciente | O48: 1986 | P48: 1 | Q48: 52071772 | R48: MARIELA JIMENEZ OVALLE | S48: Persona Natural | W48: 55200000 | Y48: 1 | Z48: 23690000 | AA48: 78890000 | AB48: 68770000 | AC48: 44229 | AD48: 44229 | AE48: 44575 | AF48: 240 | AG48: 1 | AH48: 103 | AN48: X | AQ48: 0.8717201166
A49: 1 | B49: CPS-036-2021 | C49: 2021 | D49: FDLCB-CD-036-2021 | E49: https://community.secop.gov.co/Public/Tendering/OpportunityDetail/Index?noticeUID=CO1.NTC.1726102&isFromPublicArea=True&isModal=False | F49: Contratos de prestación de servicios profesionales y de apoyo a la gestión | G49: Contratación directa | H49: Prestación de servicios profesionales y de apoyo a la gestión, o para la ejecución de trabajos artísticos que sólo puedan encomendarse a determinadas personas naturales; | I49: PRESTAR LOS SERVICIOS DE APOYO ADMINISTRATIVA Y ASISTENCIALMENTE LAS ACTIVIDADES QUE SE REQUIERAN EN LA JUNTA ADMINISTRADORA LOCAL DE CIUDAD BOLÍVAR | J49: Inversión | K49: Un Nuevo Contrato Social y Ambiental para la Bogotá del Siglo XXI | L49: 57 | M49: =IF(ISERROR(VLOOKUP(L49,[9]Proposito_programa!$C$2:$E$59,2,FALSE))," ",VLOOKUP(L49,[9]Proposito_programa!$C$2:$E$59,2,FALSE)) -> Gestión pública local | N49: =IF(ISERROR(VLOOKUP(L49,[9]Proposito_programa!$C$2:$E$59,3,FALSE))," ",VLOOKUP(L49,[9]Proposito_programa!$C$2:$E$59,3,FALSE)) -> Propósito 5: Construir Bogotá - Región con gobierno abierto, transparente y ciudadanía consciente | O49: 1986 | P49: 1 | Q49: 1010233012 | R49: LAURA CATERINE PRIETO SOLANO | S49: Persona Natural | W49: 19200000 | Y49: 1 | Z49: 8160000 | AA49: 27360000 | AB49: 23840000 | AC49: 44229 | AD49: 44230 | AE49: 44575 | AF49: 240 | AG49: 1 | AH49: 102 | AN49: X | AQ49: 0.8713450292
A50: 1 | B50: CPS-037-2021 | C50: 2021 | D50: FDLCB-CD-037-2021 | E50: https://community.secop.gov.co/Public/Tendering/OpportunityDetail/Index?noticeUID=CO1.NTC.1725462&isFromPublicArea=True&isModal=False | F50: Contratos de prestación de servicios profesionales y de apoyo a la gestión | G50: Contratación directa | H50: Prestación de servicios profesionales y de apoyo a la gestión, o para la ejecución de trabajos artísticos que sólo puedan encomendarse a determinadas personas naturales; | I50: PRESTAR SERVICIOS PROFESIONALES ESPECIALIZADOS EN TEMAS DE GESTIÓN AMBIENTAL, AGROPECUARIA, RIESGO Y CAMBIO CLIMÁTICO; ARTICULANDO Y APOYANDO LOS PLANES, ESTRATEGIAS, PROYECTOS E INSTANCIAS TANTO A NIVEL URBANO COMO RURAL EN LA LOCALIDAD DE CIUDAD BOLÍVAR | J50: Inversión | K50: Un Nuevo Contrato Social y Ambiental para la Bogotá del Siglo XXI | L50: 57 | M50: =IF(ISERROR(VLOOKUP(L50,[9]Proposito_programa!$C$2:$E$59,2,FALSE))," ",VLOOKUP(L50,[9]Proposito_programa!$C$2:$E$59,2,FALSE)) -> Gestión pública local | N50: =IF(ISERROR(VLOOKUP(L50,[9]Proposito_programa!$C$2:$E$59,3,FALSE))," ",VLOOKUP(L50,[9]Proposito_programa!$C$2:$E$59,3,FALSE)) -> Propósito 5: Construir Bogotá - Región con gobierno abierto, transparente y ciudadanía consciente | O50: 1986 | P50: 1 | Q50: 53131820 | R50: ADRIANA MARCELA RODRIGUEZ ORTIZ | S50: Persona Natural | W50: 59200000 | Y50: 1 | Z50: 25406667 | AA50: 84606667 | AB50: 73753333 | AC50: 44229 | AD50: 44229 | AE50: 44575 | AF50: 240 | AG50: 1 | AH50: 103 | AI50: 1024523163 | AJ50: WILLIAM FERNANDO PACHECO GONZALEZ | AK50: 44470 | AL50: 25406667 | AN50: X | AQ50: 0.8717201092
A51: 1 | B51: CPS-038-2021 | C51: 2021 | D51: FDLCB-CD-038-2021 | E51: https://community.secop.gov.co/Public/Tendering/OpportunityDetail/Index?noticeUID=CO1.NTC.1728580&isFromPublicArea=True&isModal=False | F51: Contratos de prestación de servicios profesionales y de apoyo a la gestión | G51: Contratación directa | H51: Prestación de servicios profesionales y de apoyo a la gestión, o para la ejecución de trabajos artísticos que sólo puedan encomendarse a determinadas personas naturales; | I51: PRESTAR SUS SERVICIOS PROFESIONALES PARA DESARROLLAR LAS ACTIVIDADES DE APOYO A LA CONSECUCIÓN DE BIENES Y/O SERVICIOS QUE SEAN ADQUIRIDOS MEDIANTE LA MODALIDAD DE CONTRATACIÓN DIRECTA Y MÍNIMA CUANTÍA PARA LA LOCALIDAD DE CIUDAD BOLÍVAR, DE ACUERDO CON LOS PROCEDIMIENTOS ESTABLECIDOS EN EL SIG Y A LA NORMATIVIDAD VIGENTE EN MATERIA DE CONTRATACIÓN ESTATAL EN CUMPLIMIENTO DE LAS METAS ESTABLECIDAS EN EL PLAN DE DESARROLLO LOCAL DE CIUDAD BOLÍVAR, PLAN DE GESTIÓN Y PLAN ANUAL DE ADQUISICIONES | J51: Inversión | K51: Un Nuevo Contrato Social y Ambiental para la Bogotá del Siglo XXI | L51: 57 | M51: =IF(ISERROR(VLOOKUP(L51,[9]Proposito_programa!$C$2:$E$59,2,FALSE))," ",VLOOKUP(L51,[9]Proposito_programa!$C$2:$E$59,2,FALSE)) -> Gestión pública local | N51: =IF(ISERROR(VLOOKUP(L51,[9]Proposito_programa!$C$2:$E$59,3,FALSE))," ",VLOOKUP(L51,[9]Proposito_programa!$C$2:$E$59,3,FALSE)) -> Propósito 5: Construir Bogotá - Región con gobierno abierto, transparente y ciudadanía consciente | O51: 1986 | P51: 1 | Q51: 53166511 | R51: ANGELA JOHANNA FRANCO CHAVES | S51: Persona Natural | W51: 44000000 | Y51: 1 | Z51: 18700000 | AA51: 62700000 | AB51: 54633333 | AC51: 44230 | AD51: 44230 | AE51: 44575 | AF51: 240 | AG51: 1 | AH51: 102 | AN51: X | AQ51: 0.8713450239
A52: 1 | B52: CPS-039-2021 | C52: 2021 | D52: FDLCB-CD-039-2021 | E52: https://community.secop.gov.co/Public/Tendering/OpportunityDetail/Index?noticeUID=CO1.NTC.1728586&isFromPublicArea=True&isModal=False | F52: Contratos de prestación de servicios profesionales y de apoyo a la gestión | G52: Contratación directa | H52: Prestación de servicios profesionales y de apoyo a la gestión, o para la ejecución de trabajos artísticos que sólo puedan encomendarse a determinadas personas naturales; | I52: PRESTAR LOS SERVICIOS PROFESIONALES PARA LA OPERACIÓN, SEGUIMIENTO Y CUMPLIMIENTO DE LOS PROCESOS Y PROCEDIMIENTOS DEL SERVICIO APOYO ECONÓMICO TIPO C, REQUERIDOS PARA EL OPORTUNO Y ADECUADO REGISTRO, CRUCE Y REPORTE DE LOS DATOS EN EL SISTEMA MISIONAL SIRBE, QUE CONTRIBUYAN A LA GARANTÍA DE LOS DERECHOS DE LA POBLACIÓN MAYOR EN EL MARCO DE LA POLÍTICA PÚBLICA SOCIAL PARA EL ENVEJECIMIENTO Y LA VEJEZ EN EL DISTRITO CAPITAL A CARGO DE LA ALCALDÍA LOCAL. | J52: Inversión | K52: Un Nuevo Contrato Social y Ambiental para la Bogotá del Siglo XXI | L52: 1 | M52: =IF(ISERROR(VLOOKUP(L52,[9]Proposito_programa!$C$2:$E$59,2,FALSE))," ",VLOOKUP(L52,[9]Proposito_programa!$C$2:$E$59,2,FALSE)) -> Subsidios y transferencias para la equidad | N52: =IF(ISERROR(VLOOKUP(L52,[9]Proposito_programa!$C$2:$E$59,3,FALSE))," ",VLOOKUP(L52,[9]Proposito_programa!$C$2:$E$59,3,FALSE)) -> Propósito 1: Hacer un nuevo contrato social para incrementar la inclusión social, productiva y política | O52: 1862 | P52: 1 | Q52: 1075238460 | R52: LORY MARITZA ORTIZ FERNANDEZ | S52: Persona Natural | W52: 45600000 | Y52: 1 | Z52: 16720000 | AA52: 62320000 | AB52: 56620000 | AC52: 44230 | AD52: 44230 | AE52: 44560 | AF52: 240 | AG52: 1 | AH52: 88 | AO52: X | AQ52: 0.9085365854
A53: 1 | B53: CPS-040-2021 | C53: 2021 | D53: FDLCB-CD-040-2021 | E53: https://community.secop.gov.co/Public/Tendering/OpportunityDetail/Index?noticeUID=CO1.NTC.1729010&isFromPublicArea=True&isModal=False | F53: Contratos de prestación de servicios profesionales y de apoyo a la gestión | G53: Contratación directa | H53: Prestación de servicios profesionales y de apoyo a la gestión, o para la ejecución de trabajos artísticos que sólo puedan encomendarse a determinadas personas naturales; | I53: COORDINAR Y GARANTIZAR LA IMPLEMENTACIÓN Y SEGUIMIENTO DE LOS PROCESOS Y PROCEDIMIENTOS DEL SERVICIO SOCIAL DE APOYO ECONÓMICO TIPO C. | J53: Inversión | K53: Un Nuevo Contrato Social y Ambiental para la Bogotá del Siglo XXI | L53: 1 | M53: =IF(ISERROR(VLOOKUP(L53,[9]Proposito_programa!$C$2:$E$59,2,FALSE))," ",VLOOKUP(L53,[9]Proposito_programa!$C$2:$E$59,2,FALSE)) -> Subsidios y transferencias para la equidad | N53: =IF(ISERROR(VLOOKUP(L53,[9]Proposito_programa!$C$2:$E$59,3,FALSE))," ",VLOOKUP(L53,[9]Proposito_programa!$C$2:$E$59,3,FALSE)) -> Propósito 1: Hacer un nuevo contrato social para incrementar la inclusión social, productiva y política | O53: 1862 | P53: 1 | Q53: 1024539244 | R53: LENYN ALEXIS CUELLAR | S53: Persona Natural | W53: 53600000 | Y53: 1 | Z53: 22780000 | AA53: 76380000 | AB53: 66553333 | AC53: 44230 | AD53: 44230 | AE53: 44575 | AF53: 240 | AG53: 1 | AH53: 102 | AN53: X | AQ53: 0.8713450249
A54: 1 | B54: CPS-041-2021 | C54: 2021 | D54: FDLCB-CD-041-2021 | E54: https://community.secop.gov.co/Public/Tendering/OpportunityDetail/Index?noticeUID=CO1.NTC.1729495&isFromPublicArea=True&isModal=False | F54: Contratos de prestación de servicios profesionales y de apoyo a la gestión | G54: Contratación directa | H54: Prestación de servicios profesionales y de apoyo a la gestión, o para la ejecución de trabajos artísticos que sólo puedan encomendarse a determinadas personas naturales; | I54: PRESTAR SUS SERVICIOS PROFESIONALES PARA LA IMPLEMENTACIÓN DE LAS ACCIONES Y LINEAMIENTOS TÉCNICOS SURTIDOS DEL PROGRAMA DE GESTIÓN DOCUMENTAL Y DEMÁS INSTRUMENTOS TÉCNICOS ARCHIVÍSTICOS | J54: Inversión | K54: Un Nuevo Contrato Social y Ambiental para la Bogotá del Siglo XXI | L54: 57 | M54: =IF(ISERROR(VLOOKUP(L54,[9]Proposito_programa!$C$2:$E$59,2,FALSE))," ",VLOOKUP(L54,[9]Proposito_programa!$C$2:$E$59,2,FALSE)) -> Gestión pública local | N54: =IF(ISERROR(VLOOKUP(L54,[9]Proposito_programa!$C$2:$E$59,3,FALSE))," ",VLOOKUP(L54,[9]Proposito_programa!$C$2:$E$59,3,FALSE)) -> Propósito 5: Construir Bogotá - Región con gobierno abierto, transparente y ciudadanía consciente | O54: 1986 | P54: 1 | Q54: 53154220 | R54: MILDRED JOHANNA DIAZ QUINTERO | S54: Persona Natural | W54: 45600000 | Y54: 1 | Z54: 16530000 | AA54: 62130000 | AB54: 56430000 | AC54: 44230 | AD54: 44231 | AE54: 44560 | AF54: 240 | AG54: 1 | AH54: 87 | AO54: X | AQ54: 0.9082568807
A55: 1 | B55: CPS-042-2021 | C55: 2021 | D55: FDLCB-CD-042-2021 | E55: https://community.secop.gov.co/Public/Tendering/OpportunityDetail/Index?noticeUID=CO1.NTC.1731486&isFromPublicArea=True&isModal=False | F55: Contratos de prestación de servicios profesionales y de apoyo a la gestión | G55: Contratación directa | H55: Prestación de servicios profesionales y de apoyo a la gestión, o para la ejecución de trabajos artísticos que sólo puedan encomendarse a determinadas personas naturales; | I55: PRESTAR LOS SERVICIOS DE APOYO TÉCNICO PARA REALIZAR ACTIVIDADES ADMINISTRATIVAS Y CONTABLES QUE SE ADELANTAN EN EL ÁREA DE GESTIÓN DEL DESARROLLO - CONTABILIDAD DEL FONDO DE DESARROLLO LOCAL DE CIUDAD BOLÍVAR. | J55: Inversión | K55: Un Nuevo Contrato Social y Ambiental para la Bogotá del Siglo XXI | L55: 57 | M55: =IF(ISERROR(VLOOKUP(L55,[9]Proposito_programa!$C$2:$E$59,2,FALSE))," ",VLOOKUP(L55,[9]Proposito_programa!$C$2:$E$59,2,FALSE)) -> Gestión pública local | N55: =IF(ISERROR(VLOOKUP(L55,[9]Proposito_programa!$C$2:$E$59,3,FALSE))," ",VLOOKUP(L55,[9]Proposito_programa!$C$2:$E$59,3,FALSE)) -> Propósito 5: Construir Bogotá - Región con gobierno abierto, transparente y ciudadanía consciente | O55: 1986 | P55: 1 | Q55: 52932560 | R55: HEIDI ROJAS MARTINEZ | S55: Persona Natural | W55: 25600000 | Y55: 1 | Z55: 9280000 | AA55: 34880000 | AB55: 31680000 | AC55: 44231 | AD55: 44231 | AE55: 44560 | AF55: 240 | AG55: 1 | AH55: 87 | AO55: X | AQ55: 0.9082568807
A56: 1 | B56: CPS-043-2021 | C56: 2021 | D56: FDLCB-CD-043-2021 | E56: https://community.secop.gov.co/Public/Tendering/OpportunityDetail/Index?noticeUID=CO1.NTC.1730743&isFromPublicArea=True&isModal=False | F56: Contratos de prestación de servicios profesionales y de apoyo a la gestión | G56: Contratación directa | H56: Prestación de servicios profesionales y de apoyo a la gestión, o para la ejecución de trabajos artísticos que sólo puedan encomendarse a determinadas personas naturales; | I56: PRESTAR SUS SERVICIOS COMO CONDUCTOR DE VOLQUETA DE PROPIEDAD DEL FONDO DE DESARROLLO LOCAL DE CIUDAD BOLÍVAR PARA LA REALIZACIÓN DE LABORES DE MANTENIMIENTO DE LA MALLA VIAL Y LAS ZONAS PÚBLICAS DE LA LOCALIDAD, ASÍ COMO ATENDER LAS EMERGENCIAS QUE SURJAN EN LA LOCALIDAD”. | J56: Inversión | K56: Un Nuevo Contrato Social y Ambiental para la Bogotá del Siglo XXI | L56: 49 | M56: =IF(ISERROR(VLOOKUP(L56,[9]Proposito_programa!$C$2:$E$59,2,FALSE))," ",VLOOKUP(L56,[9]Proposito_programa!$C$2:$E$59,2,FALSE)) -> Movilidad segura, sostenible y accesible | N56: =IF(ISERROR(VLOOKUP(L56,[9]Proposito_programa!$C$2:$E$59,3,FALSE))," ",VLOOKUP(L56,[9]Proposito_programa!$C$2:$E$59,3,FALSE)) -> Propósito 4: Hacer de Bogotá Región un modelo de movilidad multimodal, incluyente y sostenible | O56: 1983 | P56: 1 | Q56: 1018431014 | R56: CESAR AUGUSTO ALVARADO LOZANO | S56: Persona Natural | W56: 20400000 | Y56: 1 | Z56: 7395000 | AA56: 27795000 | AB56: 25245000 | AC56: 44231 | AD56: 44231 | AE56: 44560 | AF56: 240 | AG56: 1 | AH56: 87 | AO56: X | AQ56: 0.9082568807
A57: 1 | B57: CPS-044-2021 | C57: 2021 | D57: FDLCB-CD-044-2021 | E57: https://community.secop.gov.co/Public/Tendering/OpportunityDetail/Index?noticeUID=CO1.NTC.1732531&isFromPublicArea=True&isModal=False | F57: Contratos de prestación de servicios profesionales y de apoyo a la gestión | G57: Contratación directa | H57: Prestación de servicios profesionales y de apoyo a la gestión, o para la ejecución de trabajos artísticos que sólo puedan encomendarse a determinadas personas naturales; | I57: PRESTAR SERVICIOS PROFESIONALES EN TEMAS DE TERRITORIALIZACIÓN DE LAS ESTRATEGIAS Y ACCIONES DE GESTIÓN AGROPECUARIA, RIESGO Y CAMBIO CLIMÁTICO, ARTICULANDO, LIDERANDO Y APOYANDO LOS PLANES, ESTRATEGIAS, PROYECTOS E INSTANCIAS TANTO A NIVEL URBANO COMO RURAL EN LA LOCALIDAD DE CIUDAD BOLÍVAR. | J57: Inversión | K57: Un Nuevo Contrato Social y Ambiental para la Bogotá del Siglo XXI | L57: 57 | M57: =IF(ISERROR(VLOOKUP(L57,[9]Proposito_programa!$C$2:$E$59,2,FALSE))," ",VLOOKUP(L57,[9]Proposito_programa!$C$2:$E$59,2,FALSE)) -> Gestión pública local | N57: =IF(ISERROR(VLOOKUP(L57,[9]Proposito_programa!$C$2:$E$59,3,FALSE))," ",VLOOKUP(L57,[9]Proposito_programa!$C$2:$E$59,3,FALSE)) -> Propósito 5: Construir Bogotá - Región con gobierno abierto, transparente y ciudadanía consciente | O57: 1986 | P57: 1 | Q57: 1024523163 | R57: WILLIAM FERNANDO PACHECO GONZALEZ | S57: Persona Natural | W57: 53600000 | Y57: 1 | Z57: 22556667 | AA57: 76156667 | AB57: 66330000 | AC57: 44231 | AD57: 44231 | AE57: 44575 | AF57: 240 | AG57: 1 | AH57: 101 | AI57: 79695295 | AJ57: YOVAN ALFREDO FIGUEROA ARTEAGA | AK57: 44470 | AL57: 23226667 | AN57: X | AQ57: 0.8709677381
A58: 1 | B58: CPS-045-2021 | C58: 2021 | D58: FDLCB-CD-045-2021 | E58: https://community.secop.gov.co/Public/Tendering/OpportunityDetail/Index?noticeUID=CO1.NTC.1734233&isFromPublicArea=True&isModal=False | F58: Contratos de prestación de servicios profesionales y de apoyo a la gestión | G58: Contratación directa | H58: Prestación de servicios profesionales y de apoyo a la gestión, o para la ejecución de trabajos artísticos que sólo puedan encomendarse a determinadas personas naturales; | I58: PRESTAR LOS SERVICIOS DE APOYO ADMINISTRATIVO FORTALECIENDO LAS ACTUACIONES, TRÁMITES Y PROCESOS QUE SE ADELANTAN EN EL ÁREA DE GESTIÓN DEL DESARROLLO, ADMINISTRATIVA Y FINANZAS DE LA ALCALDÍA LOCAL DE CIUDAD BOLÍVAR, EN TEMAS CONTRACTUALES. | J58: Inversión | K58: Un Nuevo Contrato Social y Ambiental para la Bogotá del Siglo XXI | L58: 57 | M58: =IF(ISERROR(VLOOKUP(L58,[9]Proposito_programa!$C$2:$E$59,2,FALSE))," ",VLOOKUP(L58,[9]Proposito_programa!$C$2:$E$59,2,FALSE)) -> Gestión pública local | N58: =IF(ISERROR(VLOOKUP(L58,[9]Proposito_programa!$C$2:$E$59,3,FALSE))," ",VLOOKUP(L58,[9]Proposito_programa!$C$2:$E$59,3,FALSE)) -> Propósito 5: Construir Bogotá - Región con gobierno abierto, transparente y ciudadanía consciente | O58: 1986 | P58: 1 | Q58: 1075221548 | R58: ANGEE TATIANA IPUZ RODRIGUEZ | S58: Persona Natural | W58: 28000000 | Y58: 1 | Z58: 10150000 | AA58: 38150000 | AB58: 34650000 | AC58: 44231 | AD58: 44231 | AE58: 44560 | AF58: 240 | AG58: 1 | AH58: 87 | AO58: X | AQ58: 0.9082568807
A59: 1 | B59: CPS-046-2021 | C59: 2021 | D59: FDLCB-CD-046-2021 | E59: https://community.secop.gov.co/Public/Tendering/OpportunityDetail/Index?noticeUID=CO1.NTC.1733314&isFromPublicArea=True&isModal=False | F59: Contratos de prestación de servicios profesionales y de apoyo a la gestión | G59: Contratación directa | H59: Prestación de servicios profesionales y de apoyo a la gestión, o para la ejecución de trabajos artísticos que sólo puedan encomendarse a determinadas personas naturales; | I59: PRESTAR SUS SERVICIOS PROFESIONALES PARA DESARROLLAR TODAS LAS ACTIVIDADES CONCERNIENTES A LA CONSECUCIÓN DE BIENES Y/O SERVICIOS PARA LA LOCALIDAD DE CIUDAD BOLÍVAR DE ACUERDO CON LOS PROCEDIMIENTOS ESTABLECIDOS EN EL SIG Y A LA NORMATIVIDAD VIGENTE EN MATERIA DE CONTRATACIÓN ESTATAL EN CUMPLIMIENTO DE LAS METAS ESTABLECIDAS EN EL PLAN DE DESARROLLO LOCAL DE CIUDAD BOLÍVAR, PLAN DE GESTIÓN Y PLAN ANUAL DE ADQUISICIONES | J59: Inversión | K59: Un Nuevo Contrato Social y Ambiental para la Bogotá del Siglo XXI | L59: 57 | M59: =IF(ISERROR(VLOOKUP(L59,[9]Proposito_programa!$C$2:$E$59,2,FALSE))," ",VLOOKUP(L59,[9]Proposito_programa!$C$2:$E$59,2,FALSE)) -> Gestión pública local | N59: =IF(ISERROR(VLOOKUP(L59,[9]Proposito_programa!$C$2:$E$59,3,FALSE))," ",VLOOKUP(L59,[9]Proposito_programa!$C$2:$E$59,3,FALSE)) -> Propósito 5: Construir Bogotá - Región con gobierno abierto, transparente y ciudadanía consciente | O59: 1986 | P59: 1 | Q59: 79591449 | R59: ASDRUBAL MENDIVELSO MENDIVELSO | S59: Persona Natural | W59: 48000000 | Y59: 1 | Z59: 20200000 | AA59: 68200000 | AB59: 59400000 | AC59: 44231 | AD59: 44231 | AE59: 44575 | AF59: 240 | AG59: 1 | AH59: 101 | AN59: X | AQ59: 0.8709677419
A60: 1 | B60: CPS-047-2021 | C60: 2021 | D60: FDLCB-CD-047-2021 | E60: https://community.secop.gov.co/Public/Tendering/OpportunityDetail/Index?noticeUID=CO1.NTC.1733146&isFromPublicArea=True&isModal=False | F60: Contratos de prestación de servicios profesionales y de apoyo a la gestión | G60: Contratación directa | H60: Prestación de servicios profesionales y de apoyo a la gestión, o para la ejecución de trabajos artísticos que sólo puedan encomendarse a determinadas personas naturales; | I60: PRESTAR SUS SERVICIOS PROFESIONALES PARA DESARROLLAR TODAS LAS ACTIVIDADES CONCERNIENTES A LA CONSECUCIÓN DE BIENES Y/O SERVICIOS PARA LA LOCALIDAD DE CIUDAD BOLÍVAR DE ACUERDO CON LOS PROCEDIMIENTOS ESTABLECIDOS EN EL SIG Y A LA NORMATIVIDAD VIGENTE EN MATERIA DE CONTRATACIÓN ESTATAL EN CUMPLIMIENTO DE LAS METAS ESTABLECIDAS EN EL PLAN DE DESARROLLO LOCAL DE CIUDAD BOLÍVAR, PLAN DE GESTIÓN Y PLAN ANUAL DE ADQUISICIONES | J60: Inversión | K60: Un Nuevo Contrato Social y Ambiental para la Bogotá del Siglo XXI | L60: 57 | M60: =IF(ISERROR(VLOOKUP(L60,[9]Proposito_programa!$C$2:$E$59,2,FALSE))," ",VLOOKUP(L60,[9]Proposito_programa!$C$2:$E$59,2,FALSE)) -> Gestión pública local | N60: =IF(ISERROR(VLOOKUP(L60,[9]Proposito_programa!$C$2:$E$59,3,FALSE))," ",VLOOKUP(L60,[9]Proposito_programa!$C$2:$E$59,3,FALSE)) -> Propósito 5: Construir Bogotá - Región con gobierno abierto, transparente y ciudadanía consciente | O60: 1986 | P60: 1 | Q60: 1075225935 | R60: JUAN DIEGO ORTIZ QUINTERO | S60: Persona Natural | W60: 48000000 | Y60: 1 | Z60: 17400000 | AA60: 65400000 | AB60: 59400000 | AC60: 44231 | AD60: 44231 | AE60: 44560 | AF60: 240 | AG60: 1 | AH60: 87 | AO60: X | AQ60: 0.9082568807
A61: 1 | B61: CPS-048-2021 | C61: 2021 | D61: FDLCB-CD-048-2021 | E61: https://community.secop.gov.co/Public/Tendering/OpportunityDetail/Index?noticeUID=CO1.NTC.1733227&isFromPublicArea=True&isModal=False | F61: Contratos de prestación de servicios profesionales y de apoyo a la gestión | G61: Contratación directa | H61: Prestación de servicios profesionales y de apoyo a la gestión, o para la ejecución de trabajos artísticos que sólo puedan encomendarse a determinadas personas naturales; | I61: PRESTAR SUS SERVICIOS PARA REALIZAR ACTIVIDADES DE APOYO EN EL CDI DEL FONDO DE DESARROLLO LOCAL DE CIUDAD BOLÍVAR | J61: Inversión | K61: Un Nuevo Contrato Social y Ambiental para la Bogotá del Siglo XXI | L61: 57 | M61: =IF(ISERROR(VLOOKUP(L61,[9]Proposito_programa!$C$2:$E$59,2,FALSE))," ",VLOOKUP(L61,[9]Proposito_programa!$C$2:$E$59,2,FALSE)) -> Gestión pública local | N61: =IF(ISERROR(VLOOKUP(L61,[9]Proposito_programa!$C$2:$E$59,3,FALSE))," ",VLOOKUP(L61,[9]Proposito_programa!$C$2:$E$59,3,FALSE)) -> Propósito 5: Construir Bogotá - Región con gobierno abierto, transparente y ciudadanía consciente | O61: 1986 | P61: 1 | Q61: 1018463574 | R61: CINDY MARCELA CORREDOR FERNANDEZ | S61: Persona Natural | W61: 17280000 | Y61: 1 | Z61: 6264000 | AA61: 23544000 | AB61: 21384000 | AC61: 44231 | AD61: 44231 | AE61: 44560 | AF61: 240 | AG61: 1 | AH61: 87 | AO61: X | AQ61: 0.9082568807
A62: 1 | B62: CPS-049-2021 | C62: 2021 | D62: FDLCB-CD-049-2021 | E62: https://community.secop.gov.co/Public/Tendering/OpportunityDetail/Index?noticeUID=CO1.NTC.1735224&isFromPublicArea=True&isModal=False | F62: Contratos de prestación de servicios profesionales y de apoyo a la gestión | G62: Contratación directa | H62: Prestación de servicios profesionales y de apoyo a la gestión, o para la ejecución de trabajos artísticos que sólo puedan encomendarse a determinadas personas naturales; | I62: APOYAR JURÍDICAMENTE LA EJECUCIÓN DE LAS ACCIONES REQUERIDAS PARA LA DEPURACIÓN DE LAS ACTUACIONES ADMINISTRATIVAS QUE CURSAN EN LA ALCALDÍA LOCAL DE CIUDAD BOLÍVAR | J62: Inversión | K62: Un Nuevo Contrato Social y Ambiental para la Bogotá del Siglo XXI | L62: 57 | M62: =IF(ISERROR(VLOOKUP(L62,[9]Proposito_programa!$C$2:$E$59,2,FALSE))," ",VLOOKUP(L62,[9]Proposito_programa!$C$2:$E$59,2,FALSE)) -> Gestión pública local | N62: =IF(ISERROR(VLOOKUP(L62,[9]Proposito_programa!$C$2:$E$59,3,FALSE))," ",VLOOKUP(L62,[9]Proposito_programa!$C$2:$E$59,3,FALSE)) -> Propósito 5: Construir Bogotá - Región con gobierno abierto, transparente y ciudadanía consciente | O62: 1987 | P62: 1 | Q62: 1015414557 | R62: SHISTHEY RAMIREZ ROSERO | S62: Persona Natural | W62: 40800000 | Y62: 1 | Z62: 14620000 | AA62: 55420000 | AB62: 50320000 | AC62: 44231 | AD62: 44232 | AE62: 44560 | AF62: 240 | AG62: 1 | AH62: 86 | AO62: X | AQ62: 0.9079754601
A63: 1 | B63: CPS-050-2021 | C63: 2021 | D63: FDLCB-CD-050-2021 | E63: https://community.secop.gov.co/Public/Tendering/OpportunityDetail/Index?noticeUID=CO1.NTC.1735762&isFromPublicArea=True&isModal=False | F63: Contratos de prestación de servicios profesionales y de apoyo a la gestión | G63: Contratación directa | H63: Prestación de servicios profesionales y de apoyo a la gestión, o para la ejecución de trabajos artísticos que sólo puedan encomendarse a determinadas personas naturales; | I63: PRESTAR SUS SERVICIOS PROFESIONALES PARA COORDINAR, LIDERAR Y ASESORAR LOS PLANES Y ESTRATEGIAS DE COMUNICACIÓN INTERNA Y EXTERNA PARA LA DIVULGACIÓN DE LOS PROGRAMAS, PROYECTOS Y ACTIVIDADES DE LA ALCALDÍA LOCAL DE CIUDAD BOLÍVAR. | J63: Inversión | K63: Un Nuevo Contrato Social y Ambiental para la Bogotá del Siglo XXI | L63: 57 | M63: =IF(ISERROR(VLOOKUP(L63,[9]Proposito_programa!$C$2:$E$59,2,FALSE))," ",VLOOKUP(L63,[9]Proposito_programa!$C$2:$E$59,2,FALSE)) -> Gestión pública local | N63: =IF(ISERROR(VLOOKUP(L63,[9]Proposito_programa!$C$2:$E$59,3,FALSE))," ",VLOOKUP(L63,[9]Proposito_programa!$C$2:$E$59,3,FALSE)) -> Propósito 5: Construir Bogotá - Región con gobierno abierto, transparente y ciudadanía consciente | O63: 1986 | P63: 1 | Q63: 7725532 | R63: DARWIN MIGUEL GOMEZ OLIVEROS | S63: Persona Natural | W63: 53600000 | Y63: 1 | Z63: 19206667 | AA63: 72806667 | AB63: 66106667 | AC63: 44231 | AD63: 44232 | AE63: 44560 | AF63: 240 | AG63: 1 | AH63: 86 | AO63: X | AQ63: 0.9079754605
A64: 1 | B64: CPS-051-2021 | C64: 2021 | D64: FDLCB-CD-051-2021 | E64: https://community.secop.gov.co/Public/Tendering/OpportunityDetail/Index?noticeUID=CO1.NTC.1737641&isFromPublicArea=True&isModal=False | F64: Contratos de prestación de servicios profesionales y de apoyo a la gestión | G64: Contratación directa | H64: Prestación de servicios profesionales y de apoyo a la gestión, o para la ejecución de trabajos artísticos que sólo puedan encomendarse a determinadas personas naturales; | I64: APOYAR TÉCNICAMENTE LAS DISTINTAS ETAPAS DE LOS PROCESOS DE COMPETENCIA DE LAS INSPECCIONES DE POLICÍA DE LA LOCALIDAD, SEGÚN REPARTO | J64: Inversión | K64: Un Nuevo Contrato Social y Ambiental para la Bogotá del Siglo XXI | L64: 57 | M64: =IF(ISERROR(VLOOKUP(L64,[9]Proposito_programa!$C$2:$E$59,2,FALSE))," ",VLOOKUP(L64,[9]Proposito_programa!$C$2:$E$59,2,FALSE)) -> Gestión pública local | N64: =IF(ISERROR(VLOOKUP(L64,[9]Proposito_programa!$C$2:$E$59,3,FALSE))," ",VLOOKUP(L64,[9]Proposito_programa!$C$2:$E$59,3,FALSE)) -> Propósito 5: Construir Bogotá - Región con gobierno abierto, transparente y ciudadanía consciente | O64: 1987 | P64: 1 | Q64: 52838318 | R64: DIANA JOHANA ALFONSO HERNANDEZ | S64: Persona Natural | W64: 40800000 | Y64: 2 | Z64: 19720000 | AA64: 60520000 | AB64: 50320000 | AC64: 44232 | AD64: 44232 | AE64: 44560 | AF64: 240 | AG64: 2 | AH64: 117 | AO64: X | AQ64: 0.8314606742
A65: 1 | B65: CPS-052-2021 | C65: 2021 | D65: FDLCB-CD-052-2021 | E65: https://community.secop.gov.co/Public/Tendering/OpportunityDetail/Index?noticeUID=CO1.NTC.1737645&isFromPublicArea=True&isModal=False | F65: Contratos de prestación de servicios profesionales y de apoyo a la gestión | G65: Contratación directa | H65: Prestación de servicios profesionales y de apoyo a la gestión, o para la ejecución de trabajos artísticos que sólo puedan encomendarse a determinadas personas naturales; | I65: APOYAR LA FORMULACIÓN, EJECUCIÓN, SEGUIMIENTO Y MEJORA CONTINUA DE LAS HERRAMIENTAS QUE CONFORMAN LA GESTIÓN AMBIENTAL INSTITUCIONAL DE LA ALCALDÍA LOCAL | J65: Inversión | K65: Un Nuevo Contrato Social y Ambiental para la Bogotá del Siglo XXI | L65: 57 | M65: =IF(ISERROR(VLOOKUP(L65,[9]Proposito_programa!$C$2:$E$59,2,FALSE))," ",VLOOKUP(L65,[9]Proposito_programa!$C$2:$E$59,2,FALSE)) -> Gestión pública local | N65: =IF(ISERROR(VLOOKUP(L65,[9]Proposito_programa!$C$2:$E$59,3,FALSE))," ",VLOOKUP(L65,[9]Proposito_programa!$C$2:$E$59,3,FALSE)) -> Propósito 5: Construir Bogotá - Región con gobierno abierto, transparente y ciudadanía consciente | O65: 1986 | P65: 1 | Q65: 53081880 | R65: KALINA MARILIN LÓPEZ BLANCO | S65: Persona Natural | W65: 45600000 | Y65: 2 | Z65: 22040000 | AA65: 67640000 | AB65: 56240000 | AC65: 44232 | AD65: 44232 | AE65: 44560 | AF65: 240 | AG65: 2 | AH65: 117 | AO65: X | AQ65: 0.8314606742
A66: 1 | B66: CPS-053-2021 | C66: 2021 | D66: FDLCB-CD-053-2021 | E66: https://community.secop.gov.co/Public/Tendering/OpportunityDetail/Index?noticeUID=CO1.NTC.1737648&isFromPublicArea=True&isModal=False | F66: Contratos de prestación de servicios profesionales y de apoyo a la gestión | G66: Contratación directa | H66: Prestación de servicios profesionales y de apoyo a la gestión, o para la ejecución de trabajos artísticos que sólo puedan encomendarse a determinadas personas naturales; | I66: PRESTAR SUS SERVICIOS COMO CONDUCTOR DE VOLQUETA DE PROPIEDAD DEL FONDO DE DESARROLLO LOCAL DE CIUDAD BOLÍVAR PARA LA REALIZACIÓN DE LABORES DE MANTENIMIENTO DE LA MALLA VIAL Y LAS ZONAS PÚBLICAS DE LA LOCALIDAD, ASÍ COMO ATENDER LAS EMERGENCIAS QUE SURJAN EN LA LOCALIDAD. | J66: Inversión | K66: Un Nuevo Contrato Social y Ambiental para la Bogotá del Siglo XXI | L66: 49 | M66: =IF(ISERROR(VLOOKUP(L66,[9]Proposito_programa!$C$2:$E$59,2,FALSE))," ",VLOOKUP(L66,[9]Proposito_programa!$C$2:$E$59,2,FALSE)) -> Movilidad segura, sostenible y accesible | N66: =IF(ISERROR(VLOOKUP(L66,[9]Proposito_programa!$C$2:$E$59,3,FALSE))," ",VLOOKUP(L66,[9]Proposito_programa!$C$2:$E$59,3,FALSE)) -> Propósito 4: Hacer de Bogotá Región un modelo de movilidad multimodal, incluyente y sostenible | O66: 1983 | P66: 1 | Q66: 86002541 | R66: FERNANDO GACHA LEON | S66: Persona Natural | W66: 20400000 | Y66: 1 | Z66: 7310000 | AA66: 27710000 | AB66: 25160000 | AC66: 44232 | AD66: 44232 | AE66: 44560 | AF66: 240 | AG66: 1 | AH66: 86 | AO66: X | AQ66: 0.9079754601
A67: 1 | B67: CPS-054-2021 | C67: 2021 | D67: FDLCB-CD-054-2021 | E67: https://community.secop.gov.co/Public/Tendering/OpportunityDetail/Index?noticeUID=CO1.NTC.1738017&isFromPublicArea=True&isModal=False | F67: Contratos de prestación de servicios profesionales y de apoyo a la gestión | G67: Contratación directa | H67: Prestación de servicios profesionales y de apoyo a la gestión, o para la ejecución de trabajos artísticos que sólo puedan encomendarse a determinadas personas naturales; | I67: APOYAR JURÍDICAMENTE LA EJECUCIÓN DE LAS ACCIONES REQUERIDAS PARA LA DEPURACIÓN DE LAS ACTUACIONES ADMINISTRATIVAS QUE CURSAN EN LA ALCALDÍA LOCAL DE CIUDAD BOLÍVAR. | J67: Inversión | K67: Un Nuevo Contrato Social y Ambiental para la Bogotá del Siglo XXI | L67: 57 | M67: =IF(ISERROR(VLOOKUP(L67,[9]Proposito_programa!$C$2:$E$59,2,FALSE))," ",VLOOKUP(L67,[9]Proposito_programa!$C$2:$E$59,2,FALSE)) -> Gestión pública local | N67: =IF(ISERROR(VLOOKUP(L67,[9]Proposito_programa!$C$2:$E$59,3,FALSE))," ",VLOOKUP(L67,[9]Proposito_programa!$C$2:$E$59,3,FALSE)) -> Propósito 5: Construir Bogotá - Región con gobierno abierto, transparente y ciudadanía consciente | O67: 1987 | P67: 1 | Q67: 79854144 | R67: ALVARO LEANDRO JIMENEZ | S67: Persona Natural | W67: 40800000 | Y67: 1 | Z67: 14620000 | AA67: 55420000 | AB67: 45050000 | AC67: 44232 | AD67: 44235 | AE67: 44564 | AF67: 240 | AG67: 1 | AH67: 86 | AI67: 79800871 | AJ67: CESAR JEOBANY GONZALEZ RODRIGUEZ | AK67: 44284 | AL67: 32130000 | AO67: X | AQ67: 0.8128834356
A68: 1 | B68: CPS-055-2021 | C68: 2021 | D68: FDLCB-CD-055-2021 | E68: https://community.secop.gov.co/Public/Tendering/OpportunityDetail/Index?noticeUID=CO1.NTC.1737910&isFromPublicArea=True&isModal=False | F68: Contratos de prestación de servicios profesionales y de apoyo a la gestión | G68: Contratación directa | H68: Prestación de servicios profesionales y de apoyo a la gestión, o para la ejecución de trabajos artísticos que sólo puedan encomendarse a determinadas personas naturales; | I68: APOYAR JURÍDICAMENTE LA EJECUCIÓN DE LAS ACCIONES REQUERIDAS PARA LA DEPURACIÓN DE LAS ACTUACIONES ADMINISTRATIVAS QUE CURSAN EN LA ALCALDÍA LOCAL DE CIUDAD BOLÍVAR | J68: Inversión | K68: Un Nuevo Contrato Social y Ambiental para la Bogotá del Siglo XXI | L68: 57 | M68: =IF(ISERROR(VLOOKUP(L68,[9]Proposito_programa!$C$2:$E$59,2,FALSE))," ",VLOOKUP(L68,[9]Proposito_programa!$C$2:$E$59,2,FALSE)) -> Gestión pública local | N68: =IF(ISERROR(VLOOKUP(L68,[9]Proposito_programa!$C$2:$E$59,3,FALSE))," ",VLOOKUP(L68,[9]Proposito_programa!$C$2:$E$59,3,FALSE)) -> Propósito 5: Construir Bogotá - Región con gobierno abierto, transparente y ciudadanía consciente | O68: 1987 | P68: 1 | Q68: 53159729 | R68: INGRID PAOLA CASTILLO MEJIA | S68: Persona Natural | W68: 40800000 | Y68: 2 | Z68: 19720000 | AA68: 60520000 | AB68: 50320000 | AC68: 44232 | AD68: 44232 | AE68: 44560 | AF68: 240 | AG68: 2 | AH68: 117 | AI68: 1023878884 | AJ68: LAURA CAROLINA OROZCO RODRIGUEZ | AK68: 44278 | AL68: 32640000 | AO68: X | AQ68: 0.8314606742
A69: 1 | B69: CPS-056-2021 | C69: 2021 | D69: FDLCB-CD-056-2021 | E69: https://community.secop.gov.co/Public/Tendering/OpportunityDetail/Index?noticeUID=CO1.NTC.1737741&isFromPublicArea=True&isModal=False | F69: Contratos de prestación de servicios profesionales y de apoyo a la gestión | G69: Contratación directa | H69: Prestación de servicios profesionales y de apoyo a la gestión, o para la ejecución de trabajos artísticos que sólo puedan encomendarse a determinadas personas naturales; | I69: APOYAR JURÍDICAMENTE LA EJECUCIÓN DE LAS ACCIONES REQUERIDAS PARA LA DEPURACIÓN DE LAS ACTUACIONES ADMINISTRATIVAS QUE CURSAN EN LA ALCALDÍA LOCAL DE CIUDAD BOLÍVAR | J69: Inversión | K69: Un Nuevo Contrato Social y Ambiental para la Bogotá del Siglo XXI | L69: 57 | M69: =IF(ISERROR(VLOOKUP(L69,[9]Proposito_programa!$C$2:$E$59,2,FALSE))," ",VLOOKUP(L69,[9]Proposito_programa!$C$2:$E$59,2,FALSE)) -> Gestión pública local | N69: =IF(ISERROR(VLOOKUP(L69,[9]Proposito_programa!$C$2:$E$59,3,FALSE))," ",VLOOKUP(L69,[9]Proposito_programa!$C$2:$E$59,3,FALSE)) -> Propósito 5: Construir Bogotá - Región con gobierno abierto, transparente y ciudadanía consciente | O69: 1987 | P69: 1 | Q69: 80048898 | R69: JOSE AUGUSTO GONZALEZ GOMEZ | S69: Persona Natural | W69: 40800000 | Y69: 2 | Z69: 19210000 | AA69: 60010000 | AB69: 45900000 | AC69: 44232 | AD69: 44235 | AE69: 44560 | AF69: 240 | AG69: 2 | AH69: 114 | AO69: X | AQ69: 0.7648725212
A70: 1 | B70: CPS-057-2021 | C70: 2021 | D70: FDLCB-CD-057-2021 | E70: https://community.secop.gov.co/Public/Tendering/OpportunityDetail/Index?noticeUID=CO1.NTC.1737736&isFromPublicArea=True&isModal=False | F70: Contratos de prestación de servicios profesionales y de apoyo a la gestión | G70: Contratación directa | H70: Prestación de servicios profesionales y de apoyo a la gestión, o para la ejecución de trabajos artísticos que sólo puedan encomendarse a determinadas personas naturales; | I70: PRESTAR SUS SERVICIOS COMO CONDUCTOR DE AUTOMOTOR PARA LA MAQUINARIA PESADA DE PROPIEDAD DEL FONDO DE DESARROLLO LOCAL DE CIUDAD BOLÍVAR PARA LA REALIZACIÓN DE LABORES DE MANTENIMIENTO DE LA MALLA VIAL Y LAS ZONAS PÚBLICAS DE LA LOCALIDAD, ASÍ COMO ATENDER LAS EMERGENCIAS QUE SURJAN EN LA LOCALIDAD DE CIUDAD BOLÍVAR | J70: Inversión | K70: Un Nuevo Contrato Social y Ambiental para la Bogotá del Siglo XXI | L70: 49 | M70: =IF(ISERROR(VLOOKUP(L70,[9]Proposito_programa!$C$2:$E$59,2,FALSE))," ",VLOOKUP(L70,[9]Proposito_programa!$C$2:$E$59,2,FALSE)) -> Movilidad segura, sostenible y accesible | N70: =IF(ISERROR(VLOOKUP(L70,[9]Proposito_programa!$C$2:$E$59,3,FALSE))," ",VLOOKUP(L70,[9]Proposito_programa!$C$2:$E$59,3,FALSE)) -> Propósito 4: Hacer de Bogotá Región un modelo de movilidad multimodal, incluyente y sostenible | O70: 1983 | P70: 1 | Q70: 5893483 | R70: DOMINGO CANGREJO VIASUS | S70: Persona Natural | W70: 20400000 | Y70: 1 | Z70: 7310000 | AA70: 27710000 | AB70: 25160000 | AC70: 44232 | AD70: 44232 | AE70: 44560 | AF70: 240 | AG70: 1 | AH70: 86 | AO70: X | AQ70: 0.9079754601
A71: 1 | B71: CPS-058-2021 | C71: 2021 | D71: FDLCB-CD-058-2021 | E71: https://community.secop.gov.co/Public/Tendering/OpportunityDetail/Index?noticeUID=CO1.NTC.1738214&isFromPublicArea=True&isModal=False | F71: Contratos de prestación de servicios profesionales y de apoyo a la gestión | G71: Contratación directa | H71: Prestación de servicios profesionales y de apoyo a la gestión, o para la ejecución de trabajos artísticos que sólo puedan encomendarse a determinadas personas naturales; | I71: PRESTACIÓN DE SERVICIOS PROFESIONALES EN EL ÁREA DE GESTIÓN DE DESARROLLO LOCAL DE CIUDAD BOLÍVAR PLANEACIÓN, REALIZANDO LAS ACTIVIDADES CONCERNIENTES AL DESARROLLO DE LOS PROYECTOS DE INVERSIÓN, SEGUIMIENTO, EVALUACIÓN Y APOYO A LAS LIQUIDACIONES DESIGNADAS, EN CUMPLIMIENTO AL PLAN DE DESARROLLO LOCAL 2021-2024. | J71: Inversión | K71: Un Nuevo Contrato Social y Ambiental para la Bogotá del Siglo XXI | L71: 57 | M71: =IF(ISERROR(VLOOKUP(L71,[9]Proposito_programa!$C$2:$E$59,2,FALSE))," ",VLOOKUP(L71,[9]Proposito_programa!$C$2:$E$59,2,FALSE)) -> Gestión pública local | N71: =IF(ISERROR(VLOOKUP(L71,[9]Proposito_programa!$C$2:$E$59,3,FALSE))," ",VLOOKUP(L71,[9]Proposito_programa!$C$2:$E$59,3,FALSE)) -> Propósito 5: Construir Bogotá - Región con gobierno abierto, transparente y ciudadanía consciente | O71: 1986 | P71: 1 | Q71: 80730063 | R71: JORGE ALEXANDER ESQUIVEL GARCIA | S71: Persona Natural | W71: 45600000 | Y71: 1 | Z71: 19000000 | AA71: 64600000 | AB71: 56240000 | AC71: 44232 | AD71: 44232 | AE71: 44575 | AF71: 240 | AG71: 1 | AH71: 100 | AI71: 80185153 | AJ71: IVAN ANDRES IBARRA ESTUPIÑAN | AK71: 44470 | AL71: 19760000 | AN71: X | AQ71: 0.8705882353
A72: 1 | B72: CPS-059-2021 | C72: 2021 | D72: FDLCB-CD-059-2021 | E72: https://community.secop.gov.co/Public/Tendering/OpportunityDetail/Index?noticeUID=CO1.NTC.1737737&isFromPublicArea=True&isModal=False | F72: Contratos de prestación de servicios profesionales y de apoyo a la gestión | G72: Contratación directa | H72: Prestación de servicios profesionales y de apoyo a la gestión, o para la ejecución de trabajos artísticos que sólo puedan encomendarse a determinadas personas naturales; | I72: APOYAR TÉCNICAMENTE LAS DISTINTAS ETAPAS DE LOS PROCESOS DE COMPETENCIA DE LAS INSPECCIONES DE POLICÍA DE LA LOCALIDAD, SEGÚN REPARTO | J72: Inversión | K72: Un Nuevo Contrato Social y Ambiental para la Bogotá del Siglo XXI | L72: 57 | M72: =IF(ISERROR(VLOOKUP(L72,[9]Proposito_programa!$C$2:$E$59,2,FALSE))," ",VLOOKUP(L72,[9]Proposito_programa!$C$2:$E$59,2,FALSE)) -> Gestión pública local | N72: =IF(ISERROR(VLOOKUP(L72,[9]Proposito_programa!$C$2:$E$59,3,FALSE))," ",VLOOKUP(L72,[9]Proposito_programa!$C$2:$E$59,3,FALSE)) -> Propósito 5: Construir Bogotá - Región con gobierno abierto, transparente y ciudadanía consciente | O72: 1987 | P72: 1 | Q72: 79631873 | R72: JAVIER WILCHES NAJAR | S72: Persona Natural | W72: 40800000 | Y72: 2 | Z72: 19720000 | AA72: 60520000 | AB72: 45220000 | AC72: 44232 | AD72: 44232 | AE72: 44560 | AF72: 240 | AG72: 2 | AH72: 117 | AO72: X | AQ72: 0.7471910112
A73: 1 | B73: CPS-060-2021 | C73: 2021 | D73: FDLCB-CD-060-2021 | E73: https://community.secop.gov.co/Public/Tendering/OpportunityDetail/Index?noticeUID=CO1.NTC.1738487&isFromPublicArea=True&isModal=False | F73: Contratos de prestación de servicios profesionales y de apoyo a la gestión | G73: Contratación directa | H73: Prestación de servicios profesionales y de apoyo a la gestión, o para la ejecución de trabajos artísticos que sólo puedan encomendarse a determinadas personas naturales; | I73: PRESTAR SUS SERVICIOS COMO CONDUCTOR DE AUTOMOTOR PARA LA MAQUINARIA PESADA DE PROPIEDAD DEL FONDO DE DESARROLLO LOCAL DE CIUDAD BOLÍVAR PARA LA REALIZACIÓN DE LABORES DE MANTENIMIENTO DE LA MALLA VIAL Y LAS ZONAS PÚBLICAS DE LA LOCALIDAD, ASÍ COMO ATENDER LAS EMERGENCIAS QUE SURJAN EN LA LOCALIDAD DE CIUDAD BOLÍVAR. | J73: Inversión | K73: Un Nuevo Contrato Social y Ambiental para la Bogotá del Siglo XXI | L73: 49 | M73: =IF(ISERROR(VLOOKUP(L73,[9]Proposito_programa!$C$2:$E$59,2,FALSE))," ",VLOOKUP(L73,[9]Proposito_programa!$C$2:$E$59,2,FALSE)) -> Movilidad segura, sostenible y accesible | N73: =IF(ISERROR(VLOOKUP(L73,[9]Proposito_programa!$C$2:$E$59,3,FALSE))," ",VLOOKUP(L73,[9]Proposito_programa!$C$2:$E$59,3,FALSE)) -> Propósito 4: Hacer de Bogotá Región un modelo de movilidad multimodal, incluyente y sostenible | O73: 1983 | P73: 1 | Q73: 6682689 | R73: ISRAEL ORTIZ CAMPOS | S73: Persona Natural | W73: 20400000 | Y73: 1 | Z73: 7310000 | AA73: 27710000 | AB73: 25160000 | AC73: 44232 | AD73: 44232 | AE73: 44560 | AF73: 240 | AG73: 1 | AH73: 86 | AO73: X | AQ73: 0.9079754601
A74: 1 | B74: CPS-061-2021 | C74: 2021 | D74: FDLCB-061-2021 | E74: https://community.secop.gov.co/Public/Tendering/OpportunityDetail/Index?noticeUID=CO1.NTC.1739260&isFromPublicArea=True&isModal=False | F74: Contratos de prestación de servicios profesionales y de apoyo a la gestión | G74: Contratación directa | H74: Prestación de servicios profesionales y de apoyo a la gestión, o para la ejecución de trabajos artísticos que sólo puedan encomendarse a determinadas personas naturales; | I74: PRESTAR LOS SERVICIOS PROFESIONALES PARA LA OPERACIÓN, SEGUIMIENTO Y CUMPLIMIENTO DE LOS PROCESOS Y PROCEDIMIENTOS DEL SERVICIO APOYO ECONÓMICO TIPO C, REQUERIDOS PARA EL OPORTUNO Y ADECUADO REGISTRO, CRUCE Y REPORTE DE LOS DATOS EN EL SISTEMA MISIONAL SIRBE, QUE CONTRIBUYAN A LA GARANTÍA DE LOS DERECHOS DE LA POBLACIÓN MAYOR EN EL MARCO DE LA POLÍTICA PÚBLICA SOCIAL PARA EL ENVEJECIMIENTO Y LA VEJEZ EN EL DISTRITO CAPITAL A CARGO DE LA ALCALDÍA LOCAL | J74: Inversión | K74: Un Nuevo Contrato Social y Ambiental para la Bogotá del Siglo XXI | L74: 1 | M74: =IF(ISERROR(VLOOKUP(L74,[9]Proposito_programa!$C$2:$E$59,2,FALSE))," ",VLOOKUP(L74,[9]Proposito_programa!$C$2:$E$59,2,FALSE)) -> Subsidios y transferencias para la equidad | N74: =IF(ISERROR(VLOOKUP(L74,[9]Proposito_programa!$C$2:$E$59,3,FALSE))," ",VLOOKUP(L74,[9]Proposito_programa!$C$2:$E$59,3,FALSE)) -> Propósito 1: Hacer un nuevo contrato social para incrementar la inclusión social, productiva y política | O74: 1862 | P74: 1 | Q74: 1033720371 | R74: MYRIAM JOHANA RUIZ GARCIA | S74: Persona Natural | W74: 45600000 | Y74: 1 | Z74: 16340000 | AA74: 61940000 | AB74: 55670000 | AC74: 44232 | AD74: 44235 | AE74: 44564 | AF74: 240 | AG74: 1 | AH74: 86 | AO74: X | AQ74: 0.8987730061
A75: 1 | B75: CPS-062-2021 | C75: 2021 | D75: FDLCB-CD-062-2021 | E75: https://community.secop.gov.co/Public/Tendering/OpportunityDetail/Index?noticeUID=CO1.NTC.1738624&isFromPublicArea=True&isModal=False | F75: Contratos de prestación de servicios profesionales y de apoyo a la gestión | G75: Contratación directa | H75: Prestación de servicios profesionales y de apoyo a la gestión, o para la ejecución de trabajos artísticos que sólo puedan encomendarse a determinadas personas naturales; | I75: GARANTIZAR EL APOYO, LA PROMOCIÓN, ACOMPAÑAMIENTO, ARTICULACIÓN DE LAS INSTANCIAS DE COORDINACIÓN INTERINSTITUCIONALES Y LAS INSTANCIAS DE PARTICIPACIÓN AL ALCALDE LOCAL EN ATENCIÓN DE LOS SECTORES POBLACIONALES, ASÍ COMO LOS PROCESOS COMUNITARIOS EN LA LOCALIDAD | J75: Inversión | K75: Un Nuevo Contrato Social y Ambiental para la Bogotá del Siglo XXI | L75: 57 | M75: =IF(ISERROR(VLOOKUP(L75,[9]Proposito_programa!$C$2:$E$59,2,FALSE))," ",VLOOKUP(L75,[9]Proposito_programa!$C$2:$E$59,2,FALSE)) -> Gestión pública local | N75: =IF(ISERROR(VLOOKUP(L75,[9]Proposito_programa!$C$2:$E$59,3,FALSE))," ",VLOOKUP(L75,[9]Proposito_programa!$C$2:$E$59,3,FALSE)) -> Propósito 5: Construir Bogotá - Región con gobierno abierto, transparente y ciudadanía consciente | O75: 1986 | P75: 1 | Q75: 1032367445 | R75: MIGUEL ANTONIO MORENO ANGULO | S75: Persona Natural | W75: 40800000 | AA75: 40800000 | AB75: 40120000 | AC75: 44232 | AD75: 44232 | AE75: 44473 | AF75: 240 | AO75: X | AQ75: 0.9833333333
A76: 1 | B76: CPS-063-2021 | C76: 2021 | D76: FDLCB-CD-063-2021 | E76: https://community.secop.gov.co/Public/Tendering/OpportunityDetail/Index?noticeUID=CO1.NTC.1743608&isFromPublicArea=True&isModal=False | F76: Contratos de prestación de servicios profesionales y de apoyo a la gestión | G76: Contratación directa | H76: Prestación de servicios profesionales y de apoyo a la gestión, o para la ejecución de trabajos artísticos que sólo puedan encomendarse a determinadas personas naturales; | I76: PRESTAR SUS SERVICIOS COMO CONDUCTOR DE AUTOMOTOR PARA LA MAQUINARIA PESADA DE PROPIEDAD DEL FONDO DE DESARROLLO LOCAL DE CIUDAD BOLÍVAR PARA LA REALIZACIÓN DE LABORES DE MANTENIMIENTO DE LA MALLA VIAL Y LAS ZONAS PÚBLICAS DE LA LOCALIDAD, ASÍ COMO ATENDER LAS EMERGENCIAS QUE SURJAN EN LA LOCALIDAD DE CIUDAD BOLÍVAR | J76: Inversión | K76: Un Nuevo Contrato Social y Ambiental para la Bogotá del Siglo XXI | L76: 49 | M76: =IF(ISERROR(VLOOKUP(L76,[9]Proposito_programa!$C$2:$E$59,2,FALSE))," ",VLOOKUP(L76,[9]Proposito_programa!$C$2:$E$59,2,FALSE)) -> Movilidad segura, sostenible y accesible | N76: =IF(ISERROR(VLOOKUP(L76,[9]Proposito_programa!$C$2:$E$59,3,FALSE))," ",VLOOKUP(L76,[9]Proposito_programa!$C$2:$E$59,3,FALSE)) -> Propósito 4: Hacer de Bogotá Región un modelo de movilidad multimodal, incluyente y sostenible | O76: 1983 | P76: 1 | Q76: 19431810 | R76: CARLOS HECTOR BEJARNO BEJARANO | S76: Persona Natural | W76: 20400000 | Y76: 1 | Z76: 8160000 | AA76: 28560000 | AB76: 24820000 | AC76: 44235 | AD76: 44236 | AE76: 44575 | AF76: 240 | AG76: 1 | AH76: 96 | AN76: X | AQ76: 0.869047619
A77: 1 | B77: CPS-064-2021 | C77: 2021 | D77: FDLCB-CD-064-2021 | E77: https://community.secop.gov.co/Public/Tendering/OpportunityDetail/Index?noticeUID=CO1.NTC.1743350&isFromPublicArea=True&isModal=False | F77: Contratos de prestación de servicios profesionales y de apoyo a la gestión | G77: Contratación directa | H77: Prestación de servicios profesionales y de apoyo a la gestión, o para la ejecución de trabajos artísticos que sólo puedan encomendarse a determinadas personas naturales; | I77: PRESTAR SUS SERVICIOS COMO CONDUCTOR DE AUTOMOTOR PARA LA MAQUINARIA PESADA DE PROPIEDAD DEL FONDO DE DESARROLLO LOCAL DE CIUDAD BOLÍVAR PARA LA REALIZACIÓN DE LABORES DE MANTENIMIENTO DE LA MALLA VIAL Y LAS ZONAS PÚBLICAS DE LA LOCALIDAD, ASÍ COMO ATENDER LAS EMERGENCIAS QUE SURJAN EN LA LOCALIDAD DE CIUDAD BOLÍVAR. | J77: Inversión | K77: Un Nuevo Contrato Social y Ambiental para la Bogotá del Siglo XXI | L77: 49 | M77: =IF(ISERROR(VLOOKUP(L77,[9]Proposito_programa!$C$2:$E$59,2,FALSE))," ",VLOOKUP(L77,[9]Proposito_programa!$C$2:$E$59,2,FALSE)) -> Movilidad segura, sostenible y accesible | N77: =IF(ISERROR(VLOOKUP(L77,[9]Proposito_programa!$C$2:$E$59,3,FALSE))," ",VLOOKUP(L77,[9]Proposito_programa!$C$2:$E$59,3,FALSE)) -> Propósito 4: Hacer de Bogotá Región un modelo de movilidad multimodal, incluyente y sostenible | O77: 1983 | P77: 1 | Q77: 19099599 | R77: FLORESMIRO SEGURA MORA | S77: Persona Natural | W77: 20400000 | Y77: 1 | Z77: 8160000 | AA77: 28560000 | AB77: 24820000 | AC77: 44235 | AD77: 44236 | AE77: 44575 | AF77: 240 | AG77: 1 | AH77: 96 | AN77: X | AQ77: 0.869047619
A78: 1 | B78: CPS-065-2021 | C78: 2021 | D78: FDLCB-CD-065-2021 | E78: https://community.secop.gov.co/Public/Tendering/OpportunityDetail/Index?noticeUID=CO1.NTC.1743347&isFromPublicArea=True&isModal=False | F78: Contratos de prestación de servicios profesionales y de apoyo a la gestión | G78: Contratación directa | H78: Prestación de servicios profesionales y de apoyo a la gestión, o para la ejecución de trabajos artísticos que sólo puedan encomendarse a determinadas personas naturales; | I78: PRESTACIÓN DE SERVICIOS PROFESIONALES EN EL ÁREA DE GESTIÓN DE DESARROLLO LOCAL DE CIUDAD BOLÍVAR PLANEACIÓN, REALIZANDO LAS ACTIVIDADES CONCERNIENTES AL DESARROLLO DE LOS PROYECTOS DE INVERSIÓN, SEGUIMIENTO, EVALUACIÓN Y APOYO A LAS LIQUIDACIONES DESIGNADAS, EN CUMPLIMIENTO AL PLAN DE DESARROLLO LOCAL 2021-2024. | J78: Inversión | K78: Un Nuevo Contrato Social y Ambiental para la Bogotá del Siglo XXI | L78: 57 | M78: =IF(ISERROR(VLOOKUP(L78,[9]Proposito_programa!$C$2:$E$59,2,FALSE))," ",VLOOKUP(L78,[9]Proposito_programa!$C$2:$E$59,2,FALSE)) -> Gestión pública local | N78: =IF(ISERROR(VLOOKUP(L78,[9]Proposito_programa!$C$2:$E$59,3,FALSE))," ",VLOOKUP(L78,[9]Proposito_programa!$C$2:$E$59,3,FALSE)) -> Propósito 5: Construir Bogotá - Región con gobierno abierto, transparente y ciudadanía consciente | O78: 1986 | P78: 1 | Q78: 79537191 | R78: CESAR ALFREDO VALENCIA CELIS | S78: Persona Natural | W78: 45600000 | Y78: 1 | Z78: 15580000 | AA78: 61180000 | AB78: 55480000 | AC78: 44235 | AD78: 44236 | AE78: 44560 | AF78: 240 | AG78: 1 | AH78: 82 | AO78: X | AQ78: 0.9068322981
A79: 1 | B79: CPS-066-2021 | C79: 2021 | D79: FDLCB-CD-066-2021 | E79: https://community.secop.gov.co/Public/Tendering/ContractNoticePhases/View?PPI=CO1.PPI.11952324&isFromPublicArea=True&isModal=False | F79: Contratos de prestación de servicios profesionales y de apoyo a la gestión | G79: Contratación directa | H79: Prestación de servicios profesionales y de apoyo a la gestión, o para la ejecución de trabajos artísticos que sólo puedan encomendarse a determinadas personas naturales; | I79: APOYAR JURÍDICAMENTE LA EJECUCIÓN DE LAS ACCIONES REQUERIDAS PARA LA DEPURACIÓN DE LAS ACTUACIONES ADMINISTRATIVAS QUE CURSAN EN LA ALCALDÍA LOCAL DE CIUDAD BOLÍVAR | J79: Inversión | K79: Un Nuevo Contrato Social y Ambiental para la Bogotá del Siglo XXI | L79: 57 | M79: =IF(ISERROR(VLOOKUP(L79,[9]Proposito_programa!$C$2:$E$59,2,FALSE))," ",VLOOKUP(L79,[9]Proposito_programa!$C$2:$E$59,2,FALSE)) -> Gestión pública local | N79: =IF(ISERROR(VLOOKUP(L79,[9]Proposito_programa!$C$2:$E$59,3,FALSE))," ",VLOOKUP(L79,[9]Proposito_programa!$C$2:$E$59,3,FALSE)) -> Propósito 5: Construir Bogotá - Región con gobierno abierto, transparente y ciudadanía consciente | O79: 1987 | P79: 1 | Q79: 33215327 | R79: LILY ESTHER MIELES DOVALE | S79: Persona Natural | W79: 40800000 | Y79: 2 | Z79: 19040000 | AA79: 59840000 | AB79: 49640000 | AC79: 44235 | AD79: 44236 | AE79: 44560 | AF79: 240 | AG79: 2 | AH79: 113 | AO79: X | AQ79: 0.8295454545
A80: 1 | B80: CPS-067-2021 | C80: 2021 | D80: FDLCB-CD-067-2021 | E80: https://community.secop.gov.co/Public/Tendering/OpportunityDetail/Index?noticeUID=CO1.NTC.1745023&isFromPublicArea=True&isModal=False | F80: Contratos de prestación de servicios profesionales y de apoyo a la gestión | G80: Contratación directa | H80: Prestación de servicios profesionales y de apoyo a la gestión, o para la ejecución de trabajos artísticos que sólo puedan encomendarse a determinadas personas naturales; | I80: PRESTAR LOS SERVICIOS PROFESIONALES PARA LA OPERACIÓN, PRESTACIÓN, SEGUIMIENTO Y CUMPLIMIENTO DE LOS PROCEDIMIENTOS ADMINISTRATIVOS, OPERATIVOS Y PROGRAMÁTICOS DEL SERVICIO APOYO ECONÓMICO TIPO C, QUE CONTRIBUYAN A LA GARANTÍA DE LOS DERECHOS DE LA POBLACIÓN MAYOR EN EL MARCO DE LA POLÍTICA PÚBLICA SOCIAL PARA EL ENVEJECIMIENTO Y LA VEJEZ EN EL DISTRITO CAPITAL A CARGO DE LA ALCALDÍA LOCAL | J80: Inversión | K80: Un Nuevo Contrato Social y Ambiental para la Bogotá del Siglo XXI | L80: 1 | M80: =IF(ISERROR(VLOOKUP(L80,[9]Proposito_programa!$C$2:$E$59,2,FALSE))," ",VLOOKUP(L80,[9]Proposito_programa!$C$2:$E$59,2,FALSE)) -> Subsidios y transferencias para la equidad | N80: =IF(ISERROR(VLOOKUP(L80,[9]Proposito_programa!$C$2:$E$59,3,FALSE))," ",VLOOKUP(L80,[9]Proposito_programa!$C$2:$E$59,3,FALSE)) -> Propósito 1: Hacer un nuevo contrato social para incrementar la inclusión social, productiva y política | O80: 1862 | P80: 1 | Q80: 1065564179 | R80: GINNA LICETTE FLOREZ ESCOBAR | S80: Persona Natural | W80: 40800000 | Y80: 1 | Z80: 13940000 | AA80: 54740000 | AB80: 49640000 | AC80: 44235 | AD80: 44236 | AE80: 44560 | AF80: 240 | AG80: 1 | AH80: 82 | AO80: X | AQ80: 0.9068322981
A81: 1 | B81: CPS-068-2021 | C81: 2021 | D81: FDLCB-CD-068-2021 | E81: https://community.secop.gov.co/Public/Tendering/OpportunityDetail/Index?noticeUID=CO1.NTC.1744559&isFromPublicArea=True&isModal=False | F81: Contratos de prestación de servicios profesionales y de apoyo a la gestión | G81: Contratación directa | H81: Prestación de servicios profesionales y de apoyo a la gestión, o para la ejecución de trabajos artísticos que sólo puedan encomendarse a determinadas personas naturales; | I81: PRESTAR LOS SERVICIOS DE APOYO TÉCNICO PARA REALIZAR ACTIVIDADES ADMINISTRATIVAS QUE SE ADELANTAN EN EL ALMACÉN DE LA ALCALDÍA LOCAL DE CIUDAD BOLÍVAR. | J81: Inversión | K81: Un Nuevo Contrato Social y Ambiental para la Bogotá del Siglo XXI | L81: 57 | M81: =IF(ISERROR(VLOOKUP(L81,[9]Proposito_programa!$C$2:$E$59,2,FALSE))," ",VLOOKUP(L81,[9]Proposito_programa!$C$2:$E$59,2,FALSE)) -> Gestión pública local | N81: =IF(ISERROR(VLOOKUP(L81,[9]Proposito_programa!$C$2:$E$59,3,FALSE))," ",VLOOKUP(L81,[9]Proposito_programa!$C$2:$E$59,3,FALSE)) -> Propósito 5: Construir Bogotá - Región con gobierno abierto, transparente y ciudadanía consciente | O81: 1986 | P81: 1 | Q81: 1121840530 | R81: ERIKA BEATRIZ ZAMUDIO RODRIGUEZ | S81: Persona Natural | W81: 26400000 | AA81: 26400000 | AB81: 26400000 | AC81: 44235 | AD81: 44236 | AE81: 44477 | AF81: 240 | AO81: X | AQ81: 1
A82: 1 | B82: CPS-069-2021 | C82: 2021 | D82: FDLCB-CD-069-2021 | E82: https://community.secop.gov.co/Public/Tendering/OpportunityDetail/Index?noticeUID=CO1.NTC.1744631&isFromPublicArea=True&isModal=False | F82: Contratos de prestación de servicios profesionales y de apoyo a la gestión | G82: Contratación directa | H82: Prestación de servicios profesionales y de apoyo a la gestión, o para la ejecución de trabajos artísticos que sólo puedan encomendarse a determinadas personas naturales; | I82: APOYAR TÉCNICAMENTE LAS DISTINTAS ETAPAS DE LOS PROCESOS DE COMPETENCIA DE LAS INSPECCIONES DE POLICÍA DE LA LOCALIDAD, SEGÚN REPARTO | J82: Inversión | K82: Un Nuevo Contrato Social y Ambiental para la Bogotá del Siglo XXI | L82: 57 | M82: =IF(ISERROR(VLOOKUP(L82,[9]Proposito_programa!$C$2:$E$59,2,FALSE))," ",VLOOKUP(L82,[9]Proposito_programa!$C$2:$E$59,2,FALSE)) -> Gestión pública local | N82: =IF(ISERROR(VLOOKUP(L82,[9]Proposito_programa!$C$2:$E$59,3,FALSE))," ",VLOOKUP(L82,[9]Proposito_programa!$C$2:$E$59,3,FALSE)) -> Propósito 5: Construir Bogotá - Región con gobierno abierto, transparente y ciudadanía consciente | O82: 1987 | P82: 1 | Q82: 79963083 | R82: JAIME MORA BOSIGA | S82: Persona Natural | W82: 40800000 | Y82: 2 | Z82: 18870000 | AA82: =+W82+X82+Z82 -> 59670000 | AB82: 49470000 | AC82: 44235 | AD82: 44237 | AE82: 44560 | AF82: 240 | AG82: 2 | AH82: 112 | AO82: X | AQ82: 0.8290598291
A83: 1 | B83: CPS-070-2021 | C83: 2021 | D83: FDLCB-CD-070-2021 | E83: https://community.secop.gov.co/Public/Tendering/OpportunityDetail/Index?noticeUID=CO1.NTC.1744929&isFromPublicArea=True&isModal=False | F83: Contratos de prestación de servicios profesionales y de apoyo a la gestión | G83: Contratación directa | H83: Prestación de servicios profesionales y de apoyo a la gestión, o para la ejecución de trabajos artísticos que sólo puedan encomendarse a determinadas personas naturales; | I83: PRESTACIÓN DE SERVICIOS PROFESIONALES EN EL ÁREA DE GESTIÓN DE DESARROLLO LOCAL DE CIUDAD BOLÍVAR PLANEACIÓN, REALIZANDO LAS ACTIVIDADES CONCERNIENTES AL DESARROLLO DE LOS PROYECTOS DE INVERSIÓN, SEGUIMIENTO, EVALUACIÓN Y APOYO A LAS LIQUIDACIONES DESIGNADAS, EN CUMPLIMIENTO AL PLAN DE DESARROLLO LOCAL 2021-2024. | J83: Inversión | K83: Un Nuevo Contrato Social y Ambiental para la Bogotá del Siglo XXI | L83: 57 | M83: =IF(ISERROR(VLOOKUP(L83,[9]Proposito_programa!$C$2:$E$59,2,FALSE))," ",VLOOKUP(L83,[9]Proposito_programa!$C$2:$E$59,2,FALSE)) -> Gestión pública local | N83: =IF(ISERROR(VLOOKUP(L83,[9]Proposito_programa!$C$2:$E$59,3,FALSE))," ",VLOOKUP(L83,[9]Proposito_programa!$C$2:$E$59,3,FALSE)) -> Propósito 5: Construir Bogotá - Región con gobierno abierto, transparente y ciudadanía consciente | O83: 1986 | P83: 1 | Q83: 53051444 | R83: YEINY ALEXANDRA CUBILLOS PEÑA | S83: Persona Natural | W83: 45600000 | Y83: 1 | Z83: 15580000 | AA83: =+W83+X83+Z83 -> 61180000 | AB83: 55480000 | AC83: 44235 | AD83: 44236 | AE83: 44560 | AF83: 240 | AG83: 1 | AH83: 82 | AO83: X | AQ83: =IF(ISERROR(AB83/AA83),"-",(AB83/AA83)) -> 0.9068322981
A84: 1 | B84: CPS-071-2021 | C84: 2021 | D84: FDLCB-CD-071-2021 | E84: https://community.secop.gov.co/Public/Tendering/OpportunityDetail/Index?noticeUID=CO1.NTC.1747389&isFromPublicArea=True&isModal=False | F84: Contratos de prestación de servicios profesionales y de apoyo a la gestión | G84: Contratación directa | H84: Prestación de servicios profesionales y de apoyo a la gestión, o para la ejecución de trabajos artísticos que sólo puedan encomendarse a determinadas personas naturales; | I84: PRESTAR LOS SERVICIOS PROFESIONALES PARA LA OPERACIÓN, PRESTACIÓN, SEGUIMIENTO Y CUMPLIMIENTO DE LOS PROCEDIMIENTOS ADMINISTRATIVOS, OPERATIVOS Y PROGRAMÁTICOS DEL SERVICIO APOYO ECONÓMICO TIPO C, QUE CONTRIBUYAN A LA GARANTÍA DE LOS DERECHOS DE LA POBLACIÓN MAYOR EN EL MARCO DE LA POLÍTICA PÚBLICA SOCIAL PARA EL ENVEJECIMIENTO Y LA VEJEZ EN EL DISTRITO CAPITAL A CARGO DE LA ALCALDÍA LOCAL | J84: Inversión | K84: Un Nuevo Contrato Social y Ambiental para la Bogotá del Siglo XXI | L84: 1 | M84: =IF(ISERROR(VLOOKUP(L84,[9]Proposito_programa!$C$2:$E$59,2,FALSE))," ",VLOOKUP(L84,[9]Proposito_programa!$C$2:$E$59,2,FALSE)) -> Subsidios y transferencias para la equidad | N84: =IF(ISERROR(VLOOKUP(L84,[9]Proposito_programa!$C$2:$E$59,3,FALSE))," ",VLOOKUP(L84,[9]Proposito_programa!$C$2:$E$59,3,FALSE)) -> Propósito 1: Hacer un nuevo contrato social para incrementar la inclusión social, productiva y política | O84: 1862 | P84: 1 | Q84: 28788316 | R84: NYDIA CRUZ DIAZ | S84: Persona Natural | W84: 40800000 | Y84: 1 | Z84: 13770000 | AA84: 54570000 | AB84: 49650000 | AC84: 44236 | AD84: 44237 | AE84: 44560 | AF84: 240 | AG84: 1 | AH84: 81 | AO84: X | AQ84: 0.9098405717
A85: 1 | B85: CPS-072-2021 | C85: 2021 | D85: FDLCB-CD-072-2021 | E85: https://community.secop.gov.co/Public/Tendering/OpportunityDetail/Index?noticeUID=CO1.NTC.1747377&isFromPublicArea=True&isModal=False | F85: Contratos de prestación de servicios profesionales y de apoyo a la gestión | G85: Contratación directa | H85: Prestación de servicios profesionales y de apoyo a la gestión, o para la ejecución de trabajos artísticos que sólo puedan encomendarse a determinadas personas naturales; | I85: PRESTAR LOS SERVICIOS DE APOYO TÉCNICO PARA REALIZAR ACTIVIDADES ADMINISTRATIVAS QUE SE ADELANTAN EN EL ALMACÉN DE LA ALCALDÍA LOCAL DE CIUDAD BOLÍVAR. | J85: Inversión | K85: Un Nuevo Contrato Social y Ambiental para la Bogotá del Siglo XXI | L85: 57 | M85: =IF(ISERROR(VLOOKUP(L85,[9]Proposito_programa!$C$2:$E$59,2,FALSE))," ",VLOOKUP(L85,[9]Proposito_programa!$C$2:$E$59,2,FALSE)) -> Gestión pública local | N85: =IF(ISERROR(VLOOKUP(L85,[9]Proposito_programa!$C$2:$E$59,3,FALSE))," ",VLOOKUP(L85,[9]Proposito_programa!$C$2:$E$59,3,FALSE)) -> Propósito 5: Construir Bogotá - Región con gobierno abierto, transparente y ciudadanía consciente | O85: 1986 | P85: 1 | Q85: 53094104 | R85: MAYERLY PEÑA SAAVEDRA | S85: Persona Natural | W85: 26400000 | Y85: 2 | Z85: 12210000 | AA85: 38610000 | AB85: 32010000 | AC85: 44236 | AD85: 44237 | AE85: 44560 | AF85: 240 | AG85: 2 | AH85: 112 | AO85: X | AQ85: 0.8290598291
A86: 1 | B86: CPS-073-2021 | C86: 2021 | D86: FDLCB-CD-073-2021 | E86: https://community.secop.gov.co/Public/Tendering/OpportunityDetail/Index?noticeUID=CO1.NTC.1747827&isFromPublicArea=True&isModal=False | F86: Contratos de prestación de servicios profesionales y de apoyo a la gestión | G86: Contratación directa | H86: Prestación de servicios profesionales y de apoyo a la gestión, o para la ejecución de trabajos artísticos que sólo puedan encomendarse a determinadas personas naturales; | I86: PRESTAR SUS SERVICIOS COMO CONDUCTOR DE VOLQUETA DE PROPIEDAD DEL FONDO DE DESARROLLO LOCAL DE CIUDAD BOLÍVAR PARA LA REALIZACIÓN DE LABORES DE MANTENIMIENTO DE LA MALLA VIAL Y LAS ZONAS PÚBLICAS DE LA LOCALIDAD, ASÍ COMO ATENDER LAS EMERGENCIAS QUE SURJAN EN LA LOCALIDAD | J86: Inversión | K86: Un Nuevo Contrato Social y Ambiental para la Bogotá del Siglo XXI | L86: 49 | M86: =IF(ISERROR(VLOOKUP(L86,[9]Proposito_programa!$C$2:$E$59,2,FALSE))," ",VLOOKUP(L86,[9]Proposito_programa!$C$2:$E$59,2,FALSE)) -> Movilidad segura, sostenible y accesible | N86: =IF(ISERROR(VLOOKUP(L86,[9]Proposito_programa!$C$2:$E$59,3,FALSE))," ",VLOOKUP(L86,[9]Proposito_programa!$C$2:$E$59,3,FALSE)) -> Propósito 4: Hacer de Bogotá Región un modelo de movilidad multimodal, incluyente y sostenible | O86: 1983 | P86: 1 | Q86: 79919705 | R86: JOSE ALFREDO GARZON RAMOS | S86: Persona Natural | W86: 20400000 | Y86: 1 | Z86: 8075000 | AA86: 28475000 | AB86: 24735000 | AC86: 44236 | AD86: 44237 | AE86: 44575 | AF86: 240 | AG86: 1 | AH86: 95 | AN86: X | AQ86: 0.8686567164
A87: 1 | B87: CPS-074-2021 | C87: 2021 | D87: FDLCB-CD-074-2021 | E87: https://community.secop.gov.co/Public/Tendering/OpportunityDetail/Index?noticeUID=CO1.NTC.1747909&isFromPublicArea=True&isModal=False | F87: Contratos de prestación de servicios profesionales y de apoyo a la gestión | G87: Contratación directa | H87: Prestación de servicios profesionales y de apoyo a la gestión, o para la ejecución de trabajos artísticos que sólo puedan encomendarse a determinadas personas naturales; | I87: PRESTAR LOS SERVICIOS PROFESIONALES PARA LA OPERACIÓN, PRESTACIÓN, SEGUIMIENTO Y CUMPLIMIENTO DE LOS PROCEDIMIENTOS ADMINISTRATIVOS, OPERATIVOS Y PROGRAMÁTICOS DEL SERVICIO APOYO ECONÓMICO TIPO C, QUE CONTRIBUYAN A LA GARANTÍA DE LOS DERECHOS DE LA POBLACIÓN MAYOR EN EL MARCO DE LA POLÍTICA PÚBLICA SOCIAL PARA EL ENVEJECIMIENTO Y LA VEJEZ EN EL DISTRITO CAPITAL A CARGO DE LA ALCALDÍA LOCAL | J87: Inversión | K87: Un Nuevo Contrato Social y Ambiental para la Bogotá del Siglo XXI | L87: 1 | M87: =IF(ISERROR(VLOOKUP(L87,[9]Proposito_programa!$C$2:$E$59,2,FALSE))," ",VLOOKUP(L87,[9]Proposito_programa!$C$2:$E$59,2,FALSE)) -> Subsidios y transferencias para la equidad | N87: =IF(ISERROR(VLOOKUP(L87,[9]Proposito_programa!$C$2:$E$59,3,FALSE))," ",VLOOKUP(L87,[9]Proposito_programa!$C$2:$E$59,3,FALSE)) -> Propósito 1: Hacer un nuevo contrato social para incrementar la inclusión social, productiva y política | O87: 1862 | P87: 1 | Q87: 80920091 | R87: LEONARDO GUZMAN CEPEDA | S87: Persona Natural | W87: 40800000 | Y87: 1 | Z87: 13770000 | AA87: 54570000 | AB87: 49470000 | AC87: 44236 | AD87: 44237 | AE87: 44560 | AF87: 240 | AG87: 1 | AH87: 81 | AO87: X | AQ87: 0.9065420561
A88: 1 | B88: CPS-075-2021 | C88: 2021 | D88: FDLCB-CD-075-2021 | E88: https://community.secop.gov.co/Public/Tendering/OpportunityDetail/Index?noticeUID=CO1.NTC.1747831&isFromPublicArea=True&isModal=False | F88: Contratos de prestación de servicios profesionales y de apoyo a la gestión | G88: Contratación directa | H88: Prestación de servicios profesionales y de apoyo a la gestión, o para la ejecución de trabajos artísticos que sólo puedan encomendarse a determinadas personas naturales; | I88: GARANTIZAR EL APOYO, LA PROMOCIÓN, ACOMPAÑAMIENTO, ARTICULACIÓN DE LAS INSTANCIAS DE COORDINACIÓN INTERINSTITUCIONALES Y LAS INSTANCIAS DE PARTICIPACIÓN AL ALCALDE LOCAL EN ATENCIÓN DE LOS SECTORES POBLACIONALES, ASÍ COMO LOS PROCESOS COMUNITARIOS EN LA LOCALIDAD | J88: Inversión | K88: Un Nuevo Contrato Social y Ambiental para la Bogotá del Siglo XXI | L88: 57 | M88: =IF(ISERROR(VLOOKUP(L88,[9]Proposito_programa!$C$2:$E$59,2,FALSE))," ",VLOOKUP(L88,[9]Proposito_programa!$C$2:$E$59,2,FALSE)) -> Gestión pública local | N88: =IF(ISERROR(VLOOKUP(L88,[9]Proposito_programa!$C$2:$E$59,3,FALSE))," ",VLOOKUP(L88,[9]Proposito_programa!$C$2:$E$59,3,FALSE)) -> Propósito 5: Construir Bogotá - Región con gobierno abierto, transparente y ciudadanía consciente | O88: 1986 | P88: 1 | Q88: 52831370 | R88: NANCY CELY VARGAS | S88: Persona Natural | W88: 40800000 | Y88: 1 | Z88: 13770000 | AA88: 54570000 | AB88: 44370000 | AC88: 44236 | AD88: 44237 | AE88: 44560 | AF88: 240 | AG88: 1 | AH88: 81 | AI88: 80260301 | AJ88: JOSE ANTONIO TORO RODRIGUEZ | AK88: 44533 | AL88: 4760000 | AO88: X | AQ88: 0.8130841121
A89: 1 | B89: CPS-076-2021 | C89: 2021 | D89: FDLCB-CD-076-2021 | E89: https://community.secop.gov.co/Public/Tendering/OpportunityDetail/Index?noticeUID=CO1.NTC.1747838&isFromPublicArea=True&isModal=False | F89: Contratos de prestación de servicios profesionales y de apoyo a la gestión | G89: Contratación directa | H89: Prestación de servicios profesionales y de apoyo a la gestión, o para la ejecución de trabajos artísticos que sólo puedan encomendarse a determinadas personas naturales; | I89: PRESTAR SUS SERVICIOS COMO CONDUCTOR DE AUTOMOTOR PARA LA MAQUINARIA PESADA DE PROPIEDAD DEL FONDO DE DESARROLLO LOCAL DE CIUDAD BOLÍVAR PARA LA REALIZACIÓN DE LABORES DE MANTENIMIENTO DE LA MALLA VIAL Y LAS ZONAS PÚBLICAS DE LA LOCALIDAD, ASÍ COMO ATENDER LAS EMERGENCIAS QUE SURJAN EN LA LOCALIDAD DE CIUDAD BOLÍVAR | J89: Inversión | K89: Un Nuevo Contrato Social y Ambiental para la Bogotá del Siglo XXI | L89: 49 | M89: =IF(ISERROR(VLOOKUP(L89,[9]Proposito_programa!$C$2:$E$59,2,FALSE))," ",VLOOKUP(L89,[9]Proposito_programa!$C$2:$E$59,2,FALSE)) -> Movilidad segura, sostenible y accesible | N89: =IF(ISERROR(VLOOKUP(L89,[9]Proposito_programa!$C$2:$E$59,3,FALSE))," ",VLOOKUP(L89,[9]Proposito_programa!$C$2:$E$59,3,FALSE)) -> Propósito 4: Hacer de Bogotá Región un modelo de movilidad multimodal, incluyente y sostenible | O89: 1983 | P89: 1 | Q89: 11386627 | R89: JOSE OLIVERIO SANCHEZ SANCHEZ | S89: Persona Natural | W89: 20400000 | Y89: 1 | Z89: 8075000 | AA89: 28475000 | AB89: 24735000 | AC89: 44236 | AD89: 44237 | AE89: 44575 | AF89: 240 | AG89: 1 | AH89: 95 | AN89: X | AQ89: 0.8686567164
A90: 1 | B90: CPS-077-2021 | C90: 2021 | D90: FDLCB-CD-077-2021 | E90: https://community.secop.gov.co/Public/Tendering/OpportunityDetail/Index?noticeUID=CO1.NTC.1747853&isFromPublicArea=True&isModal=False | F90: Contratos de prestación de servicios profesionales y de apoyo a la gestión | G90: Contratación directa | H90: Prestación de servicios profesionales y de apoyo a la gestión, o para la ejecución de trabajos artísticos que sólo puedan encomendarse a determinadas personas naturales; | I90: PRESTAR LOS SERVICIOS PROFESIONALES PARA LA OPERACIÓN, PRESTACIÓN, SEGUIMIENTO Y CUMPLIMIENTO DE LOS PROCEDIMIENTOS ADMINISTRATIVOS, OPERATIVOS Y PROGRAMÁTICOS DEL SERVICIO APOYO ECONÓMICO TIPO C, QUE CONTRIBUYAN A LA GARANTÍA DE LOS DERECHOS DE LA POBLACIÓN MAYOR EN EL MARCO DE LA POLÍTICA PÚBLICA SOCIAL PARA EL ENVEJECIMIENTO Y LA VEJEZ EN EL DISTRITO CAPITAL A CARGO DE LA ALCALDÍA LOCAL | J90: Inversión | K90: Un Nuevo Contrato Social y Ambiental para la Bogotá del Siglo XXI | L90: 1 | M90: =IF(ISERROR(VLOOKUP(L90,[9]Proposito_programa!$C$2:$E$59,2,FALSE))," ",VLOOKUP(L90,[9]Proposito_programa!$C$2:$E$59,2,FALSE)) -> Subsidios y transferencias para la equidad | N90: =IF(ISERROR(VLOOKUP(L90,[9]Proposito_programa!$C$2:$E$59,3,FALSE))," ",VLOOKUP(L90,[9]Proposito_programa!$C$2:$E$59,3,FALSE)) -> Propósito 1: Hacer un nuevo contrato social para incrementar la inclusión social, productiva y política | O90: 1862 | P90: 1 | Q90: 79458001 | R90: MAURICIO PAEZ BUSTOS | S90: Persona Natural | W90: 40800000 | Y90: 1 | Z90: 13770000 | AA90: =+W90+X90+Z90 -> 54570000 | AB90: 49470000 | AC90: 44236 | AD90: 44237 | AE90: 44560 | AF90: 240 | AG90: 1 | AH90: 81 | AO90: X | AQ90: 0.9065420561
A91: 1 | B91: CPS-078-2021 | C91: 2021 | D91: FDLCB-CD-078-2021 | E91: https://community.secop.gov.co/Public/Tendering/OpportunityDetail/Index?noticeUID=CO1.NTC.1747821&isFromPublicArea=True&isModal=False | F91: Contratos de prestación de servicios profesionales y de apoyo a la gestión | G91: Contratación directa | H91: Prestación de servicios profesionales y de apoyo a la gestión, o para la ejecución de trabajos artísticos que sólo puedan encomendarse a determinadas personas naturales; | I91: APOYAR JURÍDICAMENTE LA EJECUCIÓN DE LAS ACCIONES REQUERIDAS PARA EL TRÁMITE E IMPULSO PROCESAL DE LAS ACTUACIONES CONTRAVENCIONALES Y/O QUERELLAS QUE CURSEN EN LAS INSPECCIONES DE POLICÍA DE LA LOCALIDAD. | J91: Inversión | K91: Un Nuevo Contrato Social y Ambiental para la Bogotá del Siglo XXI | L91: 57 | M91: =IF(ISERROR(VLOOKUP(L91,[9]Proposito_programa!$C$2:$E$59,2,FALSE))," ",VLOOKUP(L91,[9]Proposito_programa!$C$2:$E$59,2,FALSE)) -> Gestión pública local | N91: =IF(ISERROR(VLOOKUP(L91,[9]Proposito_programa!$C$2:$E$59,3,FALSE))," ",VLOOKUP(L91,[9]Proposito_programa!$C$2:$E$59,3,FALSE)) -> Propósito 5: Construir Bogotá - Región con gobierno abierto, transparente y ciudadanía consciente | O91: 1987 | P91: 1 | Q91: 36307451 | R91: EGNA MARGARITA ROJAS VARGAS | S91: Persona Natural | W91: 40800000 | Y91: 2 | Z91: 19040000 | AA91: 59840000 | AB91: 44540000 | AC91: 44236 | AD91: 44237 | AE91: 44560 | AF91: 240 | AG91: 2 | AH91: 113 | AO91: X | AQ91: 0.7443181818
A92: 1 | B92: CPS-079-2021 | C92: 2021 | D92: FDLCB-CD-079-2021 | E92: https://community.secop.gov.co/Public/Tendering/OpportunityDetail/Index?noticeUID=CO1.NTC.1748114&isFromPublicArea=True&isModal=False | F92: Contratos de prestación de servicios profesionales y de apoyo a la gestión | G92: Contratación directa | H92: Prestación de servicios profesionales y de apoyo a la gestión, o para la ejecución de trabajos artísticos que sólo puedan encomendarse a determinadas personas naturales; | I92: PRESTACIÓN DE SERVICIOS PROFESIONALES EN EL ÁREA DE GESTIÓN DE DESARROLLO LOCAL DE CIUDAD BOLÍVAR PLANEACIÓN, REALIZANDO LAS ACTIVIDADES CONCERNIENTES AL DESARROLLO DE LOS PROYECTOS DE INVERSIÓN, SEGUIMIENTO, EVALUACIÓN Y APOYO A LAS LIQUIDACIONES DESIGNADAS, EN CUMPLIMIENTO AL PLAN DE DESARROLLO LOCAL 2021-2024. | J92: Inversión | K92: Un Nuevo Contrato Social y Ambiental para la Bogotá del Siglo XXI | L92: 57 | M92: =IF(ISERROR(VLOOKUP(L92,[9]Proposito_programa!$C$2:$E$59,2,FALSE))," ",VLOOKUP(L92,[9]Proposito_programa!$C$2:$E$59,2,FALSE)) -> Gestión pública local | N92: =IF(ISERROR(VLOOKUP(L92,[9]Proposito_programa!$C$2:$E$59,3,FALSE))," ",VLOOKUP(L92,[9]Proposito_programa!$C$2:$E$59,3,FALSE)) -> Propósito 5: Construir Bogotá - Región con gobierno abierto, transparente y ciudadanía consciente | O92: 1986 | P92: 1 | Q92: 34951163 | R92: KAREN MARGARITA SEQUEA ORTEGA | S92: Persona Natural | W92: 45600000 | AA92: 45600000 | AB92: 45600000 | AC92: 44236 | AD92: 44237 | AE92: 44478 | AF92: 240 | AO92: X | AQ92: 1
A93: 1 | B93: CPS-080-2021 | C93: 2021 | D93: FDLCB-CD-080-2021 | E93: https://community.secop.gov.co/Public/Tendering/OpportunityDetail/Index?noticeUID=CO1.NTC.1748118&isFromPublicArea=True&isModal=False | F93: Contratos de prestación de servicios profesionales y de apoyo a la gestión | G93: Contratación directa | H93: Prestación de servicios profesionales y de apoyo a la gestión, o para la ejecución de trabajos artísticos que sólo puedan encomendarse a determinadas personas naturales; | I93: GARANTIZAR EL APOYO, LA PROMOCIÓN, ACOMPAÑAMIENTO, ARTICULACIÓN DE LAS INSTANCIAS DE COORDINACIÓN INTERINSTITUCIONALES Y LAS INSTANCIAS DE PARTICIPACIÓN AL ALCALDE LOCAL EN ATENCIÓN DE LOS SECTORES POBLACIONALES, ASÍ COMO LOS PROCESOS COMUNITARIOS EN LA LOCALIDAD | J93: Inversión | K93: Un Nuevo Contrato Social y Ambiental para la Bogotá del Siglo XXI | L93: 57 | M93: =IF(ISERROR(VLOOKUP(L93,[9]Proposito_programa!$C$2:$E$59,2,FALSE))," ",VLOOKUP(L93,[9]Proposito_programa!$C$2:$E$59,2,FALSE)) -> Gestión pública local | N93: =IF(ISERROR(VLOOKUP(L93,[9]Proposito_programa!$C$2:$E$59,3,FALSE))," ",VLOOKUP(L93,[9]Proposito_programa!$C$2:$E$59,3,FALSE)) -> Propósito 5: Construir Bogotá - Región con gobierno abierto, transparente y ciudadanía consciente | O93: 1986 | P93: 1 | Q93: 1081700200 | R93: MALORILL DAYANA COY PINEDA | S93: Persona Natural | W93: 40800000 | Y93: 1 | Z93: 13770000 | AA93: 54570000 | AB93: 49470000 | AC93: 44236 | AD93: 44237 | AE93: 44560 | AF93: 240 | AG93: 1 | AH93: 81 | AO93: X | AQ93: 0.9065420561
A94: 1 | B94: CPS-081-2021 | C94: 2021 | D94: FDLCB-CD-081-2021 | E94: https://community.secop.gov.co/Public/Tendering/OpportunityDetail/Index?noticeUID=CO1.NTC.1748501&isFromPublicArea=True&isModal=False | F94: Contratos de prestación de servicios profesionales y de apoyo a la gestión | G94: Contratación directa | H94: Prestación de servicios profesionales y de apoyo a la gestión, o para la ejecución de trabajos artísticos que sólo puedan encomendarse a determinadas personas naturales; | I94: APOYAR TÉCNICAMENTE LAS DISTINTAS ETAPAS DE LOS PROCESOS DE COMPETENCIA DE LA ALCALDÍA LOCAL PARA LA DEPURACIÓN DE ACTUACIONES ADMINISTRATIVAS. | J94: Inversión | K94: Un Nuevo Contrato Social y Ambiental para la Bogotá del Siglo XXI | L94: 57 | M94: =IF(ISERROR(VLOOKUP(L94,[9]Proposito_programa!$C$2:$E$59,2,FALSE))," ",VLOOKUP(L94,[9]Proposito_programa!$C$2:$E$59,2,FALSE)) -> Gestión pública local | N94: =IF(ISERROR(VLOOKUP(L94,[9]Proposito_programa!$C$2:$E$59,3,FALSE))," ",VLOOKUP(L94,[9]Proposito_programa!$C$2:$E$59,3,FALSE)) -> Propósito 5: Construir Bogotá - Región con gobierno abierto, transparente y ciudadanía consciente | O94: 1987 | P94: 1 | Q94: 52879986 | R94: TERESA LOPEZ PATARROYO | S94: Persona Natural | W94: 40800000 | Y94: 2 | Z94: 18870000 | AA94: 59670000 | AB94: 49470000 | AC94: 44236 | AD94: 44237 | AE94: 44560 | AF94: 240 | AG94: 2 | AH94: 112 | AO94: X | AQ94: 0.8290598291
A95: 1 | B95: CPS-082-2021 | C95: 2021 | D95: FDLCB-CD-082-2021 | E95: https://community.secop.gov.co/Public/Tendering/OpportunityDetail/Index?noticeUID=CO1.NTC.1751465&isFromPublicArea=True&isModal=False | F95: Contratos de prestación de servicios profesionales y de apoyo a la gestión | G95: Contratación directa | H95: Prestación de servicios profesionales y de apoyo a la gestión, o para la ejecución de trabajos artísticos que sólo puedan encomendarse a determinadas personas naturales; | I95: PRESTAR LOS SERVICIOS PROFESIONALES PARA REALIZAR LABORES ADMINISTRATIVAS Y DE SEGUIMIENTO A LOS DERECHOS DE PETICIÓN Y SOLICITUDES DE INFORMACIÓN EN GENERAL, REALIZANDO ALERTAS QUE GENEREN LA RESPUESTA OPORTUNA DE LOS MISMOS, EN EL MARCO DEL PLAN DE DESARROLLO LOCAL DE LA ALCALDÍA LOCAL DE CIUDAD BOLÍVAR | J95: Inversión | K95: Un Nuevo Contrato Social y Ambiental para la Bogotá del Siglo XXI | L95: 57 | M95: =IF(ISERROR(VLOOKUP(L95,[9]Proposito_programa!$C$2:$E$59,2,FALSE))," ",VLOOKUP(L95,[9]Proposito_programa!$C$2:$E$59,2,FALSE)) -> Gestión pública local | N95: =IF(ISERROR(VLOOKUP(L95,[9]Proposito_programa!$C$2:$E$59,3,FALSE))," ",VLOOKUP(L95,[9]Proposito_programa!$C$2:$E$59,3,FALSE)) -> Propósito 5: Construir Bogotá - Región con gobierno abierto, transparente y ciudadanía consciente | O95: 1986 | P95: 1 | Q95: 1013627733 | R95: YURI XIOMARA SANCHEZ CASTRO | S95: Persona Natural | W95: 32000000 | Y95: 2 | Z95: 14800000 | AA95: 46800000 | AB95: 38800000 | AC95: 44237 | AD95: 44237 | AE95: 44560 | AF95: 240 | AG95: 2 | AH95: 112 | AO95: X | AQ95: 0.8290598291
A96: 1 | B96: CPS-083-2021 | C96: 2021 | D96: FDLCB-CD-083-2021 | E96: https://community.secop.gov.co/Public/Tendering/OpportunityDetail/Index?noticeUID=CO1.NTC.1751464&isFromPublicArea=True&isModal=False | F96: Contratos de prestación de servicios profesionales y de apoyo a la gestión | G96: Contratación directa | H96: Prestación de servicios profesionales y de apoyo a la gestión, o para la ejecución de trabajos artísticos que sólo puedan encomendarse a determinadas personas naturales; | I96: PRESTAR SUS SERVICIOS COMO CONDUCTOR DE VOLQUETA DE PROPIEDAD DEL FONDO DE DESARROLLO LOCAL DE CIUDAD BOLÍVAR PARA LA REALIZACIÓN DE LABORES DE MANTENIMIENTO DE LA MALLA VIAL Y LAS ZONAS PÚBLICAS DE LA LOCALIDAD, ASÍ COMO ATENDER LAS EMERGENCIAS QUE SURJAN EN LA LOCALIDAD | J96: Inversión | K96: Un Nuevo Contrato Social y Ambiental para la Bogotá del Siglo XXI | L96: 49 | M96: =IF(ISERROR(VLOOKUP(L96,[9]Proposito_programa!$C$2:$E$59,2,FALSE))," ",VLOOKUP(L96,[9]Proposito_programa!$C$2:$E$59,2,FALSE)) -> Movilidad segura, sostenible y accesible | N96: =IF(ISERROR(VLOOKUP(L96,[9]Proposito_programa!$C$2:$E$59,3,FALSE))," ",VLOOKUP(L96,[9]Proposito_programa!$C$2:$E$59,3,FALSE)) -> Propósito 4: Hacer de Bogotá Región un modelo de movilidad multimodal, incluyente y sostenible | O96: 1983 | P96: 1 | Q96: 80750972 | R96: MAXIMINO SALCEDO OTALORA | S96: Persona Natural | W96: 20400000 | Y96: 1 | Z96: 7990000 | AA96: 28390000 | AB96: 24650000 | AC96: 44237 | AD96: 44238 | AE96: 44575 | AF96: 240 | AG96: 1 | AH96: 94 | AN96: X | AQ96: 0.8682634731
A97: 1 | B97: CPS-084-2021 | C97: 2021 | D97: FDLCB-CD-084-2021 | E97: https://community.secop.gov.co/Public/Tendering/OpportunityDetail/Index?noticeUID=CO1.NTC.1751731&isFromPublicArea=True&isModal=False | F97: Contratos de prestación de servicios profesionales y de apoyo a la gestión | G97: Contratación directa | H97: Prestación de servicios profesionales y de apoyo a la gestión, o para la ejecución de trabajos artísticos que sólo puedan encomendarse a determinadas personas naturales; | I97: APOYAR JURÍDICAMENTE LA EJECUCIÓN DE LAS ACCIONES REQUERIDAS PARA EL TRÁMITE E IMPULSO PROCESAL DE LAS ACTUACIONES CONTRAVENCIONALES Y/O QUERELLAS QUE CURSEN EN LAS INSPECCIONES DE POLICÍA DE LA LOCALIDAD. | J97: Inversión | K97: Un Nuevo Contrato Social y Ambiental para la Bogotá del Siglo XXI | L97: 57 | M97: =IF(ISERROR(VLOOKUP(L97,[9]Proposito_programa!$C$2:$E$59,2,FALSE))," ",VLOOKUP(L97,[9]Proposito_programa!$C$2:$E$59,2,FALSE)) -> Gestión pública local | N97: =IF(ISERROR(VLOOKUP(L97,[9]Proposito_programa!$C$2:$E$59,3,FALSE))," ",VLOOKUP(L97,[9]Proposito_programa!$C$2:$E$59,3,FALSE)) -> Propósito 5: Construir Bogotá - Región con gobierno abierto, transparente y ciudadanía consciente | O97: 1987 | P97: 1 | Q97: 52072284 | R97: DELIA MARLEN PINTO BERNAL | S97: Persona Natural | W97: 40800000 | Y97: 2 | Z97: 18870000 | AA97: 59670000 | AB97: 49470000 | AC97: 44237 | AD97: 44237 | AE97: 44560 | AF97: 240 | AG97: 2 | AH97: 112 | AO97: X | AQ97: 0.8290598291
A98: 1 | B98: CPS-085-2021 | C98: 2021 | D98: FDLCB-CD-085-2021 | E98: https://community.secop.gov.co/Public/Tendering/OpportunityDetail/Index?noticeUID=CO1.NTC.1751564&isFromPublicArea=True&isModal=False | F98: Contratos de prestación de servicios profesionales y de apoyo a la gestión | G98: Contratación directa | H98: Prestación de servicios profesionales y de apoyo a la gestión, o para la ejecución de trabajos artísticos que sólo puedan encomendarse a determinadas personas naturales; | I98: APOYAR EL CUBRIMIENTO DE LAS ACTIVIDADES, CRONOGRAMAS Y AGENDA DE LA ALCALDÍA LOCAL A NIVEL INTERNO Y EXTERNO, ASÍ COMO LA GENERACIÓN DE CONTENIDOS PERIODÍSTICOS | J98: Inversión | K98: Un Nuevo Contrato Social y Ambiental para la Bogotá del Siglo XXI | L98: 57 | M98: =IF(ISERROR(VLOOKUP(L98,[9]Proposito_programa!$C$2:$E$59,2,FALSE))," ",VLOOKUP(L98,[9]Proposito_programa!$C$2:$E$59,2,FALSE)) -> Gestión pública local | N98: =IF(ISERROR(VLOOKUP(L98,[9]Proposito_programa!$C$2:$E$59,3,FALSE))," ",VLOOKUP(L98,[9]Proposito_programa!$C$2:$E$59,3,FALSE)) -> Propósito 5: Construir Bogotá - Región con gobierno abierto, transparente y ciudadanía consciente | O98: 1986 | P98: 1 | Q98: 71784604 | R98: DUVAN NORBERTO CARVAJAL RESTREPO | S98: Persona Natural | W98: 60000000 | AA98: 60000000 | AB98: 51600000 | AC98: 44237 | AD98: 44237 | AE98: 44539 | AF98: 300 | AO98: X | AQ98: 0.86
A99: 1 | B99: CPS-086-2021 | C99: 2021 | D99: CPS-CD-086-2021 | E99: https://community.secop.gov.co/Public/Tendering/OpportunityDetail/Index?noticeUID=CO1.NTC.1751368&isFromPublicArea=True&isModal=False | F99: Contratos de prestación de servicios profesionales y de apoyo a la gestión | G99: Contratación directa | H99: Prestación de servicios profesionales y de apoyo a la gestión, o para la ejecución de trabajos artísticos que sólo puedan encomendarse a determinadas personas naturales; | I99: APOYAR TÉCNICAMENTE LAS DISTINTAS ETAPAS DE LOS PROCESOS DE COMPETENCIA DE LA ALCALDÍA LOCAL PARA LA DEPURACIÓN DE ACTUACIONES ADMINISTRATIVAS | J99: Inversión | K99: Un Nuevo Contrato Social y Ambiental para la Bogotá del Siglo XXI | L99: 57 | M99: =IF(ISERROR(VLOOKUP(L99,[9]Proposito_programa!$C$2:$E$59,2,FALSE))," ",VLOOKUP(L99,[9]Proposito_programa!$C$2:$E$59,2,FALSE)) -> Gestión pública local | N99: =IF(ISERROR(VLOOKUP(L99,[9]Proposito_programa!$C$2:$E$59,3,FALSE))," ",VLOOKUP(L99,[9]Proposito_programa!$C$2:$E$59,3,FALSE)) -> Propósito 5: Construir Bogotá - Región con gobierno abierto, transparente y ciudadanía consciente | O99: 1987 | P99: 1 | Q99: 79919273 | R99: FABIAN EDUARDO VALBUENA VILLAMARIN | S99: Persona Natural | W99: 40800000 | Y99: 2 | Z99: 18870000 | AA99: 59670000 | AB99: 49470000 | AC99: 44237 | AD99: 44237 | AE99: 44560 | AF99: 240 | AG99: 2 | AH99: 112 | AI99: 91492323 | AJ99: MARCO ANTONIO BARRAGAN | AK99: 44256 | AL99: 37230000 | AO99: X | AQ99: 0.8290598291
A100: 1 | B100: CPS-087-2021 | C100: 2021 | D100: FDLCB-CD-087-2021 | E100: https://community.secop.gov.co/Public/Tendering/OpportunityDetail/Index?noticeUID=CO1.NTC.1752007&isFromPublicArea=True&isModal=False | F100: Contratos de prestación de servicios profesionales y de apoyo a la gestión | G100: Contratación directa | H100: Prestación de servicios profesionales y de apoyo a la gestión, o para la ejecución de trabajos artísticos que sólo puedan encomendarse a determinadas personas naturales; | I100: APOYAR JURÍDICAMENTE LA EJECUCIÓN DE LAS ACCIONES REQUERIDAS PARA EL TRÁMITE E IMPULSO PROCESAL DE LAS ACTUACIONES CONTRAVENCIONALES Y/O QUERELLAS QUE CURSEN EN LAS INSPECCIONES DE POLICÍA DE LA LOCALIDAD. | J100: Inversión | K100: Un Nuevo Contrato Social y Ambiental para la Bogotá del Siglo XXI | L100: 57 | M100: =IF(ISERROR(VLOOKUP(L100,[9]Proposito_programa!$C$2:$E$59,2,FALSE))," ",VLOOKUP(L100,[9]Proposito_programa!$C$2:$E$59,2,FALSE)) -> Gestión pública local | N100: =IF(ISERROR(VLOOKUP(L100,[9]Proposito_programa!$C$2:$E$59,3,FALSE))," ",VLOOKUP(L100,[9]Proposito_programa!$C$2:$E$59,3,FALSE)) -> Propósito 5: Construir Bogotá - Región con gobierno abierto, transparente y ciudadanía consciente | O100: 1987 | P100: 1 | Q100: 52875499 | R100: PAOLA SUSANA GUERRERO | S100: Persona Natural | W100: 40800000 | Y100: 1 | Z100: 15300000 | AA100: 56100000 | AB100: 48620000 | AC100: 44237 | AD100: 44242 | AE100: 44575 | AF100: 240 | AG100: 1 | AH100: 90 | AN100: X | AQ100: 0.8666666667
A101: 1 | B101: CPS-088-2021 | C101: 2021 | D101: FDLCB-CD-088-2021 | E101: https://community.secop.gov.co/Public/Tendering/OpportunityDetail/Index?noticeUID=CO1.NTC.1751757&isFromPublicArea=True&isModal=False | F101: Contratos de prestación de servicios profesionales y de apoyo a la gestión | G101: Contratación directa | H101: Prestación de servicios profesionales y de apoyo a la gestión, o para la ejecución de trabajos artísticos que sólo puedan encomendarse a determinadas personas naturales; | I101: PRESTAR SERVICIOS PROFESIONALES ESPECIALIZADOS EN EL DESPACHO DE LA ALCALDÍA LOCAL DE CIUDAD BOLÍVAR, PARA ADELANTAR TRÁMITES, PROCEDIMIENTOS Y LINEAMIENTOS EN MATERIA ADMINISTRATIVA Y JURÍDICA QUE PERMITAN GARANTIZAR EL CUMPLIMIENTO DE LAS METAS ESTABLECIDAS EN EL PLAN DE DESARROLLO LOCAL. | J101: Inversión | K101: Un Nuevo Contrato Social y Ambiental para la Bogotá del Siglo XXI | L101: 57 | M101: =IF(ISERROR(VLOOKUP(L101,[9]Proposito_programa!$C$2:$E$59,2,FALSE))," ",VLOOKUP(L101,[9]Proposito_programa!$C$2:$E$59,2,FALSE)) -> Gestión pública local | N101: =IF(ISERROR(VLOOKUP(L101,[9]Proposito_programa!$C$2:$E$59,3,FALSE))," ",VLOOKUP(L101,[9]Proposito_programa!$C$2:$E$59,3,FALSE)) -> Propósito 5: Construir Bogotá - Región con gobierno abierto, transparente y ciudadanía consciente | O101: 1986 | P101: 1 | Q101: 53083449 | R101: CAROLINA ANDREA CALLE CASTILLO | S101: Persona Natural | W101: 90000000 | AA101: 90000000 | AB101: 87300000 | AC101: 44237 | AD101: 44237 | AE101: 44539 | AF101: 300 | AO101: X | AQ101: 0.97
A102: 1 | B102: CPS-089-2021 | C102: 2021 | D102: CPS-CD-089-2021 | E102: https://community.secop.gov.co/Public/Tendering/OpportunityDetail/Index?noticeUID=CO1.NTC.1751479&isFromPublicArea=True&isModal=False | F102: Contratos de prestación de servicios profesionales y de apoyo a la gestión | G102: Contratación directa | H102: Prestación de servicios profesionales y de apoyo a la gestión, o para la ejecución de trabajos artísticos que sólo puedan encomendarse a determinadas personas naturales; | I102: PRESTAR LOS SERVICIOS DE APOYO TÉCNICO PARA REALIZAR ACTIVIDADES ADMINISTRATIVAS QUE SE ADELANTAN EN EL ALMACÉN DE LA ALCALDÍA LOCAL DE CIUDAD BOLÍVAR. | J102: Inversión | K102: Un Nuevo Contrato Social y Ambiental para la Bogotá del Siglo XXI | L102: 57 | M102: =IF(ISERROR(VLOOKUP(L102,[9]Proposito_programa!$C$2:$E$59,2,FALSE))," ",VLOOKUP(L102,[9]Proposito_programa!$C$2:$E$59,2,FALSE)) -> Gestión pública local | N102: =IF(ISERROR(VLOOKUP(L102,[9]Proposito_programa!$C$2:$E$59,3,FALSE))," ",VLOOKUP(L102,[9]Proposito_programa!$C$2:$E$59,3,FALSE)) -> Propósito 5: Construir Bogotá - Región con gobierno abierto, transparente y ciudadanía consciente | O102: 1986 | P102: 1 | Q102: 1075229004 | R102: FAIVER ANDRES SUAZA PEREZ | S102: Persona Natural | W102: 26400000 | Y102: 1 | Z102: 8910000 | AA102: 35310000 | AB102: 32010000 | AC102: 44237 | AD102: 44237 | AE102: 44560 | AF102: 240 | AG102: 1 | AH102: 81 | AO102: X | AQ102: 0.9065420561
A103: 1 | B103: CPS-090-2021 | C103: 2021 | D103: FDLCB-CD-090-2021 | E103: https://community.secop.gov.co/Public/Tendering/OpportunityDetail/Index?noticeUID=CO1.NTC.1751659&isFromPublicArea=True&isModal=False | F103: Contratos de prestación de servicios profesionales y de apoyo a la gestión | G103: Contratación directa | H103: Prestación de servicios profesionales y de apoyo a la gestión, o para la ejecución de trabajos artísticos que sólo puedan encomendarse a determinadas personas naturales; | I103: GARANTIZAR EL APOYO, LA PROMOCIÓN, ACOMPAÑAMIENTO, ARTICULACIÓN DE LAS INSTANCIAS DE COORDINACIÓN INTERINSTITUCIONALES Y LAS INSTANCIAS DE PARTICIPACIÓN AL ALCALDE LOCAL EN ATENCIÓN DE LOS SECTORES POBLACIONALES, ASÍ COMO LOS PROCESOS COMUNITARIOS EN LA LOCALIDAD. | J103: Inversión | K103: Un Nuevo Contrato Social y Ambiental para la Bogotá del Siglo XXI | L103: 57 | M103: =IF(ISERROR(VLOOKUP(L103,[9]Proposito_programa!$C$2:$E$59,2,FALSE))," ",VLOOKUP(L103,[9]Proposito_programa!$C$2:$E$59,2,FALSE)) -> Gestión pública local | N103: =IF(ISERROR(VLOOKUP(L103,[9]Proposito_programa!$C$2:$E$59,3,FALSE))," ",VLOOKUP(L103,[9]Proposito_programa!$C$2:$E$59,3,FALSE)) -> Propósito 5: Construir Bogotá - Región con gobierno abierto, transparente y ciudadanía consciente | O103: 1986 | P103: 1 | Q103: 53166907 | R103: LUDIM PATRICIA KLEBER AVELLANEDA | S103: Persona Natural | W103: 40800000 | Y103: 2 | Z103: 18870000 | AA103: 59670000 | AB103: 49470000 | AC103: 44237 | AD103: 44237 | AE103: 44560 | AF103: 240 | AG103: 2 | AH103: 112 | AO103: X | AQ103: 0.8290598291
A104: 1 | B104: CPS-091-2021 | C104: 2021 | D104: FDLCB-CD-091-2021 | E104: https://community.secop.gov.co/Public/Tendering/OpportunityDetail/Index?noticeUID=CO1.NTC.1751814&isFromPublicArea=True&isModal=False | F104: Contratos de prestación de servicios profesionales y de apoyo a la gestión | G104: Contratación directa | H104: Prestación de servicios profesionales y de apoyo a la gestión, o para la ejecución de trabajos artísticos que sólo puedan encomendarse a determinadas personas naturales; | I104: PRESTAR SUS SERVICIOS PROFESIONALES COMO APOYO JURÍDICO EN EL PROCESO DE LIQUIDACIÓN DE LOS CONVENIOS Y CONTRATOS SUSCRITOS POR EL FONDO DE DESARROLLO LOCAL DE CIUDAD BOLÍVAR Y EN EL SEGUIMIENTO, DEPURACIÓN Y CONSOLIDACIÓN DE LA INFORMACIÓN DE LAS OBLIGACIONES POR PAGAR VIGENTES. | J104: Inversión | K104: Un Nuevo Contrato Social y Ambiental para la Bogotá del Siglo XXI | L104: 57 | M104: =IF(ISERROR(VLOOKUP(L104,[9]Proposito_programa!$C$2:$E$59,2,FALSE))," ",VLOOKUP(L104,[9]Proposito_programa!$C$2:$E$59,2,FALSE)) -> Gestión pública local | N104: =IF(ISERROR(VLOOKUP(L104,[9]Proposito_programa!$C$2:$E$59,3,FALSE))," ",VLOOKUP(L104,[9]Proposito_programa!$C$2:$E$59,3,FALSE)) -> Propósito 5: Construir Bogotá - Región con gobierno abierto, transparente y ciudadanía consciente | O104: 1986 | P104: 1 | Q104: 22466653 | R104: ANGELITH SHIRLEY NUÑEZ GONZALEZ | S104: Persona Natural | W104: 53600000 | Y104: 1 | Z104: 21216667 | AA104: 74816667 | AB104: 64990000 | AC104: 44237 | AD104: 44237 | AE104: 44575 | AF104: 240 | AG104: 1 | AH104: 95 | AI104: 1022359129 | AJ104: CRISTIAM CAMILO PEDRAZA MARTINEZ | AK104: 44418 | AL104: 13400000 | AN104: X | AQ104: 0.8686567125
A105: 1 | B105: CPS-092-2021 | C105: 2021 | D105: FDLCB-CD-092-2021 | E105: https://community.secop.gov.co/Public/Tendering/OpportunityDetail/Index?noticeUID=CO1.NTC.1751681&isFromPublicArea=True&isModal=False | F105: Contratos de prestación de servicios profesionales y de apoyo a la gestión | G105: Contratación directa | H105: Prestación de servicios profesionales y de apoyo a la gestión, o para la ejecución de trabajos artísticos que sólo puedan encomendarse a determinadas personas naturales; | I105: PRESTAR SUS SERVICIOS PROFESIONALES PARA REALIZAR TODAS LAS ACTIVIDADES CONCERNIENTES AL DESARROLLO DE LOS PROYECTOS DE INFRAESTRUCTURA EN LOS COMPONENTES QUE LE SEAN DESIGNADOS EN EL MARCO DEL PLAN DE DESARROLLO LOCAL 2021-2024 DE CIUDAD BOLÍVAR | J105: Inversión | K105: Un Nuevo Contrato Social y Ambiental para la Bogotá del Siglo XXI | L105: 57 | M105: =IF(ISERROR(VLOOKUP(L105,[9]Proposito_programa!$C$2:$E$59,2,FALSE))," ",VLOOKUP(L105,[9]Proposito_programa!$C$2:$E$59,2,FALSE)) -> Gestión pública local | N105: =IF(ISERROR(VLOOKUP(L105,[9]Proposito_programa!$C$2:$E$59,3,FALSE))," ",VLOOKUP(L105,[9]Proposito_programa!$C$2:$E$59,3,FALSE)) -> Propósito 5: Construir Bogotá - Región con gobierno abierto, transparente y ciudadanía consciente | O105: 1986 | P105: 1 | Q105: 19277581 | R105: JORGE ENRIQUE GARCÍA ORDÓÑEZ | S105: Persona Natural | W105: 48000000 | Y105: 1 | Z105: 16000000 | AA105: 64000000 | AB105: 58000000 | AC105: 44237 | AD105: 44237 | AE105: 44560 | AF105: 240 | AG105: 1 | AH105: 80 | AO105: X | AQ105: 0.90625
A106: 1 | B106: CPS-093-2021 | C106: 2021 | D106: FDLCB-CD-093-2021 | E106: https://community.secop.gov.co/Public/Tendering/OpportunityDetail/Index?noticeUID=CO1.NTC.1752715&isFromPublicArea=True&isModal=False | F106: Contratos de prestación de servicios profesionales y de apoyo a la gestión | G106: Contratación directa | H106: Prestación de servicios profesionales y de apoyo a la gestión, o para la ejecución de trabajos artísticos que sólo puedan encomendarse a determinadas personas naturales; | I106: PRESTAR SUS SERVICIOS PROFESIONALES PARA REALIZAR TODAS LAS ACTIVIDADES CONCERNIENTES AL DESARROLLO DE LOS PROYECTOS DE INFRAESTRUCTURA EN LOS COMPONENTES QUE LE SEAN DESIGNADOS EN EL MARCO DEL PLAN DE DESARROLLO LOCAL 2021-2024 DE CIUDAD BOLÍVAR | J106: Inversión | K106: Un Nuevo Contrato Social y Ambiental para la Bogotá del Siglo XXI | L106: 57 | M106: =IF(ISERROR(VLOOKUP(L106,[9]Proposito_programa!$C$2:$E$59,2,FALSE))," ",VLOOKUP(L106,[9]Proposito_programa!$C$2:$E$59,2,FALSE)) -> Gestión pública local | N106: =IF(ISERROR(VLOOKUP(L106,[9]Proposito_programa!$C$2:$E$59,3,FALSE))," ",VLOOKUP(L106,[9]Proposito_programa!$C$2:$E$59,3,FALSE)) -> Propósito 5: Construir Bogotá - Región con gobierno abierto, transparente y ciudadanía consciente | O106: 1986 | P106: 1 | Q106: 79664254 | R106: JUAN FRANCISCO DUQUE TORRES | S106: Persona Natural | W106: 48000000 | Y106: 1 | Z106: 16000000 | AA106: 64000000 | AB106: 58000000 | AC106: 44237 | AD106: 44238 | AE106: 44560 | AF106: 240 | AG106: 1 | AH106: 80 | AO106: X | AQ106: 0.90625
A107: 1 | B107: CPS-094-2021 | C107: 2021 | D107: FDLCB-CD-094-2021 | E107: https://community.secop.gov.co/Public/Tendering/OpportunityDetail/Index?noticeUID=CO1.NTC.1752638&isFromPublicArea=True&isModal=False | F107: Contratos de prestación de servicios profesionales y de apoyo a la gestión | G107: Contratación directa | H107: Prestación de servicios profesionales y de apoyo a la gestión, o para la ejecución de trabajos artísticos que sólo puedan encomendarse a determinadas personas naturales; | I107: PRESTAR SUS SERVICIOS PROFESIONALES PARA REALIZAR TODAS LAS ACTIVIDADES CONCERNIENTES AL DESARROLLO DE LOS PROYECTOS DE INFRAESTRUCTURA EN LOS COMPONENTES QUE LE SEAN DESIGNADOS EN EL MARCO DEL PLAN DE DESARROLLO LOCAL 2021-2024 DE CIUDAD BOLÍVAR | J107: Inversión | K107: Un Nuevo Contrato Social y Ambiental para la Bogotá del Siglo XXI | L107: 57 | M107: =IF(ISERROR(VLOOKUP(L107,[9]Proposito_programa!$C$2:$E$59,2,FALSE))," ",VLOOKUP(L107,[9]Proposito_programa!$C$2:$E$59,2,FALSE)) -> Gestión pública local | N107: =IF(ISERROR(VLOOKUP(L107,[9]Proposito_programa!$C$2:$E$59,3,FALSE))," ",VLOOKUP(L107,[9]Proposito_programa!$C$2:$E$59,3,FALSE)) -> Propósito 5: Construir Bogotá - Región con gobierno abierto, transparente y ciudadanía consciente | O107: 1986 | P107: 1 | Q107: 1032440972 | R107: LINA MARCELA CANDELA MARTIN | S107: Persona Natural | W107: 48000000 | Y107: 2 | Z107: 19800000 | AA107: 67800000 | AB107: 58200000 | AC107: 44237 | AD107: 44237 | AE107: 44560 | AF107: 240 | AG107: 2 | AH107: 100 | AO107: X | AQ107: 0.8584070796
A108: 1 | B108: CPS-095-2021 | C108: 2021 | D108: FDLCB-CD-095-2021 | E108: https://community.secop.gov.co/Public/Tendering/OpportunityDetail/Index?noticeUID=CO1.NTC.1752562&isFromPublicArea=True&isModal=False | F108: Contratos de prestación de servicios profesionales y de apoyo a la gestión | G108: Contratación directa | H108: Prestación de servicios profesionales y de apoyo a la gestión, o para la ejecución de trabajos artísticos que sólo puedan encomendarse a determinadas personas naturales; | I108: PRESTAR SUS SERVICIOS PROFESIONALES PARA REALIZAR TODAS LAS ACTIVIDADES CONCERNIENTES AL DESARROLLO DE LOS PROYECTOS DE INFRAESTRUCTURA EN LOS COMPONENTES QUE LE SEAN DESIGNADOS EN EL MARCO DEL PLAN DE DESARROLLO LOCAL 2021-2024 DE CIUDAD BOLÍVAR | J108: Inversión | K108: Un Nuevo Contrato Social y Ambiental para la Bogotá del Siglo XXI | L108: 57 | M108: =IF(ISERROR(VLOOKUP(L108,[9]Proposito_programa!$C$2:$E$59,2,FALSE))," ",VLOOKUP(L108,[9]Proposito_programa!$C$2:$E$59,2,FALSE)) -> Gestión pública local | N108: =IF(ISERROR(VLOOKUP(L108,[9]Proposito_programa!$C$2:$E$59,3,FALSE))," ",VLOOKUP(L108,[9]Proposito_programa!$C$2:$E$59,3,FALSE)) -> Propósito 5: Construir Bogotá - Región con gobierno abierto, transparente y ciudadanía consciente | O108: 1986 | P108: 1 | Q108: 1018448652 | R108: TATIANA GARCÍA AROCA | S108: Persona Natural | W108: 48000000 | Y108: 1 | Z108: 16200000 | AA108: 64200000 | AB108: 58200000 | AC108: 44237 | AD108: 44237 | AE108: 44560 | AF108: 240 | AG108: 1 | AH108: 81 | AO108: X | AQ108: 0.9065420561
A109: 1 | B109: CPS-096-2021 | C109: 2021 | D109: FDLCB-CD-096-2021 | E109: https://community.secop.gov.co/Public/Tendering/OpportunityDetail/Index?noticeUID=CO1.NTC.1752809&isFromPublicArea=True&isModal=False | F109: Contratos de prestación de servicios profesionales y de apoyo a la gestión | G109: Contratación directa | H109: Prestación de servicios profesionales y de apoyo a la gestión, o para la ejecución de trabajos artísticos que sólo puedan encomendarse a determinadas personas naturales; | I109: PRESTAR SUS SERVICIOS PROFESIONALES PARA REALIZAR TODAS LAS ACTIVIDADES CONCERNIENTES AL DESARROLLO DE LOS PROYECTOS DE INFRAESTRUCTURA EN LOS COMPONENTES QUE LE SEAN DESIGNADOS EN EL MARCO DEL PLAN DE DESARROLLO LOCAL 2021-2024 DE CIUDAD BOLÍVAR | J109: Inversión | K109: Un Nuevo Contrato Social y Ambiental para la Bogotá del Siglo XXI | L109: 57 | M109: =IF(ISERROR(VLOOKUP(L109,[9]Proposito_programa!$C$2:$E$59,2,FALSE))," ",VLOOKUP(L109,[9]Proposito_programa!$C$2:$E$59,2,FALSE)) -> Gestión pública local | N109: =IF(ISERROR(VLOOKUP(L109,[9]Proposito_programa!$C$2:$E$59,3,FALSE))," ",VLOOKUP(L109,[9]Proposito_programa!$C$2:$E$59,3,FALSE)) -> Propósito 5: Construir Bogotá - Región con gobierno abierto, transparente y ciudadanía consciente | O109: 1986 | P109: 1 | Q109: 80126283 | R109: WALTER DONADO SANTAMARIA | S109: Persona Natural | W109: 48000000 | Y109: 1 | Z109: 19000000 | AA109: 67000000 | AB109: 58200000 | AC109: 44237 | AD109: 44237 | AE109: 44575 | AF109: 240 | AG109: 1 | AH109: 95 | AN109: X | AQ109: 0.8686567164
A110: 1 | B110: CPS-097-2021 | C110: 2021 | D110: FDLCB-CD-097-2021 | E110: https://community.secop.gov.co/Public/Tendering/OpportunityDetail/Index?noticeUID=CO1.NTC.1752878&isFromPublicArea=True&isModal=False | F110: Contratos de prestación de servicios profesionales y de apoyo a la gestión | G110: Contratación directa | H110: Prestación de servicios profesionales y de apoyo a la gestión, o para la ejecución de trabajos artísticos que sólo puedan encomendarse a determinadas personas naturales; | I110: APOYAR JURÍDICAMENTE LA EJECUCIÓN DE LAS ACCIONES REQUERIDAS PARA EL TRÁMITE E IMPULSO PROCESAL DE LAS ACTUACIONES CONTRAVENCIONALES Y/O QUERELLAS QUE CURSEN EN LAS INSPECCIONES DE POLICÍA DE LA LOCALIDAD. | J110: Inversión | K110: Un Nuevo Contrato Social y Ambiental para la Bogotá del Siglo XXI | L110: 57 | M110: =IF(ISERROR(VLOOKUP(L110,[9]Proposito_programa!$C$2:$E$59,2,FALSE))," ",VLOOKUP(L110,[9]Proposito_programa!$C$2:$E$59,2,FALSE)) -> Gestión pública local | N110: =IF(ISERROR(VLOOKUP(L110,[9]Proposito_programa!$C$2:$E$59,3,FALSE))," ",VLOOKUP(L110,[9]Proposito_programa!$C$2:$E$59,3,FALSE)) -> Propósito 5: Construir Bogotá - Región con gobierno abierto, transparente y ciudadanía consciente | O110: 1987 | P110: 1 | Q110: 52490992 | R110: LUISA FERNANDA CÁRDENAS RODRÍGUEZ | S110: Persona Natural | W110: 40800000 | Y110: 1 | Z110: 18870000 | AA110: 59670000 | AB110: 49920000 | AC110: 44237 | AD110: 44237 | AE110: 44560 | AF110: 240 | AG110: 1 | AH110: 112 | AO110: X | AQ110: 0.8366013072
A111: 1 | B111: CPS-098-2021 | C111: 2021 | D111: FDLCB-CD-098-2021 | E111: https://community.secop.gov.co/Public/Tendering/OpportunityDetail/Index?noticeUID=CO1.NTC.1753711&isFromPublicArea=True&isModal=False | F111: Contratos de prestación de servicios profesionales y de apoyo a la gestión | G111: Contratación directa | H111: Prestación de servicios profesionales y de apoyo a la gestión, o para la ejecución de trabajos artísticos que sólo puedan encomendarse a determinadas personas naturales; | I111: APOYAR JURÍDICAMENTE LA EJECUCIÓN DE LAS ACCIONES REQUERIDAS PARA EL TRÁMITE E IMPULSO PROCESAL DE LAS ACTUACIONES CONTRAVENCIONALES Y/O QUERELLAS QUE CURSEN EN LAS INSPECCIONES DE POLICÍA DE LA LOCALIDAD. | J111: Inversión | K111: Un Nuevo Contrato Social y Ambiental para la Bogotá del Siglo XXI | L111: 57 | M111: =IF(ISERROR(VLOOKUP(L111,[9]Proposito_programa!$C$2:$E$59,2,FALSE))," ",VLOOKUP(L111,[9]Proposito_programa!$C$2:$E$59,2,FALSE)) -> Gestión pública local | N111: =IF(ISERROR(VLOOKUP(L111,[9]Proposito_programa!$C$2:$E$59,3,FALSE))," ",VLOOKUP(L111,[9]Proposito_programa!$C$2:$E$59,3,FALSE)) -> Propósito 5: Construir Bogotá - Región con gobierno abierto, transparente y ciudadanía consciente | O111: 1987 | P111: 1 | Q111: 52818746 | R111: FEDRA PAOLA SANCHEZ RODRIGUEZ | S111: Persona Natural | W111: 40800000 | Y111: 2 | Z111: 18530000 | AA111: 59330000 | AB111: 38930000 | AC111: 44238 | AD111: 44239 | AE111: 44560 | AF111: 240 | AG111: 2 | AH111: 110 | AI111: 52261144 | AJ111: ELBA YOHANA FUENTES VALBUENA | AK111: 44298 | AL111: 30600000 | AO111: X | AQ111: 0.6561604585
A112: 1 | B112: CPS-099-2021 | C112: 2021 | D112: FDLCB-CD-099-2021 | E112: https://community.secop.gov.co/Public/Tendering/OpportunityDetail/Index?noticeUID=CO1.NTC.1751865&isFromPublicArea=True&isModal=False | F112: Contratos de prestación de servicios profesionales y de apoyo a la gestión | G112: Contratación directa | H112: Prestación de servicios profesionales y de apoyo a la gestión, o para la ejecución de trabajos artísticos que sólo puedan encomendarse a determinadas personas naturales; | I112: PRESTAR SUS SERVICIOS COMO CONDUCTOR DE VOLQUETA DE PROPIEDAD DEL FONDO DE DESARROLLO LOCAL DE CIUDAD BOLÍVAR PARA LA REALIZACIÓN DE LABORES DE MANTENIMIENTO DE LA MALLA VIAL Y LAS ZONAS PÚBLICAS DE LA LOCALIDAD, ASÍ COMO ATENDER LAS EMERGENCIAS QUE SURJAN EN LA LOCALIDAD | J112: Inversión | K112: Un Nuevo Contrato Social y Ambiental para la Bogotá del Siglo XXI | L112: 49 | M112: =IF(ISERROR(VLOOKUP(L112,[9]Proposito_programa!$C$2:$E$59,2,FALSE))," ",VLOOKUP(L112,[9]Proposito_programa!$C$2:$E$59,2,FALSE)) -> Movilidad segura, sostenible y accesible | N112: =IF(ISERROR(VLOOKUP(L112,[9]Proposito_programa!$C$2:$E$59,3,FALSE))," ",VLOOKUP(L112,[9]Proposito_programa!$C$2:$E$59,3,FALSE)) -> Propósito 4: Hacer de Bogotá Región un modelo de movilidad multimodal, incluyente y sostenible | O112: 1983 | P112: 1 | Q112: 17385822 | R112: SEGUNDO ARCADIO AGUILAR PINEDA | S112: Persona Natural | W112: 20400000 | Y112: 1 | Z112: 6885000 | AA112: 27285000 | AB112: 24735000 | AC112: 44237 | AD112: 44237 | AE112: 44560 | AF112: 240 | AG112: 1 | AH112: 81 | AO112: X | AQ112: 0.9065420561
A113: 1 | B113: CPS-100-2021 | C113: 2021 | D113: FDLCB-CD-100-2021 | E113: https://community.secop.gov.co/Public/Tendering/OpportunityDetail/Index?noticeUID=CO1.NTC.1752776&isFromPublicArea=True&isModal=False | F113: Contratos de prestación de servicios profesionales y de apoyo a la gestión | G113: Contratación directa | H113: Prestación de servicios profesionales y de apoyo a la gestión, o para la ejecución de trabajos artísticos que sólo puedan encomendarse a determinadas personas naturales; | I113: PRESTAR LOS SERVICIOS PROFESIONALES PARA LA OPERACIÓN, PRESTACIÓN, SEGUIMIENTO Y CUMPLIMIENTO DE LOS PROCEDIMIENTOS ADMINISTRATIVOS, OPERATIVOS Y PROGRAMÁTICOS DEL SERVICIO APOYO ECONÓMICO TIPO C, QUE CONTRIBUYAN A LA GARANTÍA DE LOS DERECHOS DE LA POBLACIÓN MAYOR EN EL MARCO DE LA POLÍTICA PÚBLICA SOCIAL PARA EL ENVEJECIMIENTO Y LA VEJEZ EN EL DISTRITO CAPITAL A CARGO DE LA ALCALDÍA LOCAL | J113: Inversión | K113: Un Nuevo Contrato Social y Ambiental para la Bogotá del Siglo XXI | L113: 1 | M113: =IF(ISERROR(VLOOKUP(L113,[9]Proposito_programa!$C$2:$E$59,2,FALSE))," ",VLOOKUP(L113,[9]Proposito_programa!$C$2:$E$59,2,FALSE)) -> Subsidios y transferencias para la equidad | N113: =IF(ISERROR(VLOOKUP(L113,[9]Proposito_programa!$C$2:$E$59,3,FALSE))," ",VLOOKUP(L113,[9]Proposito_programa!$C$2:$E$59,3,FALSE)) -> Propósito 1: Hacer un nuevo contrato social para incrementar la inclusión social, productiva y política | O113: 1862 | P113: 1 | Q113: 40218242 | R113: JULIANA RESTREPO CABALLERO | S113: Persona Natural | W113: 40800000 | AA113: 40800000 | AB113: 40800000 | AC113: 44237 | AD113: 44238 | AE113: 44479 | AF113: 240 | AG113: 1 | AO113: X | AQ113: 1
A114: 1 | B114: CPS-101-2021 | C114: 2021 | D114: FDLCB-CD-101-2021 | E114: https://community.secop.gov.co/Public/Tendering/OpportunityDetail/Index?noticeUID=CO1.NTC.1752753&isFromPublicArea=True&isModal=False | F114: Contratos de prestación de servicios profesionales y de apoyo a la gestión | G114: Contratación directa | H114: Prestación de servicios profesionales y de apoyo a la gestión, o para la ejecución de trabajos artísticos que sólo puedan encomendarse a determinadas personas naturales; | I114: PRESTAR SUS SERVICIOS COMO CONDUCTOR DE VOLQUETA DE PROPIEDAD DEL FONDO DE DESARROLLO LOCAL DE CIUDAD BOLÍVAR PARA LA REALIZACIÓN DE LABORES DE MANTENIMIENTO DE LA MALLA VIAL Y LAS ZONAS PÚBLICAS DE LA LOCALIDAD, ASÍ COMO ATENDER LAS EMERGENCIAS QUE SURJAN EN LA LOCALIDAD | J114: Inversión | K114: Un Nuevo Contrato Social y Ambiental para la Bogotá del Siglo XXI | L114: 49 | M114: =IF(ISERROR(VLOOKUP(L114,[9]Proposito_programa!$C$2:$E$59,2,FALSE))," ",VLOOKUP(L114,[9]Proposito_programa!$C$2:$E$59,2,FALSE)) -> Movilidad segura, sostenible y accesible | N114: =IF(ISERROR(VLOOKUP(L114,[9]Proposito_programa!$C$2:$E$59,3,FALSE))," ",VLOOKUP(L114,[9]Proposito_programa!$C$2:$E$59,3,FALSE)) -> Propósito 4: Hacer de Bogotá Región un modelo de movilidad multimodal, incluyente y sostenible | O114: 1983 | P114: 1 | Q114: 79365849 | R114: LUIS ALFONSO BERNAL VIGOYA | S114: Persona Natural | W114: 20400000 | Y114: 1 | Z114: 8075000 | AA114: 28475000 | AB114: 24735000 | AC114: 44237 | AD114: 44237 | AE114: 44575 | AF114: 240 | AG114: 1 | AH114: 95 | AN114: X | AQ114: 0.8686567164
A115: 1 | B115: CPS-102-2021 | C115: 2021 | D115: FDLCB-CD-102-2021 | E115: https://community.secop.gov.co/Public/Tendering/OpportunityDetail/Index?noticeUID=CO1.NTC.1758114&isFromPublicArea=True&isModal=False | F115: Contratos de prestación de servicios profesionales y de apoyo a la gestión | G115: Contratación directa | H115: Prestación de servicios profesionales y de apoyo a la gestión, o para la ejecución de trabajos artísticos que sólo puedan encomendarse a determinadas personas naturales; | I115: APOYAR JURÍDICAMENTE LA EJECUCIÓN DE LAS ACCIONES REQUERIDAS PARA EL TRÁMITE E IMPULSO PROCESAL DE LAS ACTUACIONES CONTRAVENCIONALES Y/O QUERELLAS QUE CURSEN EN LAS INSPECCIONES DE POLICÍA DE LA LOCALIDAD | J115: Inversión | K115: Un Nuevo Contrato Social y Ambiental para la Bogotá del Siglo XXI | L115: 57 | M115: =IF(ISERROR(VLOOKUP(L115,[9]Proposito_programa!$C$2:$E$59,2,FALSE))," ",VLOOKUP(L115,[9]Proposito_programa!$C$2:$E$59,2,FALSE)) -> Gestión pública local | N115: =IF(ISERROR(VLOOKUP(L115,[9]Proposito_programa!$C$2:$E$59,3,FALSE))," ",VLOOKUP(L115,[9]Proposito_programa!$C$2:$E$59,3,FALSE)) -> Propósito 5: Construir Bogotá - Región con gobierno abierto, transparente y ciudadanía consciente | O115: 1987 | P115: 1 | Q115: 11339060 | R115: JOSE DE LOS REYES BALLESTEROS BALLESTEROS | S115: Persona Natural | W115: 40800000 | Y115: 2 | Z115: 18530000 | AA115: 59330000 | AB115: 49130000 | AC115: 44238 | AD115: 44239 | AE115: 44560 | AF115: 240 | AG115: 2 | AH115: 110 | AO115: X | AQ115: 0.8280802292
A116: 1 | B116: CPS-103-2021 | C116: 2021 | D116: FDLCB-CD-103-2021 | E116: https://community.secop.gov.co/Public/Tendering/OpportunityDetail/Index?noticeUID=CO1.NTC.1758244&isFromPublicArea=True&isModal=False | F116: Contratos de prestación de servicios profesionales y de apoyo a la gestión | G116: Contratación directa | H116: Prestación de servicios profesionales y de apoyo a la gestión, o para la ejecución de trabajos artísticos que sólo puedan encomendarse a determinadas personas naturales; | I116: APOYAR JURÍDICAMENTE LA EJECUCIÓN DE LAS ACCIONES REQUERIDAS PARA EL TRÁMITE E IMPULSO PROCESAL DE LAS ACTUACIONES CONTRAVENCIONALES Y/O QUERELLAS QUE CURSEN EN LAS INSPECCIONES DE POLICÍA DE LA LOCALIDAD | J116: Inversión | K116: Un Nuevo Contrato Social y Ambiental para la Bogotá del Siglo XXI | L116: 57 | M116: =IF(ISERROR(VLOOKUP(L116,[9]Proposito_programa!$C$2:$E$59,2,FALSE))," ",VLOOKUP(L116,[9]Proposito_programa!$C$2:$E$59,2,FALSE)) -> Gestión pública local | N116: =IF(ISERROR(VLOOKUP(L116,[9]Proposito_programa!$C$2:$E$59,3,FALSE))," ",VLOOKUP(L116,[9]Proposito_programa!$C$2:$E$59,3,FALSE)) -> Propósito 5: Construir Bogotá - Región con gobierno abierto, transparente y ciudadanía consciente | O116: 1987 | P116: 1 | Q116: 1023871439 | R116: SHIRLY RUTH GUERRERO IRIARTE | S116: Persona Natural | W116: 40800000 | Y116: 2 | Z116: 18530000 | AA116: 59330000 | AB116: 38930000 | AC116: 44238 | AD116: 44239 | AE116: 44560 | AF116: 240 | AG116: 2 | AH116: 110 | AO116: X | AQ116: 0.6561604585
A117: 1 | B117: CPS-104-2021 | C117: 2021 | D117: FDLCB-CD-104-2021 | E117: https://community.secop.gov.co/Public/Tendering/OpportunityDetail/Index?noticeUID=CO1.NTC.1757099&isFromPublicArea=True&isModal=False | F117: Contratos de prestación de servicios profesionales y de apoyo a la gestión | G117: Contratación directa | H117: Prestación de servicios profesionales y de apoyo a la gestión, o para la ejecución de trabajos artísticos que sólo puedan encomendarse a determinadas personas naturales; | I117: PRESTAR SUS SERVICIOS PROFESIONALES COMO APOYO JURÍDICO EN LOS PROCESOS DE LIQUIDACIÓN Y REVISIÓN DE SOPORTES PARA PAGO DE LAS CUENTAS DE COBRO PRESENTADAS CONFORME A LAS OBLIGACIONES Y COMPROMISOS ADQUIRIDOS POR LA ALCALDÍA LOCAL Y EN ELSEGUIMIENTO, DEPURACIÓN Y CONSOLIDACIÓN DE LA INFORMACIÓN DE LAS OBLIGACIONES POR PAGAR VIGENTES | J117: Inversión | K117: Un Nuevo Contrato Social y Ambiental para la Bogotá del Siglo XXI | L117: 57 | M117: =IF(ISERROR(VLOOKUP(L117,[9]Proposito_programa!$C$2:$E$59,2,FALSE))," ",VLOOKUP(L117,[9]Proposito_programa!$C$2:$E$59,2,FALSE)) -> Gestión pública local | N117: =IF(ISERROR(VLOOKUP(L117,[9]Proposito_programa!$C$2:$E$59,3,FALSE))," ",VLOOKUP(L117,[9]Proposito_programa!$C$2:$E$59,3,FALSE)) -> Propósito 5: Construir Bogotá - Región con gobierno abierto, transparente y ciudadanía consciente | O117: 1986 | P117: 1 | Q117: 1075288199 | R117: MIGUEL ANGEL NARVAEZ CORREA | S117: Persona Natural | W117: 40800000 | Y117: 1 | Z117: 13430000 | AA117: 54230000 | AB117: 49130000 | AC117: 44238 | AD117: 44239 | AE117: 44560 | AF117: 240 | AG117: 1 | AH117: 79 | AO117: X | AQ117: 0.9059561129
A118: 1 | B118: CPS-105-2021 | C118: 2021 | D118: FDLCB-CD-105-2021 | E118: https://community.secop.gov.co/Public/Tendering/OpportunityDetail/Index?noticeUID=CO1.NTC.1756894&isFromPublicArea=True&isModal=False | F118: Contratos de prestación de servicios profesionales y de apoyo a la gestión | G118: Contratación directa | H118: Prestación de servicios profesionales y de apoyo a la gestión, o para la ejecución de trabajos artísticos que sólo puedan encomendarse a determinadas personas naturales; | I118: PRESTACIÓN DE SERVICIOS PROFESIONALES EN EL ÁREA DE GESTIÓN DE DESARROLLO LOCAL DE CIUDAD BOLÍVAR PLANEACIÓN, REALIZANDO LAS ACTIVIDADES CONCERNIENTES AL DESARROLLO DE LOS PROYECTOS DE INVERSIÓN, SEGUIMIENTO, EVALUACIÓN Y APOYO A LAS LIQUIDACIONES DESIGNADAS, EN CUMPLIMIENTO AL PLAN DE DESARROLLO LOCAL 2021-2024. | J118: Inversión | K118: Un Nuevo Contrato Social y Ambiental para la Bogotá del Siglo XXI | L118: 57 | M118: =IF(ISERROR(VLOOKUP(L118,[9]Proposito_programa!$C$2:$E$59,2,FALSE))," ",VLOOKUP(L118,[9]Proposito_programa!$C$2:$E$59,2,FALSE)) -> Gestión pública local | N118: =IF(ISERROR(VLOOKUP(L118,[9]Proposito_programa!$C$2:$E$59,3,FALSE))," ",VLOOKUP(L118,[9]Proposito_programa!$C$2:$E$59,3,FALSE)) -> Propósito 5: Construir Bogotá - Región con gobierno abierto, transparente y ciudadanía consciente | O118: 1986 | P118: 1 | Q118: 80851013 | R118: DIEGO ANDRES CATÓLICO AMAYA | S118: Persona Natural | W118: 45600000 | Y118: 1 | Z118: 15200000 | AA118: 60800000 | AB118: 55100000 | AC118: 44238 | AD118: 44238 | AE118: 44560 | AF118: 240 | AG118: 1 | AH118: 80 | AO118: X | AQ118: 0.90625
A119: 1 | B119: CPS-106-2021 | C119: 2021 | D119: FDLCB-CD-106-2021 | E119: https://community.secop.gov.co/Public/Tendering/OpportunityDetail/Index?noticeUID=CO1.NTC.1757529&isFromPublicArea=True&isModal=False | F119: Contratos de prestación de servicios profesionales y de apoyo a la gestión | G119: Contratación directa | H119: Prestación de servicios profesionales y de apoyo a la gestión, o para la ejecución de trabajos artísticos que sólo puedan encomendarse a determinadas personas naturales; | I119: PRESTAR SUS SERVICIOS PROFESIONALES COMO APOYO EN EL PROCESO DE LIQUIDACIÓN DE LOS CONVENIOS Y CONTRATOS SUSCRITOS POR EL FONDO DE DESARROLLO LOCAL DE CIUDAD BOLÍVAR Y EN EL SEGUIMIENTO, DEPURACIÓN Y CONSOLIDACIÓN DE LA INFORMACIÓN DE LAS OBLIGACIONES POR PAGAR VIGENTES. | J119: Inversión | K119: Un Nuevo Contrato Social y Ambiental para la Bogotá del Siglo XXI | L119: 57 | M119: =IF(ISERROR(VLOOKUP(L119,[9]Proposito_programa!$C$2:$E$59,2,FALSE))," ",VLOOKUP(L119,[9]Proposito_programa!$C$2:$E$59,2,FALSE)) -> Gestión pública local | N119: =IF(ISERROR(VLOOKUP(L119,[9]Proposito_programa!$C$2:$E$59,3,FALSE))," ",VLOOKUP(L119,[9]Proposito_programa!$C$2:$E$59,3,FALSE)) -> Propósito 5: Construir Bogotá - Región con gobierno abierto, transparente y ciudadanía consciente | O119: 1986 | P119: 1 | Q119: 1013595161 | R119: GINA ROCIO ROJAS PEÑA | S119: Persona Natural | W119: 40800000 | Y119: 1 | Z119: 13430000 | AA119: 54230000 | AB119: 49130000 | AC119: 44238 | AD119: 44239 | AE119: 44560 | AF119: 240 | AG119: 1 | AH119: 79 | AO119: X | AQ119: 0.9059561129
A120: 1 | B120: CPS-107-2021 | C120: 2021 | D120: FDLCB-CD-107-2021 | E120: https://community.secop.gov.co/Public/Tendering/OpportunityDetail/Index?noticeUID=CO1.NTC.1757064&isFromPublicArea=True&isModal=False | F120: Contratos de prestación de servicios profesionales y de apoyo a la gestión | G120: Contratación directa | H120: Prestación de servicios profesionales y de apoyo a la gestión, o para la ejecución de trabajos artísticos que sólo puedan encomendarse a determinadas personas naturales; | I120: PRESTAR SERVICIOS PROFESIONALES ESPECIALIZADOS PARA APOYAR EN LAS ETAPAS PRECONTRACTUAL, CONTRACTUAL Y POST-CONTRACTUAL DE LOS PROCESOS DE CONTRATACIÓN QUE ADELANTE EL FONDO DE DESARROLLO LOCAL DE CIUDAD BOLÍVAR | J120: Inversión | K120: Un Nuevo Contrato Social y Ambiental para la Bogotá del Siglo XXI | L120: 57 | M120: =IF(ISERROR(VLOOKUP(L120,[9]Proposito_programa!$C$2:$E$59,2,FALSE))," ",VLOOKUP(L120,[9]Proposito_programa!$C$2:$E$59,2,FALSE)) -> Gestión pública local | N120: =IF(ISERROR(VLOOKUP(L120,[9]Proposito_programa!$C$2:$E$59,3,FALSE))," ",VLOOKUP(L120,[9]Proposito_programa!$C$2:$E$59,3,FALSE)) -> Propósito 5: Construir Bogotá - Región con gobierno abierto, transparente y ciudadanía consciente | O120: 1986 | P120: 1 | Q120: 80060862 | R120: JOSE RAFAEL MORENO RODRIGUEZ | S120: Persona Natural | W120: 59200000 | Y120: 1 | Z120: 22940000 | AA120: 82140000 | AB120: 71286667 | AC120: 44238 | AD120: 44239 | AE120: 44575 | AF120: 240 | AG120: 1 | AH120: 93 | AN120: X | AQ120: 0.8678678719
A121: 1 | B121: CPS-108-2021 | C121: 2021 | D121: FDLCDB-CD-108-2021 | E121: https://community.secop.gov.co/Public/Tendering/OpportunityDetail/Index?noticeUID=CO1.NTC.1757767&isFromPublicArea=True&isModal=False | F121: Contratos de prestación de servicios profesionales y de apoyo a la gestión | G121: Contratación directa | H121: Prestación de servicios profesionales y de apoyo a la gestión, o para la ejecución de trabajos artísticos que sólo puedan encomendarse a determinadas personas naturales; | I121: PRESTAR SUS SERVICIOS PROFESIONALES COMO APOYO JURÍDICO EN LOS PROCESOS DE LIQUIDACIÓN Y REVISIÓN DE SOPORTES PARA PAGO DE LAS CUENTAS DE COBRO PRESENTADAS CONFORME A LAS OBLIGACIONES Y COMPROMISOS ADQUIRIDOS POR LA ALCALDÍA LOCAL Y EN EL SEGUIMIENTO, DEPURACIÓN Y CONSOLIDACIÓN DE LA INFORMACIÓN DE LAS OBLIGACIONES POR PAGAR VIGENTES. | J121: Inversión | K121: Un Nuevo Contrato Social y Ambiental para la Bogotá del Siglo XXI | L121: 57 | M121: =IF(ISERROR(VLOOKUP(L121,[9]Proposito_programa!$C$2:$E$59,2,FALSE))," ",VLOOKUP(L121,[9]Proposito_programa!$C$2:$E$59,2,FALSE)) -> Gestión pública local | N121: =IF(ISERROR(VLOOKUP(L121,[9]Proposito_programa!$C$2:$E$59,3,FALSE))," ",VLOOKUP(L121,[9]Proposito_programa!$C$2:$E$59,3,FALSE)) -> Propósito 5: Construir Bogotá - Región con gobierno abierto, transparente y ciudadanía consciente | O121: 1986 | P121: 1 | Q121: 40418444 | R121: ADRIANA LLANOS GONZALEZ | S121: Persona Natural | W121: 40800000 | Y121: 1 | Z121: 13430000 | AA121: 54230000 | AB121: 49130000 | AC121: 44238 | AD121: 44239 | AE121: 44560 | AF121: 240 | AG121: 1 | AH121: 79 | AO121: X | AQ121: 0.9059561129
A122: 1 | B122: CPS-109-2021 | C122: 2021 | D122: FDLCB-CD-109-2021 | E122: https://community.secop.gov.co/Public/Tendering/OpportunityDetail/Index?noticeUID=CO1.NTC.1757801&isFromPublicArea=True&isModal=False | F122: Contratos de prestación de servicios profesionales y de apoyo a la gestión | G122: Contratación directa | H122: Prestación de servicios profesionales y de apoyo a la gestión, o para la ejecución de trabajos artísticos que sólo puedan encomendarse a determinadas personas naturales; | I122: PRESTAR SUS SERVICIOS PROFESIONALES COMO APOYO JURÍDICO EN LOS PROCESOS DE LIQUIDACIÓN Y REVISIÓN DE SOPORTES PARA PAGO DE LAS CUENTAS DE COBRO PRESENTADAS CONFORME A LAS OBLIGACIONES Y COMPROMISOS ADQUIRIDOS POR LA ALCALDÍA LOCAL Y EN EL SEGUIMIENTO, DEPURACIÓN Y CONSOLIDACIÓN DE LA INFORMACIÓN DE LAS OBLIGACIONES POR PAGAR VIGENTES | J122: Inversión | K122: Un Nuevo Contrato Social y Ambiental para la Bogotá del Siglo XXI | L122: 57 | M122: =IF(ISERROR(VLOOKUP(L122,[9]Proposito_programa!$C$2:$E$59,2,FALSE))," ",VLOOKUP(L122,[9]Proposito_programa!$C$2:$E$59,2,FALSE)) -> Gestión pública local | N122: =IF(ISERROR(VLOOKUP(L122,[9]Proposito_programa!$C$2:$E$59,3,FALSE))," ",VLOOKUP(L122,[9]Proposito_programa!$C$2:$E$59,3,FALSE)) -> Propósito 5: Construir Bogotá - Región con gobierno abierto, transparente y ciudadanía consciente | O122: 1986 | P122: 1 | Q122: 1030564257 | R122: ANA EMILIA ARENAS | S122: Persona Natural | W122: 40800000 | Y122: 1 | Z122: 18530000 | AA122: 59330000 | AB122: 49130000 | AC122: 44238 | AD122: 44238 | AE122: 44560 | AF122: 240 | AG122: 1 | AH122: 79 | AO122: X | AQ122: 0.8280802292
A123: 1 | B123: CPS-110-2021 | C123: 2021 | D123: FDLCB-CD-110-2021 | E123: https://community.secop.gov.co/Public/Tendering/OpportunityDetail/Index?noticeUID=CO1.NTC.1757614&isFromPublicArea=True&isModal=False | F123: Contratos de prestación de servicios profesionales y de apoyo a la gestión | G123: Contratación directa | H123: Prestación de servicios profesionales y de apoyo a la gestión, o para la ejecución de trabajos artísticos que sólo puedan encomendarse a determinadas personas naturales; | I123: PRESTACIÓN DE SERVICIOS PROFESIONALES EN EL ÁREA DE GESTIÓN DE DESARROLLO LOCAL DE CIUDAD BOLÍVAR PLANEACIÓN, REALIZANDO LAS ACTIVIDADES CONCERNIENTES AL DESARROLLO DE LOS PROYECTOS DE INVERSIÓN, SEGUIMIENTO, EVALUACIÓN Y APOYO A LAS LIQUIDACIONES DESIGNADAS, EN CUMPLIMIENTO AL PLAN DE DESARROLLO LOCAL 2021-2024. | J123: Inversión | K123: Un Nuevo Contrato Social y Ambiental para la Bogotá del Siglo XXI | L123: 57 | M123: =IF(ISERROR(VLOOKUP(L123,[9]Proposito_programa!$C$2:$E$59,2,FALSE))," ",VLOOKUP(L123,[9]Proposito_programa!$C$2:$E$59,2,FALSE)) -> Gestión pública local | N123: =IF(ISERROR(VLOOKUP(L123,[9]Proposito_programa!$C$2:$E$59,3,FALSE))," ",VLOOKUP(L123,[9]Proposito_programa!$C$2:$E$59,3,FALSE)) -> Propósito 5: Construir Bogotá - Región con gobierno abierto, transparente y ciudadanía consciente | O123: 1986 | P123: 1 | Q123: 1082930673 | R123: JESUS DAVID TORRES PEREZ | S123: Persona Natural | W123: 45600000 | Y123: 1 | Z123: 15200000 | AA123: 60800000 | AB123: 55100000 | AC123: 44238 | AD123: 44238 | AE123: 44560 | AF123: 240 | AG123: 1 | AH123: 80 | AO123: X | AQ123: 0.90625
A124: 1 | B124: CPS-111-2021 | C124: 2021 | D124: FDLCB-CD-111-2021 | E124: https://community.secop.gov.co/Public/Tendering/OpportunityDetail/Index?noticeUID=CO1.NTC.1757563&isFromPublicArea=True&isModal=False | F124: Contratos de prestación de servicios profesionales y de apoyo a la gestión | G124: Contratación directa | H124: Prestación de servicios profesionales y de apoyo a la gestión, o para la ejecución de trabajos artísticos que sólo puedan encomendarse a determinadas personas naturales; | I124: PRESTAR SUS SERVICIOS PROFESIONALES PARA REALIZAR TODAS LAS ACTIVIDADES CONCERNIENTES AL DESARROLLO DE LOS PROYECTOS DE INFRAESTRUCTURA EN LOS COMPONENTES QUE LE SEAN DESIGNADOS EN EL MARCO DEL PLAN DE DESARROLLO LOCAL 2021-2024 DE CIUDAD BOLÍVAR | J124: Inversión | K124: Un Nuevo Contrato Social y Ambiental para la Bogotá del Siglo XXI | L124: 57 | M124: =IF(ISERROR(VLOOKUP(L124,[9]Proposito_programa!$C$2:$E$59,2,FALSE))," ",VLOOKUP(L124,[9]Proposito_programa!$C$2:$E$59,2,FALSE)) -> Gestión pública local | N124: =IF(ISERROR(VLOOKUP(L124,[9]Proposito_programa!$C$2:$E$59,3,FALSE))," ",VLOOKUP(L124,[9]Proposito_programa!$C$2:$E$59,3,FALSE)) -> Propósito 5: Construir Bogotá - Región con gobierno abierto, transparente y ciudadanía consciente | O124: 1986 | P124: 1 | Q124: 80019206 | R124: CARLOS ANDRES DUQUE SANABRIA | S124: Persona Natural | W124: 48000000 | AA124: 48000000 | AB124: 45200000 | AC124: 44238 | AD124: 44242 | AE124: 44483 | AF124: 240 | AO124: X | AQ124: 0.9416666667
A125: 1 | B125: CPS-112-2021 | C125: 2021 | D125: FDLCB-CD-112-2021 | E125: https://community.secop.gov.co/Public/Tendering/OpportunityDetail/Index?noticeUID=CO1.NTC.1757293&isFromPublicArea=True&isModal=False | F125: Contratos de prestación de servicios profesionales y de apoyo a la gestión | G125: Contratación directa | H125: Prestación de servicios profesionales y de apoyo a la gestión, o para la ejecución de trabajos artísticos que sólo puedan encomendarse a determinadas personas naturales; | I125: APOYAR TÉCNICAMENTE LAS DISTINTAS ETAPAS DE LOS PROCESOS DE COMPETENCIA DE LA ALCALDÍA LOCAL PARA LA DEPURACIÓN DE ACTUACIONES ADMINISTRATIVAS | J125: Inversión | K125: Un Nuevo Contrato Social y Ambiental para la Bogotá del Siglo XXI | L125: 57 | M125: =IF(ISERROR(VLOOKUP(L125,[9]Proposito_programa!$C$2:$E$59,2,FALSE))," ",VLOOKUP(L125,[9]Proposito_programa!$C$2:$E$59,2,FALSE)) -> Gestión pública local | N125: =IF(ISERROR(VLOOKUP(L125,[9]Proposito_programa!$C$2:$E$59,3,FALSE))," ",VLOOKUP(L125,[9]Proposito_programa!$C$2:$E$59,3,FALSE)) -> Propósito 5: Construir Bogotá - Región con gobierno abierto, transparente y ciudadanía consciente | O125: 1987 | P125: 1 | Q125: 1121906944 | R125: NAGZARY QUEVEDO MORENO | S125: Persona Natural | W125: 40800000 | Y125: 2 | Z125: 18020000 | AA125: 58820000 | AB125: 48620000 | AC125: 44238 | AD125: 44242 | AE125: 44560 | AF125: 240 | AG125: 2 | AH125: 107 | AI125: 80076012 | AJ125: JHOAN EDUARDO RUIZ AGUILAR | AK125: 44348 | AL125: 22780000 | AO125: X | AQ125: 0.8265895954
A126: 1 | B126: CPS-113-2021 | C126: 2021 | D126: FDLCB-CD-113-2021 | E126: https://community.secop.gov.co/Public/Tendering/OpportunityDetail/Index?noticeUID=CO1.NTC.1756878&isFromPublicArea=True&isModal=False | F126: Contratos de prestación de servicios profesionales y de apoyo a la gestión | G126: Contratación directa | H126: Prestación de servicios profesionales y de apoyo a la gestión, o para la ejecución de trabajos artísticos que sólo puedan encomendarse a determinadas personas naturales; | I126: GARANTIZAR EL APOYO, LA PROMOCIÓN, ACOMPAÑAMIENTO, ARTICULACIÓN DE LAS INSTANCIAS DE COORDINACIÓN INTERINSTITUCIONALES Y LAS INSTANCIAS DE PARTICIPACIÓN AL ALCALDE LOCAL EN ATENCIÓN DE LOS SECTORES POBLACIONALES, ASÍ COMO LOS PROCESOS COMUNITARIOS EN LA LOCALIDAD. | J126: Inversión | K126: Un Nuevo Contrato Social y Ambiental para la Bogotá del Siglo XXI | L126: 57 | M126: =IF(ISERROR(VLOOKUP(L126,[9]Proposito_programa!$C$2:$E$59,2,FALSE))," ",VLOOKUP(L126,[9]Proposito_programa!$C$2:$E$59,2,FALSE)) -> Gestión pública local | N126: =IF(ISERROR(VLOOKUP(L126,[9]Proposito_programa!$C$2:$E$59,3,FALSE))," ",VLOOKUP(L126,[9]Proposito_programa!$C$2:$E$59,3,FALSE)) -> Propósito 5: Construir Bogotá - Región con gobierno abierto, transparente y ciudadanía consciente | O126: 1986 | P126: 1 | Q126: 1024492792 | R126: LILIAN MARYORLY GOMEZ CARDENAS | S126: Persona Natural | W126: 40800000 | Y126: 1 | Z126: 12920000 | AA126: 53720000 | AB126: 48620000 | AC126: 44238 | AD126: 44242 | AE126: 44560 | AF126: 240 | AG126: 1 | AH126: 76 | AO126: X | AQ126: 0.9050632911
A127: 1 | B127: CPS-114-2021 | C127: 2021 | D127: FDLCB-CD-114-2021 | E127: https://community.secop.gov.co/Public/Tendering/OpportunityDetail/Index?noticeUID=CO1.NTC.1756892&isFromPublicArea=True&isModal=False | F127: Contratos de prestación de servicios profesionales y de apoyo a la gestión | G127: Contratación directa | H127: Prestación de servicios profesionales y de apoyo a la gestión, o para la ejecución de trabajos artísticos que sólo puedan encomendarse a determinadas personas naturales; | I127: PRESTAR LOS SERVICIOS DE APOYO PARA REALIZAR ACTIVIDADES TÉCNICAS EN EL ÁREA DE GESTIÓN DEL DESARROLLO LOCAL - COORDINACIÓN ADMINISTRATIVA Y FINANCIERA | J127: Inversión | K127: Un Nuevo Contrato Social y Ambiental para la Bogotá del Siglo XXI | L127: 57 | M127: =IF(ISERROR(VLOOKUP(L127,[9]Proposito_programa!$C$2:$E$59,2,FALSE))," ",VLOOKUP(L127,[9]Proposito_programa!$C$2:$E$59,2,FALSE)) -> Gestión pública local | N127: =IF(ISERROR(VLOOKUP(L127,[9]Proposito_programa!$C$2:$E$59,3,FALSE))," ",VLOOKUP(L127,[9]Proposito_programa!$C$2:$E$59,3,FALSE)) -> Propósito 5: Construir Bogotá - Región con gobierno abierto, transparente y ciudadanía consciente | O127: 1986 | P127: 1 | Q127: 79772464 | R127: EDWIN ANTONIO CORTES FLOREZ | S127: Persona Natural | W127: 28000000 | Y127: 1 | Z127: 8750000 | AA127: 36750000 | AB127: 33250000 | AC127: 44238 | AD127: 44243 | AE127: 44560 | AF127: 240 | AG127: 1 | AH127: 75 | AO127: X | AQ127: 0.9047619048
A128: 1 | B128: CPS-115-2021 | C128: 2021 | D128: FDLCB-CD-115-2021 | E128: https://community.secop.gov.co/Public/Tendering/OpportunityDetail/Index?noticeUID=CO1.NTC.1760596&isFromPublicArea=True&isModal=False | F128: Contratos de prestación de servicios profesionales y de apoyo a la gestión | G128: Contratación directa | H128: Prestación de servicios profesionales y de apoyo a la gestión, o para la ejecución de trabajos artísticos que sólo puedan encomendarse a determinadas personas naturales; | I128: PRESTAR SUS SERVICIOS PROFESIONALES PARA REALIZAR TODAS LAS ACTIVIDADES CONCERNIENTES AL DESARROLLO DE LOS PROYECTOS DE INFRAESTRUCTURA EN LOS COMPONENTES QUE LE SEAN DESIGNADOS EN EL MARCO DEL PLAN DE DESARROLLO LOCAL 2021-2024 DE CIUDAD BOLÍVAR | J128: Inversión | K128: Un Nuevo Contrato Social y Ambiental para la Bogotá del Siglo XXI | L128: 57 | M128: =IF(ISERROR(VLOOKUP(L128,[9]Proposito_programa!$C$2:$E$59,2,FALSE))," ",VLOOKUP(L128,[9]Proposito_programa!$C$2:$E$59,2,FALSE)) -> Gestión pública local | N128: =IF(ISERROR(VLOOKUP(L128,[9]Proposito_programa!$C$2:$E$59,3,FALSE))," ",VLOOKUP(L128,[9]Proposito_programa!$C$2:$E$59,3,FALSE)) -> Propósito 5: Construir Bogotá - Región con gobierno abierto, transparente y ciudadanía consciente | O128: 1986 | P128: 1 | Q128: 52489542 | R128: MAGDA LORENA DAVILA VELANDIA | S128: Persona Natural | W128: 48000000 | Y128: 1 | Z128: 15200000 | AA128: 63200000 | AB128: 57200000 | AC128: 44239 | AD128: 44243 | AE128: 44560 | AF128: 240 | AG128: 1 | AH128: 76 | AO128: X | AQ128: 0.9050632911
A129: 1 | B129: CPS-116-2021 | C129: 2021 | D129: FDLCB-CD-116-2021 | E129: https://community.secop.gov.co/Public/Tendering/OpportunityDetail/Index?noticeUID=CO1.NTC.1760676&isFromPublicArea=True&isModal=False | F129: Contratos de prestación de servicios profesionales y de apoyo a la gestión | G129: Contratación directa | H129: Prestación de servicios profesionales y de apoyo a la gestión, o para la ejecución de trabajos artísticos que sólo puedan encomendarse a determinadas personas naturales; | I129: APOYAR JURÍDICAMENTE LA EJECUCIÓN DE LAS ACCIONES REQUERIDAS PARA EL TRÁMITE E IMPULSO PROCESAL DE LAS ACTUACIONES CONTRAVENCIONALES Y/O QUERELLAS QUE CURSEN EN LAS INSPECCIONES DE POLICÍA DE LA LOCALIDAD. | J129: Inversión | K129: Un Nuevo Contrato Social y Ambiental para la Bogotá del Siglo XXI | L129: 57 | M129: =IF(ISERROR(VLOOKUP(L129,[9]Proposito_programa!$C$2:$E$59,2,FALSE))," ",VLOOKUP(L129,[9]Proposito_programa!$C$2:$E$59,2,FALSE)) -> Gestión pública local | N129: =IF(ISERROR(VLOOKUP(L129,[9]Proposito_programa!$C$2:$E$59,3,FALSE))," ",VLOOKUP(L129,[9]Proposito_programa!$C$2:$E$59,3,FALSE)) -> Propósito 5: Construir Bogotá - Región con gobierno abierto, transparente y ciudadanía consciente | O129: 1987 | P129: 1 | Q129: 44157549 | R129: OLGA ELENA MENDOZA NAVARRO | S129: Persona Natural | W129: 40800000 | Y129: 2 | Z129: 13770000 | AA129: 54570000 | AB129: 44370000 | AC129: 44263 | AD129: 44266 | AE129: 44560 | AF129: 240 | AG129: 2 | AH129: 82 | AI129: 1024556125 | AJ129: DAYANA CAROLINA SAENZ DUQUE | AK129: 44335 | AL129: 29240000 | AO129: X | AQ129: 0.8130841121
A130: 1 | B130: CPS-117-2021 | C130: 2021 | D130: FDLCB-CD-117-2021 | E130: https://community.secop.gov.co/Public/Tendering/OpportunityDetail/Index?noticeUID=CO1.NTC.1762016&isFromPublicArea=True&isModal=False | F130: Contratos de prestación de servicios profesionales y de apoyo a la gestión | G130: Contratación directa | H130: Prestación de servicios profesionales y de apoyo a la gestión, o para la ejecución de trabajos artísticos que sólo puedan encomendarse a determinadas personas naturales; | I130: APOYAR JURÍDICAMENTE LA EJECUCIÓN DE LAS ACCIONES REQUERIDAS PARA EL TRÁMITE E IMPULSO PROCESAL DE LAS ACTUACIONES CONTRAVENCIONALES Y/O QUERELLAS QUE CURSEN EN LAS INSPECCIONES DE POLICÍA - CORREGIDURÍAS DE LA LOCALIDAD. | J130: Inversión | K130: Un Nuevo Contrato Social y Ambiental para la Bogotá del Siglo XXI | L130: 57 | M130: =IF(ISERROR(VLOOKUP(L130,[9]Proposito_programa!$C$2:$E$59,2,FALSE))," ",VLOOKUP(L130,[9]Proposito_programa!$C$2:$E$59,2,FALSE)) -> Gestión pública local | N130: =IF(ISERROR(VLOOKUP(L130,[9]Proposito_programa!$C$2:$E$59,3,FALSE))," ",VLOOKUP(L130,[9]Proposito_programa!$C$2:$E$59,3,FALSE)) -> Propósito 5: Construir Bogotá - Región con gobierno abierto, transparente y ciudadanía consciente | O130: 1987 | P130: 1 | Q130: 1032400954 | R130: JUAN GABRIEL MORA CARVAJAL | S130: Persona Natural | W130: 40800000 | AA130: 40800000 | AB130: 38250000 | AC130: 44239 | AD130: 44243 | AE130: 44484 | AF130: 240 | AO130: X | AQ130: 0.9375
A131: 1 | B131: CPS-118-2021 | C131: 2021 | D131: FDLCB-CD-118-2021 | E131: https://community.secop.gov.co/Public/Tendering/OpportunityDetail/Index?noticeUID=CO1.NTC.1761278&isFromPublicArea=True&isModal=False | F131: Contratos de prestación de servicios profesionales y de apoyo a la gestión | G131: Contratación directa | H131: Prestación de servicios profesionales y de apoyo a la gestión, o para la ejecución de trabajos artísticos que sólo puedan encomendarse a determinadas personas naturales; | I131: GARANTIZAR EL APOYO, LA PROMOCIÓN, ACOMPAÑAMIENTO, ARTICULACIÓN DE LAS INSTANCIAS DE COORDINACIÓN INTERINSTITUCIONALES Y LAS INSTANCIAS DE PARTICIPACIÓN AL ALCALDE LOCAL EN ATENCIÓN DE LOS SECTORES POBLACIONALES, ASÍ COMO LOS PROCESOS COMUNITARIOS EN LA LOCALIDAD. | J131: Inversión | K131: Un Nuevo Contrato Social y Ambiental para la Bogotá del Siglo XXI | L131: 57 | M131: =IF(ISERROR(VLOOKUP(L131,[9]Proposito_programa!$C$2:$E$59,2,FALSE))," ",VLOOKUP(L131,[9]Proposito_programa!$C$2:$E$59,2,FALSE)) -> Gestión pública local | N131: =IF(ISERROR(VLOOKUP(L131,[9]Proposito_programa!$C$2:$E$59,3,FALSE))," ",VLOOKUP(L131,[9]Proposito_programa!$C$2:$E$59,3,FALSE)) -> Propósito 5: Construir Bogotá - Región con gobierno abierto, transparente y ciudadanía consciente | O131: 1986 | P131: 1 | Q131: 1121865527 | R131: JORGE MIGUEL NUR HERNANDEZ | S131: Persona Natural | W131: 40800000 | Y131: 2 | Z131: 17850000 | AA131: 58650000 | AB131: 48840000 | AC131: 44239 | AD131: 44243 | AE131: 44560 | AF131: 240 | AG131: 2 | AH131: 106 | AI131: 53046563 | AJ131: ANGIE CAROLINA PULIDO VELASQUEZ | AK131: 44320 | AL131: 27540000 | AO131: X | AQ131: 0.8327365729
A132: 1 | B132: CPS-119-2021 | C132: 2021 | D132: FDLCB-CD-119-2021 | E132: https://community.secop.gov.co/Public/Tendering/OpportunityDetail/Index?noticeUID=CO1.NTC.1761651&isFromPublicArea=True&isModal=False | F132: Contratos de prestación de servicios profesionales y de apoyo a la gestión | G132: Contratación directa | H132: Prestación de servicios profesionales y de apoyo a la gestión, o para la ejecución de trabajos artísticos que sólo puedan encomendarse a determinadas personas naturales; | I132: PRESTAR SUS SERVICIOS COMO CONDUCTOR DE VEHÍCULO LIVIANO DE PROPIEDAD DEL FONDO DE DESARROLLO LOCAL DE CIUDAD BOLÍVAR | J132: Inversión | K132: Un Nuevo Contrato Social y Ambiental para la Bogotá del Siglo XXI | L132: 57 | M132: =IF(ISERROR(VLOOKUP(L132,[9]Proposito_programa!$C$2:$E$59,2,FALSE))," ",VLOOKUP(L132,[9]Proposito_programa!$C$2:$E$59,2,FALSE)) -> Gestión pública local | N132: =IF(ISERROR(VLOOKUP(L132,[9]Proposito_programa!$C$2:$E$59,3,FALSE))," ",VLOOKUP(L132,[9]Proposito_programa!$C$2:$E$59,3,FALSE)) -> Propósito 5: Construir Bogotá - Región con gobierno abierto, transparente y ciudadanía consciente | O132: 1986 | P132: 1 | Q132: 80791969 | R132: JOSE ALEJANDRO ESCOBAR RAMIREZ | S132: Persona Natural | W132: 18400000 | Y132: 1 | Z132: 5826667 | AA132: 24226667 | AB132: 21926667 | AC132: 44239 | AD132: 44243 | AE132: 44560 | AF132: 240 | AG132: 1 | AH132: 76 | AO132: X | AQ132: 0.9050632924
A133: 1 | B133: CPS-120-2021 | C133: 2021 | D133: FDLCB-CD-120-2021 | E133: https://community.secop.gov.co/Public/Tendering/OpportunityDetail/Index?noticeUID=CO1.NTC.1762410&isFromPublicArea=True&isModal=False | F133: Contratos de prestación de servicios profesionales y de apoyo a la gestión | G133: Contratación directa | H133: Prestación de servicios profesionales y de apoyo a la gestión, o para la ejecución de trabajos artísticos que sólo puedan encomendarse a determinadas personas naturales; | I133: PRESTAR SUS SERVICIOS PROFESIONALES PARA DESARROLLAR TODAS LAS ACTIVIDADES CONCERNIENTES A LA CONSECUCIÓN DE BIENES Y/O SERVICIOS PARA LA LOCALIDAD DE CIUDAD BOLÍVAR DE ACUERDO CON LOS PROCEDIMIENTOS ESTABLECIDOS EN EL SIG Y A LA NORMATIVIDAD VIGENTE EN MATERIA DE CONTRATACIÓN ESTATAL EN CUMPLIMIENTO DE LAS METAS ESTABLECIDAS EN EL PLAN DE DESARROLLO LOCAL DE CIUDAD BOLÍVAR, PLAN DE GESTIÓN Y PLAN ANUAL DE ADQUISICIONES. | J133: Inversión | K133: Un Nuevo Contrato Social y Ambiental para la Bogotá del Siglo XXI | L133: 57 | M133: =IF(ISERROR(VLOOKUP(L133,[9]Proposito_programa!$C$2:$E$59,2,FALSE))," ",VLOOKUP(L133,[9]Proposito_programa!$C$2:$E$59,2,FALSE)) -> Gestión pública local | N133: =IF(ISERROR(VLOOKUP(L133,[9]Proposito_programa!$C$2:$E$59,3,FALSE))," ",VLOOKUP(L133,[9]Proposito_programa!$C$2:$E$59,3,FALSE)) -> Propósito 5: Construir Bogotá - Región con gobierno abierto, transparente y ciudadanía consciente | O133: 1986 | P133: 1 | Q133: 1022359129 | R133: CRISTIAM CAMILO PEDRAZA MARTINEZ | S133: Persona Natural | W133: 48000000 | Y133: 1 | Z133: 17800000 | AA133: 65800000 | AB133: 57000000 | AC133: 44239 | AD133: 44243 | AE133: 44575 | AF133: 240 | AG133: 1 | AH133: 89 | AI133: 52504466 | AJ133: YENNY ANDREA VARGAS VELASQUEZ | AK133: 44418 | AL133: 17800000 | AO133: X | AQ133: 0.8662613982
A134: 1 | B134: CPS-121-2021 | C134: 2021 | D134: FDLCB-CD-121-2021 | E134: https://community.secop.gov.co/Public/Tendering/OpportunityDetail/Index?noticeUID=CO1.NTC.1766395&isFromPublicArea=True&isModal=False | F134: Contratos de prestación de servicios profesionales y de apoyo a la gestión | G134: Contratación directa | H134: Prestación de servicios profesionales y de apoyo a la gestión, o para la ejecución de trabajos artísticos que sólo puedan encomendarse a determinadas personas naturales; | I134: PRESTAR SUS SERVICIOS PROFESIONALES PARA LA PROGRAMACIÓN, ORGANIZACIÓN Y REALIZACIÓN DE ACTIVIDADES QUE SE DESARROLLEN EN LA CASA DE LA CULTURA DE ARBORIZADORA BAJA UBICADA EN LA LOCALIDAD DE CIUDAD BOLÍVAR | J134: Inversión | K134: Un Nuevo Contrato Social y Ambiental para la Bogotá del Siglo XXI | L134: 57 | M134: =IF(ISERROR(VLOOKUP(L134,[9]Proposito_programa!$C$2:$E$59,2,FALSE))," ",VLOOKUP(L134,[9]Proposito_programa!$C$2:$E$59,2,FALSE)) -> Gestión pública local | N134: =IF(ISERROR(VLOOKUP(L134,[9]Proposito_programa!$C$2:$E$59,3,FALSE))," ",VLOOKUP(L134,[9]Proposito_programa!$C$2:$E$59,3,FALSE)) -> Propósito 5: Construir Bogotá - Región con gobierno abierto, transparente y ciudadanía consciente | O134: 1986 | P134: 1 | Q134: 1121892159 | R134: RODRIGO ANDRES ROJAS VILLALOBOS | S134: Persona Natural | W134: 40800000 | Y134: 1 | Z134: 12750000 | AA134: 53550000 | AB134: 48450000 | AC134: 44242 | AD134: 44243 | AE134: 44560 | AF134: 240 | AG134: 1 | AH134: 75 | AO134: X | AQ134: 0.9047619048
A135: 1 | B135: CPS-122-2021 | C135: 2021 | D135: FDLCB-CD-122-2021 | E135: https://community.secop.gov.co/Public/Tendering/OpportunityDetail/Index?noticeUID=CO1.NTC.1766472&isFromPublicArea=True&isModal=False | F135: Contratos de prestación de servicios profesionales y de apoyo a la gestión | G135: Contratación directa | H135: Prestación de servicios profesionales y de apoyo a la gestión, o para la ejecución de trabajos artísticos que sólo puedan encomendarse a determinadas personas naturales; | I135: PRESTAR LOS SERVICIOS PROFESIONALES PARA LA OPERACIÓN, PRESTACIÓN, SEGUIMIENTO Y CUMPLIMIENTO DE LOS PROCEDIMIENTOS ADMINISTRATIVOS, OPERATIVOS Y PROGRAMÁTICOS DEL SERVICIO APOYO ECONÓMICO TIPO C, QUE CONTRIBUYAN A LA GARANTÍA DE LOS DERECHOS DE LA POBLACIÓN MAYOR EN EL MARCO DE LA POLÍTICA PÚBLICA SOCIAL PARA EL ENVEJECIMIENTO Y LA VEJEZ EN EL DISTRITO CAPITAL A CARGO DE LA ALCALDÍA LOCAL. | J135: Inversión | K135: Un Nuevo Contrato Social y Ambiental para la Bogotá del Siglo XXI | L135: 1 | M135: =IF(ISERROR(VLOOKUP(L135,[9]Proposito_programa!$C$2:$E$59,2,FALSE))," ",VLOOKUP(L135,[9]Proposito_programa!$C$2:$E$59,2,FALSE)) -> Subsidios y transferencias para la equidad | N135: =IF(ISERROR(VLOOKUP(L135,[9]Proposito_programa!$C$2:$E$59,3,FALSE))," ",VLOOKUP(L135,[9]Proposito_programa!$C$2:$E$59,3,FALSE)) -> Propósito 1: Hacer un nuevo contrato social para incrementar la inclusión social, productiva y política | O135: 1862 | P135: 1 | Q135: 1061701525 | R135: GERMAN ANIBAL MARTINEZ VALDERRAMA | S135: Persona Natural | W135: 40800000 | Y135: 1 | Z135: 15130000 | AA135: 55930000 | AB135: 48450000 | AC135: 44242 | AD135: 44243 | AE135: 44575 | AF135: 240 | AG135: 1 | AH135: 89 | AN135: X | AQ135: 0.8662613982
A136: 1 | B136: CPS-123-2021 | C136: 2021 | D136: FDLCB-CD-123-2021 | E136: https://community.secop.gov.co/Public/Tendering/OpportunityDetail/Index?noticeUID=CO1.NTC.1766461&isFromPublicArea=True&isModal=False | F136: Contratos de prestación de servicios profesionales y de apoyo a la gestión | G136: Contratación directa | H136: Prestación de servicios profesionales y de apoyo a la gestión, o para la ejecución de trabajos artísticos que sólo puedan encomendarse a determinadas personas naturales; | I136: PRESTAR APOYO LOGÍSTICO Y ADMINISTRATIVO EN EL MANEJO DEL PARQUE AUTOMOTOR DE PROPIEDAD DE LA ALCALDÍA LOCAL DE CIUDAD BOLÍVAR | J136: Inversión | K136: Un Nuevo Contrato Social y Ambiental para la Bogotá del Siglo XXI | L136: 57 | M136: =IF(ISERROR(VLOOKUP(L136,[9]Proposito_programa!$C$2:$E$59,2,FALSE))," ",VLOOKUP(L136,[9]Proposito_programa!$C$2:$E$59,2,FALSE)) -> Gestión pública local | N136: =IF(ISERROR(VLOOKUP(L136,[9]Proposito_programa!$C$2:$E$59,3,FALSE))," ",VLOOKUP(L136,[9]Proposito_programa!$C$2:$E$59,3,FALSE)) -> Propósito 5: Construir Bogotá - Región con gobierno abierto, transparente y ciudadanía consciente | O136: 1986 | P136: 1 | Q136: 1024515510 | R136: JIMMY ALEXANDER PALACIOS | S136: Persona Natural | W136: 25600000 | Y136: 2 | Z136: 11306667 | AA136: 36906667 | AB136: 30506667 | AC136: 44242 | AD136: 44243 | AE136: 44560 | AF136: 240 | AG136: 2 | AH136: 107 | AO136: X | AQ136: 0.8265895969
A137: 1 | B137: CPS-124-2021 | C137: 2021 | D137: FDLCB-CD-124-2021 | E137: https://community.secop.gov.co/Public/Tendering/OpportunityDetail/Index?noticeUID=CO1.NTC.1767462&isFromPublicArea=True&isModal=False | F137: Contratos de prestación de servicios profesionales y de apoyo a la gestión | G137: Contratación directa | H137: Prestación de servicios profesionales y de apoyo a la gestión, o para la ejecución de trabajos artísticos que sólo puedan encomendarse a determinadas personas naturales; | I137: PRESTAR LOS SERVICIOS DE APOYO PARA REALIZAR ACTIVIDADES ASISTENCIALES EN LAS DIFERENTES DEPENDENCIAS DE LA ALCALDÍA LOCAL DE CIUDAD BOLÍVAR | J137: Inversión | K137: Un Nuevo Contrato Social y Ambiental para la Bogotá del Siglo XXI | L137: 57 | M137: =IF(ISERROR(VLOOKUP(L137,[9]Proposito_programa!$C$2:$E$59,2,FALSE))," ",VLOOKUP(L137,[9]Proposito_programa!$C$2:$E$59,2,FALSE)) -> Gestión pública local | N137: =IF(ISERROR(VLOOKUP(L137,[9]Proposito_programa!$C$2:$E$59,3,FALSE))," ",VLOOKUP(L137,[9]Proposito_programa!$C$2:$E$59,3,FALSE)) -> Propósito 5: Construir Bogotá - Región con gobierno abierto, transparente y ciudadanía consciente | O137: 1986 | P137: 1 | Q137: 1026264819 | R137: NAZLY CATHERINE CHICO | S137: Persona Natural | W137: 26400000 | Y137: 1 | Z137: 8250000 | AA137: 34650000 | AB137: 31350000 | AC137: 44242 | AD137: 44243 | AE137: 44560 | AF137: 240 | AG137: 1 | AH137: 75 | AO137: X | AQ137: 0.9047619048
A138: 1 | B138: CPS-125-2021 | C138: 2021 | D138: FDLCB-CD-125-2021 | E138: https://community.secop.gov.co/Public/Tendering/OpportunityDetail/Index?noticeUID=CO1.NTC.1767662&isFromPublicArea=True&isModal=False | F138: Contratos de prestación de servicios profesionales y de apoyo a la gestión | G138: Contratación directa | H138: Prestación de servicios profesionales y de apoyo a la gestión, o para la ejecución de trabajos artísticos que sólo puedan encomendarse a determinadas personas naturales; | I138: PRESTAR SUS SERVICIOS COMO CONDUCTOR DE VEHÍCULO LIVIANO DE PROPIEDAD DEL FONDO DE DESARROLLO LOCAL DE CIUDAD BOLÍVAR. | J138: Inversión | K138: Un Nuevo Contrato Social y Ambiental para la Bogotá del Siglo XXI | L138: 57 | M138: =IF(ISERROR(VLOOKUP(L138,[9]Proposito_programa!$C$2:$E$59,2,FALSE))," ",VLOOKUP(L138,[9]Proposito_programa!$C$2:$E$59,2,FALSE)) -> Gestión pública local | N138: =IF(ISERROR(VLOOKUP(L138,[9]Proposito_programa!$C$2:$E$59,3,FALSE))," ",VLOOKUP(L138,[9]Proposito_programa!$C$2:$E$59,3,FALSE)) -> Propósito 5: Construir Bogotá - Región con gobierno abierto, transparente y ciudadanía consciente | O138: 1986 | P138: 1 | Q138: 1233690414 | R138: JUAN DAVID CAMPO ARANDA | S138: Persona Natural | W138: 18400000 | Y138: 2 | Z138: 8050000 | AA138: 26450000 | AB138: 21850000 | AC138: 44242 | AD138: 44243 | AE138: 44560 | AF138: 240 | AG138: 2 | AH138: 106 | AO138: X | AQ138: 0.8260869565
A139: 1 | B139: CPS-126-2021 | C139: 2021 | D139: FDLCB-CD-126-2021 | E139: https://community.secop.gov.co/Public/Tendering/OpportunityDetail/Index?noticeUID=CO1.NTC.1767135&isFromPublicArea=True&isModal=False | F139: Contratos de prestación de servicios profesionales y de apoyo a la gestión | G139: Contratación directa | H139: Prestación de servicios profesionales y de apoyo a la gestión, o para la ejecución de trabajos artísticos que sólo puedan encomendarse a determinadas personas naturales; | I139: PRESTAR LOS SERVICIOS PROFESIONALES PARA LA OPERACIÓN, PRESTACIÓN, SEGUIMIENTO Y CUMPLIMIENTO DE LOS PROCEDIMIENTOS ADMINISTRATIVOS, OPERATIVOS Y PROGRAMÁTICOS DEL SERVICIO APOYO ECONÓMICO TIPO C, QUE CONTRIBUYAN A LA GARANTÍA DE LOS DERECHOS DE LA POBLACIÓN MAYOR EN EL MARCO DE LA POLÍTICA PÚBLICA SOCIAL PARA EL ENVEJECIMIENTO Y LA VEJEZ EN EL DISTRITO CAPITAL A CARGO DE LA ALCALDÍA LOCAL | J139: Inversión | K139: Un Nuevo Contrato Social y Ambiental para la Bogotá del Siglo XXI | L139: 1 | M139: =IF(ISERROR(VLOOKUP(L139,[9]Proposito_programa!$C$2:$E$59,2,FALSE))," ",VLOOKUP(L139,[9]Proposito_programa!$C$2:$E$59,2,FALSE)) -> Subsidios y transferencias para la equidad | N139: =IF(ISERROR(VLOOKUP(L139,[9]Proposito_programa!$C$2:$E$59,3,FALSE))," ",VLOOKUP(L139,[9]Proposito_programa!$C$2:$E$59,3,FALSE)) -> Propósito 1: Hacer un nuevo contrato social para incrementar la inclusión social, productiva y política | O139: 1862 | P139: 1 | Q139: 86088251 | R139: FRANCISCO JAVIER BUITRAGO GOMEZ | S139: Persona Natural | W139: 40800000 | Y139: 1 | Z139: 12750000 | AA139: 53550000 | AB139: 48150000 | AC139: 44242 | AD139: 44243 | AE139: 44484 | AF139: 240 | AG139: 1 | AH139: 75 | AO139: X | AQ139: 0.8991596639
A140: 1 | B140: CPS-127-2021 | C140: 2021 | D140: FDLCB-CD-127-2021 | E140: https://community.secop.gov.co/Public/Tendering/OpportunityDetail/Index?noticeUID=CO1.NTC.1768252&isFromPublicArea=True&isModal=False | F140: Contratos de prestación de servicios profesionales y de apoyo a la gestión | G140: Contratación directa | H140: Prestación de servicios profesionales y de apoyo a la gestión, o para la ejecución de trabajos artísticos que sólo puedan encomendarse a determinadas personas naturales; | I140: APOYAR JURÍDICAMENTE LA EJECUCIÓN DE LAS ACCIONES REQUERIDAS PARA EL TRÁMITE E IMPULSO PROCESAL DE LAS ACTUACIONES CONTRAVENCIONALES Y/O QUERELLAS QUE CURSEN EN LAS INSPECCIONES DE POLICÍA DE LA LOCALIDAD. | J140: Inversión | K140: Un Nuevo Contrato Social y Ambiental para la Bogotá del Siglo XXI | L140: 57 | M140: =IF(ISERROR(VLOOKUP(L140,[9]Proposito_programa!$C$2:$E$59,2,FALSE))," ",VLOOKUP(L140,[9]Proposito_programa!$C$2:$E$59,2,FALSE)) -> Gestión pública local | N140: =IF(ISERROR(VLOOKUP(L140,[9]Proposito_programa!$C$2:$E$59,3,FALSE))," ",VLOOKUP(L140,[9]Proposito_programa!$C$2:$E$59,3,FALSE)) -> Propósito 5: Construir Bogotá - Región con gobierno abierto, transparente y ciudadanía consciente | O140: 1987 | P140: 1 | Q140: 79367938 | R140: JOSE EDGAR CHAPARRO CASTIBLANCO | S140: Persona Natural | W140: 40800000 | Y140: 2 | Z140: 17850000 | AA140: 58650000 | AB140: 48450000 | AC140: 44242 | AD140: 44243 | AE140: 44560 | AF140: 240 | AG140: 2 | AH140: 106 | AO140: X | AQ140: 0.8260869565
A141: 1 | B141: CPS-128-2021 | C141: 2021 | D141: FDLCB-CD-128-2021 | E141: https://community.secop.gov.co/Public/Tendering/OpportunityDetail/Index?noticeUID=CO1.NTC.1768273&isFromPublicArea=True&isModal=False | F141: Contratos de prestación de servicios profesionales y de apoyo a la gestión | G141: Contratación directa | H141: Prestación de servicios profesionales y de apoyo a la gestión, o para la ejecución de trabajos artísticos que sólo puedan encomendarse a determinadas personas naturales; | I141: PRESTAR APOYO TÉCNICO DE TODAS LAS ACTIVIDADES DE TIPO OPERATIVO Y ADMINISTRATIVO RELACIONADAS CON TODOS LOS PROYECTOS (COMPONENTES) Y CONTRATOS DE INFRAESTRUCTURA, EL MARCO DEL PLAN DE DESARROLLO LOCAL 2017-2020 | J141: Inversión | K141: Un Nuevo Contrato Social y Ambiental para la Bogotá del Siglo XXI | L141: 57 | M141: =IF(ISERROR(VLOOKUP(L141,[9]Proposito_programa!$C$2:$E$59,2,FALSE))," ",VLOOKUP(L141,[9]Proposito_programa!$C$2:$E$59,2,FALSE)) -> Gestión pública local | N141: =IF(ISERROR(VLOOKUP(L141,[9]Proposito_programa!$C$2:$E$59,3,FALSE))," ",VLOOKUP(L141,[9]Proposito_programa!$C$2:$E$59,3,FALSE)) -> Propósito 5: Construir Bogotá - Región con gobierno abierto, transparente y ciudadanía consciente | O141: 1986 | P141: 1 | Q141: 1024515563 | R141: MONICA JOHANNA CHIPATECUA QUEVEDO | S141: Persona Natural | W141: 28000000 | Y141: 2 | Z141: 12250000 | AA141: 40250000 | AB141: 33250000 | AC141: 44242 | AD141: 44243 | AE141: 44560 | AF141: 240 | AG141: 2 | AH141: 106 | AO141: X | AQ141: 0.8260869565
A142: 1 | B142: CPS-129-2021 | C142: 2021 | D142: FDLCB-CD-129-2021 | E142: https://community.secop.gov.co/Public/Tendering/OpportunityDetail/Index?noticeUID=CO1.NTC.1771150&isFromPublicArea=True&isModal=False | F142: Contratos de prestación de servicios profesionales y de apoyo a la gestión | G142: Contratación directa | H142: Prestación de servicios profesionales y de apoyo a la gestión, o para la ejecución de trabajos artísticos que sólo puedan encomendarse a determinadas personas naturales; | I142: PRESTAR LOS SERVICIOS PROFESIONALES DE APOYO JURÍDICO AL ÁREA DE GESTIÓN POLICIVA NORMATIVA Y JURÍDICA DE LA ALCALDÍA LOCAL DE CIUDAD BOLÍVAR EN LA COORDINACIÓN DE OPERATIVOS INTERINSTITUCIONALES, PARA EL CONTROL DE LOS POLÍGONOS DE MONITOREO Y OCUPACIONES ILEGALES EN PREDIOS QUE SE ENCUENTRAN EN ZONAS DE PROTECCIÓN O PRESENTAN RIESGO, CONFORME A LAS FUNCIONES ASIGNADAS A LA ALCALDÍA LOCAL | J142: Inversión | K142: Un Nuevo Contrato Social y Ambiental para la Bogotá del Siglo XXI | L142: 57 | M142: =IF(ISERROR(VLOOKUP(L142,[9]Proposito_programa!$C$2:$E$59,2,FALSE))," ",VLOOKUP(L142,[9]Proposito_programa!$C$2:$E$59,2,FALSE)) -> Gestión pública local | N142: =IF(ISERROR(VLOOKUP(L142,[9]Proposito_programa!$C$2:$E$59,3,FALSE))," ",VLOOKUP(L142,[9]Proposito_programa!$C$2:$E$59,3,FALSE)) -> Propósito 5: Construir Bogotá - Región con gobierno abierto, transparente y ciudadanía consciente | O142: 1987 | P142: 1 | Q142: 51654246 | R142: MARIA LUISA PARRA | S142: Persona Natural | W142: 48000000 | Y142: 1 | Z142: 17600000 | AA142: 65600000 | AB142: 56800000 | AC142: 44243 | AD142: 44244 | AE142: 44575 | AF142: 240 | AG142: 1 | AH142: 88 | AN142: X | AQ142: 0.8658536585
A143: 1 | B143: CPS-130-2021 | C143: 2021 | D143: FDLCB-CD-130-2021 | E143: https://community.secop.gov.co/Public/Tendering/OpportunityDetail/Index?noticeUID=CO1.NTC.1770967&isFromPublicArea=True&isModal=False | F143: Contratos de prestación de servicios profesionales y de apoyo a la gestión | G143: Contratación directa | H143: Prestación de servicios profesionales y de apoyo a la gestión, o para la ejecución de trabajos artísticos que sólo puedan encomendarse a determinadas personas naturales; | I143: APOYAR EN LAS TAREAS OPERATIVAS DE CARÁCTER ARCHIVÍSTICO DESARROLLADAS EN LA ALCALDÍA LOCAL PARA GARANTIZAR LA APLICACIÓN CORRECTA DE LOS PROCEDIMIENTOS TÉCNICOS | J143: Inversión | K143: Un Nuevo Contrato Social y Ambiental para la Bogotá del Siglo XXI | L143: 57 | M143: =IF(ISERROR(VLOOKUP(L143,[9]Proposito_programa!$C$2:$E$59,2,FALSE))," ",VLOOKUP(L143,[9]Proposito_programa!$C$2:$E$59,2,FALSE)) -> Gestión pública local | N143: =IF(ISERROR(VLOOKUP(L143,[9]Proposito_programa!$C$2:$E$59,3,FALSE))," ",VLOOKUP(L143,[9]Proposito_programa!$C$2:$E$59,3,FALSE)) -> Propósito 5: Construir Bogotá - Región con gobierno abierto, transparente y ciudadanía consciente | O143: 1986 | P143: 1 | Q143: 1014221158 | R143: JHON JAIRO ARIAS CADAVID | S143: Persona Natural | W143: 26400000 | Y143: 2 | Z143: 11440000 | AA143: 37840000 | AB143: 31240000 | AC143: 44243 | AD143: 44244 | AE143: 44560 | AF143: 240 | AG143: 2 | AH143: 105 | AO143: X | AQ143: 0.8255813953
A144: 1 | B144: CPS-132-2021 | C144: 2021 | D144: FDLCB-CD-132-2021 | E144: https://community.secop.gov.co/Public/Tendering/OpportunityDetail/Index?noticeUID=CO1.NTC.1771033&isFromPublicArea=True&isModal=False | F144: Contratos de prestación de servicios profesionales y de apoyo a la gestión | G144: Contratación directa | H144: Prestación de servicios profesionales y de apoyo a la gestión, o para la ejecución de trabajos artísticos que sólo puedan encomendarse a determinadas personas naturales; | I144: APOYAR LAS LABORES DE ENTREGA Y RECIBO DE LAS COMUNICACIONES EMITIDAS O RECIBIDAS POR LAS INSPECCIONES DE POLICÍA DE LA LOCALIDAD. | J144: Inversión | K144: Un Nuevo Contrato Social y Ambiental para la Bogotá del Siglo XXI | L144: 57 | M144: =IF(ISERROR(VLOOKUP(L144,[9]Proposito_programa!$C$2:$E$59,2,FALSE))," ",VLOOKUP(L144,[9]Proposito_programa!$C$2:$E$59,2,FALSE)) -> Gestión pública local | N144: =IF(ISERROR(VLOOKUP(L144,[9]Proposito_programa!$C$2:$E$59,3,FALSE))," ",VLOOKUP(L144,[9]Proposito_programa!$C$2:$E$59,3,FALSE)) -> Propósito 5: Construir Bogotá - Región con gobierno abierto, transparente y ciudadanía consciente | O144: 1987 | P144: 1 | Q144: 79603539 | R144: JULIO CESAR BARRANTES | S144: Persona Natural | W144: 19200000 | Y144: 2 | Z144: 8320000 | AA144: 27520000 | AB144: 22720000 | AC144: 44243 | AD144: 44244 | AE144: 44560 | AF144: 240 | AG144: 2 | AH144: 105 | AO144: X | AQ144: 0.8255813953
A145: 1 | B145: CPS-133-2021 | C145: 2021 | D145: FDLCB-CD-133-2021 | E145: https://community.secop.gov.co/Public/Tendering/OpportunityDetail/Index?noticeUID=CO1.NTC.1770899&isFromPublicArea=True&isModal=False | F145: Contratos de prestación de servicios profesionales y de apoyo a la gestión | G145: Contratación directa | H145: Prestación de servicios profesionales y de apoyo a la gestión, o para la ejecución de trabajos artísticos que sólo puedan encomendarse a determinadas personas naturales; | I145: PRESTAR LOS SERVICIOS PROFESIONALES DE APOYO JURÍDICO AL ÁREA DE GESTIÓN POLICIVA, NORMATIVA Y JURÍDICA DEL FONDO DE DESARROLLO LOCAL DE CIUDAD BOLÍVAR EN EL DESEMPEÑO DE LAS FUNCIONES ASIGNADAS. | J145: Inversión | K145: Un Nuevo Contrato Social y Ambiental para la Bogotá del Siglo XXI | L145: 57 | M145: =IF(ISERROR(VLOOKUP(L145,[9]Proposito_programa!$C$2:$E$59,2,FALSE))," ",VLOOKUP(L145,[9]Proposito_programa!$C$2:$E$59,2,FALSE)) -> Gestión pública local | N145: =IF(ISERROR(VLOOKUP(L145,[9]Proposito_programa!$C$2:$E$59,3,FALSE))," ",VLOOKUP(L145,[9]Proposito_programa!$C$2:$E$59,3,FALSE)) -> Propósito 5: Construir Bogotá - Región con gobierno abierto, transparente y ciudadanía consciente | O145: 1987 | P145: 1 | Q145: 20384661 | R145: LEYDY YOHANNA AMORTEGUI PEDRAZA | S145: Persona Natural | W145: 40800000 | Y145: 2 | Z145: 17680000 | AA145: 58480000 | AB145: 48280000 | AC145: 44243 | AD145: 44244 | AE145: 44560 | AF145: 240 | AG145: 2 | AH145: 105 | AO145: X | AQ145: 0.8255813953
A146: 1 | B146: CPS-134-2021 | C146: 2021 | D146: FDLCB-CD-134-2021 | E146: https://community.secop.gov.co/Public/Tendering/OpportunityDetail/Index?noticeUID=CO1.NTC.1771609&isFromPublicArea=True&isModal=False | F146: Contratos de prestación de servicios profesionales y de apoyo a la gestión | G146: Contratación directa | H146: Prestación de servicios profesionales y de apoyo a la gestión, o para la ejecución de trabajos artísticos que sólo puedan encomendarse a determinadas personas naturales; | I146: APOYAR LAS LABORES DE ENTREGA Y RECIBO DE LAS COMUNICACIONES EMITIDAS O RECIBIDAS POR LAS DIFERENTES DEPENDENCIAS DEL ÁREA DE GESTIÓN DESARROLLO LOCAL DE LA ALCALDÍA LOCAL DE CIUDAD BOLÍVAR. | J146: Inversión | K146: Un Nuevo Contrato Social y Ambiental para la Bogotá del Siglo XXI | L146: 57 | M146: =IF(ISERROR(VLOOKUP(L146,[9]Proposito_programa!$C$2:$E$59,2,FALSE))," ",VLOOKUP(L146,[9]Proposito_programa!$C$2:$E$59,2,FALSE)) -> Gestión pública local | N146: =IF(ISERROR(VLOOKUP(L146,[9]Proposito_programa!$C$2:$E$59,3,FALSE))," ",VLOOKUP(L146,[9]Proposito_programa!$C$2:$E$59,3,FALSE)) -> Propósito 5: Construir Bogotá - Región con gobierno abierto, transparente y ciudadanía consciente | O146: 1986 | P146: 1 | Q146: 1032417443 | R146: JUAN CAMILO MOLINA | S146: Persona Natural | W146: 18240000 | Y146: 1 | Z146: 5624000 | AA146: 23864000 | AB146: 21584000 | AC146: 44243 | AD146: 44244 | AE146: 44560 | AF146: 240 | AG146: 1 | AH146: 74 | AO146: X | AQ146: 0.9044585987
A147: 1 | B147: CPS-135-2021 | C147: 2021 | D147: FDLCB-CD-135-2021 | E147: https://community.secop.gov.co/Public/Tendering/OpportunityDetail/Index?noticeUID=CO1.NTC.1774002&isFromPublicArea=True&isModal=False | F147: Contratos de prestación de servicios profesionales y de apoyo a la gestión | G147: Contratación directa | H147: Prestación de servicios profesionales y de apoyo a la gestión, o para la ejecución de trabajos artísticos que sólo puedan encomendarse a determinadas personas naturales; | I147: APOYAR LA GESTIÓN DOCUMENTAL DE LA ALCALDÍA LOCAL EN LA IMPLEMENTACIÓN DE LOS PROCESOS DE CLASIFICACIÓN, ORDENACIÓN, SELECCIÓN NATURAL, FOLIACIÓN, IDENTIFICACIÓN, LEVANTAMIENTO DE INVENTARIOS, ALMACENAMIENTO Y APLICACIÓN DE PROTOCOLOS DE ELIMINACIÓN Y TRANSFERENCIAS DOCUMENTALES | J147: Inversión | K147: Un Nuevo Contrato Social y Ambiental para la Bogotá del Siglo XXI | L147: 57 | M147: =IF(ISERROR(VLOOKUP(L147,[9]Proposito_programa!$C$2:$E$59,2,FALSE))," ",VLOOKUP(L147,[9]Proposito_programa!$C$2:$E$59,2,FALSE)) -> Gestión pública local | N147: =IF(ISERROR(VLOOKUP(L147,[9]Proposito_programa!$C$2:$E$59,3,FALSE))," ",VLOOKUP(L147,[9]Proposito_programa!$C$2:$E$59,3,FALSE)) -> Propósito 5: Construir Bogotá - Región con gobierno abierto, transparente y ciudadanía consciente | O147: 1986 | P147: 1 | Q147: 1233489049 | R147: KAREN GISELL RODRIGUEZ MENDOZA | S147: Persona Natural | W147: 16800000 | AA147: =+W147+X147+Z147 -> 16800000 | AB147: 16800000 | AC147: 44244 | AD147: 44245 | AE147: 44486 | AF147: 240 | AO147: X | AQ147: =IF(ISERROR(AB147/AA147),"-",(AB147/AA147)) -> 1
A148: 1 | B148: CPS-136-2021 | C148: 2021 | D148: FDLCB-CD-136-2021 | E148: https://community.secop.gov.co/Public/Tendering/OpportunityDetail/Index?noticeUID=CO1.NTC.1774271&isFromPublicArea=True&isModal=False | F148: Contratos de prestación de servicios profesionales y de apoyo a la gestión | G148: Contratación directa | H148: Prestación de servicios profesionales y de apoyo a la gestión, o para la ejecución de trabajos artísticos que sólo puedan encomendarse a determinadas personas naturales; | I148: APOYAR LA GESTIÓN DOCUMENTAL DE LA ALCALDÍA LOCAL EN LA IMPLEMENTACIÓN DE LOS PROCESOS DE CLASIFICACIÓN, ORDENACIÓN, SELECCIÓN NATURAL, FOLIACIÓN, IDENTIFICACIÓN, LEVANTAMIENTO DE INVENTARIOS, ALMACENAMIENTO Y APLICACIÓN DE PROTOCOLOS DE ELIMINACIÓN Y TRANSFERENCIAS DOCUMENTALES | J148: Inversión | K148: Un Nuevo Contrato Social y Ambiental para la Bogotá del Siglo XXI | L148: 57 | M148: =IF(ISERROR(VLOOKUP(L148,[9]Proposito_programa!$C$2:$E$59,2,FALSE))," ",VLOOKUP(L148,[9]Proposito_programa!$C$2:$E$59,2,FALSE)) -> Gestión pública local | N148: =IF(ISERROR(VLOOKUP(L148,[9]Proposito_programa!$C$2:$E$59,3,FALSE))," ",VLOOKUP(L148,[9]Proposito_programa!$C$2:$E$59,3,FALSE)) -> Propósito 5: Construir Bogotá - Región con gobierno abierto, transparente y ciudadanía consciente | O148: 1986 | P148: 1 | Q148: 1030633818 | R148: JOSE LUIS ALAPE LIZCANO | S148: Persona Natural | W148: 16800000 | Y148: 1 | Z148: 5180000 | AA148: 21980000 | AB148: 19880000 | AC148: 44244 | AD148: 44244 | AE148: 44560 | AF148: 240 | AG148: 1 | AH148: 74 | AO148: X | AQ148: 0.9044585987
A149: 1 | B149: CPS-137-2021 | C149: 2021 | D149: FDLCB-CD-137-2021 | E149: https://community.secop.gov.co/Public/Tendering/OpportunityDetail/Index?noticeUID=CO1.NTC.1772979&isFromPublicArea=True&isModal=False | F149: Contratos de prestación de servicios profesionales y de apoyo a la gestión | G149: Contratación directa | H149: Prestación de servicios profesionales y de apoyo a la gestión, o para la ejecución de trabajos artísticos que sólo puedan encomendarse a determinadas personas naturales; | I149: APOYAR ADMINISTRATIVA Y ASISTENCIALMENTE A LAS INSPECCIONES DE POLICÍA DE LA LOCALIDAD | J149: Inversión | K149: Un Nuevo Contrato Social y Ambiental para la Bogotá del Siglo XXI | L149: 57 | M149: =IF(ISERROR(VLOOKUP(L149,[9]Proposito_programa!$C$2:$E$59,2,FALSE))," ",VLOOKUP(L149,[9]Proposito_programa!$C$2:$E$59,2,FALSE)) -> Gestión pública local | N149: =IF(ISERROR(VLOOKUP(L149,[9]Proposito_programa!$C$2:$E$59,3,FALSE))," ",VLOOKUP(L149,[9]Proposito_programa!$C$2:$E$59,3,FALSE)) -> Propósito 5: Construir Bogotá - Región con gobierno abierto, transparente y ciudadanía consciente | O149: 1987 | P149: 1 | Q149: 1121903261 | R149: LINA MARIA GONZALEZ RODRIGUEZ | S149: Persona Natural | W149: 16800000 | Y149: 2 | Z149: 7280000 | AA149: 24080000 | AB149: 19880000 | AC149: 44244 | AD149: 44244 | AE149: 44560 | AF149: 240 | AG149: 2 | AH149: 105 | AO149: X | AQ149: 0.8255813953
A150: 1 | B150: CPS-138-2021 | C150: 2021 | D150: FDLCB-CD-138-2021 | E150: https://community.secop.gov.co/Public/Tendering/OpportunityDetail/Index?noticeUID=CO1.NTC.1774480&isFromPublicArea=True&isModal=False | F150: Contratos de prestación de servicios profesionales y de apoyo a la gestión | G150: Contratación directa | H150: Prestación de servicios profesionales y de apoyo a la gestión, o para la ejecución de trabajos artísticos que sólo puedan encomendarse a determinadas personas naturales; | I150: APOYAR LAS LABORES DE ENTREGA Y RECIBO DE LAS COMUNICACIONES EMITIDAS O RECIBIDAS POR LAS INSPECCIONES DE POLICÍA DE LA LOCALIDAD | J150: Inversión | K150: Un Nuevo Contrato Social y Ambiental para la Bogotá del Siglo XXI | L150: 57 | M150: =IF(ISERROR(VLOOKUP(L150,[9]Proposito_programa!$C$2:$E$59,2,FALSE))," ",VLOOKUP(L150,[9]Proposito_programa!$C$2:$E$59,2,FALSE)) -> Gestión pública local | N150: =IF(ISERROR(VLOOKUP(L150,[9]Proposito_programa!$C$2:$E$59,3,FALSE))," ",VLOOKUP(L150,[9]Proposito_programa!$C$2:$E$59,3,FALSE)) -> Propósito 5: Construir Bogotá - Región con gobierno abierto, transparente y ciudadanía consciente | O150: 1987 | P150: 1 | Q150: 79991955 | R150: JOHAAN ANDRÉS CHAVEZ LANDINEZ | S150: Persona Natural | W150: 19200000 | Y150: 2 | Z150: 8160000 | AA150: 27360000 | AB150: 22560000 | AC150: 44245 | AD150: 44246 | AE150: 44560 | AF150: 240 | AG150: 2 | AH150: 103 | AO150: X | AQ150: 0.8245614035
A151: 1 | B151: CPS-139-2021 | C151: 2021 | D151: FDLCB-CD-139-2021 | E151: https://community.secop.gov.co/Public/Tendering/OpportunityDetail/Index?noticeUID=CO1.NTC.1774810&isFromPublicArea=True&isModal=False | F151: Contratos de prestación de servicios profesionales y de apoyo a la gestión | G151: Contratación directa | H151: Prestación de servicios profesionales y de apoyo a la gestión, o para la ejecución de trabajos artísticos que sólo puedan encomendarse a determinadas personas naturales; | I151: PRESTAR SUS SERVICIOS PROFESIONALES PARA APOYAR LA FORMULACIÓN, GESTIÓN Y SEGUIMIENTO DE ACTIVIDADES ENFOCADAS A LA GESTIÓN AMBIENTAL EXTERNA, ENCAMINADAS A LA MITIGACIÓN DE LOS DIFERENTES IMPACTOS AMBIENTALES Y LA CONSERVACIÓN DE LOS RECURSOS NATURALES DE LA LOCALIDAD DE CIUDAD BOLÍVAR | J151: Inversión | K151: Un Nuevo Contrato Social y Ambiental para la Bogotá del Siglo XXI | L151: 57 | M151: =IF(ISERROR(VLOOKUP(L151,[9]Proposito_programa!$C$2:$E$59,2,FALSE))," ",VLOOKUP(L151,[9]Proposito_programa!$C$2:$E$59,2,FALSE)) -> Gestión pública local | N151: =IF(ISERROR(VLOOKUP(L151,[9]Proposito_programa!$C$2:$E$59,3,FALSE))," ",VLOOKUP(L151,[9]Proposito_programa!$C$2:$E$59,3,FALSE)) -> Propósito 5: Construir Bogotá - Región con gobierno abierto, transparente y ciudadanía consciente | O151: 1986 | P151: 1 | Q151: 75095818 | R151: ANDRES FELIPE SEPULVEDA BETANCOURT | S151: Persona Natural | W151: 45600000 | Y151: 1 | Z151: 14060000 | AA151: 59660000 | AB151: 53960000 | AC151: 44244 | AD151: 44244 | AE151: 44560 | AF151: 240 | AG151: 1 | AH151: 74 | AO151: X | AQ151: 0.9044585987
A152: 1 | B152: CPS-140-2021 | C152: 2021 | D152: FDLCB-CD-140-2021 | E152: https://community.secop.gov.co/Public/Tendering/OpportunityDetail/Index?noticeUID=CO1.NTC.1774666&isFromPublicArea=True&isModal=False | F152: Contratos de prestación de servicios profesionales y de apoyo a la gestión | G152: Contratación directa | H152: Prestación de servicios profesionales y de apoyo a la gestión, o para la ejecución de trabajos artísticos que sólo puedan encomendarse a determinadas personas naturales; | I152: APOYAR LA GESTIÓN DOCUMENTAL DE LA ALCALDÍA LOCAL EN LA IMPLEMENTACIÓN DE LOS PROCESOS DE CLASIFICACIÓN, ORDENACIÓN, SELECCIÓN NATURAL, FOLIACIÓN, IDENTIFICACIÓN, LEVANTAMIENTO DE INVENTARIOS, ALMACENAMIENTO Y APLICACIÓN DE PROTOCOLOS DE ELIMINACIÓN Y TRANSFERENCIAS DOCUMENTALES | J152: Inversión | K152: Un Nuevo Contrato Social y Ambiental para la Bogotá del Siglo XXI | L152: 57 | M152: =IF(ISERROR(VLOOKUP(L152,[9]Proposito_programa!$C$2:$E$59,2,FALSE))," ",VLOOKUP(L152,[9]Proposito_programa!$C$2:$E$59,2,FALSE)) -> Gestión pública local | N152: =IF(ISERROR(VLOOKUP(L152,[9]Proposito_programa!$C$2:$E$59,3,FALSE))," ",VLOOKUP(L152,[9]Proposito_programa!$C$2:$E$59,3,FALSE)) -> Propósito 5: Construir Bogotá - Región con gobierno abierto, transparente y ciudadanía consciente | O152: 1986 | P152: 1 | Q152: 1010228506 | R152: SANDRA MILENA PALACIOS PALACIOS | S152: Persona Natural | W152: 16800000 | Y152: 1 | Z152: 5110000 | AA152: 21910000 | AB152: 19810000 | AC152: 44244 | AD152: 44245 | AE152: 44560 | AF152: 240 | AG152: 1 | AH152: 73 | AO152: X | AQ152: 0.9041533546
A153: 1 | B153: CPS-141-2021 | C153: 2021 | D153: FDLCB-CD-141-2021 | E153: https://community.secop.gov.co/Public/Tendering/OpportunityDetail/Index?noticeUID=CO1.NTC.1775678&isFromPublicArea=True&isModal=False | F153: Contratos de prestación de servicios profesionales y de apoyo a la gestión | G153: Contratación directa | H153: Prestación de servicios profesionales y de apoyo a la gestión, o para la ejecución de trabajos artísticos que sólo puedan encomendarse a determinadas personas naturales; | I153: PRESTAR LOS SERVICIOS DE APOYO PARA REALIZAR ACTIVIDADES ASISTENCIALES EN LAS DIFERENTES DEPENDENCIAS DE LA ALCALDÍA LOCAL DE CIUDAD BOLÍVAR | J153: Inversión | K153: Un Nuevo Contrato Social y Ambiental para la Bogotá del Siglo XXI | L153: 57 | M153: =IF(ISERROR(VLOOKUP(L153,[9]Proposito_programa!$C$2:$E$59,2,FALSE))," ",VLOOKUP(L153,[9]Proposito_programa!$C$2:$E$59,2,FALSE)) -> Gestión pública local | N153: =IF(ISERROR(VLOOKUP(L153,[9]Proposito_programa!$C$2:$E$59,3,FALSE))," ",VLOOKUP(L153,[9]Proposito_programa!$C$2:$E$59,3,FALSE)) -> Propósito 5: Construir Bogotá - Región con gobierno abierto, transparente y ciudadanía consciente | O153: 1986 | P153: 1 | Q153: 52457037 | R153: CLAUDIA MARIA OVALLE BUITRAGO | S153: Persona Natural | W153: 26400000 | Y153: 1 | Z153: 8030000 | AA153: 34430000 | AB153: 31130000 | AC153: 44244 | AD153: 44245 | AE153: 44560 | AF153: 240 | AG153: 1 | AH153: 73 | AO153: X | AQ153: 0.9041533546
A154: 1 | B154: CPS-142-2021 | C154: 2021 | D154: FDLCB-CD-142-2021 | E154: https://community.secop.gov.co/Public/Tendering/OpportunityDetail/Index?noticeUID=CO1.NTC.1775673&isFromPublicArea=True&isModal=False | F154: Contratos de prestación de servicios profesionales y de apoyo a la gestión | G154: Contratación directa | H154: Prestación de servicios profesionales y de apoyo a la gestión, o para la ejecución de trabajos artísticos que sólo puedan encomendarse a determinadas personas naturales; | I154: PRESTAR LOS SERVICIOS TÉCNICOS PARA LA OPERACIÓN, SEGUIMIENTO Y CUMPLIMIENTO DE LOS PROCESOS Y PROCEDIMIENTOS DEL SERVICIO APOYOS ECONÓMICOS TIPO C, REQUERIDOS PARA EL OPORTUNO Y ADECUADO REGISTRO, CRUCE Y REPORTE DE LOS DATOS EN EL SISTEMA MISIONAL SIRBE, QUE CONTRIBUYAN A LA GARANTÍA DE LOS DERECHOS DE LA POBLACIÓN MAYOR EN EL MARCO DE LA POLÍTICA PÚBLICA SOCIAL PARA EL ENVEJECIMIENTO Y LA VEJEZ EN EL DISTRITO CAPITAL A CARGO DE LA ALCALDÍA LOCAL | J154: Inversión | K154: Un Nuevo Contrato Social y Ambiental para la Bogotá del Siglo XXI | L154: 1 | M154: =IF(ISERROR(VLOOKUP(L154,[9]Proposito_programa!$C$2:$E$59,2,FALSE))," ",VLOOKUP(L154,[9]Proposito_programa!$C$2:$E$59,2,FALSE)) -> Subsidios y transferencias para la equidad | N154: =IF(ISERROR(VLOOKUP(L154,[9]Proposito_programa!$C$2:$E$59,3,FALSE))," ",VLOOKUP(L154,[9]Proposito_programa!$C$2:$E$59,3,FALSE)) -> Propósito 1: Hacer un nuevo contrato social para incrementar la inclusión social, productiva y política | O154: 1862 | P154: 1 | Q154: 1031134788 | R154: LORENA MORENO PINZÓN | S154: Persona Natural | W154: 27200000 | Y154: 1 | Z154: 9860000 | AA154: 37060000 | AB154: 32073333 | AC154: 44244 | AD154: 44245 | AE154: 44575 | AF154: 240 | AG154: 1 | AH154: 87 | AN154: X | AQ154: 0.8654434161
A155: 1 | B155: CPS-143-2021 | C155: 2021 | D155: FDLCB-CD-143-2021 | E155: https://community.secop.gov.co/Public/Tendering/OpportunityDetail/Index?noticeUID=CO1.NTC.1775744&isFromPublicArea=True&isModal=False | F155: Contratos de prestación de servicios profesionales y de apoyo a la gestión | G155: Contratación directa | H155: Prestación de servicios profesionales y de apoyo a la gestión, o para la ejecución de trabajos artísticos que sólo puedan encomendarse a determinadas personas naturales; | I155: PRESTAR SUS SERVICIOS PROFESIONALES COMO APOYO EN EL PROCESO DE LIQUIDACIÓN DE LOS CONVENIOS Y CONTRATOS SUSCRITOS POR EL FONDO DE DESARROLLO LOCAL DE CIUDAD BOLÍVAR Y EN EL SEGUIMIENTO, DEPURACIÓN Y CONSOLIDACIÓN DE LA INFORMACIÓN DE LAS OBLIGACIONES POR PAGAR VIGENTES. | J155: Inversión | K155: Un Nuevo Contrato Social y Ambiental para la Bogotá del Siglo XXI | L155: 57 | M155: =IF(ISERROR(VLOOKUP(L155,[9]Proposito_programa!$C$2:$E$59,2,FALSE))," ",VLOOKUP(L155,[9]Proposito_programa!$C$2:$E$59,2,FALSE)) -> Gestión pública local | N155: =IF(ISERROR(VLOOKUP(L155,[9]Proposito_programa!$C$2:$E$59,3,FALSE))," ",VLOOKUP(L155,[9]Proposito_programa!$C$2:$E$59,3,FALSE)) -> Propósito 5: Construir Bogotá - Región con gobierno abierto, transparente y ciudadanía consciente | O155: 1986 | P155: 1 | Q155: 1019040875 | R155: EDITH NATHALIE ROMERO BARRERA | S155: Persona Natural | W155: 40800000 | Y155: 1 | Z155: 14790000 | AA155: 55590000 | AB155: 48110000 | AC155: 44244 | AD155: 44245 | AE155: 44575 | AF155: 240 | AG155: 1 | AH155: 87 | AN155: X | AQ155: 0.8654434251
A156: 1 | B156: CPS-144-2021 | C156: 2021 | D156: FDLCB-CD-144-2021 | E156: https://community.secop.gov.co/Public/Tendering/OpportunityDetail/Index?noticeUID=CO1.NTC.1775744&isFromPublicArea=True&isModal=False | F156: Contratos de prestación de servicios profesionales y de apoyo a la gestión | G156: Contratación directa | H156: Prestación de servicios profesionales y de apoyo a la gestión, o para la ejecución de trabajos artísticos que sólo puedan encomendarse a determinadas personas naturales; | I156: PRESTAR LOS SERVICIOS DE APOYO TÉCNICO PARA REALIZAR ACTIVIDADES ADMINISTRATIVAS PRESUPUESTALES Y CONTABLES QUE SE ADELANTAN EN LA OFICINA DE PRESUPUESTO DEL FONDO DE DESARROLLO LOCAL DE CIUDAD BOLÍVAR. | J156: Inversión | K156: Un Nuevo Contrato Social y Ambiental para la Bogotá del Siglo XXI | L156: 57 | M156: =IF(ISERROR(VLOOKUP(L156,[9]Proposito_programa!$C$2:$E$59,2,FALSE))," ",VLOOKUP(L156,[9]Proposito_programa!$C$2:$E$59,2,FALSE)) -> Gestión pública local | N156: =IF(ISERROR(VLOOKUP(L156,[9]Proposito_programa!$C$2:$E$59,3,FALSE))," ",VLOOKUP(L156,[9]Proposito_programa!$C$2:$E$59,3,FALSE)) -> Propósito 5: Construir Bogotá - Región con gobierno abierto, transparente y ciudadanía consciente | O156: 1986 | P156: 1 | Q156: 1121888812 | R156: RICARDO STEVEN TRUJILLO MONCRIFF | S156: Persona Natural | W156: 24000000 | X156: -2100000 | AA156: 21900000 | AB156: 21900000 | AC156: 44244 | AD156: 44245 | AE156: 44465 | AF156: 240 | AO156: X | AQ156: 1
A157: 1 | B157: CPS-145-2021 | C157: 2021 | D157: FDLCB-CD-145-2021 | E157: https://community.secop.gov.co/Public/Tendering/OpportunityDetail/Index?noticeUID=CO1.NTC.1776131&isFromPublicArea=True&isModal=False | F157: Contratos de prestación de servicios profesionales y de apoyo a la gestión | G157: Contratación directa | H157: Prestación de servicios profesionales y de apoyo a la gestión, o para la ejecución de trabajos artísticos que sólo puedan encomendarse a determinadas personas naturales; | I157: PRESTAR SUS SERVICIOS COMO CONDUCTOR DE VOLQUETA DE PROPIEDAD DEL FONDO DE DESARROLLO LOCAL DE CIUDAD BOLÍVAR PARA LA REALIZACIÓN DE LABORES DE MANTENIMIENTO DE LA MALLA VIAL Y LAS ZONAS PÚBLICAS DE LA LOCALIDAD, ASÍ COMO ATENDER LAS EMERGENCIAS QUE SURJAN EN LA LOCALIDAD | J157: Inversión | K157: Un Nuevo Contrato Social y Ambiental para la Bogotá del Siglo XXI | L157: 49 | M157: =IF(ISERROR(VLOOKUP(L157,[9]Proposito_programa!$C$2:$E$59,2,FALSE))," ",VLOOKUP(L157,[9]Proposito_programa!$C$2:$E$59,2,FALSE)) -> Movilidad segura, sostenible y accesible | N157: =IF(ISERROR(VLOOKUP(L157,[9]Proposito_programa!$C$2:$E$59,3,FALSE))," ",VLOOKUP(L157,[9]Proposito_programa!$C$2:$E$59,3,FALSE)) -> Propósito 4: Hacer de Bogotá Región un modelo de movilidad multimodal, incluyente y sostenible | O157: 1983 | P157: 1 | Q157: 79771916 | R157: FREDDY ALEXANDER NIÑO MAHECHA | S157: Persona Natural | W157: 20400000 | Y157: 1 | Z157: 7395000 | AA157: 27795000 | AB157: 24055000 | AC157: 44244 | AD157: 44245 | AE157: 44575 | AF157: 240 | AG157: 1 | AH157: 87 | AN157: X | AQ157: 0.8654434251
A158: 1 | B158: CPS-146-2021 | C158: 2021 | D158: FDLCB-CD-146-2021 | E158: https://community.secop.gov.co/Public/Tendering/OpportunityDetail/Index?noticeUID=CO1.NTC.1775851&isFromPublicArea=True&isModal=False | F158: Contratos de prestación de servicios profesionales y de apoyo a la gestión | G158: Contratación directa | H158: Prestación de servicios profesionales y de apoyo a la gestión, o para la ejecución de trabajos artísticos que sólo puedan encomendarse a determinadas personas naturales; | I158: APOYAR EN LAS TAREAS OPERATIVAS DE CARÁCTER ARCHIVÍSTICO DESARROLLADAS EN LA ALCALDÍA LOCAL PARA GARANTIZAR LA APLICACIÓN CORRECTA DE LOS PROCEDIMIENTOS TÉCNICOS | J158: Inversión | K158: Un Nuevo Contrato Social y Ambiental para la Bogotá del Siglo XXI | L158: 57 | M158: =IF(ISERROR(VLOOKUP(L158,[9]Proposito_programa!$C$2:$E$59,2,FALSE))," ",VLOOKUP(L158,[9]Proposito_programa!$C$2:$E$59,2,FALSE)) -> Gestión pública local | N158: =IF(ISERROR(VLOOKUP(L158,[9]Proposito_programa!$C$2:$E$59,3,FALSE))," ",VLOOKUP(L158,[9]Proposito_programa!$C$2:$E$59,3,FALSE)) -> Propósito 5: Construir Bogotá - Región con gobierno abierto, transparente y ciudadanía consciente | O158: 1986 | P158: 1 | Q158: 79364597 | R158: POMPEYO HERNAN GARAVITO URREA | S158: Persona Natural | W158: 26400000 | Y158: 1 | Z158: 7920000 | AA158: 34320000 | AB158: 31020000 | AC158: 44244 | AD158: 44246 | AE158: 44560 | AF158: 240 | AG158: 1 | AH158: 72 | AO158: X | AQ158: 0.9038461538
A159: 1 | B159: CPS-147-2021 | C159: 2021 | D159: FDLCB-CD-147-2021 | E159: https://community.secop.gov.co/Public/Tendering/OpportunityDetail/Index?noticeUID=CO1.NTC.1775735&isFromPublicArea=True&isModal=False | F159: Contratos de prestación de servicios profesionales y de apoyo a la gestión | G159: Contratación directa | H159: Prestación de servicios profesionales y de apoyo a la gestión, o para la ejecución de trabajos artísticos que sólo puedan encomendarse a determinadas personas naturales; | I159: APOYAR LAS LABORES DE ENTREGA Y RECIBO DE LAS COMUNICACIONES EMITIDAS O RECIBIDAS POR LAS DIFERENTES DEPENDENCIAS DEL ÁREA DE GESTIÓN DESARROLLO LOCAL DE LA ALCALDÍA LOCAL DE CIUDAD BOLÍVAR. | J159: Inversión | K159: Un Nuevo Contrato Social y Ambiental para la Bogotá del Siglo XXI | L159: 57 | M159: =IF(ISERROR(VLOOKUP(L159,[9]Proposito_programa!$C$2:$E$59,2,FALSE))," ",VLOOKUP(L159,[9]Proposito_programa!$C$2:$E$59,2,FALSE)) -> Gestión pública local | N159: =IF(ISERROR(VLOOKUP(L159,[9]Proposito_programa!$C$2:$E$59,3,FALSE))," ",VLOOKUP(L159,[9]Proposito_programa!$C$2:$E$59,3,FALSE)) -> Propósito 5: Construir Bogotá - Región con gobierno abierto, transparente y ciudadanía consciente | O159: 1986 | P159: 1 | Q159: 6716645 | R159: HEYDER JOSÉ GRANADOS NOVOA | S159: Persona Natural | W159: 18240000 | Y159: 2 | Z159: 7752000 | AA159: 25992000 | AB159: 21584000 | AC159: 44244 | AD159: 44246 | AE159: 44560 | AF159: 240 | AG159: 1 | AH159: 72 | AO159: X | AQ159: 0.8304093567
A160: 1 | B160: CPS-148-2021 | C160: 2021 | D160: FDLCB-CD-148-2021 | E160: https://community.secop.gov.co/Public/Tendering/OpportunityDetail/Index?noticeUID=CO1.NTC.1775842&isFromPublicArea=True&isModal=False | F160: Contratos de prestación de servicios profesionales y de apoyo a la gestión | G160: Contratación directa | H160: Prestación de servicios profesionales y de apoyo a la gestión, o para la ejecución de trabajos artísticos que sólo puedan encomendarse a determinadas personas naturales; | I160: PRESTAR SUS SERVICIOS PROFESIONALES PARA APOYAR LA GESTIÓN, SEGUIMIENTO, FORMULACIÓN Y OPERACIÓN DE VIGILANCIA ENFOCADA EN LA GESTIÓN AMBIENTAL TERRITORIAL DE CIUDAD BOLÍVAR, PRINCIPALMENTE DE LOS COMPONENTES DE MINERÍA, SUELO, CALIDAD DE AIRE Y SUS IMPACTOS ASOCIADOS A LA COMUNIDAD Y AL AMBIENTE CIRCUNDANTE | J160: Inversión | K160: Un Nuevo Contrato Social y Ambiental para la Bogotá del Siglo XXI | L160: 57 | M160: =IF(ISERROR(VLOOKUP(L160,[9]Proposito_programa!$C$2:$E$59,2,FALSE))," ",VLOOKUP(L160,[9]Proposito_programa!$C$2:$E$59,2,FALSE)) -> Gestión pública local | N160: =IF(ISERROR(VLOOKUP(L160,[9]Proposito_programa!$C$2:$E$59,3,FALSE))," ",VLOOKUP(L160,[9]Proposito_programa!$C$2:$E$59,3,FALSE)) -> Propósito 5: Construir Bogotá - Región con gobierno abierto, transparente y ciudadanía consciente | O160: 1986 | P160: 1 | Q160: 1032440813 | R160: DIANA PAOLA LOPEZ SANTAFE | S160: Persona Natural | W160: 48000000 | AA160: 48000000 | AB160: 48000000 | AC160: 44245 | AD160: 44245 | AE160: 44486 | AF160: 240 | AO160: X | AQ160: 1
A161: 1 | B161: CPS-149-2021 | C161: 2021 | D161: FDLCB-CD-149-2021 | E161: https://community.secop.gov.co/Public/Tendering/OpportunityDetail/Index?noticeUID=CO1.NTC.1777119&isFromPublicArea=True&isModal=False | F161: Contratos de prestación de servicios profesionales y de apoyo a la gestión | G161: Contratación directa | H161: Prestación de servicios profesionales y de apoyo a la gestión, o para la ejecución de trabajos artísticos que sólo puedan encomendarse a determinadas personas naturales; | I161: PRESTAR SUS SERVICIOS PARA APOYAR LA GESTIÓN LOCAL Y TERRITORIAL DE LOS ASUNTOS RELACIONADOS CON SEGURIDAD CIUDADANA Y CONVIVENCIA EN LA LOCALIDAD DE CIUDAD BOLÍVAR, ASÍ COMO APOYAR LA IMPLEMENTACIÓN DE LAS ESTRATEGIAS DEL FONDO DE DESARROLLO LOCAL DE CIUDAD BOLÍVAR EN EL MARCO DEL PLAN DE DESARROLLO LOCAL 2021-2024 | J161: Inversión | K161: Un Nuevo Contrato Social y Ambiental para la Bogotá del Siglo XXI | L161: 57 | M161: =IF(ISERROR(VLOOKUP(L161,[9]Proposito_programa!$C$2:$E$59,2,FALSE))," ",VLOOKUP(L161,[9]Proposito_programa!$C$2:$E$59,2,FALSE)) -> Gestión pública local | N161: =IF(ISERROR(VLOOKUP(L161,[9]Proposito_programa!$C$2:$E$59,3,FALSE))," ",VLOOKUP(L161,[9]Proposito_programa!$C$2:$E$59,3,FALSE)) -> Propósito 5: Construir Bogotá - Región con gobierno abierto, transparente y ciudadanía consciente | O161: 1986 | P161: 1 | Q161: 12283291 | R161: NELSON ENRIQUE BASTO SILVA | S161: Persona Natural | W161: 42900000 | AA161: 42900000 | AB161: 34840000 | AC161: 44245 | AD161: 44245 | AE161: 44578 | AF161: 330 | AI161: 1023925272 | AJ161: KELLY JOHANA QUEVEDO BRAVO | AK161: 44454 | AL161: 17810000 | AN161: X | AQ161: 0.8121212121
A162: 1 | B162: CPS-150-2021 | C162: 2021 | D162: FDLCB-CD-150-2021 | E162: https://community.secop.gov.co/Public/Tendering/OpportunityDetail/Index?noticeUID=CO1.NTC.1776837&isFromPublicArea=True&isModal=False | F162: Contratos de prestación de servicios profesionales y de apoyo a la gestión | G162: Contratación directa | H162: Prestación de servicios profesionales y de apoyo a la gestión, o para la ejecución de trabajos artísticos que sólo puedan encomendarse a determinadas personas naturales; | I162: PRESTAR SUS SERVICIOS PROFESIONALES PARA APOYAR EL CUBRIMIENTO DE LAS ACTIVIDADES, CRONOGRAMAS Y AGENDA LA CASA DE LA CULTURA DE LA LOCALIDAD CIUDAD BOLÍVAR A NIVEL INTERNO Y EXTERNO, ASÍ COMO LA GENERACIÓN DE CONTENIDOS PERIODÍSTICOS. | J162: Inversión | K162: Un Nuevo Contrato Social y Ambiental para la Bogotá del Siglo XXI | L162: 57 | M162: =IF(ISERROR(VLOOKUP(L162,[9]Proposito_programa!$C$2:$E$59,2,FALSE))," ",VLOOKUP(L162,[9]Proposito_programa!$C$2:$E$59,2,FALSE)) -> Gestión pública local | N162: =IF(ISERROR(VLOOKUP(L162,[9]Proposito_programa!$C$2:$E$59,3,FALSE))," ",VLOOKUP(L162,[9]Proposito_programa!$C$2:$E$59,3,FALSE)) -> Propósito 5: Construir Bogotá - Región con gobierno abierto, transparente y ciudadanía consciente | O162: 1986 | P162: 1 | Q162: 80204371 | R162: LARRY GUILLERMO MEJIA MONSALVE | S162: Persona Natural | W162: 46000000 | AA162: 46000000 | AB162: 43393333 | AC162: 44245 | AD162: 44245 | AE162: 44547 | AF162: 300 | AO162: X | AQ162: 0.9433333261
A163: 1 | B163: CPS-151-2021 | C163: 2021 | D163: FDLCB-CD-151-2021 | E163: https://community.secop.gov.co/Public/Tendering/OpportunityDetail/Index?noticeUID=CO1.NTC.1779380&isFromPublicArea=True&isModal=False | F163: Contratos de prestación de servicios profesionales y de apoyo a la gestión | G163: Contratación directa | H163: Prestación de servicios profesionales y de apoyo a la gestión, o para la ejecución de trabajos artísticos que sólo puedan encomendarse a determinadas personas naturales; | I163: APOYAR LAS LABORES DE ENTREGA Y RECIBO DE LAS COMUNICACIONES EMITIDAS O RECIBIDAS POR LAS INSPECCIONES DE POLICÍA DE LA LOCALIDAD. | J163: Inversión | K163: Un Nuevo Contrato Social y Ambiental para la Bogotá del Siglo XXI | L163: 57 | M163: =IF(ISERROR(VLOOKUP(L163,[9]Proposito_programa!$C$2:$E$59,2,FALSE))," ",VLOOKUP(L163,[9]Proposito_programa!$C$2:$E$59,2,FALSE)) -> Gestión pública local | N163: =IF(ISERROR(VLOOKUP(L163,[9]Proposito_programa!$C$2:$E$59,3,FALSE))," ",VLOOKUP(L163,[9]Proposito_programa!$C$2:$E$59,3,FALSE)) -> Propósito 5: Construir Bogotá - Región con gobierno abierto, transparente y ciudadanía consciente | O163: 1987 | P163: 1 | Q163: 19484679 | R163: JAIRO REINA VARGAS | S163: Persona Natural | W163: 19200000 | Y163: 1 | Z163: 8240000 | AA163: 27440000 | AB163: 22640000 | AC163: 44245 | AD163: 44245 | AE163: 44560 | AF163: 240 | AG163: 1 | AH163: 74 | AO163: X | AQ163: 0.8250728863
A164: 1 | B164: CPS-152-2021 | C164: 2021 | D164: FDLCB-CD-152-2021 | E164: https://community.secop.gov.co/Public/Tendering/OpportunityDetail/Index?noticeUID=CO1.NTC.1779745&isFromPublicArea=True&isModal=False | F164: Contratos de prestación de servicios profesionales y de apoyo a la gestión | G164: Contratación directa | H164: Prestación de servicios profesionales y de apoyo a la gestión, o para la ejecución de trabajos artísticos que sólo puedan encomendarse a determinadas personas naturales; | I164: APOYAR ADMINISTRATIVA Y ASISTENCIALMENTE A LAS INSPECCIONES DE POLICÍA DE LA LOCALIDAD. | J164: Inversión | K164: Un Nuevo Contrato Social y Ambiental para la Bogotá del Siglo XXI | L164: 57 | M164: =IF(ISERROR(VLOOKUP(L164,[9]Proposito_programa!$C$2:$E$59,2,FALSE))," ",VLOOKUP(L164,[9]Proposito_programa!$C$2:$E$59,2,FALSE)) -> Gestión pública local | N164: =IF(ISERROR(VLOOKUP(L164,[9]Proposito_programa!$C$2:$E$59,3,FALSE))," ",VLOOKUP(L164,[9]Proposito_programa!$C$2:$E$59,3,FALSE)) -> Propósito 5: Construir Bogotá - Región con gobierno abierto, transparente y ciudadanía consciente | O164: 1987 | P164: 1 | Q164: 53037834 | R164: PAOLA ANDREA CONTRERAS YAGUE | S164: Persona Natural | W164: 16800000 | Y164: 2 | Z164: 6930000 | AA164: 23730000 | AB164: 19530000 | AC164: 44245 | AD164: 44249 | AE164: 44560 | AF164: 240 | AG164: 2 | AH164: 100 | AO164: X | AQ164: 0.8230088496
A165: 1 | B165: CPS-153-2021 | C165: 2021 | D165: FDLCB-CD-153-2021 | E165: https://community.secop.gov.co/Public/Tendering/OpportunityDetail/Index?noticeUID=CO1.NTC.1779541&isFromPublicArea=True&isModal=False | F165: Contratos de prestación de servicios profesionales y de apoyo a la gestión | G165: Contratación directa | H165: Prestación de servicios profesionales y de apoyo a la gestión, o para la ejecución de trabajos artísticos que sólo puedan encomendarse a determinadas personas naturales; | I165: APOYAR JURÍDICAMENTE LA EJECUCIÓN DE LAS ACCIONES REQUERIDAS PARA EL TRÁMITE DE LAS QUERELLAS Y/O COMPARENDOS QUE LLEGUEN AL ÁREA DE GESTIÓN POLICIVA CON FUNCIONES DE REPARTO DEL FONDO DE DESARROLLO LOCAL DE CIUDAD BOLÍVAR | J165: Inversión | K165: Un Nuevo Contrato Social y Ambiental para la Bogotá del Siglo XXI | L165: 57 | M165: =IF(ISERROR(VLOOKUP(L165,[9]Proposito_programa!$C$2:$E$59,2,FALSE))," ",VLOOKUP(L165,[9]Proposito_programa!$C$2:$E$59,2,FALSE)) -> Gestión pública local | N165: =IF(ISERROR(VLOOKUP(L165,[9]Proposito_programa!$C$2:$E$59,3,FALSE))," ",VLOOKUP(L165,[9]Proposito_programa!$C$2:$E$59,3,FALSE)) -> Propósito 5: Construir Bogotá - Región con gobierno abierto, transparente y ciudadanía consciente | O165: 1987 | P165: 1 | Q165: 79223568 | R165: CRISTIAN CAMILO PUENTES LOZANO | S165: Persona Natural | W165: 32000000 | Y165: 2 | Z165: 13600000 | AA165: 45600000 | AB165: 37600000 | AC165: 44245 | AD165: 44246 | AE165: 44560 | AF165: 240 | AG165: 2 | AH165: 103 | AO165: X | AQ165: 0.8245614035
A166: 1 | B166: CPS-154-2021 | C166: 2021 | D166: FDLCB-CD- 154-2021 | E166: https://community.secop.gov.co/Public/Tendering/OpportunityDetail/Index?noticeUID=CO1.NTC.1780120&isFromPublicArea=True&isModal=False | F166: Contratos de prestación de servicios profesionales y de apoyo a la gestión | G166: Contratación directa | H166: Prestación de servicios profesionales y de apoyo a la gestión, o para la ejecución de trabajos artísticos que sólo puedan encomendarse a determinadas personas naturales; | I166: PRESTAR LOS SERVICIOS DE APOYO PARA REALIZAR ACTIVIDADES ASISTENCIALES EN LAS DIFERENTES DEPENDENCIAS DE LA ALCALDÍA LOCAL DE CIUDAD BOLÍVAR | J166: Inversión | K166: Un Nuevo Contrato Social y Ambiental para la Bogotá del Siglo XXI | L166: 57 | M166: =IF(ISERROR(VLOOKUP(L166,[9]Proposito_programa!$C$2:$E$59,2,FALSE))," ",VLOOKUP(L166,[9]Proposito_programa!$C$2:$E$59,2,FALSE)) -> Gestión pública local | N166: =IF(ISERROR(VLOOKUP(L166,[9]Proposito_programa!$C$2:$E$59,3,FALSE))," ",VLOOKUP(L166,[9]Proposito_programa!$C$2:$E$59,3,FALSE)) -> Propósito 5: Construir Bogotá - Región con gobierno abierto, transparente y ciudadanía consciente | O166: 1986 | P166: 1 | Q166: 52730763 | R166: FRANCY LADY GARCIA CLAVIJO | S166: Persona Natural | W166: 26400000 | Y166: 2 | Z166: 11220000 | AA166: 37620000 | AB166: 31020000 | AC166: 44245 | AD166: 44246 | AE166: 44560 | AF166: 240 | AG166: 2 | AH166: 103 | AO166: X | AQ166: 0.8245614035
A167: 1 | B167: CPS-155-2021 | C167: 2021 | D167: FDLCB-CD-155-2021 | E167: https://community.secop.gov.co/Public/Tendering/OpportunityDetail/Index?noticeUID=CO1.NTC.1781055&isFromPublicArea=True&isModal=False | F167: Contratos de prestación de servicios profesionales y de apoyo a la gestión | G167: Contratación directa | H167: Prestación de servicios profesionales y de apoyo a la gestión, o para la ejecución de trabajos artísticos que sólo puedan encomendarse a determinadas personas naturales; | I167: APOYAR LA GESTIÓN DOCUMENTAL DE LA ALCALDÍA LOCAL EN LA IMPLEMENTACIÓN DE LOS PROCESOS DE CLASIFICACIÓN, ORDENACIÓN, SELECCIÓN NATURAL, FOLIACIÓN, IDENTIFICACIÓN, LEVANTAMIENTO DE INVENTARIOS, ALMACENAMIENTO Y APLICACIÓN DE PROTOCOLOS DE ELIMINACIÓN Y TRANSFERENCIAS DOCUMENTALES | J167: Inversión | K167: Un Nuevo Contrato Social y Ambiental para la Bogotá del Siglo XXI | L167: 57 | M167: =IF(ISERROR(VLOOKUP(L167,[9]Proposito_programa!$C$2:$E$59,2,FALSE))," ",VLOOKUP(L167,[9]Proposito_programa!$C$2:$E$59,2,FALSE)) -> Gestión pública local | N167: =IF(ISERROR(VLOOKUP(L167,[9]Proposito_programa!$C$2:$E$59,3,FALSE))," ",VLOOKUP(L167,[9]Proposito_programa!$C$2:$E$59,3,FALSE)) -> Propósito 5: Construir Bogotá - Región con gobierno abierto, transparente y ciudadanía consciente | O167: 1986 | P167: 1 | Q167: 1031167868 | R167: DUVAR STEVEN SABOGAL MORENO | S167: Persona Natural | W167: 16800000 | Y167: 2 | Z167: 6930000 | AA167: 23730000 | AB167: 19530000 | AC167: 44246 | AD167: 44249 | AE167: 44560 | AF167: 240 | AG167: 2 | AH167: 100 | AO167: X | AQ167: 0.8230088496
A168: 1 | B168: CPS-156-2021 | C168: 2021 | D168: FDLCB-CD-156-2021 | E168: https://community.secop.gov.co/Public/Tendering/OpportunityDetail/Index?noticeUID=CO1.NTC.1780651&isFromPublicArea=True&isModal=False | F168: Contratos de prestación de servicios profesionales y de apoyo a la gestión | G168: Contratación directa | H168: Prestación de servicios profesionales y de apoyo a la gestión, o para la ejecución de trabajos artísticos que sólo puedan encomendarse a determinadas personas naturales; | I168: PRESTAR LOS SERVICIOS DE APOYO PARA REALIZAR ACTIVIDADES ASISTENCIALES EN LAS DIFERENTES DEPENDENCIAS DE LA ALCALDÍA LOCAL DE CIUDAD BOLÍVAR. | J168: Inversión | K168: Un Nuevo Contrato Social y Ambiental para la Bogotá del Siglo XXI | L168: 57 | M168: =IF(ISERROR(VLOOKUP(L168,[9]Proposito_programa!$C$2:$E$59,2,FALSE))," ",VLOOKUP(L168,[9]Proposito_programa!$C$2:$E$59,2,FALSE)) -> Gestión pública local | N168: =IF(ISERROR(VLOOKUP(L168,[9]Proposito_programa!$C$2:$E$59,3,FALSE))," ",VLOOKUP(L168,[9]Proposito_programa!$C$2:$E$59,3,FALSE)) -> Propósito 5: Construir Bogotá - Región con gobierno abierto, transparente y ciudadanía consciente | O168: 1986 | P168: 1 | Q168: 1024506245 | R168: LYANA MARIA BENAVIDES PALENCIA | S168: Persona Natural | W168: 26400000 | Y168: 1 | Z168: 7920000 | AA168: 34320000 | AB168: 31020000 | AC168: 44245 | AD168: 44246 | AE168: 44560 | AF168: 240 | AG168: 1 | AH168: 72 | AO168: X | AQ168: 0.9038461538
A169: 1 | B169: CPS-157-2021 | C169: 2021 | D169: FDLCB-CD-157-2021 | E169: https://community.secop.gov.co/Public/Tendering/OpportunityDetail/Index?noticeUID=CO1.NTC.1780652&isFromPublicArea=True&isModal=False | F169: Contratos de prestación de servicios profesionales y de apoyo a la gestión | G169: Contratación directa | H169: Prestación de servicios profesionales y de apoyo a la gestión, o para la ejecución de trabajos artísticos que sólo puedan encomendarse a determinadas personas naturales; | I169: PRESTAR LOS SERVICIOS DE APOYO PARA REALIZAR ACTIVIDADES ASISTENCIALES EN LAS DIFERENTES DEPENDENCIAS DE LA ALCALDÍA LOCAL DE CIUDAD BOLÍVAR | J169: Inversión | K169: Un Nuevo Contrato Social y Ambiental para la Bogotá del Siglo XXI | L169: 57 | M169: =IF(ISERROR(VLOOKUP(L169,[9]Proposito_programa!$C$2:$E$59,2,FALSE))," ",VLOOKUP(L169,[9]Proposito_programa!$C$2:$E$59,2,FALSE)) -> Gestión pública local | N169: =IF(ISERROR(VLOOKUP(L169,[9]Proposito_programa!$C$2:$E$59,3,FALSE))," ",VLOOKUP(L169,[9]Proposito_programa!$C$2:$E$59,3,FALSE)) -> Propósito 5: Construir Bogotá - Región con gobierno abierto, transparente y ciudadanía consciente | O169: 1986 | P169: 1 | Q169: 1030654509 | R169: MARIA ALEJANDRA TORRES PALACIOS | S169: Persona Natural | W169: 26400000 | Y169: 1 | Z169: 7920000 | AA169: 34320000 | AB169: 31020000 | AC169: 44245 | AD169: 44246 | AE169: 44560 | AF169: 240 | AG169: 1 | AH169: 72 | AO169: X | AQ169: 0.9038461538
A170: 1 | B170: CPS-158-2021 | C170: 2021 | D170: FDLCB-CD-158-2021 | E170: https://community.secop.gov.co/Public/Tendering/OpportunityDetail/Index?noticeUID=CO1.NTC.1780806&isFromPublicArea=True&isModal=False | F170: Contratos de prestación de servicios profesionales y de apoyo a la gestión | G170: Contratación directa | H170: Prestación de servicios profesionales y de apoyo a la gestión, o para la ejecución de trabajos artísticos que sólo puedan encomendarse a determinadas personas naturales; | I170: PRESTAR LOS SERVICIOS DE APOYO PARA REALIZAR ACTIVIDADES ASISTENCIALES EN LAS DIFERENTES DEPENDENCIAS DE LA ALCALDÍA LOCAL DE CIUDAD BOLÍVAR | J170: Inversión | K170: Un Nuevo Contrato Social y Ambiental para la Bogotá del Siglo XXI | L170: 57 | M170: =IF(ISERROR(VLOOKUP(L170,[9]Proposito_programa!$C$2:$E$59,2,FALSE))," ",VLOOKUP(L170,[9]Proposito_programa!$C$2:$E$59,2,FALSE)) -> Gestión pública local | N170: =IF(ISERROR(VLOOKUP(L170,[9]Proposito_programa!$C$2:$E$59,3,FALSE))," ",VLOOKUP(L170,[9]Proposito_programa!$C$2:$E$59,3,FALSE)) -> Propósito 5: Construir Bogotá - Región con gobierno abierto, transparente y ciudadanía consciente | O170: 1986 | P170: 1 | Q170: 1024591582 | R170: JORGE YESID VELASQUEZ RIVERA | S170: Persona Natural | W170: 26400000 | Y170: 1 | Z170: 7590000 | AA170: 33990000 | AB170: 30690000 | AC170: 44245 | AD170: 44249 | AE170: 44490 | AF170: 240 | AG170: 1 | AH170: 69 | AO170: X | AQ170: 0.9029126214
A171: 1 | B171: CPS-159-2021 | C171: 2021 | D171: FDLCB-CD-159-2021 | E171: https://community.secop.gov.co/Public/Tendering/OpportunityDetail/Index?noticeUID=CO1.NTC.1783210&isFromPublicArea=True&isModal=False | F171: Contratos de prestación de servicios profesionales y de apoyo a la gestión | G171: Contratación directa | H171: Prestación de servicios profesionales y de apoyo a la gestión, o para la ejecución de trabajos artísticos que sólo puedan encomendarse a determinadas personas naturales; | I171: PRESTAR LOS SERVICIOS PROFESIONALES PARA APOYAR AL ALCALDE LOCAL EN LA GESTIÓN DE LOS ASUNTOS RELACIONADOS CON SEGURIDAD CIUDADANA, CONVIVENCIA Y PREVENCIÓN DE CONFLICTIVIDADES, VIOLENCIAS Y DELITOS EN LA LOCALIDAD, DE CONFORMIDAD CON EL MARCO NORMATIVO APLICABLE EN LA MATERIA | J171: Inversión | K171: Un Nuevo Contrato Social y Ambiental para la Bogotá del Siglo XXI | L171: 57 | M171: =IF(ISERROR(VLOOKUP(L171,[9]Proposito_programa!$C$2:$E$59,2,FALSE))," ",VLOOKUP(L171,[9]Proposito_programa!$C$2:$E$59,2,FALSE)) -> Gestión pública local | N171: =IF(ISERROR(VLOOKUP(L171,[9]Proposito_programa!$C$2:$E$59,3,FALSE))," ",VLOOKUP(L171,[9]Proposito_programa!$C$2:$E$59,3,FALSE)) -> Propósito 5: Construir Bogotá - Región con gobierno abierto, transparente y ciudadanía consciente | O171: 1986 | P171: 1 | Q171: 13957424 | R171: EDWIN MAURICIO SANTAMARIA SANTAMARIA | S171: Persona Natural | W171: 53600000 | Y171: 1 | Z171: 6700000 | AA171: 60300000 | AB171: 60300000 | AC171: 44246 | AD171: 44249 | AE171: 44521 | AF171: 240 | AG171: 1 | AH171: 30 | AO171: X | AQ171: 1
A172: 1 | B172: CPS-160-2021 | C172: 2021 | D172: FDLCB-CD-160-2021 | E172: https://community.secop.gov.co/Public/Tendering/OpportunityDetail/Index?noticeUID=CO1.NTC.1791939&isFromPublicArea=True&isModal=False | F172: Contratos de prestación de servicios profesionales y de apoyo a la gestión | G172: Contratación directa | H172: Prestación de servicios profesionales y de apoyo a la gestión, o para la ejecución de trabajos artísticos que sólo puedan encomendarse a determinadas personas naturales; | I172: APOYAR ADMINISTRATIVA Y ASISTENCIALMENTE A LAS INSPECCIONES DE POLICÍA DE LA LOCALIDAD. | J172: Inversión | K172: Un Nuevo Contrato Social y Ambiental para la Bogotá del Siglo XXI | L172: 57 | M172: =IF(ISERROR(VLOOKUP(L172,[9]Proposito_programa!$C$2:$E$59,2,FALSE))," ",VLOOKUP(L172,[9]Proposito_programa!$C$2:$E$59,2,FALSE)) -> Gestión pública local | N172: =IF(ISERROR(VLOOKUP(L172,[9]Proposito_programa!$C$2:$E$59,3,FALSE))," ",VLOOKUP(L172,[9]Proposito_programa!$C$2:$E$59,3,FALSE)) -> Propósito 5: Construir Bogotá - Región con gobierno abierto, transparente y ciudadanía consciente | O172: 1987 | P172: 1 | Q172: 1024563962 | R172: JOHAN EDUARDO VARGAS MOLINA | S172: Persona Natural | W172: 16800000 | Y172: 2 | Z172: 6720000 | AA172: 23520000 | AB172: 19320000 | AC172: 44251 | AD172: 44252 | AE172: 44560 | AF172: 240 | AG172: 2 | AH172: 97 | AO172: X | AQ172: 0.8214285714
A173: 1 | B173: CPS-161-2021 | C173: 2021 | D173: FDLCB-CD-161-2021 | E173: https://community.secop.gov.co/Public/Tendering/OpportunityDetail/Index?noticeUID=CO1.NTC.1797605&isFromPublicArea=True&isModal=False | F173: Contratos de prestación de servicios profesionales y de apoyo a la gestión | G173: Contratación directa | H173: Prestación de servicios profesionales y de apoyo a la gestión, o para la ejecución de trabajos artísticos que sólo puedan encomendarse a determinadas personas naturales; | I173: APOYAR TÉCNICAMENTE LAS DISTINTAS ETAPAS DE LOS PROCESOS DE COMPETENCIA DE LA ALCALDÍA LOCAL PARA LA DEPURACIÓN DE ACTUACIONES ADMINISTRATIVAS | J173: Inversión | K173: Un Nuevo Contrato Social y Ambiental para la Bogotá del Siglo XXI | L173: 57 | M173: =IF(ISERROR(VLOOKUP(L173,[9]Proposito_programa!$C$2:$E$59,2,FALSE))," ",VLOOKUP(L173,[9]Proposito_programa!$C$2:$E$59,2,FALSE)) -> Gestión pública local | N173: =IF(ISERROR(VLOOKUP(L173,[9]Proposito_programa!$C$2:$E$59,3,FALSE))," ",VLOOKUP(L173,[9]Proposito_programa!$C$2:$E$59,3,FALSE)) -> Propósito 5: Construir Bogotá - Región con gobierno abierto, transparente y ciudadanía consciente | O173: 1987 | P173: 1 | Q173: 1024530753 | R173: JEIMMY CAROLINA GOMEZ CUITIVA | S173: Persona Natural | W173: 40800000 | Y173: 2 | Z173: 16150000 | AA173: 56950000 | AB173: 46750000 | AC173: 44252 | AD173: 44253 | AE173: 44560 | AF173: 240 | AG173: 2 | AH173: 96 | AO173: X | AQ173: 0.8208955224
A174: 1 | B174: CPS-162-2021 | C174: 2021 | D174: FDLCB-CD-162-2021 | E174: https://community.secop.gov.co/Public/Tendering/OpportunityDetail/Index?noticeUID=CO1.NTC.1797076&isFromPublicArea=True&isModal=False | F174: Contratos de prestación de servicios profesionales y de apoyo a la gestión | G174: Contratación directa | H174: Prestación de servicios profesionales y de apoyo a la gestión, o para la ejecución de trabajos artísticos que sólo puedan encomendarse a determinadas personas naturales; | I174: PRESTACIÓN DE SERVICIOS PROFESIONALES EN EL ÁREA DE GESTIÓN DE DESARROLLO LOCAL DE CIUDAD BOLÍVAR PLANEACIÓN, REALIZANDO LAS ACTIVIDADES CONCERNIENTES AL DESARROLLO DE LOS PROYECTOS DE INVERSIÓN, SEGUIMIENTO, EVALUACIÓN Y APOYO A LAS LIQUIDACIONES DESIGNADAS, EN CUMPLIMIENTO AL PLAN DE DESARROLLO LOCAL 2021-2024 | J174: Inversión | K174: Un Nuevo Contrato Social y Ambiental para la Bogotá del Siglo XXI | L174: 57 | M174: =IF(ISERROR(VLOOKUP(L174,[9]Proposito_programa!$C$2:$E$59,2,FALSE))," ",VLOOKUP(L174,[9]Proposito_programa!$C$2:$E$59,2,FALSE)) -> Gestión pública local | N174: =IF(ISERROR(VLOOKUP(L174,[9]Proposito_programa!$C$2:$E$59,3,FALSE))," ",VLOOKUP(L174,[9]Proposito_programa!$C$2:$E$59,3,FALSE)) -> Propósito 5: Construir Bogotá - Región con gobierno abierto, transparente y ciudadanía consciente | O174: 1986 | P174: 1 | Q174: 1032408667 | R174: YENY MARCELA VALBUENA MOLINA | S174: Persona Natural | W174: 45600000 | Y174: 1 | Z174: 12540000 | AA174: 58140000 | AB174: 52440000 | AC174: 44252 | AD174: 44252 | AE174: 44560 | AF174: 240 | AG174: 1 | AH174: 66 | AO174: X | AQ174: 0.9019607843
A175: 1 | B175: CPS-163-2021 | C175: 2021 | D175: FDLCB-CD-163-2021 | E175: https://community.secop.gov.co/Public/Tendering/OpportunityDetail/Index?noticeUID=CO1.NTC.1797515&isFromPublicArea=True&isModal=False | F175: Contratos de prestación de servicios profesionales y de apoyo a la gestión | G175: Contratación directa | H175: Prestación de servicios profesionales y de apoyo a la gestión, o para la ejecución de trabajos artísticos que sólo puedan encomendarse a determinadas personas naturales; | I175: PRESTAR LOS SERVICIOS DE APOYO TÉCNICO PARA REALIZAR ACTIVIDADES ADMINISTRATIVAS QUE SE ADELANTAN EN EL ALMACÉN DE LA ALCALDÍA LOCAL DE CIUDAD BOLÍVAR. | J175: Inversión | K175: Un Nuevo Contrato Social y Ambiental para la Bogotá del Siglo XXI | L175: 57 | M175: =IF(ISERROR(VLOOKUP(L175,[9]Proposito_programa!$C$2:$E$59,2,FALSE))," ",VLOOKUP(L175,[9]Proposito_programa!$C$2:$E$59,2,FALSE)) -> Gestión pública local | N175: =IF(ISERROR(VLOOKUP(L175,[9]Proposito_programa!$C$2:$E$59,3,FALSE))," ",VLOOKUP(L175,[9]Proposito_programa!$C$2:$E$59,3,FALSE)) -> Propósito 5: Construir Bogotá - Región con gobierno abierto, transparente y ciudadanía consciente | O175: 1986 | P175: 1 | Q175: 5506182 | R175: CARMEN EMIRO PEINADO ARDILA | S175: Persona Natural | W175: 26400000 | Y175: 1 | Z175: 7260000 | AA175: 33660000 | AB175: 30360000 | AC175: 44252 | AD175: 44252 | AE175: 44560 | AF175: 240 | AG175: 1 | AH175: 66 | AO175: X | AQ175: 0.9019607843
A176: 1 | B176: CPS-164-2021 | C176: 2021 | D176: FDLCB-CD-164-2021 | E176: https://community.secop.gov.co/Public/Tendering/OpportunityDetail/Index?noticeUID=CO1.NTC.1799645&isFromPublicArea=True&isModal=False | F176: Contratos de prestación de servicios profesionales y de apoyo a la gestión | G176: Contratación directa | H176: Prestación de servicios profesionales y de apoyo a la gestión, o para la ejecución de trabajos artísticos que sólo puedan encomendarse a determinadas personas naturales; | I176: PRESTAR SUS SERVICIOS PROFESIONALES PARA DESARROLLAR TODAS LAS ACTIVIDADES CONCERNIENTES A LA CONSECUCIÓN DE BIENES Y/O SERVICIOS PARA LA LOCALIDAD DE CIUDAD BOLÍVAR DE ACUERDO CON LOS PROCEDIMIENTOS ESTABLECIDOS EN EL SIG Y A LA NORMATIVIDAD VIGENTE EN MATERIA DE CONTRATACIÓN ESTATAL EN CUMPLIMIENTO DE LAS METAS ESTABLECIDAS EN EL PLAN DE DESARROLLO LOCAL DE CIUDAD BOLÍVAR, PLAN DE GESTIÓN Y PLAN ANUAL DE ADQUISICIONES | J176: Inversión | K176: Un Nuevo Contrato Social y Ambiental para la Bogotá del Siglo XXI | L176: 57 | M176: =IF(ISERROR(VLOOKUP(L176,[9]Proposito_programa!$C$2:$E$59,2,FALSE))," ",VLOOKUP(L176,[9]Proposito_programa!$C$2:$E$59,2,FALSE)) -> Gestión pública local | N176: =IF(ISERROR(VLOOKUP(L176,[9]Proposito_programa!$C$2:$E$59,3,FALSE))," ",VLOOKUP(L176,[9]Proposito_programa!$C$2:$E$59,3,FALSE)) -> Propósito 5: Construir Bogotá - Región con gobierno abierto, transparente y ciudadanía consciente | O176: 1986 | P176: 1 | Q176: 80041468 | R176: ANDRES FERNANDO BETANCOURT MARTÍNEZ | S176: Persona Natural | W176: 48000000 | Y176: 1 | Z176: 15800000 | AA176: 63800000 | AB176: 55000000 | AC176: 44252 | AD176: 44253 | AE176: 44575 | AF176: 240 | AG176: 1 | AH176: 79 | AN176: X | AQ176: 0.8620689655
A177: 1 | B177: CPS-165-2021 | C177: 2021 | D177: FDLCB-CD-165-2021 | E177: https://community.secop.gov.co/Public/Tendering/OpportunityDetail/Index?noticeUID=CO1.NTC.1799642&isFromPublicArea=True&isModal=False | F177: Contratos de prestación de servicios profesionales y de apoyo a la gestión | G177: Contratación directa | H177: Prestación de servicios profesionales y de apoyo a la gestión, o para la ejecución de trabajos artísticos que sólo puedan encomendarse a determinadas personas naturales; | I177: APOYAR JURÍDICAMENTE LA EJECUCIÓN DE LAS ACCIONES REQUERIDAS PARA EL TRÁMITE E IMPULSO PROCESAL DE LAS ACTUACIONES CONTRAVENCIONALES Y/O QUERELLAS QUE CURSEN EN LAS INSPECCIONES DE POLICÍA DE LA LOCALIDAD. | J177: Inversión | K177: Un Nuevo Contrato Social y Ambiental para la Bogotá del Siglo XXI | L177: 57 | M177: =IF(ISERROR(VLOOKUP(L177,[9]Proposito_programa!$C$2:$E$59,2,FALSE))," ",VLOOKUP(L177,[9]Proposito_programa!$C$2:$E$59,2,FALSE)) -> Gestión pública local | N177: =IF(ISERROR(VLOOKUP(L177,[9]Proposito_programa!$C$2:$E$59,3,FALSE))," ",VLOOKUP(L177,[9]Proposito_programa!$C$2:$E$59,3,FALSE)) -> Propósito 5: Construir Bogotá - Región con gobierno abierto, transparente y ciudadanía consciente | O177: 1987 | P177: 1 | Q177: 52739925 | R177: YANETH MENDIVELSO PEREZ | S177: Persona Natural | W177: 40800000 | Y177: 2 | Z177: 15130000 | AA177: 55930000 | AB177: 45730000 | AC177: 44252 | AD177: 44257 | AE177: 44560 | AF177: 240 | AG177: 2 | AH177: 90 | AO177: X | AQ177: 0.8176291793
A178: 1 | B178: CPS-166-2021 | C178: 2021 | D178: FDLCB-CD-166-2021 | E178: https://community.secop.gov.co/Public/Tendering/OpportunityDetail/Index?noticeUID=CO1.NTC.1799719&isFromPublicArea=True&isModal=False | F178: Contratos de prestación de servicios profesionales y de apoyo a la gestión | G178: Contratación directa | H178: Prestación de servicios profesionales y de apoyo a la gestión, o para la ejecución de trabajos artísticos que sólo puedan encomendarse a determinadas personas naturales; | I178: APOYAR JURÍDICAMENTE LA EJECUCIÓN DE LAS ACCIONES REQUERIDAS PARA EL TRÁMITE E IMPULSO PROCESAL DE LAS ACTUACIONES CONTRAVENCIONALES Y/O QUERELLAS QUE CURSEN EN LAS INSPECCIONES DE POLICÍA DE LA LOCALIDAD. | J178: Inversión | K178: Un Nuevo Contrato Social y Ambiental para la Bogotá del Siglo XXI | L178: 57 | M178: =IF(ISERROR(VLOOKUP(L178,[9]Proposito_programa!$C$2:$E$59,2,FALSE))," ",VLOOKUP(L178,[9]Proposito_programa!$C$2:$E$59,2,FALSE)) -> Gestión pública local | N178: =IF(ISERROR(VLOOKUP(L178,[9]Proposito_programa!$C$2:$E$59,3,FALSE))," ",VLOOKUP(L178,[9]Proposito_programa!$C$2:$E$59,3,FALSE)) -> Propósito 5: Construir Bogotá - Región con gobierno abierto, transparente y ciudadanía consciente | O178: 1987 | P178: 1 | Q178: 85459440 | R178: AUGUSTO MOSCARELLA | S178: Persona Natural | W178: 40800000 | Y178: 2 | Z178: 15130000 | AA178: 55930000 | AB178: 45730000 | AC178: 44252 | AD178: 44257 | AE178: 44560 | AF178: 240 | AG178: 2 | AH178: 90 | AI178: 3759619 | AJ178: JUAN JOSE ENSUNCHO CONSUEGRA | AK178: 44312 | AL178: 31620000 | AO178: X | AQ178: 0.8176291793
